{"text_format":"1","workbook":"xlsx","n_sheets":9,"sheets":["予算","損益分岐点売上高・投資","支出項目","パネル","日記帳","売上高分析","現金出納帳","損益計算書","予算実績比較"],"not_rendered":{"charts":15,"images":0,"macros":1,"external_links":1,"defined_names":0,"comments":0,"pivot_tables":0},"unopened":[],"bounds":{"document_bytes":16777216,"sheet_cells":100000,"rows_first":2000,"rows_last":500,"rows_between":2000,"halvings":0,"cell_chars":16384,"cell_head_chars":4096},"cells_cut":0,"cells_raw":0,"read":"whole","date_system":"1900"}

{"sheet":"予算","index":0,"n_rows":42,"n_cols":15,"rows_kept":42,"cut":false,"hidden":false,"merged":[[1,7,1,9],[41,1,41,4],[4,1,4,4],[8,7,8,8],[27,1,27,4],[28,1,28,4],[29,1,29,4],[36,7,36,9]]}
[null,"予算編成","※数量と単価は半角数字のみ入力してください。協賛欄は〇を入力してください。",null,null,null,null,null,null,null,null,"元手が回収できる売上高と販売量（損益分岐点分析）"]
[null,"売上に関する項目：販売予測",null,null,null,null,null,"予算損益計算書",null,null,null,"項　目","計算","割　合","金　　額"]
[null,"1日目",null,"杯",null,{"$f":"C3*E3","v":0},null,"売上高",1,{"$f":"F5","v":0},null,"売上高","①",1,{"$f":"O5+O4","v":0}]
[null,"２日目",null,"杯",null,{"$f":"C4*E4","v":0},null,"変動費",{"$f":"J4/$J$3","v":{"$error":"#DIV/0!"}},{"$f":"F30","v":0},null,"変動費","②",{"$f":"O4/$O$3","v":{"$error":"#DIV/0!"}},{"$f":"F30","v":0}]
[null,"合　　　　　計",null,null,null,{"$f":"F3+F4","v":0},null,"貢献利益",{"$f":"J5/$J$3","v":{"$error":"#DIV/0!"}},{"$f":"J3-J4","v":0},null,"貢献利益","①－②＝③",{"$f":"O5/$O$3","v":{"$error":"#DIV/0!"}},{"$f":"O7+O6","v":0}]
[null,"材料費等に関する項目：原価予測（変動費）",null,null,null,null,null,"固定費",null,{"$f":"F42","v":0},null,"固定費","④",{"$f":"O6/$O$3","v":{"$error":"#DIV/0!"}},{"$f":"F42","v":0}]
["No.","費　目","数　量","協賛","単　価","金　　　　額",null,"営業利益",null,{"$f":"J5-J6","v":0},null,"営業利益","③－④＝⑤",{"$f":"O7/$O$3","v":{"$error":"#DIV/0!"}},0]
[1,null,null,null,null,{"$f":"IF(B8=\"\",\"\",IF(D8=\"〇\",0,C8*E8))","v":""}]
[2,null,null,null,null,"",null,"協賛品",null,null,null,"元手が回収できる販売量",null,{"$f":"O3/E4+1","v":{"$error":"#DIV/0!"}},"を超えれば儲けがでる！！"]
[3,null,null,null,null,"",null,{"$f":"IF(D8=\"〇\",B8,\"\")","v":""},{"$f":"IF(H10=\"\",\"\",C8*E8)","v":""}]
[4,null,null,null,null,"",null,"",""]
[5,null,null,null,null,"",null,"",""]
[6,null,null,null,null,"",null,"",""]
[7,null,null,null,null,"",null,"",""]
[8,null,null,null,null,"",null,"",""]
[9,null,null,null,null,"",null,"",""]
[10,null,null,null,null,"",null,"",""]
[11,null,null,null,null,"",null,"",""]
[12,null,null,null,null,"",null,"",""]
[13,null,null,null,null,"",null,"",""]
[14,null,null,null,null,"",null,"",""]
[15,null,null,null,null,"",null,"",""]
[16,null,null,null,null,"",null,"",""]
[17,null,null,null,null,"",null,"",""]
[18,null,null,null,null,"",null,"",""]
[19,null,null,null,null,"",null,"",""]
[20,null,null,null,null,"",null,"",""]
[null,"小    計",null,null,null,{"$f":"SUM(F8:F27)","v":0},null,"",""]
[null,"消   費  税",null,null,null,null,null,"",""]
[null,"合    計",null,null,null,{"$f":"F28+F29","v":0},null,"　合　　　計",{"$f":"SUM(I10:I29)","v":0}]
[]
[null,"レンタル品等に関する項目：原価予測（固定費）",null,null,null,null,null,"予算営業利益－協賛品原価"]
["No.","費　目","数　量","協賛","単　価","金　　　　額",null,"予算営業利益",{"$f":"J7","v":0}]
[1,null,null,null,null,{"$f":"IF(B34=\"\",\"\",C34*E34)","v":""},null,"協賛品原価",{"$f":"I30","v":0}]
[2,null,null,null,null,{"$f":"IF(B35=\"\",\"\",C35*E35)","v":""},null,"営業利益",{"$f":"I33-I34","v":0}]
[3,null,null,null,null,""]
[4,null,null,null,null,"",null,"予算実質的損益計算書"]
[5,null,null,null,null,"",null,"売上高",1,{"$f":"F5","v":0}]
[6,null,null,null,null,"",null,"変動費",{"$f":"J39/$J$3","v":{"$error":"#DIV/0!"}},{"$f":"F30+I30","v":0}]
[7,null,null,null,null,"",null,"貢献利益",{"$f":"J40/$J$3","v":{"$error":"#DIV/0!"}},{"$f":"J38-J39","v":0}]
[8,null,null,null,null,"",null,"固定費",null,{"$f":"F42","v":0}]
[null,"合　　　計",null,null,null,{"$f":"SUM(F34:F41)","v":0},null,"営業利益",null,{"$f":"J40-J41","v":0}]

{"sheet":"損益分岐点売上高・投資","index":1,"n_rows":12,"n_cols":25,"rows_kept":12,"cut":false,"hidden":false,"merged":[]}
["　　　　　　　　損益分岐点　損益計算書　　　　　（単位：円）",null,null,"投資状況      店舗名"]
[{"$f":"IF(E1=\"\",\"\",E1)","v":""},"2019年11月３日～2019年11月４日",null,"出資者（学生数）",null,null,null,null,null,null,null,null,null,null,null,null,null,null,null,null,null,null,null,null,{"$f":"IF(E2=\"\",\"\",COUNTA(E2:X2))","v":""}]
["損益分岐点売上高",{"$f":"B5+B4","v":0},null,"初期投資",null,null,null,null,null,null,null,null,null,null,null,null,null,null,null,null,null,null,null,null,{"$f":"IF(E3=\"\",\"\",SUM(E3:X3))","v":""}]
["変 動 費",{"$f":"支出項目!F30","v":0},null,"文化祭前追加投資",null,null,null,null,null,null,null,null,null,null,null,null,null,null,null,null,null,null,null,null,{"$f":"SUM(E4:X4)","v":0}]
["貢献利益",{"$f":"B6+B7","v":0},null,"追加投資11月3日",null,null,null,null,null,null,null,null,null,null,null,null,null,null,null,null,null,null,null,null,{"$f":"SUM(E5:X5)","v":0}]
["固 定 費",{"$f":"支出項目!F44","v":0},null,"追加投資11月4日",null,null,null,null,null,null,null,null,null,null,null,null,null,null,null,null,null,null,null,null,0]
["営業利益",0,null,"追加投資11月5日",null,null,null,null,null,null,null,null,null,null,null,null,null,null,null,null,null,null,null,null,0]
[null,null,null,"合計",{"$f":"IF(E$2=\"\",\"\",SUM(E3:E7))","v":""},{"$f":"IF(F$2=\"\",\"\",SUM(F3:F7))","v":""},"","","","","","","","","","","","","","","","","","",""]
["文化祭開催期間","月　　　日",null,"1人あたりの分配金",{"$f":"IF(E8=\"\",\"\",現金出納帳!$E$15*E8/$Y$8)","v":""},{"$f":"IF(F8=\"\",\"\",現金出納帳!$E$15*F8/$Y$8)","v":""},{"$f":"IF(G8=\"\",\"\",現金出納帳!$E$15*G8/$Y$8)","v":""},{"$f":"IF(H8=\"\",\"\",現金出納帳!$E$15*H8/$Y$8)","v":""},{"$f":"IF(I8=\"\",\"\",現金出納帳!$E$15*I8/$Y$8)","v":""},{"$f":"IF(J8=\"\",\"\",現金出納帳!$E$15*J8/$Y$8)","v":""},{"$f":"IF(K8=\"\",\"\",現金出納帳!$E$15*K8/$Y$8)","v":""},{"$f":"IF(L8=\"\",\"\",現金出納帳!$E$15*L8/$Y$8)","v":""},{"$f":"IF(M8=\"\",\"\",現金出納帳!$E$15*M8/$Y$8)","v":""},{"$f":"IF(N8=\"\",\"\",現金出納帳!$E$15*N8/$Y$8)","v":""},{"$f":"IF(O8=\"\",\"\",現金出納帳!$E$15*O8/$Y$8)","v":""},{"$f":"IF(P8=\"\",\"\",現金出納帳!$E$15*P8/$Y$8)","v":""},{"$f":"IF(Q8=\"\",\"\",現金出納帳!$E$15*Q8/$Y$8)","v":""},{"$f":"IF(R8=\"\",\"\",現金出納帳!$E$15*R8/$Y$8)","v":""},{"$f":"IF(S8=\"\",\"\",現金出納帳!$E$15*S8/$Y$8)","v":""},{"$f":"IF(T8=\"\",\"\",現金出納帳!$E$15*T8/$Y$8)","v":""},{"$f":"IF(U8=\"\",\"\",現金出納帳!$E$15*U8/$Y$8)","v":""},{"$f":"IF(V8=\"\",\"\",現金出納帳!$E$15*V8/$Y$8)","v":""},{"$f":"IF(W8=\"\",\"\",現金出納帳!$E$15*W8/$Y$8)","v":""},{"$f":"IF(X8=\"\",\"\",現金出納帳!$E$15*X8/$Y$8)","v":""},{"$f":"SUM(E9:X9)","v":0}]
["１日目",null,null,"1人あたりの還元額",{"$f":"IF(E8=\"\",\"\",IF(E9>=E8,損益計算書!$E$7*E8/$Y$8,\"0\"))","v":""},{"$f":"IF(F8=\"\",\"\",IF(F9>=F8,損益計算書!$E$7*F8/$Y$8,\"0\"))","v":""},{"$f":"IF(G8=\"\",\"\",IF(G9>=G8,損益計算書!$E$7*G8/$Y$8,\"0\"))","v":""},{"$f":"IF(H8=\"\",\"\",IF(H9>=H8,損益計算書!$E$7*H8/$Y$8,\"0\"))","v":""},{"$f":"IF(I8=\"\",\"\",IF(I9>=I8,損益計算書!$E$7*I8/$Y$8,\"0\"))","v":""},{"$f":"IF(J8=\"\",\"\",IF(J9>=J8,損益計算書!$B$7*J8/$Y$8,\"0\"))","v":""},{"$f":"IF(K8=\"\",\"\",IF(K9>=K8,損益計算書!$B$7*K8/$Y$8,\"0\"))","v":""},{"$f":"IF(L8=\"\",\"\",IF(L9>=L8,損益計算書!$B$7*L8/$Y$8,\"0\"))","v":""},{"$f":"IF(M8=\"\",\"\",IF(M9>=M8,損益計算書!$B$7*M8/$Y$8,\"0\"))","v":""},{"$f":"IF(N8=\"\",\"\",IF(N9>=N8,損益計算書!$B$7*N8/$Y$8,\"0\"))","v":""},{"$f":"IF(O8=\"\",\"\",IF(O9>=O8,損益計算書!$B$7*O8/$Y$8,\"0\"))","v":""},{"$f":"IF(P8=\"\",\"\",IF(P9>=P8,損益計算書!$B$7*P8/$Y$8,\"0\"))","v":""},{"$f":"IF(Q8=\"\",\"\",IF(Q9>=Q8,損益計算書!$B$7*Q8/$Y$8,\"0\"))","v":""},{"$f":"IF(R8=\"\",\"\",IF(R9>=R8,損益計算書!$B$7*R8/$Y$8,\"0\"))","v":""},{"$f":"IF(S8=\"\",\"\",IF(S9>=S8,損益計算書!$B$7*S8/$Y$8,\"0\"))","v":""},{"$f":"IF(T8=\"\",\"\",IF(T9>=T8,損益計算書!$B$7*T8/$Y$8,\"0\"))","v":""},{"$f":"IF(U8=\"\",\"\",IF(U9>=U8,損益計算書!$B$7*U8/$Y$8,\"0\"))","v":""},{"$f":"IF(V8=\"\",\"\",IF(V9>=V8,損益計算書!$B$7*V8/$Y$8,\"0\"))","v":""},{"$f":"IF(W8=\"\",\"\",IF(W9>=W8,損益計算書!$B$7*W8/$Y$8,\"0\"))","v":""},{"$f":"IF(X8=\"\",\"\",IF(X9>=X8,損益計算書!$B$7*X8/$Y$8,\"0\"))","v":""},{"$f":"SUM(E10:X10)","v":0}]
["２日目",null,null,"1人あたりの投下資本利益率",{"$f":"IF(E8=\"\",\"\",E10/E8)","v":""},{"$f":"IF(F8=\"\",\"\",F10/F8)","v":""},"","","","","","","","","","","","","","","","","",""]
[null,null,null,"1番多く出資している人",{"$f":"IF(E8=\"\",\"\",IF(MAX($E$8:$X$8)=E8,\"大株主！\",\"\"))","v":""},{"$f":"IF(F8=\"\",\"\",IF(MAX($E$8:$X$8)=F8,\"大株主！\",\"\"))","v":""},"","","","","","","","","","","","","","","","","",""]

{"sheet":"支出項目","index":2,"n_rows":56,"n_cols":7,"rows_kept":56,"cut":false,"hidden":false,"merged":[]}
["支出項目"]
["材料購入（変動費）","予　　算","文化祭前",{"$f":"IF(損益分岐点売上高・投資!B10=\"\",\"\",損益分岐点売上高・投資!B10)","v":""},{"$f":"IF(損益分岐点売上高・投資!B11=\"\",\"\",損益分岐点売上高・投資!B11)","v":""},"合計","差　　異"]
[{"$f":"IF(予算!B8=\"\",\"\",予算!B8)","v":""},{"$f":"IF(予算!F8=\"\",\"\",予算!F8)","v":""},null,null,null,{"$f":"IF($A3=\"\",\"\",SUM(C3:E3))","v":""},{"$f":"IF(B3=\"\",\"\",B3-F3)","v":""}]
[{"$f":"IF(予算!B9=\"\",\"\",予算!B9)","v":""},{"$f":"IF(予算!F9=\"\",\"\",予算!F9)","v":""},null,null,null,"",{"$f":"IF(B4=\"\",\"\",B4-F4)","v":""}]
[{"$f":"IF(予算!B10=\"\",\"\",予算!B10)","v":""},{"$f":"IF(予算!F10=\"\",\"\",予算!F10)","v":""},null,null,null,"",""]
[{"$f":"IF(予算!B11=\"\",\"\",予算!B11)","v":""},{"$f":"IF(予算!F11=\"\",\"\",予算!F11)","v":""},null,null,null,"",""]
[{"$f":"IF(予算!B12=\"\",\"\",予算!B12)","v":""},{"$f":"IF(予算!F12=\"\",\"\",予算!F12)","v":""},null,null,null,"",""]
[{"$f":"IF(予算!B13=\"\",\"\",予算!B13)","v":""},{"$f":"IF(予算!F13=\"\",\"\",予算!F13)","v":""},null,null,null,"",""]
[{"$f":"IF(予算!B14=\"\",\"\",予算!B14)","v":""},{"$f":"IF(予算!F14=\"\",\"\",予算!F14)","v":""},null,null,null,"",""]
[{"$f":"IF(予算!B15=\"\",\"\",予算!B15)","v":""},{"$f":"IF(予算!F15=\"\",\"\",予算!F15)","v":""},null,null,null,"",""]
[{"$f":"IF(予算!B16=\"\",\"\",予算!B16)","v":""},{"$f":"IF(予算!F16=\"\",\"\",予算!F16)","v":""},null,null,null,"",""]
[{"$f":"IF(予算!B17=\"\",\"\",予算!B17)","v":""},{"$f":"IF(予算!F17=\"\",\"\",予算!F17)","v":""},null,null,null,"",""]
[{"$f":"IF(予算!B18=\"\",\"\",予算!B18)","v":""},{"$f":"IF(予算!F18=\"\",\"\",予算!F18)","v":""},null,null,null,"",""]
[{"$f":"IF(予算!B19=\"\",\"\",予算!B19)","v":""},{"$f":"IF(予算!F19=\"\",\"\",予算!F19)","v":""},null,null,null,"",""]
[{"$f":"IF(予算!B20=\"\",\"\",予算!B20)","v":""},{"$f":"IF(予算!F20=\"\",\"\",予算!F20)","v":""},null,null,null,"",""]
[{"$f":"IF(予算!B21=\"\",\"\",予算!B21)","v":""},{"$f":"IF(予算!F21=\"\",\"\",予算!F21)","v":""},null,null,null,"",""]
[{"$f":"IF(予算!B22=\"\",\"\",予算!B22)","v":""},{"$f":"IF(予算!F22=\"\",\"\",予算!F22)","v":""},null,null,null,"",""]
[{"$f":"IF(予算!B23=\"\",\"\",予算!B23)","v":""},{"$f":"IF(予算!F23=\"\",\"\",予算!F23)","v":""},null,null,null,"",""]
[{"$f":"IF(予算!B24=\"\",\"\",予算!B24)","v":""},{"$f":"IF(予算!F24=\"\",\"\",予算!F24)","v":""},null,null,null,"",""]
[{"$f":"IF(予算!B25=\"\",\"\",予算!B25)","v":""},{"$f":"IF(予算!F25=\"\",\"\",予算!F25)","v":""},null,null,null,"",""]
[{"$f":"IF(予算!B26=\"\",\"\",予算!B26)","v":""},{"$f":"IF(予算!F26=\"\",\"\",予算!F26)","v":""},null,null,null,"",""]
[{"$f":"IF(予算!B27=\"\",\"\",予算!B27)","v":""},{"$f":"IF(予算!F27=\"\",\"\",予算!F27)","v":""},null,null,null,"",""]
[null,{"$f":"IF(A23=\"\",\"\",0)","v":""},null,null,null,"",""]
[null,{"$f":"IF(A24=\"\",\"\",0)","v":""},null,null,null,"",""]
[null,"",null,null,null,"",""]
[null,"",null,null,null,"",""]
[null,"",null,null,null,"",""]
[null,"",null,null,null,"",""]
["消費税",{"$f":"予算!F29","v":0},null,null,null,0,0]
["材料費合計",{"$f":"SUM(B3:B29)","v":0},{"$f":"IF(C$2=\"\",\"\",SUM(C3:C29))","v":0},{"$f":"IF(D$2=\"\",\"\",SUM(D3:D29))","v":""},{"$f":"IF(E$2=\"\",\"\",SUM(E3:E29))","v":""},{"$f":"IF(F$2=\"\",\"\",SUM(F3:F29))","v":0},{"$f":"IF(G$2=\"\",\"\",SUM(G3:G29))","v":0}]
[]
["レンタル器具類（固定費）","予　　算","文化祭前",{"$f":"IF(日記帳!K$13=\"\",\"\",日記帳!K$13)","v":""},{"$f":"IF(日記帳!L$13=\"\",\"\",日記帳!L$13)","v":""},"合計","差　　異"]
[{"$f":"IF(予算!B34=\"\",\"\",予算!B34)","v":""},{"$f":"IF(予算!F34=\"\",\"\",予算!F34)","v":""},null,null,null,{"$f":"IF($A33=\"\",\"\",SUM(C33:E33))","v":""},{"$f":"IF(B33=\"\",\"\",B33-F33)","v":""}]
[{"$f":"IF(予算!B35=\"\",\"\",予算!B35)","v":""},{"$f":"IF(予算!F35=\"\",\"\",予算!F35)","v":""},null,null,null,"",{"$f":"IF(B34=\"\",\"\",B34-F34)","v":""}]
[{"$f":"IF(予算!B36=\"\",\"\",予算!B36)","v":""},{"$f":"IF(予算!F36=\"\",\"\",予算!F36)","v":""},null,null,null,"",""]
[{"$f":"IF(予算!B37=\"\",\"\",予算!B37)","v":""},{"$f":"IF(予算!F37=\"\",\"\",予算!F37)","v":""},null,null,null,"",""]
[{"$f":"IF(予算!B38=\"\",\"\",予算!B38)","v":""},{"$f":"IF(予算!F38=\"\",\"\",予算!F38)","v":""},null,null,null,"",""]
[{"$f":"IF(予算!B39=\"\",\"\",予算!B39)","v":""},{"$f":"IF(予算!F39=\"\",\"\",予算!F39)","v":""},null,null,null,"",""]
[{"$f":"IF(予算!B40=\"\",\"\",予算!B40)","v":""},{"$f":"IF(予算!F40=\"\",\"\",予算!F40)","v":""},null,null,null,"",""]
[{"$f":"IF(予算!B41=\"\",\"\",予算!B41)","v":""},{"$f":"IF(予算!F41=\"\",\"\",予算!F41)","v":""},null,null,null,"",""]
[null,{"$f":"IF(A41=\"\",\"\",0)","v":""},null,null,null,"",""]
[null,"",null,null,null,"",""]
[null,"",null,null,null,"",""]
["レンタル器具類合計",{"$f":"IF(B$2=\"\",\"\",SUM(B33:B43))","v":0},0,"","",0,0]
[]
["払い戻し・利益処分項目","予　　算","文化祭前",{"$f":"IF([1]日記帳!K$13=\"\",\"\",[1]日記帳!K$13)","v":"2018-11-03"},{"$f":"IF([1]日記帳!L$13=\"\",\"\",[1]日記帳!L$13)","v":"2018-11-04"},"合計"]
["払い戻し",null,null,null,null,{"$f":"IF($A47=\"\",\"\",SUM(C47:E47))","v":0}]
["お花",null,null,null,null,0]
["お菓子",null,null,null,null,0]
["払い戻し・利益処分項目合計",{"$f":"IF(B$2=\"\",\"\",SUM(B47:B49))","v":0},{"$f":"IF(C$2=\"\",\"\",SUM(C47:C49))","v":0},{"$f":"IF(D$2=\"\",\"\",SUM(D47:D49))","v":""},"",0]
[]
[null,"予　　算","文化祭前",{"$f":"IF(日記帳!K$13=\"\",\"\",日記帳!K$13)","v":""},{"$f":"IF(日記帳!L$13=\"\",\"\",日記帳!L$13)","v":""},"合計","差　　異"]
["支出合計",{"$f":"B30+B44+B50","v":0},{"$f":"IF(C$52=\"\",\"\",C30+C44+C50)","v":0},{"$f":"IF(D$52=\"\",\"\",D30+D44+D50)","v":""},{"$f":"IF(E$52=\"\",\"\",E30+E44+E50)","v":""},{"$f":"IF(F$52=\"\",\"\",F30+F44+F50)","v":0},{"$f":"IF(G$52=\"\",\"\",G30+G44)","v":0}]
[]
["請求書または領収証（レシート）の金額を見ながら入力してください。"]
["該当する項目がなければ、適当な項目名と金額を入力してください。"]

{"sheet":"パネル","index":3,"n_rows":20,"n_cols":22,"rows_kept":20,"cut":false,"hidden":false,"merged":[]}
[]
[null,{"$f":"TODAY()","v":"2020-10-28"},{"$f":"TIMEVALUE(TEXT(NOW(),\"hh:mm:ss\"))","v":"15:03:30"},"現在",null,null,null,null,null,null,null,null,null,null,"客　　　層"]
[]
[]
[null,null,null,null,null,null,null,null,null,"杯",400,"円／杯",{"$f":"I5*K5","v":0}]
[null,null,null,null,null,null,null,null,null,null,null,null,null,null,null,null,"日付","時間","商品名","数量","単価","販売代金"]
[null,null,null,null,null,null,null,null,null,null,null,null,null,null,null,null,{"$f":"$B$2","v":"2020-10-28"},{"$f":"TIMEVALUE(TEXT(NOW(),\"hh:mm:ss\"))","v":"15:03:30"},{"$f":"IF(Q17=\"\",\"\",Q17)","v":"醤油ラーメン"},{"$f":"I5","v":0},{"$f":"K5","v":400},{"$f":"T7*U7","v":0}]
[null,null,null,null,null,null,null,null,null,null,null,null,null,null,null,null,{"$f":"$B$2","v":"2020-10-28"},{"$f":"TIMEVALUE(TEXT(NOW(),\"hh:mm:ss\"))","v":"15:03:30"},{"$f":"IF(Q18=\"\",\"\",Q18)","v":"みそラーメン"},{"$f":"I12","v":0},{"$f":"K12","v":400},{"$f":"T8*U8","v":0}]
[]
[]
[]
[null,null,null,null,null,null,null,null,null,"杯",400,"円／杯",{"$f":"I12*K12","v":0}]
[]
[]
[null,null,null,null,null,null,null,null,null,null,null,"代  金",{"$f":"M5+M12","v":0}]
[null,null,null,null,null,null,null,null,null,null,null,null,null,null,null,null,"商品名","通常価格","前売り券","値下価格"]
[null,null,null,null,null,null,null,null,null,null,null,null,null,null,null,null,"醤油ラーメン",400]
[null,null,null,null,null,null,null,null,null,null,null,null,null,null,null,null,"みそラーメン",400]
[null,"目標売上高まであと、、、、"]
[null,{"$f":"損益計算書!B3-損益分岐点売上高・投資!B3","v":0},"円",{"$f":"IF(B20>=0,\"目標達成おめでとう！！！（＾V＾）やったね！！\",\"気合い入れて頑張れ！！！！（＾▽＾）風邪ひかないでね\")","v":"目標達成おめでとう！！！（＾V＾）やったね！！"}]

{"sheet":"日記帳","index":4,"n_rows":10000,"n_cols":13,"rows_kept":10000,"cut":false,"hidden":false,"merged":[]}
["日記帳"]
[null,null,null,null,null,null,null,null,null,"各店舗で、商品名、客層を入力してください。"]
["日付","時間","商品名","販売数","販売単価","売上高","客層","メモ",null,"商品名","客層設定"]
[null,null,null,null,null,null,null,null,null,{"$f":"IF(パネル!Q17=\"\",\"\",パネル!Q17)","v":"醤油ラーメン"}]
[null,null,null,null,null,null,null,null,null,{"$f":"IF(パネル!Q18=\"\",\"\",パネル!Q18)","v":"みそラーメン"}]
[null,null,null,null,null,null,null,null,null,{"$f":"IF(パネル!Q19=\"\",\"\",パネル!Q19)","v":""}]
[null,null,null,null,null,null,null,null,null,{"$f":"IF(パネル!Q20=\"\",\"\",パネル!Q20)","v":""}]
[null,null,null,null,null,null,null,null,null,{"$f":"IF(パネル!Q21=\"\",\"\",パネル!Q21)","v":""}]
[null,null,null,null,null,null,null,null,null,{"$f":"IF(パネル!Q22=\"\",\"\",パネル!Q22)","v":""}]
[null,null,null,null,null,null,null,null,null,{"$f":"IF(パネル!Q23=\"\",\"\",パネル!Q23)","v":""}]
[]
[]
[null,null,null,null,null,null,null,null,null,"販売個数",{"$f":"IF(損益分岐点売上高・投資!B10=\"\",\"\",損益分岐点売上高・投資!B10)","v":""},{"$f":"IF(損益分岐点売上高・投資!B11=\"\",\"\",損益分岐点売上高・投資!B11)","v":""},"合計"]
[null,null,null,null,null,null,null,null,null,{"$f":"IF(J4=\"\",\"\",J4)","v":"醤油ラーメン"},{"$f":"IF(OR($J14=\"\",K$13=\"\"),\"\",SUMIFS($D$4:$D$10000,$C$4:$C$10000,$J14,$A$4:$A$10000,K$13))","v":""},"",{"$f":"IF($J14=\"\",\"\",SUM(K14:L14))","v":0}]
[null,null,null,null,null,null,null,null,null,"みそラーメン","","",0]
[null,null,null,null,null,null,null,null,null,"","","",""]
[null,null,null,null,null,null,null,null,null,"","","",""]
[null,null,null,null,null,null,null,null,null,"","","",""]
[null,null,null,null,null,null,null,null,null,"","","",""]
[null,null,null,null,null,null,null,null,null,"","","",""]
[null,null,null,null,null,null,null,null,null,"合計",{"$f":"IF(K$13=\"\",\"\",SUM(K14:K20))","v":""},{"$f":"IF(L$13=\"\",\"\",SUM(L14:L20))","v":""},{"$f":"IF(M$13=\"\",\"\",SUM(M14:M20))","v":0}]
[]
[null,null,null,null,null,null,null,null,null,"天候",{"$f":"IF(損益分岐点売上高・投資!B10=\"\",\"\",損益分岐点売上高・投資!B10)","v":""},{"$f":"IF(損益分岐点売上高・投資!B11=\"\",\"\",損益分岐点売上高・投資!B11)","v":""}]
[null,null,null,null,null,null,null,null,null,"午前"]
[null,null,null,null,null,null,null,null,null,"午後"]
[null,null,null,null,null,null,null,null,null,"平均気温℃"]
[]
[]
[]
[]
[]
[]
[]
[]
[]
[]
[]
[]
[]
[]
[]
[]
[]
[]
[]
[]
[]
[]
[]
[]
[]
[]
[]
[]
[]
[]
[]
[]
[]
[]
[]
[]
[]
[]
[]
[]
[]
[]
[]
[]
[]
[]
[]
[]
[]
[]
[]
[]
[]
[]
[]
[]
[]
[]
[]
[]
[]
[]
[]
[]
[]
[]
[]
[null,null,null,null,{"$f":"IF(C94=\"\",\"\",VLOOKUP(C94,$J$4:$J$10,2,FALSE))","v":""},{"$f":"IF(E94=\"\",\"\",D94*E94)","v":""}]
[null,null,null,null,"",""]
[null,null,null,null,"",""]
[null,null,null,null,"",""]
[null,null,null,null,"",""]
[null,null,null,null,"",""]
[null,null,null,null,"",""]
[null,null,null,null,"",""]
[null,null,null,null,"",""]
[null,null,null,null,"",""]
[null,null,null,null,"",""]
[null,null,null,null,"",""]
[null,null,null,null,"",""]
[null,null,null,null,"",""]
[null,null,null,null,{"$f":"IF(C108=\"\",\"\",VLOOKUP(C108,$J$4:$J$10,2,FALSE))","v":""},""]
[null,null,null,null,"",""]
[null,null,null,null,"",""]
[null,null,null,null,"",""]
[null,null,null,null,"",""]
[null,null,null,null,"",""]
[null,null,null,null,"",""]
[null,null,null,null,"",""]
[null,null,null,null,"",""]
[null,null,null,null,"",""]
[null,null,null,null,"",""]
[null,null,null,null,"",""]
[null,null,null,null,"",""]
[null,null,null,null,"",""]
[null,null,null,null,"",""]
[null,null,null,null,"",""]
[null,null,null,null,"",{"$f":"IF(E124=\"\",\"\",D124*E124)","v":""}]
[null,null,null,null,"",{"$f":"IF(E125=\"\",\"\",D125*E125)","v":""}]
[null,null,null,null,"",""]
[null,null,null,null,"",""]
[null,null,null,null,"",""]
[null,null,null,null,"",""]
[null,null,null,null,"",""]
[null,null,null,null,"",""]
[null,null,null,null,"",""]
[null,null,null,null,"",""]
[null,null,null,null,"",""]
[null,null,null,null,"",""]
[null,null,null,null,"",""]
[null,null,null,null,"",""]
[null,null,null,null,"",""]
[null,null,null,null,"",""]
[null,null,null,null,"",""]
[null,null,null,null,"",""]
[null,null,null,null,"",""]
[null,null,null,null,"",""]
[null,null,null,null,"",""]
[null,null,null,null,"",""]
[null,null,null,null,"",""]
[null,null,null,null,"",""]
[null,null,null,null,"",""]
[null,null,null,null,"",""]
[null,null,null,null,"",""]
[null,null,null,null,"",{"$f":"IF(E151=\"\",\"\",D151*E151)","v":""}]
[null,null,null,null,"",{"$f":"IF(E152=\"\",\"\",D152*E152)","v":""}]
[null,null,null,null,"",""]
[null,null,null,null,"",""]
[null,null,null,null,"",""]
[null,null,null,null,"",""]
[null,null,null,null,"",""]
[null,null,null,null,"",""]
[null,null,null,null,"",""]
[null,null,null,null,"",""]
[null,null,null,null,"",""]
[null,null,null,null,"",""]
[null,null,null,null,"",""]
[null,null,null,null,"",""]
[null,null,null,null,"",""]
[null,null,null,null,"",""]
[null,null,null,null,"",""]
[null,null,null,null,"",""]
[null,null,null,null,"",""]
[null,null,null,null,"",""]
[null,null,null,null,"",""]
[null,null,null,null,{"$f":"IF(C172=\"\",\"\",VLOOKUP(C172,$J$4:$J$10,2,FALSE))","v":""},""]
[null,null,null,null,"",""]
[null,null,null,null,"",""]
[null,null,null,null,"",""]
[null,null,null,null,"",""]
[null,null,null,null,"",""]
[null,null,null,null,"",{"$f":"IF(E178=\"\",\"\",D178*E178)","v":""}]
[null,null,null,null,"",{"$f":"IF(E179=\"\",\"\",D179*E179)","v":""}]
[null,null,null,null,"",""]
[null,null,null,null,"",""]
[null,null,null,null,"",""]
[null,null,null,null,"",""]
[null,null,null,null,"",""]
[null,null,null,null,"",""]
[null,null,null,null,"",""]
[null,null,null,null,"",""]
[null,null,null,null,"",""]
[null,null,null,null,"",""]
[null,null,null,null,"",""]
[null,null,null,null,"",""]
[null,null,null,null,"",""]
[null,null,null,null,"",""]
[null,null,null,null,"",""]
[null,null,null,null,"",""]
[null,null,null,null,"",""]
[null,null,null,null,"",""]
[null,null,null,null,"",""]
[null,null,null,null,"",""]
[null,null,null,null,"",""]
[null,null,null,null,"",""]
[null,null,null,null,"",""]
[null,null,null,null,"",""]
[null,null,null,null,"",""]
[null,null,null,null,"",""]
[null,null,null,null,"",""]
[null,null,null,null,"",""]
[null,null,null,null,"",""]
[null,null,null,null,"",""]
[null,null,null,null,"",""]
[null,null,null,null,"",""]
[null,null,null,null,"",""]
[null,null,null,null,"",""]
[null,null,null,null,"",""]
[null,null,null,null,"",""]
[null,null,null,null,"",""]
[null,null,null,null,"",{"$f":"IF(E217=\"\",\"\",D217*E217)","v":""}]
[null,null,null,null,"",{"$f":"IF(E218=\"\",\"\",D218*E218)","v":""}]
[null,null,null,null,"",""]
[null,null,null,null,"",""]
[null,null,null,null,"",""]
[null,null,null,null,"",""]
[null,null,null,null,"",""]
[null,null,null,null,"",""]
[null,null,null,null,"",""]
[null,null,null,null,"",""]
[null,null,null,null,"",""]
[null,null,null,null,"",""]
[null,null,null,null,"",""]
[null,null,null,null,"",""]
[null,null,null,null,"",""]
[null,null,null,null,"",""]
[null,null,null,null,"",""]
[null,null,null,null,"",""]
[null,null,null,null,"",""]
[null,null,null,null,{"$f":"IF(C236=\"\",\"\",VLOOKUP(C236,$J$4:$J$10,2,FALSE))","v":""},""]
[null,null,null,null,"",""]
[null,null,null,null,"",""]
[null,null,null,null,"",""]
[null,null,null,null,"",""]
[null,null,null,null,"",""]
[null,null,null,null,"",""]
[null,null,null,null,"",""]
[null,null,null,null,"",{"$f":"IF(E244=\"\",\"\",D244*E244)","v":""}]
[null,null,null,null,"",{"$f":"IF(E245=\"\",\"\",D245*E245)","v":""}]
[null,null,null,null,"",""]
[null,null,null,null,"",""]
[null,null,null,null,"",""]
[null,null,null,null,"",""]
[null,null,null,null,"",""]
[null,null,null,null,"",""]
[null,null,null,null,"",""]
[null,null,null,null,"",""]
[null,null,null,null,"",""]
[null,null,null,null,"",""]
[null,null,null,null,"",""]
[null,null,null,null,"",""]
[null,null,null,null,"",""]
[null,null,null,null,"",""]
[null,null,null,null,"",""]
[null,null,null,null,"",""]
[null,null,null,null,"",""]
[null,null,null,null,"",""]
[null,null,null,null,"",""]
[null,null,null,null,"",""]
[null,null,null,null,"",""]
[null,null,null,null,"",""]
[null,null,null,null,"",""]
[null,null,null,null,"",""]
[null,null,null,null,"",""]
[null,null,null,null,"",{"$f":"IF(E271=\"\",\"\",D271*E271)","v":""}]
[null,null,null,null,"",{"$f":"IF(E272=\"\",\"\",D272*E272)","v":""}]
[null,null,null,null,"",""]
[null,null,null,null,"",""]
[null,null,null,null,"",""]
[null,null,null,null,"",""]
[null,null,null,null,"",""]
[null,null,null,null,"",""]
[null,null,null,null,"",""]
[null,null,null,null,"",""]
[null,null,null,null,"",""]
[null,null,null,null,"",""]
[null,null,null,null,"",""]
[null,null,null,null,"",""]
[null,null,null,null,"",""]
[null,null,null,null,"",""]
[null,null,null,null,"",""]
[null,null,null,null,"",""]
[null,null,null,null,"",""]
[null,null,null,null,"",""]
[null,null,null,null,"",{"$f":"IF(E291=\"\",\"\",D291*E291)","v":""}]
[null,null,null,null,"",""]
[null,null,null,null,"",""]
[null,null,null,null,"",""]
[null,null,null,null,"",""]
[null,null,null,null,"",""]
[null,null,null,null,"",""]
[null,null,null,null,"",""]
[null,null,null,null,"",""]
[null,null,null,null,{"$f":"IF(C300=\"\",\"\",VLOOKUP(C300,$J$4:$J$10,2,FALSE))","v":""},""]
[null,null,null,null,"",""]
[null,null,null,null,"",""]
[null,null,null,null,"",""]
[null,null,null,null,"",""]
[null,null,null,null,"",""]
[null,null,null,null,"",""]
[null,null,null,null,"",""]
[null,null,null,null,"",""]
[null,null,null,null,"",""]
[null,null,null,null,"",""]
[null,null,null,null,"",""]
[null,null,null,null,"",""]
[null,null,null,null,"",""]
[null,null,null,null,"",""]
[null,null,null,null,"",""]
[null,null,null,null,"",""]
[null,null,null,null,"",""]
[null,null,null,null,"",""]
[null,null,null,null,"",""]
[null,null,null,null,"",""]
[null,null,null,null,"",""]
[null,null,null,null,"",""]
[null,null,null,null,"",""]
[null,null,null,null,"",""]
[null,null,null,null,"",{"$f":"IF(E325=\"\",\"\",D325*E325)","v":""}]
[null,null,null,null,"",""]
[null,null,null,null,"",""]
[null,null,null,null,"",""]
[null,null,null,null,"",""]
[null,null,null,null,"",""]
[null,null,null,null,"",""]
[null,null,null,null,"",""]
[null,null,null,null,"",""]
[null,null,null,null,"",""]
[null,null,null,null,"",""]
[null,null,null,null,"",""]
[null,null,null,null,"",""]
[null,null,null,null,"",""]
[null,null,null,null,"",""]
[null,null,null,null,"",""]
[null,null,null,null,"",""]
[null,null,null,null,"",""]
[null,null,null,null,"",""]
[null,null,null,null,"",""]
[null,null,null,null,"",""]
[null,null,null,null,"",""]
[null,null,null,null,"",""]
[null,null,null,null,"",""]
[null,null,null,null,"",""]
[null,null,null,null,"",""]
[null,null,null,null,"",""]
[null,null,null,null,"",""]
[null,null,null,null,"",""]
[null,null,null,null,"",""]
[null,null,null,null,"",""]
[null,null,null,null,"",""]
[null,null,null,null,"",""]
[null,null,null,null,"",""]
[null,null,null,null,"",""]
[null,null,null,null,"",""]
[null,null,null,null,"",""]
[null,null,null,null,"",""]
[null,null,null,null,"",""]
[null,null,null,null,{"$f":"IF(C364=\"\",\"\",VLOOKUP(C364,$J$4:$J$10,2,FALSE))","v":""},""]
[null,null,null,null,"",""]
[null,null,null,null,"",""]
[null,null,null,null,"",""]
[null,null,null,null,"",""]
[null,null,null,null,"",""]
[null,null,null,null,"",""]
[null,null,null,null,"",""]
[null,null,null,null,"",""]
[null,null,null,null,"",""]
[null,null,null,null,"",""]
[null,null,null,null,"",""]
[null,null,null,null,"",""]
[null,null,null,null,"",""]
[null,null,null,null,"",""]
[null,null,null,null,"",""]
[null,null,null,null,"",""]
[null,null,null,null,"",""]
[null,null,null,null,"",""]
[null,null,null,null,"",""]
[null,null,null,null,"",""]
[null,null,null,null,"",""]
[null,null,null,null,"",""]
[null,null,null,null,"",""]
[null,null,null,null,"",""]
[null,null,null,null,"",{"$f":"IF(E389=\"\",\"\",D389*E389)","v":""}]
[null,null,null,null,"",""]
[null,null,null,null,"",""]
[null,null,null,null,"",""]
[null,null,null,null,"",""]
[null,null,null,null,"",""]
[null,null,null,null,"",""]
[null,null,null,null,"",""]
[null,null,null,null,"",""]
[null,null,null,null,"",""]
[null,null,null,null,"",""]
[null,null,null,null,"",""]
[null,null,null,null,"",""]
[null,null,null,null,"",""]
[null,null,null,null,"",""]
[null,null,null,null,"",""]
[null,null,null,null,"",""]
[null,null,null,null,"",""]
[null,null,null,null,"",""]
[null,null,null,null,"",""]
[null,null,null,null,"",""]
[null,null,null,null,"",""]
[null,null,null,null,"",""]
[null,null,null,null,"",""]
[null,null,null,null,"",""]
[null,null,null,null,"",""]
[null,null,null,null,"",""]
[null,null,null,null,"",""]
[null,null,null,null,"",""]
[null,null,null,null,"",""]
[null,null,null,null,"",""]
[null,null,null,null,"",""]
[null,null,null,null,"",""]
[null,null,null,null,"",""]
[null,null,null,null,"",""]
[null,null,null,null,"",""]
[null,null,null,null,"",""]
[null,null,null,null,"",""]
[null,null,null,null,"",""]
[null,null,null,null,{"$f":"IF(C428=\"\",\"\",VLOOKUP(C428,$J$4:$J$10,2,FALSE))","v":""},""]
[null,null,null,null,"",""]
[null,null,null,null,"",""]
[null,null,null,null,"",""]
[null,null,null,null,"",""]
[null,null,null,null,"",""]
[null,null,null,null,"",""]
[null,null,null,null,"",""]
[null,null,null,null,"",""]
[null,null,null,null,"",""]
[null,null,null,null,"",""]
[null,null,null,null,"",""]
[null,null,null,null,"",""]
[null,null,null,null,"",""]
[null,null,null,null,"",""]
[null,null,null,null,"",""]
[null,null,null,null,"",""]
[null,null,null,null,"",""]
[null,null,null,null,"",""]
[null,null,null,null,"",""]
[null,null,null,null,"",""]
[null,null,null,null,"",""]
[null,null,null,null,"",""]
[null,null,null,null,"",""]
[null,null,null,null,"",""]
[null,null,null,null,"",{"$f":"IF(E453=\"\",\"\",D453*E453)","v":""}]
[null,null,null,null,"",""]
[null,null,null,null,"",""]
[null,null,null,null,"",""]
[null,null,null,null,"",""]
[null,null,null,null,"",""]
[null,null,null,null,"",""]
[null,null,null,null,"",""]
[null,null,null,null,"",""]
[null,null,null,null,"",""]
[null,null,null,null,"",""]
[null,null,null,null,"",""]
[null,null,null,null,"",""]
[null,null,null,null,"",""]
[null,null,null,null,"",""]
[null,null,null,null,"",""]
[null,null,null,null,"",""]
[null,null,null,null,"",""]
[null,null,null,null,"",""]
[null,null,null,null,"",""]
[null,null,null,null,"",""]
[null,null,null,null,"",""]
[null,null,null,null,"",""]
[null,null,null,null,"",""]
[null,null,null,null,"",""]
[null,null,null,null,"",""]
[null,null,null,null,"",""]
[null,null,null,null,"",""]
[null,null,null,null,"",""]
[null,null,null,null,"",""]
[null,null,null,null,"",""]
[null,null,null,null,"",""]
[null,null,null,null,"",""]
[null,null,null,null,"",""]
[null,null,null,null,"",""]
[null,null,null,null,"",""]
[null,null,null,null,"",""]
[null,null,null,null,"",""]
[null,null,null,null,"",""]
[null,null,null,null,{"$f":"IF(C492=\"\",\"\",VLOOKUP(C492,$J$4:$J$10,2,FALSE))","v":""},""]
[null,null,null,null,"",""]
[null,null,null,null,"",""]
[null,null,null,null,"",""]
[null,null,null,null,"",""]
[null,null,null,null,"",""]
[null,null,null,null,"",""]
[null,null,null,null,"",""]
[null,null,null,null,"",""]
[null,null,null,null,"",""]
[null,null,null,null,"",""]
[null,null,null,null,"",""]
[null,null,null,null,"",""]
[null,null,null,null,"",""]
[null,null,null,null,"",""]
[null,null,null,null,"",""]
[null,null,null,null,"",""]
[null,null,null,null,"",""]
[null,null,null,null,"",""]
[null,null,null,null,"",""]
[null,null,null,null,"",""]
[null,null,null,null,"",""]
[null,null,null,null,"",""]
[null,null,null,null,"",""]
[null,null,null,null,"",""]
[null,null,null,null,"",{"$f":"IF(E517=\"\",\"\",D517*E517)","v":""}]
[null,null,null,null,"",""]
[null,null,null,null,"",""]
[null,null,null,null,"",""]
[null,null,null,null,"",""]
[null,null,null,null,"",""]
[null,null,null,null,"",""]
[null,null,null,null,"",""]
[null,null,null,null,"",""]
[null,null,null,null,"",""]
[null,null,null,null,"",""]
[null,null,null,null,"",""]
[null,null,null,null,"",""]
[null,null,null,null,"",""]
[null,null,null,null,"",""]
[null,null,null,null,"",""]
[null,null,null,null,"",""]
[null,null,null,null,"",""]
[null,null,null,null,"",""]
[null,null,null,null,"",""]
[null,null,null,null,"",""]
[null,null,null,null,"",""]
[null,null,null,null,"",""]
[null,null,null,null,"",""]
[null,null,null,null,"",""]
[null,null,null,null,"",""]
[null,null,null,null,"",""]
[null,null,null,null,"",""]
[null,null,null,null,"",""]
[null,null,null,null,"",""]
[null,null,null,null,"",""]
[null,null,null,null,"",""]
[null,null,null,null,"",""]
[null,null,null,null,"",""]
[null,null,null,null,"",""]
[null,null,null,null,"",""]
[null,null,null,null,"",""]
[null,null,null,null,"",""]
[null,null,null,null,"",""]
[null,null,null,null,{"$f":"IF(C556=\"\",\"\",VLOOKUP(C556,$J$4:$J$10,2,FALSE))","v":""},""]
[null,null,null,null,"",""]
[null,null,null,null,"",""]
[null,null,null,null,"",""]
[null,null,null,null,"",""]
[null,null,null,null,"",""]
[null,null,null,null,"",""]
[null,null,null,null,"",""]
[null,null,null,null,"",""]
[null,null,null,null,"",""]
[null,null,null,null,"",""]
[null,null,null,null,"",""]
[null,null,null,null,"",""]
[null,null,null,null,"",""]
[null,null,null,null,"",""]
[null,null,null,null,"",""]
[null,null,null,null,"",""]
[null,null,null,null,"",""]
[null,null,null,null,"",""]
[null,null,null,null,"",""]
[null,null,null,null,"",""]
[null,null,null,null,"",""]
[null,null,null,null,"",""]
[null,null,null,null,"",""]
[null,null,null,null,"",""]
[null,null,null,null,"",{"$f":"IF(E581=\"\",\"\",D581*E581)","v":""}]
[null,null,null,null,"",""]
[null,null,null,null,"",""]
[null,null,null,null,"",""]
[null,null,null,null,"",""]
[null,null,null,null,"",""]
[null,null,null,null,"",""]
[null,null,null,null,"",""]
[null,null,null,null,"",""]
[null,null,null,null,"",""]
[null,null,null,null,"",""]
[null,null,null,null,"",""]
[null,null,null,null,"",""]
[null,null,null,null,"",""]
[null,null,null,null,"",""]
[null,null,null,null,"",""]
[null,null,null,null,"",""]
[null,null,null,null,"",""]
[null,null,null,null,"",""]
[null,null,null,null,"",""]
[null,null,null,null,"",""]
[null,null,null,null,"",""]
[null,null,null,null,"",""]
[null,null,null,null,"",""]
[null,null,null,null,"",""]
[null,null,null,null,"",""]
[null,null,null,null,"",""]
[null,null,null,null,"",""]
[null,null,null,null,"",""]
[null,null,null,null,"",""]
[null,null,null,null,"",""]
[null,null,null,null,"",""]
[null,null,null,null,"",""]
[null,null,null,null,"",""]
[null,null,null,null,"",""]
[null,null,null,null,"",""]
[null,null,null,null,"",""]
[null,null,null,null,"",""]
[null,null,null,null,"",""]
[null,null,null,null,{"$f":"IF(C620=\"\",\"\",VLOOKUP(C620,$J$4:$J$10,2,FALSE))","v":""},""]
[null,null,null,null,"",""]
[null,null,null,null,"",""]
[null,null,null,null,"",""]
[null,null,null,null,"",""]
[null,null,null,null,"",""]
[null,null,null,null,"",""]
[null,null,null,null,"",""]
[null,null,null,null,"",""]
[null,null,null,null,"",""]
[null,null,null,null,"",""]
[null,null,null,null,"",""]
[null,null,null,null,"",""]
[null,null,null,null,"",""]
[null,null,null,null,"",""]
[null,null,null,null,"",""]
[null,null,null,null,"",""]
[null,null,null,null,"",""]
[null,null,null,null,"",""]
[null,null,null,null,"",""]
[null,null,null,null,"",""]
[null,null,null,null,"",""]
[null,null,null,null,"",""]
[null,null,null,null,"",""]
[null,null,null,null,"",""]
[null,null,null,null,"",{"$f":"IF(E645=\"\",\"\",D645*E645)","v":""}]
[null,null,null,null,"",""]
[null,null,null,null,"",""]
[null,null,null,null,"",""]
[null,null,null,null,"",""]
[null,null,null,null,"",""]
[null,null,null,null,"",""]
[null,null,null,null,"",""]
[null,null,null,null,"",""]
[null,null,null,null,"",""]
[null,null,null,null,"",""]
[null,null,null,null,"",""]
[null,null,null,null,"",""]
[null,null,null,null,"",""]
[null,null,null,null,"",""]
[null,null,null,null,"",""]
[null,null,null,null,"",""]
[null,null,null,null,"",""]
[null,null,null,null,"",""]
[null,null,null,null,"",""]
[null,null,null,null,"",""]
[null,null,null,null,"",""]
[null,null,null,null,"",""]
[null,null,null,null,"",""]
[null,null,null,null,"",""]
[null,null,null,null,"",""]
[null,null,null,null,"",""]
[null,null,null,null,"",""]
[null,null,null,null,"",""]
[null,null,null,null,"",""]
[null,null,null,null,"",""]
[null,null,null,null,"",""]
[null,null,null,null,"",""]
[null,null,null,null,"",""]
[null,null,null,null,"",""]
[null,null,null,null,"",""]
[null,null,null,null,"",""]
[null,null,null,null,"",""]
[null,null,null,null,"",""]
[null,null,null,null,{"$f":"IF(C684=\"\",\"\",VLOOKUP(C684,$J$4:$J$10,2,FALSE))","v":""},""]
[null,null,null,null,"",""]
[null,null,null,null,"",""]
[null,null,null,null,"",""]
[null,null,null,null,"",""]
[null,null,null,null,"",""]
[null,null,null,null,"",""]
[null,null,null,null,"",""]
[null,null,null,null,"",""]
[null,null,null,null,"",""]
[null,null,null,null,"",""]
[null,null,null,null,"",""]
[null,null,null,null,"",""]
[null,null,null,null,"",""]
[null,null,null,null,"",""]
[null,null,null,null,"",""]
[null,null,null,null,"",""]
[null,null,null,null,"",""]
[null,null,null,null,"",""]
[null,null,null,null,"",""]
[null,null,null,null,"",""]
[null,null,null,null,"",""]
[null,null,null,null,"",""]
[null,null,null,null,"",""]
[null,null,null,null,"",""]
[null,null,null,null,"",{"$f":"IF(E709=\"\",\"\",D709*E709)","v":""}]
[null,null,null,null,"",""]
[null,null,null,null,"",""]
[null,null,null,null,"",""]
[null,null,null,null,"",""]
[null,null,null,null,"",""]
[null,null,null,null,"",""]
[null,null,null,null,"",""]
[null,null,null,null,"",""]
[null,null,null,null,"",""]
[null,null,null,null,"",""]
[null,null,null,null,"",""]
[null,null,null,null,"",""]
[null,null,null,null,"",""]
[null,null,null,null,"",""]
[null,null,null,null,"",""]
[null,null,null,null,"",""]
[null,null,null,null,"",""]
[null,null,null,null,"",""]
[null,null,null,null,"",""]
[null,null,null,null,"",""]
[null,null,null,null,"",""]
[null,null,null,null,"",""]
[null,null,null,null,"",""]
[null,null,null,null,"",""]
[null,null,null,null,"",""]
[null,null,null,null,"",""]
[null,null,null,null,"",""]
[null,null,null,null,"",""]
[null,null,null,null,"",""]
[null,null,null,null,"",""]
[null,null,null,null,"",""]
[null,null,null,null,"",""]
[null,null,null,null,"",""]
[null,null,null,null,"",""]
[null,null,null,null,"",""]
[null,null,null,null,"",""]
[null,null,null,null,"",""]
[null,null,null,null,"",""]
[null,null,null,null,{"$f":"IF(C748=\"\",\"\",VLOOKUP(C748,$J$4:$J$10,2,FALSE))","v":""},""]
[null,null,null,null,"",""]
[null,null,null,null,"",""]
[null,null,null,null,"",""]
[null,null,null,null,"",""]
[null,null,null,null,"",""]
[null,null,null,null,"",""]
[null,null,null,null,"",""]
[null,null,null,null,"",""]
[null,null,null,null,"",""]
[null,null,null,null,"",""]
[null,null,null,null,"",""]
[null,null,null,null,"",""]
[null,null,null,null,"",""]
[null,null,null,null,"",""]
[null,null,null,null,"",""]
[null,null,null,null,"",""]
[null,null,null,null,"",""]
[null,null,null,null,"",""]
[null,null,null,null,"",""]
[null,null,null,null,"",""]
[null,null,null,null,"",""]
[null,null,null,null,"",""]
[null,null,null,null,"",""]
[null,null,null,null,"",""]
[null,null,null,null,"",{"$f":"IF(E773=\"\",\"\",D773*E773)","v":""}]
[null,null,null,null,"",""]
[null,null,null,null,"",""]
[null,null,null,null,"",""]
[null,null,null,null,"",""]
[null,null,null,null,"",""]
[null,null,null,null,"",""]
[null,null,null,null,"",""]
[null,null,null,null,"",""]
[null,null,null,null,"",""]
[null,null,null,null,"",""]
[null,null,null,null,"",""]
[null,null,null,null,"",""]
[null,null,null,null,"",""]
[null,null,null,null,"",""]
[null,null,null,null,"",""]
[null,null,null,null,"",""]
[null,null,null,null,"",""]
[null,null,null,null,"",""]
[null,null,null,null,"",""]
[null,null,null,null,"",""]
[null,null,null,null,"",""]
[null,null,null,null,"",""]
[null,null,null,null,"",""]
[null,null,null,null,"",""]
[null,null,null,null,"",""]
[null,null,null,null,"",""]
[null,null,null,null,"",""]
[null,null,null,null,"",""]
[null,null,null,null,"",""]
[null,null,null,null,"",""]
[null,null,null,null,"",""]
[null,null,null,null,"",""]
[null,null,null,null,"",""]
[null,null,null,null,"",""]
[null,null,null,null,"",""]
[null,null,null,null,"",""]
[null,null,null,null,"",""]
[null,null,null,null,"",""]
[null,null,null,null,{"$f":"IF(C812=\"\",\"\",VLOOKUP(C812,$J$4:$J$10,2,FALSE))","v":""},""]
[null,null,null,null,"",""]
[null,null,null,null,"",""]
[null,null,null,null,"",""]
[null,null,null,null,"",""]
[null,null,null,null,"",""]
[null,null,null,null,"",""]
[null,null,null,null,"",""]
[null,null,null,null,"",""]
[null,null,null,null,"",""]
[null,null,null,null,"",""]
[null,null,null,null,"",""]
[null,null,null,null,"",""]
[null,null,null,null,"",""]
[null,null,null,null,"",""]
[null,null,null,null,"",""]
[null,null,null,null,"",""]
[null,null,null,null,"",""]
[null,null,null,null,"",""]
[null,null,null,null,"",""]
[null,null,null,null,"",""]
[null,null,null,null,"",""]
[null,null,null,null,"",""]
[null,null,null,null,"",""]
[null,null,null,null,"",""]
[null,null,null,null,"",{"$f":"IF(E837=\"\",\"\",D837*E837)","v":""}]
[null,null,null,null,"",""]
[null,null,null,null,"",""]
[null,null,null,null,"",""]
[null,null,null,null,"",""]
[null,null,null,null,"",""]
[null,null,null,null,"",""]
[null,null,null,null,"",""]
[null,null,null,null,"",""]
[null,null,null,null,"",""]
[null,null,null,null,"",""]
[null,null,null,null,"",""]
[null,null,null,null,"",""]
[null,null,null,null,"",""]
[null,null,null,null,"",""]
[null,null,null,null,"",""]
[null,null,null,null,"",""]
[null,null,null,null,"",""]
[null,null,null,null,"",""]
[null,null,null,null,"",""]
[null,null,null,null,"",""]
[null,null,null,null,"",""]
[null,null,null,null,"",""]
[null,null,null,null,"",""]
[null,null,null,null,"",""]
[null,null,null,null,"",""]
[null,null,null,null,"",""]
[null,null,null,null,"",""]
[null,null,null,null,"",""]
[null,null,null,null,"",""]
[null,null,null,null,"",""]
[null,null,null,null,"",""]
[null,null,null,null,"",""]
[null,null,null,null,"",""]
[null,null,null,null,"",""]
[null,null,null,null,"",""]
[null,null,null,null,"",""]
[null,null,null,null,"",""]
[null,null,null,null,"",""]
[null,null,null,null,{"$f":"IF(C876=\"\",\"\",VLOOKUP(C876,$J$4:$J$10,2,FALSE))","v":""},""]
[null,null,null,null,"",""]
[null,null,null,null,"",""]
[null,null,null,null,"",""]
[null,null,null,null,"",""]
[null,null,null,null,"",""]
[null,null,null,null,"",""]
[null,null,null,null,"",""]
[null,null,null,null,"",""]
[null,null,null,null,"",""]
[null,null,null,null,"",""]
[null,null,null,null,"",""]
[null,null,null,null,"",""]
[null,null,null,null,"",""]
[null,null,null,null,"",""]
[null,null,null,null,"",""]
[null,null,null,null,"",""]
[null,null,null,null,"",""]
[null,null,null,null,"",""]
[null,null,null,null,"",""]
[null,null,null,null,"",""]
[null,null,null,null,"",""]
[null,null,null,null,"",""]
[null,null,null,null,"",""]
[null,null,null,null,"",""]
[null,null,null,null,"",{"$f":"IF(E901=\"\",\"\",D901*E901)","v":""}]
[null,null,null,null,"",""]
[null,null,null,null,"",""]
[null,null,null,null,"",""]
[null,null,null,null,"",""]
[null,null,null,null,"",""]
[null,null,null,null,"",""]
[null,null,null,null,"",""]
[null,null,null,null,"",""]
[null,null,null,null,"",""]
[null,null,null,null,"",""]
[null,null,null,null,"",""]
[null,null,null,null,"",""]
[null,null,null,null,"",""]
[null,null,null,null,"",""]
[null,null,null,null,"",""]
[null,null,null,null,"",""]
[null,null,null,null,"",""]
[null,null,null,null,"",""]
[null,null,null,null,"",""]
[null,null,null,null,"",""]
[null,null,null,null,"",""]
[null,null,null,null,"",""]
[null,null,null,null,"",""]
[null,null,null,null,"",""]
[null,null,null,null,"",""]
[null,null,null,null,"",""]
[null,null,null,null,"",""]
[null,null,null,null,"",""]
[null,null,null,null,"",""]
[null,null,null,null,"",""]
[null,null,null,null,"",""]
[null,null,null,null,"",""]
[null,null,null,null,"",""]
[null,null,null,null,"",""]
[null,null,null,null,"",""]
[null,null,null,null,"",""]
[null,null,null,null,"",""]
[null,null,null,null,"",""]
[null,null,null,null,{"$f":"IF(C940=\"\",\"\",VLOOKUP(C940,$J$4:$J$10,2,FALSE))","v":""},""]
[null,null,null,null,"",""]
[null,null,null,null,"",""]
[null,null,null,null,"",""]
[null,null,null,null,"",""]
[null,null,null,null,"",""]
[null,null,null,null,"",""]
[null,null,null,null,"",""]
[null,null,null,null,"",""]
[null,null,null,null,"",""]
[null,null,null,null,"",""]
[null,null,null,null,"",""]
[null,null,null,null,"",""]
[null,null,null,null,"",""]
[null,null,null,null,"",""]
[null,null,null,null,"",""]
[null,null,null,null,"",""]
[null,null,null,null,"",""]
[null,null,null,null,"",""]
[null,null,null,null,"",""]
[null,null,null,null,"",""]
[null,null,null,null,"",""]
[null,null,null,null,"",""]
[null,null,null,null,"",""]
[null,null,null,null,"",""]
[null,null,null,null,"",{"$f":"IF(E965=\"\",\"\",D965*E965)","v":""}]
[null,null,null,null,"",""]
[null,null,null,null,"",""]
[null,null,null,null,"",""]
[null,null,null,null,"",""]
[null,null,null,null,"",""]
[null,null,null,null,"",""]
[null,null,null,null,"",""]
[null,null,null,null,"",""]
[null,null,null,null,"",""]
[null,null,null,null,"",""]
[null,null,null,null,"",""]
[null,null,null,null,"",""]
[null,null,null,null,"",""]
[null,null,null,null,"",""]
[null,null,null,null,"",""]
[null,null,null,null,"",""]
[null,null,null,null,"",""]
[null,null,null,null,"",""]
[null,null,null,null,"",""]
[null,null,null,null,"",""]
[null,null,null,null,"",""]
[null,null,null,null,"",""]
[null,null,null,null,"",""]
[null,null,null,null,"",""]
[null,null,null,null,"",""]
[null,null,null,null,"",""]
[null,null,null,null,"",""]
[null,null,null,null,"",""]
[null,null,null,null,"",""]
[null,null,null,null,"",""]
[null,null,null,null,"",""]
[null,null,null,null,"",""]
[null,null,null,null,"",""]
[null,null,null,null,"",""]
[null,null,null,null,"",""]
[null,null,null,null,"",""]
[null,null,null,null,"",""]
[null,null,null,null,"",""]
[null,null,null,null,{"$f":"IF(C1004=\"\",\"\",VLOOKUP(C1004,$J$4:$J$10,2,FALSE))","v":""},""]
[null,null,null,null,"",""]
[null,null,null,null,"",""]
[null,null,null,null,"",""]
[null,null,null,null,"",""]
[null,null,null,null,"",""]
[null,null,null,null,"",""]
[null,null,null,null,"",""]
[null,null,null,null,"",""]
[null,null,null,null,"",""]
[null,null,null,null,"",""]
[null,null,null,null,"",""]
[null,null,null,null,"",""]
[null,null,null,null,"",""]
[null,null,null,null,"",""]
[null,null,null,null,"",""]
[null,null,null,null,"",""]
[null,null,null,null,"",""]
[null,null,null,null,"",""]
[null,null,null,null,"",""]
[null,null,null,null,"",""]
[null,null,null,null,"",""]
[null,null,null,null,"",""]
[null,null,null,null,"",""]
[null,null,null,null,"",""]
[null,null,null,null,"",{"$f":"IF(E1029=\"\",\"\",D1029*E1029)","v":""}]
[null,null,null,null,"",""]
[null,null,null,null,"",""]
[null,null,null,null,"",""]
[null,null,null,null,"",""]
[null,null,null,null,"",""]
[null,null,null,null,"",""]
[null,null,null,null,"",""]
[null,null,null,null,"",""]
[null,null,null,null,"",""]
[null,null,null,null,"",""]
[null,null,null,null,"",""]
[null,null,null,null,"",""]
[null,null,null,null,"",""]
[null,null,null,null,"",""]
[null,null,null,null,"",""]
[null,null,null,null,"",""]
[null,null,null,null,"",""]
[null,null,null,null,"",""]
[null,null,null,null,"",""]
[null,null,null,null,"",""]
[null,null,null,null,"",""]
[null,null,null,null,"",""]
[null,null,null,null,"",""]
[null,null,null,null,"",""]
[null,null,null,null,"",""]
[null,null,null,null,"",""]
[null,null,null,null,"",""]
[null,null,null,null,"",""]
[null,null,null,null,"",""]
[null,null,null,null,"",""]
[null,null,null,null,"",""]
[null,null,null,null,"",""]
[null,null,null,null,"",""]
[null,null,null,null,"",""]
[null,null,null,null,"",""]
[null,null,null,null,"",""]
[null,null,null,null,"",""]
[null,null,null,null,"",""]
[null,null,null,null,{"$f":"IF(C1068=\"\",\"\",VLOOKUP(C1068,$J$4:$J$10,2,FALSE))","v":""},""]
[null,null,null,null,"",""]
[null,null,null,null,"",""]
[null,null,null,null,"",""]
[null,null,null,null,"",""]
[null,null,null,null,"",""]
[null,null,null,null,"",""]
[null,null,null,null,"",""]
[null,null,null,null,"",""]
[null,null,null,null,"",""]
[null,null,null,null,"",""]
[null,null,null,null,"",""]
[null,null,null,null,"",""]
[null,null,null,null,"",""]
[null,null,null,null,"",""]
[null,null,null,null,"",""]
[null,null,null,null,"",""]
[null,null,null,null,"",""]
[null,null,null,null,"",""]
[null,null,null,null,"",""]
[null,null,null,null,"",""]
[null,null,null,null,"",""]
[null,null,null,null,"",""]
[null,null,null,null,"",""]
[null,null,null,null,"",""]
[null,null,null,null,"",{"$f":"IF(E1093=\"\",\"\",D1093*E1093)","v":""}]
[null,null,null,null,"",""]
[null,null,null,null,"",""]
[null,null,null,null,"",""]
[null,null,null,null,"",""]
[null,null,null,null,"",""]
[null,null,null,null,"",""]
[null,null,null,null,"",""]
[null,null,null,null,"",""]
[null,null,null,null,"",""]
[null,null,null,null,"",""]
[null,null,null,null,"",""]
[null,null,null,null,"",""]
[null,null,null,null,"",""]
[null,null,null,null,"",""]
[null,null,null,null,"",""]
[null,null,null,null,"",""]
[null,null,null,null,"",""]
[null,null,null,null,"",""]
[null,null,null,null,"",""]
[null,null,null,null,"",""]
[null,null,null,null,"",""]
[null,null,null,null,"",""]
[null,null,null,null,"",""]
[null,null,null,null,"",""]
[null,null,null,null,"",""]
[null,null,null,null,"",""]
[null,null,null,null,"",""]
[null,null,null,null,"",""]
[null,null,null,null,"",""]
[null,null,null,null,"",""]
[null,null,null,null,"",""]
[null,null,null,null,"",""]
[null,null,null,null,"",""]
[null,null,null,null,"",""]
[null,null,null,null,"",""]
[null,null,null,null,"",""]
[null,null,null,null,"",""]
[null,null,null,null,"",""]
[null,null,null,null,{"$f":"IF(C1132=\"\",\"\",VLOOKUP(C1132,$J$4:$J$10,2,FALSE))","v":""},""]
[null,null,null,null,"",""]
[null,null,null,null,"",""]
[null,null,null,null,"",""]
[null,null,null,null,"",""]
[null,null,null,null,"",""]
[null,null,null,null,"",""]
[null,null,null,null,"",""]
[null,null,null,null,"",""]
[null,null,null,null,"",""]
[null,null,null,null,"",""]
[null,null,null,null,"",""]
[null,null,null,null,"",""]
[null,null,null,null,"",""]
[null,null,null,null,"",""]
[null,null,null,null,"",""]
[null,null,null,null,"",""]
[null,null,null,null,"",""]
[null,null,null,null,"",""]
[null,null,null,null,"",""]
[null,null,null,null,"",""]
[null,null,null,null,"",""]
[null,null,null,null,"",""]
[null,null,null,null,"",""]
[null,null,null,null,"",""]
[null,null,null,null,"",{"$f":"IF(E1157=\"\",\"\",D1157*E1157)","v":""}]
[null,null,null,null,"",""]
[null,null,null,null,"",""]
[null,null,null,null,"",""]
[null,null,null,null,"",""]
[null,null,null,null,"",""]
[null,null,null,null,"",""]
[null,null,null,null,"",""]
[null,null,null,null,"",""]
[null,null,null,null,"",""]
[null,null,null,null,"",""]
[null,null,null,null,"",""]
[null,null,null,null,"",""]
[null,null,null,null,"",""]
[null,null,null,null,"",""]
[null,null,null,null,"",""]
[null,null,null,null,"",""]
[null,null,null,null,"",""]
[null,null,null,null,"",""]
[null,null,null,null,"",""]
[null,null,null,null,"",""]
[null,null,null,null,"",""]
[null,null,null,null,"",""]
[null,null,null,null,"",""]
[null,null,null,null,"",""]
[null,null,null,null,"",""]
[null,null,null,null,"",""]
[null,null,null,null,"",""]
[null,null,null,null,"",""]
[null,null,null,null,"",""]
[null,null,null,null,"",""]
[null,null,null,null,"",""]
[null,null,null,null,"",""]
[null,null,null,null,"",""]
[null,null,null,null,"",""]
[null,null,null,null,"",""]
[null,null,null,null,"",""]
[null,null,null,null,"",""]
[null,null,null,null,"",""]
[null,null,null,null,{"$f":"IF(C1196=\"\",\"\",VLOOKUP(C1196,$J$4:$J$10,2,FALSE))","v":""},""]
[null,null,null,null,"",""]
[null,null,null,null,"",""]
[null,null,null,null,"",""]
[null,null,null,null,"",""]
[null,null,null,null,"",""]
[null,null,null,null,"",""]
[null,null,null,null,"",""]
[null,null,null,null,"",""]
[null,null,null,null,"",""]
[null,null,null,null,"",""]
[null,null,null,null,"",""]
[null,null,null,null,"",""]
[null,null,null,null,"",""]
[null,null,null,null,"",""]
[null,null,null,null,"",""]
[null,null,null,null,"",""]
[null,null,null,null,"",""]
[null,null,null,null,"",""]
[null,null,null,null,"",""]
[null,null,null,null,"",""]
[null,null,null,null,"",""]
[null,null,null,null,"",""]
[null,null,null,null,"",""]
[null,null,null,null,"",""]
[null,null,null,null,"",{"$f":"IF(E1221=\"\",\"\",D1221*E1221)","v":""}]
[null,null,null,null,"",""]
[null,null,null,null,"",""]
[null,null,null,null,"",""]
[null,null,null,null,"",""]
[null,null,null,null,"",""]
[null,null,null,null,"",""]
[null,null,null,null,"",""]
[null,null,null,null,"",""]
[null,null,null,null,"",""]
[null,null,null,null,"",""]
[null,null,null,null,"",""]
[null,null,null,null,"",""]
[null,null,null,null,"",""]
[null,null,null,null,"",""]
[null,null,null,null,"",""]
[null,null,null,null,"",""]
[null,null,null,null,"",""]
[null,null,null,null,"",""]
[null,null,null,null,"",""]
[null,null,null,null,"",""]
[null,null,null,null,"",""]
[null,null,null,null,"",""]
[null,null,null,null,"",""]
[null,null,null,null,"",""]
[null,null,null,null,"",""]
[null,null,null,null,"",""]
[null,null,null,null,"",""]
[null,null,null,null,"",""]
[null,null,null,null,"",""]
[null,null,null,null,"",""]
[null,null,null,null,"",""]
[null,null,null,null,"",""]
[null,null,null,null,"",""]
[null,null,null,null,"",""]
[null,null,null,null,"",""]
[null,null,null,null,"",""]
[null,null,null,null,"",""]
[null,null,null,null,"",""]
[null,null,null,null,{"$f":"IF(C1260=\"\",\"\",VLOOKUP(C1260,$J$4:$J$10,2,FALSE))","v":""},""]
[null,null,null,null,"",""]
[null,null,null,null,"",""]
[null,null,null,null,"",""]
[null,null,null,null,"",""]
[null,null,null,null,"",""]
[null,null,null,null,"",""]
[null,null,null,null,"",""]
[null,null,null,null,"",""]
[null,null,null,null,"",""]
[null,null,null,null,"",""]
[null,null,null,null,"",""]
[null,null,null,null,"",""]
[null,null,null,null,"",""]
[null,null,null,null,"",""]
[null,null,null,null,"",""]
[null,null,null,null,"",""]
[null,null,null,null,"",""]
[null,null,null,null,"",""]
[null,null,null,null,"",""]
[null,null,null,null,"",""]
[null,null,null,null,"",""]
[null,null,null,null,"",""]
[null,null,null,null,"",""]
[null,null,null,null,"",""]
[null,null,null,null,"",{"$f":"IF(E1285=\"\",\"\",D1285*E1285)","v":""}]
[null,null,null,null,"",""]
[null,null,null,null,"",""]
[null,null,null,null,"",""]
[null,null,null,null,"",""]
[null,null,null,null,"",""]
[null,null,null,null,"",""]
[null,null,null,null,"",""]
[null,null,null,null,"",""]
[null,null,null,null,"",""]
[null,null,null,null,"",""]
[null,null,null,null,"",""]
[null,null,null,null,"",""]
[null,null,null,null,"",""]
[null,null,null,null,"",""]
[null,null,null,null,"",""]
[null,null,null,null,"",""]
[null,null,null,null,"",""]
[null,null,null,null,"",""]
[null,null,null,null,"",""]
[null,null,null,null,"",""]
[null,null,null,null,"",""]
[null,null,null,null,"",""]
[null,null,null,null,"",""]
[null,null,null,null,"",""]
[null,null,null,null,"",""]
[null,null,null,null,"",""]
[null,null,null,null,"",""]
[null,null,null,null,"",""]
[null,null,null,null,"",""]
[null,null,null,null,"",""]
[null,null,null,null,"",""]
[null,null,null,null,"",""]
[null,null,null,null,"",""]
[null,null,null,null,"",""]
[null,null,null,null,"",""]
[null,null,null,null,"",""]
[null,null,null,null,"",""]
[null,null,null,null,"",""]
[null,null,null,null,{"$f":"IF(C1324=\"\",\"\",VLOOKUP(C1324,$J$4:$J$10,2,FALSE))","v":""},""]
[null,null,null,null,"",""]
[null,null,null,null,"",""]
[null,null,null,null,"",""]
[null,null,null,null,"",""]
[null,null,null,null,"",""]
[null,null,null,null,"",""]
[null,null,null,null,"",""]
[null,null,null,null,"",""]
[null,null,null,null,"",""]
[null,null,null,null,"",""]
[null,null,null,null,"",""]
[null,null,null,null,"",""]
[null,null,null,null,"",""]
[null,null,null,null,"",""]
[null,null,null,null,"",""]
[null,null,null,null,"",""]
[null,null,null,null,"",""]
[null,null,null,null,"",""]
[null,null,null,null,"",""]
[null,null,null,null,"",""]
[null,null,null,null,"",""]
[null,null,null,null,"",""]
[null,null,null,null,"",""]
[null,null,null,null,"",""]
[null,null,null,null,"",{"$f":"IF(E1349=\"\",\"\",D1349*E1349)","v":""}]
[null,null,null,null,"",""]
[null,null,null,null,"",""]
[null,null,null,null,"",""]
[null,null,null,null,"",""]
[null,null,null,null,"",""]
[null,null,null,null,"",""]
[null,null,null,null,"",""]
[null,null,null,null,"",""]
[null,null,null,null,"",""]
[null,null,null,null,"",""]
[null,null,null,null,"",""]
[null,null,null,null,"",""]
[null,null,null,null,"",""]
[null,null,null,null,"",""]
[null,null,null,null,"",""]
[null,null,null,null,"",""]
[null,null,null,null,"",""]
[null,null,null,null,"",""]
[null,null,null,null,"",""]
[null,null,null,null,"",""]
[null,null,null,null,"",""]
[null,null,null,null,"",""]
[null,null,null,null,"",""]
[null,null,null,null,"",""]
[null,null,null,null,"",""]
[null,null,null,null,"",""]
[null,null,null,null,"",""]
[null,null,null,null,"",""]
[null,null,null,null,"",""]
[null,null,null,null,"",""]
[null,null,null,null,"",""]
[null,null,null,null,"",""]
[null,null,null,null,"",""]
[null,null,null,null,"",""]
[null,null,null,null,"",""]
[null,null,null,null,"",""]
[null,null,null,null,"",""]
[null,null,null,null,"",""]
[null,null,null,null,{"$f":"IF(C1388=\"\",\"\",VLOOKUP(C1388,$J$4:$J$10,2,FALSE))","v":""},""]
[null,null,null,null,"",""]
[null,null,null,null,"",""]
[null,null,null,null,"",""]
[null,null,null,null,"",""]
[null,null,null,null,"",""]
[null,null,null,null,"",""]
[null,null,null,null,"",""]
[null,null,null,null,"",""]
[null,null,null,null,"",""]
[null,null,null,null,"",""]
[null,null,null,null,"",""]
[null,null,null,null,"",""]
[null,null,null,null,"",""]
[null,null,null,null,"",""]
[null,null,null,null,"",""]
[null,null,null,null,"",""]
[null,null,null,null,"",""]
[null,null,null,null,"",""]
[null,null,null,null,"",""]
[null,null,null,null,"",""]
[null,null,null,null,"",""]
[null,null,null,null,"",""]
[null,null,null,null,"",""]
[null,null,null,null,"",""]
[null,null,null,null,"",{"$f":"IF(E1413=\"\",\"\",D1413*E1413)","v":""}]
[null,null,null,null,"",""]
[null,null,null,null,"",""]
[null,null,null,null,"",""]
[null,null,null,null,"",""]
[null,null,null,null,"",""]
[null,null,null,null,"",""]
[null,null,null,null,"",""]
[null,null,null,null,"",""]
[null,null,null,null,"",""]
[null,null,null,null,"",""]
[null,null,null,null,"",""]
[null,null,null,null,"",""]
[null,null,null,null,"",""]
[null,null,null,null,"",""]
[null,null,null,null,"",""]
[null,null,null,null,"",""]
[null,null,null,null,"",""]
[null,null,null,null,"",""]
[null,null,null,null,"",""]
[null,null,null,null,"",""]
[null,null,null,null,"",""]
[null,null,null,null,"",""]
[null,null,null,null,"",""]
[null,null,null,null,"",""]
[null,null,null,null,"",""]
[null,null,null,null,"",""]
[null,null,null,null,"",""]
[null,null,null,null,"",""]
[null,null,null,null,"",""]
[null,null,null,null,"",""]
[null,null,null,null,"",""]
[null,null,null,null,"",""]
[null,null,null,null,"",""]
[null,null,null,null,"",""]
[null,null,null,null,"",""]
[null,null,null,null,"",""]
[null,null,null,null,"",""]
[null,null,null,null,"",""]
[null,null,null,null,{"$f":"IF(C1452=\"\",\"\",VLOOKUP(C1452,$J$4:$J$10,2,FALSE))","v":""},""]
[null,null,null,null,"",""]
[null,null,null,null,"",""]
[null,null,null,null,"",""]
[null,null,null,null,"",""]
[null,null,null,null,"",""]
[null,null,null,null,"",""]
[null,null,null,null,"",""]
[null,null,null,null,"",""]
[null,null,null,null,"",""]
[null,null,null,null,"",""]
[null,null,null,null,"",""]
[null,null,null,null,"",""]
[null,null,null,null,"",""]
[null,null,null,null,"",""]
[null,null,null,null,"",""]
[null,null,null,null,"",""]
[null,null,null,null,"",""]
[null,null,null,null,"",""]
[null,null,null,null,"",""]
[null,null,null,null,"",""]
[null,null,null,null,"",""]
[null,null,null,null,"",""]
[null,null,null,null,"",""]
[null,null,null,null,"",""]
[null,null,null,null,"",{"$f":"IF(E1477=\"\",\"\",D1477*E1477)","v":""}]
[null,null,null,null,"",""]
[null,null,null,null,"",""]
[null,null,null,null,"",""]
[null,null,null,null,"",""]
[null,null,null,null,"",""]
[null,null,null,null,"",""]
[null,null,null,null,"",""]
[null,null,null,null,"",""]
[null,null,null,null,"",""]
[null,null,null,null,"",""]
[null,null,null,null,"",""]
[null,null,null,null,"",""]
[null,null,null,null,"",""]
[null,null,null,null,"",""]
[null,null,null,null,"",""]
[null,null,null,null,"",""]
[null,null,null,null,"",""]
[null,null,null,null,"",""]
[null,null,null,null,"",""]
[null,null,null,null,"",""]
[null,null,null,null,"",""]
[null,null,null,null,"",""]
[null,null,null,null,"",""]
[null,null,null,null,"",""]
[null,null,null,null,"",""]
[null,null,null,null,"",""]
[null,null,null,null,"",""]
[null,null,null,null,"",""]
[null,null,null,null,"",""]
[null,null,null,null,"",""]
[null,null,null,null,"",""]
[null,null,null,null,"",""]
[null,null,null,null,"",""]
[null,null,null,null,"",""]
[null,null,null,null,"",""]
[null,null,null,null,"",""]
[null,null,null,null,"",""]
[null,null,null,null,"",""]
[null,null,null,null,{"$f":"IF(C1516=\"\",\"\",VLOOKUP(C1516,$J$4:$J$10,2,FALSE))","v":""},""]
[null,null,null,null,"",""]
[null,null,null,null,"",""]
[null,null,null,null,"",""]
[null,null,null,null,"",""]
[null,null,null,null,"",""]
[null,null,null,null,"",""]
[null,null,null,null,"",""]
[null,null,null,null,"",""]
[null,null,null,null,"",""]
[null,null,null,null,"",""]
[null,null,null,null,"",""]
[null,null,null,null,"",""]
[null,null,null,null,"",""]
[null,null,null,null,"",""]
[null,null,null,null,"",""]
[null,null,null,null,"",""]
[null,null,null,null,"",""]
[null,null,null,null,"",""]
[null,null,null,null,"",""]
[null,null,null,null,"",""]
[null,null,null,null,"",""]
[null,null,null,null,"",""]
[null,null,null,null,"",""]
[null,null,null,null,"",""]
[null,null,null,null,"",{"$f":"IF(E1541=\"\",\"\",D1541*E1541)","v":""}]
[null,null,null,null,"",""]
[null,null,null,null,"",""]
[null,null,null,null,"",""]
[null,null,null,null,"",""]
[null,null,null,null,"",""]
[null,null,null,null,"",""]
[null,null,null,null,"",""]
[null,null,null,null,"",""]
[null,null,null,null,"",""]
[null,null,null,null,"",""]
[null,null,null,null,"",""]
[null,null,null,null,"",""]
[null,null,null,null,"",""]
[null,null,null,null,"",""]
[null,null,null,null,"",""]
[null,null,null,null,"",""]
[null,null,null,null,"",""]
[null,null,null,null,"",""]
[null,null,null,null,"",""]
[null,null,null,null,"",""]
[null,null,null,null,"",""]
[null,null,null,null,"",""]
[null,null,null,null,"",""]
[null,null,null,null,"",""]
[null,null,null,null,"",""]
[null,null,null,null,"",""]
[null,null,null,null,"",""]
[null,null,null,null,"",""]
[null,null,null,null,"",""]
[null,null,null,null,"",""]
[null,null,null,null,"",""]
[null,null,null,null,"",""]
[null,null,null,null,"",""]
[null,null,null,null,"",""]
[null,null,null,null,"",""]
[null,null,null,null,"",""]
[null,null,null,null,"",""]
[null,null,null,null,"",""]
[null,null,null,null,{"$f":"IF(C1580=\"\",\"\",VLOOKUP(C1580,$J$4:$J$10,2,FALSE))","v":""},""]
[null,null,null,null,"",""]
[null,null,null,null,"",""]
[null,null,null,null,"",""]
[null,null,null,null,"",""]
[null,null,null,null,"",""]
[null,null,null,null,"",""]
[null,null,null,null,"",""]
[null,null,null,null,"",""]
[null,null,null,null,"",""]
[null,null,null,null,"",""]
[null,null,null,null,"",""]
[null,null,null,null,"",""]
[null,null,null,null,"",""]
[null,null,null,null,"",""]
[null,null,null,null,"",""]
[null,null,null,null,"",""]
[null,null,null,null,"",""]
[null,null,null,null,"",""]
[null,null,null,null,"",""]
[null,null,null,null,"",""]
[null,null,null,null,"",""]
[null,null,null,null,"",""]
[null,null,null,null,"",""]
[null,null,null,null,"",""]
[null,null,null,null,"",{"$f":"IF(E1605=\"\",\"\",D1605*E1605)","v":""}]
[null,null,null,null,"",""]
[null,null,null,null,"",""]
[null,null,null,null,"",""]
[null,null,null,null,"",""]
[null,null,null,null,"",""]
[null,null,null,null,"",""]
[null,null,null,null,"",""]
[null,null,null,null,"",""]
[null,null,null,null,"",""]
[null,null,null,null,"",""]
[null,null,null,null,"",""]
[null,null,null,null,"",""]
[null,null,null,null,"",""]
[null,null,null,null,"",""]
[null,null,null,null,"",""]
[null,null,null,null,"",""]
[null,null,null,null,"",""]
[null,null,null,null,"",""]
[null,null,null,null,"",""]
[null,null,null,null,"",""]
[null,null,null,null,"",""]
[null,null,null,null,"",""]
[null,null,null,null,"",""]
[null,null,null,null,"",""]
[null,null,null,null,"",""]
[null,null,null,null,"",""]
[null,null,null,null,"",""]
[null,null,null,null,"",""]
[null,null,null,null,"",""]
[null,null,null,null,"",""]
[null,null,null,null,"",""]
[null,null,null,null,"",""]
[null,null,null,null,"",""]
[null,null,null,null,"",""]
[null,null,null,null,"",""]
[null,null,null,null,"",""]
[null,null,null,null,"",""]
[null,null,null,null,"",""]
[null,null,null,null,{"$f":"IF(C1644=\"\",\"\",VLOOKUP(C1644,$J$4:$J$10,2,FALSE))","v":""},""]
[null,null,null,null,"",""]
[null,null,null,null,"",""]
[null,null,null,null,"",""]
[null,null,null,null,"",""]
[null,null,null,null,"",""]
[null,null,null,null,"",""]
[null,null,null,null,"",""]
[null,null,null,null,"",""]
[null,null,null,null,"",""]
[null,null,null,null,"",""]
[null,null,null,null,"",""]
[null,null,null,null,"",""]
[null,null,null,null,"",""]
[null,null,null,null,"",""]
[null,null,null,null,"",""]
[null,null,null,null,"",""]
[null,null,null,null,"",""]
[null,null,null,null,"",""]
[null,null,null,null,"",""]
[null,null,null,null,"",""]
[null,null,null,null,"",""]
[null,null,null,null,"",""]
[null,null,null,null,"",""]
[null,null,null,null,"",""]
[null,null,null,null,"",{"$f":"IF(E1669=\"\",\"\",D1669*E1669)","v":""}]
[null,null,null,null,"",""]
[null,null,null,null,"",""]
[null,null,null,null,"",""]
[null,null,null,null,"",""]
[null,null,null,null,"",""]
[null,null,null,null,"",""]
[null,null,null,null,"",""]
[null,null,null,null,"",""]
[null,null,null,null,"",""]
[null,null,null,null,"",""]
[null,null,null,null,"",""]
[null,null,null,null,"",""]
[null,null,null,null,"",""]
[null,null,null,null,"",""]
[null,null,null,null,"",""]
[null,null,null,null,"",""]
[null,null,null,null,"",""]
[null,null,null,null,"",""]
[null,null,null,null,"",""]
[null,null,null,null,"",""]
[null,null,null,null,"",""]
[null,null,null,null,"",""]
[null,null,null,null,"",""]
[null,null,null,null,"",""]
[null,null,null,null,"",""]
[null,null,null,null,"",""]
[null,null,null,null,"",""]
[null,null,null,null,"",""]
[null,null,null,null,"",""]
[null,null,null,null,"",""]
[null,null,null,null,"",""]
[null,null,null,null,"",""]
[null,null,null,null,"",""]
[null,null,null,null,"",""]
[null,null,null,null,"",""]
[null,null,null,null,"",""]
[null,null,null,null,"",""]
[null,null,null,null,"",""]
[null,null,null,null,{"$f":"IF(C1708=\"\",\"\",VLOOKUP(C1708,$J$4:$J$10,2,FALSE))","v":""},""]
[null,null,null,null,"",""]
[null,null,null,null,"",""]
[null,null,null,null,"",""]
[null,null,null,null,"",""]
[null,null,null,null,"",""]
[null,null,null,null,"",""]
[null,null,null,null,"",""]
[null,null,null,null,"",""]
[null,null,null,null,"",""]
[null,null,null,null,"",""]
[null,null,null,null,"",""]
[null,null,null,null,"",""]
[null,null,null,null,"",""]
[null,null,null,null,"",""]
[null,null,null,null,"",""]
[null,null,null,null,"",""]
[null,null,null,null,"",""]
[null,null,null,null,"",""]
[null,null,null,null,"",""]
[null,null,null,null,"",""]
[null,null,null,null,"",""]
[null,null,null,null,"",""]
[null,null,null,null,"",""]
[null,null,null,null,"",""]
[null,null,null,null,"",{"$f":"IF(E1733=\"\",\"\",D1733*E1733)","v":""}]
[null,null,null,null,"",""]
[null,null,null,null,"",""]
[null,null,null,null,"",""]
[null,null,null,null,"",""]
[null,null,null,null,"",""]
[null,null,null,null,"",""]
[null,null,null,null,"",""]
[null,null,null,null,"",""]
[null,null,null,null,"",""]
[null,null,null,null,"",""]
[null,null,null,null,"",""]
[null,null,null,null,"",""]
[null,null,null,null,"",""]
[null,null,null,null,"",""]
[null,null,null,null,"",""]
[null,null,null,null,"",""]
[null,null,null,null,"",""]
[null,null,null,null,"",""]
[null,null,null,null,"",""]
[null,null,null,null,"",""]
[null,null,null,null,"",""]
[null,null,null,null,"",""]
[null,null,null,null,"",""]
[null,null,null,null,"",""]
[null,null,null,null,"",""]
[null,null,null,null,"",""]
[null,null,null,null,"",""]
[null,null,null,null,"",""]
[null,null,null,null,"",""]
[null,null,null,null,"",""]
[null,null,null,null,"",""]
[null,null,null,null,"",""]
[null,null,null,null,"",""]
[null,null,null,null,"",""]
[null,null,null,null,"",""]
[null,null,null,null,"",""]
[null,null,null,null,"",""]
[null,null,null,null,"",""]
[null,null,null,null,{"$f":"IF(C1772=\"\",\"\",VLOOKUP(C1772,$J$4:$J$10,2,FALSE))","v":""},""]
[null,null,null,null,"",""]
[null,null,null,null,"",""]
[null,null,null,null,"",""]
[null,null,null,null,"",""]
[null,null,null,null,"",""]
[null,null,null,null,"",""]
[null,null,null,null,"",""]
[null,null,null,null,"",""]
[null,null,null,null,"",""]
[null,null,null,null,"",""]
[null,null,null,null,"",""]
[null,null,null,null,"",""]
[null,null,null,null,"",""]
[null,null,null,null,"",""]
[null,null,null,null,"",""]
[null,null,null,null,"",""]
[null,null,null,null,"",""]
[null,null,null,null,"",""]
[null,null,null,null,"",""]
[null,null,null,null,"",""]
[null,null,null,null,"",""]
[null,null,null,null,"",""]
[null,null,null,null,"",""]
[null,null,null,null,"",""]
[null,null,null,null,"",{"$f":"IF(E1797=\"\",\"\",D1797*E1797)","v":""}]
[null,null,null,null,"",""]
[null,null,null,null,"",""]
[null,null,null,null,"",""]
[null,null,null,null,"",""]
[null,null,null,null,"",""]
[null,null,null,null,"",""]
[null,null,null,null,"",""]
[null,null,null,null,"",""]
[null,null,null,null,"",""]
[null,null,null,null,"",""]
[null,null,null,null,"",""]
[null,null,null,null,"",""]
[null,null,null,null,"",""]
[null,null,null,null,"",""]
[null,null,null,null,"",""]
[null,null,null,null,"",""]
[null,null,null,null,"",""]
[null,null,null,null,"",""]
[null,null,null,null,"",""]
[null,null,null,null,"",""]
[null,null,null,null,"",""]
[null,null,null,null,"",""]
[null,null,null,null,"",""]
[null,null,null,null,"",""]
[null,null,null,null,"",""]
[null,null,null,null,"",""]
[null,null,null,null,"",""]
[null,null,null,null,"",""]
[null,null,null,null,"",""]
[null,null,null,null,"",""]
[null,null,null,null,"",""]
[null,null,null,null,"",""]
[null,null,null,null,"",""]
[null,null,null,null,"",""]
[null,null,null,null,"",""]
[null,null,null,null,"",""]
[null,null,null,null,"",""]
[null,null,null,null,"",""]
[null,null,null,null,{"$f":"IF(C1836=\"\",\"\",VLOOKUP(C1836,$J$4:$J$10,2,FALSE))","v":""},""]
[null,null,null,null,"",""]
[null,null,null,null,"",""]
[null,null,null,null,"",""]
[null,null,null,null,"",""]
[null,null,null,null,"",""]
[null,null,null,null,"",""]
[null,null,null,null,"",""]
[null,null,null,null,"",""]
[null,null,null,null,"",""]
[null,null,null,null,"",""]
[null,null,null,null,"",""]
[null,null,null,null,"",""]
[null,null,null,null,"",""]
[null,null,null,null,"",""]
[null,null,null,null,"",""]
[null,null,null,null,"",""]
[null,null,null,null,"",""]
[null,null,null,null,"",""]
[null,null,null,null,"",""]
[null,null,null,null,"",""]
[null,null,null,null,"",""]
[null,null,null,null,"",""]
[null,null,null,null,"",""]
[null,null,null,null,"",""]
[null,null,null,null,"",{"$f":"IF(E1861=\"\",\"\",D1861*E1861)","v":""}]
[null,null,null,null,"",""]
[null,null,null,null,"",""]
[null,null,null,null,"",""]
[null,null,null,null,"",""]
[null,null,null,null,"",""]
[null,null,null,null,"",""]
[null,null,null,null,"",""]
[null,null,null,null,"",""]
[null,null,null,null,"",""]
[null,null,null,null,"",""]
[null,null,null,null,"",""]
[null,null,null,null,"",""]
[null,null,null,null,"",""]
[null,null,null,null,"",""]
[null,null,null,null,"",""]
[null,null,null,null,"",""]
[null,null,null,null,"",""]
[null,null,null,null,"",""]
[null,null,null,null,"",""]
[null,null,null,null,"",""]
[null,null,null,null,"",""]
[null,null,null,null,"",""]
[null,null,null,null,"",""]
[null,null,null,null,"",""]
[null,null,null,null,"",""]
[null,null,null,null,"",""]
[null,null,null,null,"",""]
[null,null,null,null,"",""]
[null,null,null,null,"",""]
[null,null,null,null,"",""]
[null,null,null,null,"",""]
[null,null,null,null,"",""]
[null,null,null,null,"",""]
[null,null,null,null,"",""]
[null,null,null,null,"",""]
[null,null,null,null,"",""]
[null,null,null,null,"",""]
[null,null,null,null,"",""]
[null,null,null,null,{"$f":"IF(C1900=\"\",\"\",VLOOKUP(C1900,$J$4:$J$10,2,FALSE))","v":""},""]
[null,null,null,null,"",""]
[null,null,null,null,"",""]
[null,null,null,null,"",""]
[null,null,null,null,"",""]
[null,null,null,null,"",""]
[null,null,null,null,"",""]
[null,null,null,null,"",""]
[null,null,null,null,"",""]
[null,null,null,null,"",""]
[null,null,null,null,"",""]
[null,null,null,null,"",""]
[null,null,null,null,"",""]
[null,null,null,null,"",""]
[null,null,null,null,"",""]
[null,null,null,null,"",""]
[null,null,null,null,"",""]
[null,null,null,null,"",""]
[null,null,null,null,"",""]
[null,null,null,null,"",""]
[null,null,null,null,"",""]
[null,null,null,null,"",""]
[null,null,null,null,"",""]
[null,null,null,null,"",""]
[null,null,null,null,"",""]
[null,null,null,null,"",{"$f":"IF(E1925=\"\",\"\",D1925*E1925)","v":""}]
[null,null,null,null,"",""]
[null,null,null,null,"",""]
[null,null,null,null,"",""]
[null,null,null,null,"",""]
[null,null,null,null,"",""]
[null,null,null,null,"",""]
[null,null,null,null,"",""]
[null,null,null,null,"",""]
[null,null,null,null,"",""]
[null,null,null,null,"",""]
[null,null,null,null,"",""]
[null,null,null,null,"",""]
[null,null,null,null,"",""]
[null,null,null,null,"",""]
[null,null,null,null,"",""]
[null,null,null,null,"",""]
[null,null,null,null,"",""]
[null,null,null,null,"",""]
[null,null,null,null,"",""]
[null,null,null,null,"",""]
[null,null,null,null,"",""]
[null,null,null,null,"",""]
[null,null,null,null,"",""]
[null,null,null,null,"",""]
[null,null,null,null,"",""]
[null,null,null,null,"",""]
[null,null,null,null,"",""]
[null,null,null,null,"",""]
[null,null,null,null,"",""]
[null,null,null,null,"",""]
[null,null,null,null,"",""]
[null,null,null,null,"",""]
[null,null,null,null,"",""]
[null,null,null,null,"",""]
[null,null,null,null,"",""]
[null,null,null,null,"",""]
[null,null,null,null,"",""]
[null,null,null,null,"",""]
[null,null,null,null,{"$f":"IF(C1964=\"\",\"\",VLOOKUP(C1964,$J$4:$J$10,2,FALSE))","v":""},""]
[null,null,null,null,"",""]
[null,null,null,null,"",""]
[null,null,null,null,"",""]
[null,null,null,null,"",""]
[null,null,null,null,"",""]
[null,null,null,null,"",""]
[null,null,null,null,"",""]
[null,null,null,null,"",""]
[null,null,null,null,"",""]
[null,null,null,null,"",""]
[null,null,null,null,"",""]
[null,null,null,null,"",""]
[null,null,null,null,"",""]
[null,null,null,null,"",""]
[null,null,null,null,"",""]
[null,null,null,null,"",""]
[null,null,null,null,"",""]
[null,null,null,null,"",""]
[null,null,null,null,"",""]
[null,null,null,null,"",""]
[null,null,null,null,"",""]
[null,null,null,null,"",""]
[null,null,null,null,"",""]
[null,null,null,null,"",""]
[null,null,null,null,"",{"$f":"IF(E1989=\"\",\"\",D1989*E1989)","v":""}]
[null,null,null,null,"",""]
[null,null,null,null,"",""]
[null,null,null,null,"",""]
[null,null,null,null,"",""]
[null,null,null,null,"",""]
[null,null,null,null,"",""]
[null,null,null,null,"",""]
[null,null,null,null,"",""]
[null,null,null,null,"",""]
[null,null,null,null,"",""]
[null,null,null,null,"",""]
[null,null,null,null,"",""]
[null,null,null,null,"",""]
[null,null,null,null,"",""]
[null,null,null,null,"",""]
[null,null,null,null,"",""]
[null,null,null,null,"",""]
[null,null,null,null,"",""]
[null,null,null,null,"",""]
[null,null,null,null,"",""]
[null,null,null,null,"",""]
[null,null,null,null,"",""]
[null,null,null,null,"",""]
[null,null,null,null,"",""]
[null,null,null,null,"",""]
[null,null,null,null,"",""]
[null,null,null,null,"",""]
[null,null,null,null,"",""]
[null,null,null,null,"",""]
[null,null,null,null,"",""]
[null,null,null,null,"",""]
[null,null,null,null,"",""]
[null,null,null,null,"",""]
[null,null,null,null,"",""]
[null,null,null,null,"",""]
[null,null,null,null,"",""]
[null,null,null,null,"",""]
[null,null,null,null,"",""]
[null,null,null,null,{"$f":"IF(C2028=\"\",\"\",VLOOKUP(C2028,$J$4:$J$10,2,FALSE))","v":""},""]
[null,null,null,null,"",""]
[null,null,null,null,"",""]
[null,null,null,null,"",""]
[null,null,null,null,"",""]
[null,null,null,null,"",""]
[null,null,null,null,"",""]
[null,null,null,null,"",""]
[null,null,null,null,"",""]
[null,null,null,null,"",""]
[null,null,null,null,"",""]
[null,null,null,null,"",""]
[null,null,null,null,"",""]
[null,null,null,null,"",""]
[null,null,null,null,"",""]
[null,null,null,null,"",""]
[null,null,null,null,"",""]
[null,null,null,null,"",""]
[null,null,null,null,"",""]
[null,null,null,null,"",""]
[null,null,null,null,"",""]
[null,null,null,null,"",""]
[null,null,null,null,"",""]
[null,null,null,null,"",""]
[null,null,null,null,"",""]
[null,null,null,null,"",{"$f":"IF(E2053=\"\",\"\",D2053*E2053)","v":""}]
[null,null,null,null,"",""]
[null,null,null,null,"",""]
[null,null,null,null,"",""]
[null,null,null,null,"",""]
[null,null,null,null,"",""]
[null,null,null,null,"",""]
[null,null,null,null,"",""]
[null,null,null,null,"",""]
[null,null,null,null,"",""]
[null,null,null,null,"",""]
[null,null,null,null,"",""]
[null,null,null,null,"",""]
[null,null,null,null,"",""]
[null,null,null,null,"",""]
[null,null,null,null,"",""]
[null,null,null,null,"",""]
[null,null,null,null,"",""]
[null,null,null,null,"",""]
[null,null,null,null,"",""]
[null,null,null,null,"",""]
[null,null,null,null,"",""]
[null,null,null,null,"",""]
[null,null,null,null,"",""]
[null,null,null,null,"",""]
[null,null,null,null,"",""]
[null,null,null,null,"",""]
[null,null,null,null,"",""]
[null,null,null,null,"",""]
[null,null,null,null,"",""]
[null,null,null,null,"",""]
[null,null,null,null,"",""]
[null,null,null,null,"",""]
[null,null,null,null,"",""]
[null,null,null,null,"",""]
[null,null,null,null,"",""]
[null,null,null,null,"",""]
[null,null,null,null,"",""]
[null,null,null,null,"",""]
[null,null,null,null,{"$f":"IF(C2092=\"\",\"\",VLOOKUP(C2092,$J$4:$J$10,2,FALSE))","v":""},""]
[null,null,null,null,"",""]
[null,null,null,null,"",""]
[null,null,null,null,"",""]
[null,null,null,null,"",""]
[null,null,null,null,"",""]
[null,null,null,null,"",""]
[null,null,null,null,"",""]
[null,null,null,null,"",""]
[null,null,null,null,"",""]
[null,null,null,null,"",""]
[null,null,null,null,"",""]
[null,null,null,null,"",""]
[null,null,null,null,"",""]
[null,null,null,null,"",""]
[null,null,null,null,"",""]
[null,null,null,null,"",""]
[null,null,null,null,"",""]
[null,null,null,null,"",""]
[null,null,null,null,"",""]
[null,null,null,null,"",""]
[null,null,null,null,"",""]
[null,null,null,null,"",""]
[null,null,null,null,"",""]
[null,null,null,null,"",""]
[null,null,null,null,"",{"$f":"IF(E2117=\"\",\"\",D2117*E2117)","v":""}]
[null,null,null,null,"",""]
[null,null,null,null,"",""]
[null,null,null,null,"",""]
[null,null,null,null,"",""]
[null,null,null,null,"",""]
[null,null,null,null,"",""]
[null,null,null,null,"",""]
[null,null,null,null,"",""]
[null,null,null,null,"",""]
[null,null,null,null,"",""]
[null,null,null,null,"",""]
[null,null,null,null,"",""]
[null,null,null,null,"",""]
[null,null,null,null,"",""]
[null,null,null,null,"",""]
[null,null,null,null,"",""]
[null,null,null,null,"",""]
[null,null,null,null,"",""]
[null,null,null,null,"",""]
[null,null,null,null,"",""]
[null,null,null,null,"",""]
[null,null,null,null,"",""]
[null,null,null,null,"",""]
[null,null,null,null,"",""]
[null,null,null,null,"",""]
[null,null,null,null,"",""]
[null,null,null,null,"",""]
[null,null,null,null,"",""]
[null,null,null,null,"",""]
[null,null,null,null,"",""]
[null,null,null,null,"",""]
[null,null,null,null,"",""]
[null,null,null,null,"",""]
[null,null,null,null,"",""]
[null,null,null,null,"",""]
[null,null,null,null,"",""]
[null,null,null,null,"",""]
[null,null,null,null,"",""]
[null,null,null,null,{"$f":"IF(C2156=\"\",\"\",VLOOKUP(C2156,$J$4:$J$10,2,FALSE))","v":""},""]
[null,null,null,null,"",""]
[null,null,null,null,"",""]
[null,null,null,null,"",""]
[null,null,null,null,"",""]
[null,null,null,null,"",""]
[null,null,null,null,"",""]
[null,null,null,null,"",""]
[null,null,null,null,"",""]
[null,null,null,null,"",""]
[null,null,null,null,"",""]
[null,null,null,null,"",""]
[null,null,null,null,"",""]
[null,null,null,null,"",""]
[null,null,null,null,"",""]
[null,null,null,null,"",""]
[null,null,null,null,"",""]
[null,null,null,null,"",""]
[null,null,null,null,"",""]
[null,null,null,null,"",""]
[null,null,null,null,"",""]
[null,null,null,null,"",""]
[null,null,null,null,"",""]
[null,null,null,null,"",""]
[null,null,null,null,"",""]
[null,null,null,null,"",{"$f":"IF(E2181=\"\",\"\",D2181*E2181)","v":""}]
[null,null,null,null,"",""]
[null,null,null,null,"",""]
[null,null,null,null,"",""]
[null,null,null,null,"",""]
[null,null,null,null,"",""]
[null,null,null,null,"",""]
[null,null,null,null,"",""]
[null,null,null,null,"",""]
[null,null,null,null,"",""]
[null,null,null,null,"",""]
[null,null,null,null,"",""]
[null,null,null,null,"",""]
[null,null,null,null,"",""]
[null,null,null,null,"",""]
[null,null,null,null,"",""]
[null,null,null,null,"",""]
[null,null,null,null,"",""]
[null,null,null,null,"",""]
[null,null,null,null,"",""]
[null,null,null,null,"",""]
[null,null,null,null,"",""]
[null,null,null,null,"",""]
[null,null,null,null,"",""]
[null,null,null,null,"",""]
[null,null,null,null,"",""]
[null,null,null,null,"",""]
[null,null,null,null,"",""]
[null,null,null,null,"",""]
[null,null,null,null,"",""]
[null,null,null,null,"",""]
[null,null,null,null,"",""]
[null,null,null,null,"",""]
[null,null,null,null,"",""]
[null,null,null,null,"",""]
[null,null,null,null,"",""]
[null,null,null,null,"",""]
[null,null,null,null,"",""]
[null,null,null,null,"",""]
[null,null,null,null,{"$f":"IF(C2220=\"\",\"\",VLOOKUP(C2220,$J$4:$J$10,2,FALSE))","v":""},""]
[null,null,null,null,"",""]
[null,null,null,null,"",""]
[null,null,null,null,"",""]
[null,null,null,null,"",""]
[null,null,null,null,"",""]
[null,null,null,null,"",""]
[null,null,null,null,"",""]
[null,null,null,null,"",""]
[null,null,null,null,"",""]
[null,null,null,null,"",""]
[null,null,null,null,"",""]
[null,null,null,null,"",""]
[null,null,null,null,"",""]
[null,null,null,null,"",""]
[null,null,null,null,"",""]
[null,null,null,null,"",""]
[null,null,null,null,"",""]
[null,null,null,null,"",""]
[null,null,null,null,"",""]
[null,null,null,null,"",""]
[null,null,null,null,"",""]
[null,null,null,null,"",""]
[null,null,null,null,"",""]
[null,null,null,null,"",""]
[null,null,null,null,"",{"$f":"IF(E2245=\"\",\"\",D2245*E2245)","v":""}]
[null,null,null,null,"",""]
[null,null,null,null,"",""]
[null,null,null,null,"",""]
[null,null,null,null,"",""]
[null,null,null,null,"",""]
[null,null,null,null,"",""]
[null,null,null,null,"",""]
[null,null,null,null,"",""]
[null,null,null,null,"",""]
[null,null,null,null,"",""]
[null,null,null,null,"",""]
[null,null,null,null,"",""]
[null,null,null,null,"",""]
[null,null,null,null,"",""]
[null,null,null,null,"",""]
[null,null,null,null,"",""]
[null,null,null,null,"",""]
[null,null,null,null,"",""]
[null,null,null,null,"",""]
[null,null,null,null,"",""]
[null,null,null,null,"",""]
[null,null,null,null,"",""]
[null,null,null,null,"",""]
[null,null,null,null,"",""]
[null,null,null,null,"",""]
[null,null,null,null,"",""]
[null,null,null,null,"",""]
[null,null,null,null,"",""]
[null,null,null,null,"",""]
[null,null,null,null,"",""]
[null,null,null,null,"",""]
[null,null,null,null,"",""]
[null,null,null,null,"",""]
[null,null,null,null,"",""]
[null,null,null,null,"",""]
[null,null,null,null,"",""]
[null,null,null,null,"",""]
[null,null,null,null,"",""]
[null,null,null,null,{"$f":"IF(C2284=\"\",\"\",VLOOKUP(C2284,$J$4:$J$10,2,FALSE))","v":""},""]
[null,null,null,null,"",""]
[null,null,null,null,"",""]
[null,null,null,null,"",""]
[null,null,null,null,"",""]
[null,null,null,null,"",""]
[null,null,null,null,"",""]
[null,null,null,null,"",""]
[null,null,null,null,"",""]
[null,null,null,null,"",""]
[null,null,null,null,"",""]
[null,null,null,null,"",""]
[null,null,null,null,"",""]
[null,null,null,null,"",""]
[null,null,null,null,"",""]
[null,null,null,null,"",""]
[null,null,null,null,"",""]
[null,null,null,null,"",""]
[null,null,null,null,"",""]
[null,null,null,null,"",""]
[null,null,null,null,"",""]
[null,null,null,null,"",""]
[null,null,null,null,"",""]
[null,null,null,null,"",""]
[null,null,null,null,"",""]
[null,null,null,null,"",{"$f":"IF(E2309=\"\",\"\",D2309*E2309)","v":""}]
[null,null,null,null,"",""]
[null,null,null,null,"",""]
[null,null,null,null,"",""]
[null,null,null,null,"",""]
[null,null,null,null,"",""]
[null,null,null,null,"",""]
[null,null,null,null,"",""]
[null,null,null,null,"",""]
[null,null,null,null,"",""]
[null,null,null,null,"",""]
[null,null,null,null,"",""]
[null,null,null,null,"",""]
[null,null,null,null,"",""]
[null,null,null,null,"",""]
[null,null,null,null,"",""]
[null,null,null,null,"",""]
[null,null,null,null,"",""]
[null,null,null,null,"",""]
[null,null,null,null,"",""]
[null,null,null,null,"",""]
[null,null,null,null,"",""]
[null,null,null,null,"",""]
[null,null,null,null,"",""]
[null,null,null,null,"",""]
[null,null,null,null,"",""]
[null,null,null,null,"",""]
[null,null,null,null,"",""]
[null,null,null,null,"",""]
[null,null,null,null,"",""]
[null,null,null,null,"",""]
[null,null,null,null,"",""]
[null,null,null,null,"",""]
[null,null,null,null,"",""]
[null,null,null,null,"",""]
[null,null,null,null,"",""]
[null,null,null,null,"",""]
[null,null,null,null,"",""]
[null,null,null,null,"",""]
[null,null,null,null,{"$f":"IF(C2348=\"\",\"\",VLOOKUP(C2348,$J$4:$J$10,2,FALSE))","v":""},""]
[null,null,null,null,"",""]
[null,null,null,null,"",""]
[null,null,null,null,"",""]
[null,null,null,null,"",""]
[null,null,null,null,"",""]
[null,null,null,null,"",""]
[null,null,null,null,"",""]
[null,null,null,null,"",""]
[null,null,null,null,"",""]
[null,null,null,null,"",""]
[null,null,null,null,"",""]
[null,null,null,null,"",""]
[null,null,null,null,"",""]
[null,null,null,null,"",""]
[null,null,null,null,"",""]
[null,null,null,null,"",""]
[null,null,null,null,"",""]
[null,null,null,null,"",""]
[null,null,null,null,"",""]
[null,null,null,null,"",""]
[null,null,null,null,"",""]
[null,null,null,null,"",""]
[null,null,null,null,"",""]
[null,null,null,null,"",""]
[null,null,null,null,"",{"$f":"IF(E2373=\"\",\"\",D2373*E2373)","v":""}]
[null,null,null,null,"",""]
[null,null,null,null,"",""]
[null,null,null,null,"",""]
[null,null,null,null,"",""]
[null,null,null,null,"",""]
[null,null,null,null,"",""]
[null,null,null,null,"",""]
[null,null,null,null,"",""]
[null,null,null,null,"",""]
[null,null,null,null,"",""]
[null,null,null,null,"",""]
[null,null,null,null,"",""]
[null,null,null,null,"",""]
[null,null,null,null,"",""]
[null,null,null,null,"",""]
[null,null,null,null,"",""]
[null,null,null,null,"",""]
[null,null,null,null,"",""]
[null,null,null,null,"",""]
[null,null,null,null,"",""]
[null,null,null,null,"",""]
[null,null,null,null,"",""]
[null,null,null,null,"",""]
[null,null,null,null,"",""]
[null,null,null,null,"",""]
[null,null,null,null,"",""]
[null,null,null,null,"",""]
[null,null,null,null,"",""]
[null,null,null,null,"",""]
[null,null,null,null,"",""]
[null,null,null,null,"",""]
[null,null,null,null,"",""]
[null,null,null,null,"",""]
[null,null,null,null,"",""]
[null,null,null,null,"",""]
[null,null,null,null,"",""]
[null,null,null,null,"",""]
[null,null,null,null,"",""]
[null,null,null,null,{"$f":"IF(C2412=\"\",\"\",VLOOKUP(C2412,$J$4:$J$10,2,FALSE))","v":""},""]
[null,null,null,null,"",""]
[null,null,null,null,"",""]
[null,null,null,null,"",""]
[null,null,null,null,"",""]
[null,null,null,null,"",""]
[null,null,null,null,"",""]
[null,null,null,null,"",""]
[null,null,null,null,"",""]
[null,null,null,null,"",""]
[null,null,null,null,"",""]
[null,null,null,null,"",""]
[null,null,null,null,"",""]
[null,null,null,null,"",""]
[null,null,null,null,"",""]
[null,null,null,null,"",""]
[null,null,null,null,"",""]
[null,null,null,null,"",""]
[null,null,null,null,"",""]
[null,null,null,null,"",""]
[null,null,null,null,"",""]
[null,null,null,null,"",""]
[null,null,null,null,"",""]
[null,null,null,null,"",""]
[null,null,null,null,"",""]
[null,null,null,null,"",{"$f":"IF(E2437=\"\",\"\",D2437*E2437)","v":""}]
[null,null,null,null,"",""]
[null,null,null,null,"",""]
[null,null,null,null,"",""]
[null,null,null,null,"",""]
[null,null,null,null,"",""]
[null,null,null,null,"",""]
[null,null,null,null,"",""]
[null,null,null,null,"",""]
[null,null,null,null,"",""]
[null,null,null,null,"",""]
[null,null,null,null,"",""]
[null,null,null,null,"",""]
[null,null,null,null,"",""]
[null,null,null,null,"",""]
[null,null,null,null,"",""]
[null,null,null,null,"",""]
[null,null,null,null,"",""]
[null,null,null,null,"",""]
[null,null,null,null,"",""]
[null,null,null,null,"",""]
[null,null,null,null,"",""]
[null,null,null,null,"",""]
[null,null,null,null,"",""]
[null,null,null,null,"",""]
[null,null,null,null,"",""]
[null,null,null,null,"",""]
[null,null,null,null,"",""]
[null,null,null,null,"",""]
[null,null,null,null,"",""]
[null,null,null,null,"",""]
[null,null,null,null,"",""]
[null,null,null,null,"",""]
[null,null,null,null,"",""]
[null,null,null,null,"",""]
[null,null,null,null,"",""]
[null,null,null,null,"",""]
[null,null,null,null,"",""]
[null,null,null,null,"",""]
[null,null,null,null,{"$f":"IF(C2476=\"\",\"\",VLOOKUP(C2476,$J$4:$J$10,2,FALSE))","v":""},""]
[null,null,null,null,"",""]
[null,null,null,null,"",""]
[null,null,null,null,"",""]
[null,null,null,null,"",""]
[null,null,null,null,"",""]
[null,null,null,null,"",""]
[null,null,null,null,"",""]
[null,null,null,null,"",""]
[null,null,null,null,"",""]
[null,null,null,null,"",""]
[null,null,null,null,"",""]
[null,null,null,null,"",""]
[null,null,null,null,"",""]
[null,null,null,null,"",""]
[null,null,null,null,"",""]
[null,null,null,null,"",""]
[null,null,null,null,"",""]
[null,null,null,null,"",""]
[null,null,null,null,"",""]
[null,null,null,null,"",""]
[null,null,null,null,"",""]
[null,null,null,null,"",""]
[null,null,null,null,"",""]
[null,null,null,null,"",""]
[null,null,null,null,"",{"$f":"IF(E2501=\"\",\"\",D2501*E2501)","v":""}]
[null,null,null,null,"",""]
[null,null,null,null,"",""]
[null,null,null,null,"",""]
[null,null,null,null,"",""]
[null,null,null,null,"",""]
[null,null,null,null,"",""]
[null,null,null,null,"",""]
[null,null,null,null,"",""]
[null,null,null,null,"",""]
[null,null,null,null,"",""]
[null,null,null,null,"",""]
[null,null,null,null,"",""]
[null,null,null,null,"",""]
[null,null,null,null,"",""]
[null,null,null,null,"",""]
[null,null,null,null,"",""]
[null,null,null,null,"",""]
[null,null,null,null,"",""]
[null,null,null,null,"",""]
[null,null,null,null,"",""]
[null,null,null,null,"",""]
[null,null,null,null,"",""]
[null,null,null,null,"",""]
[null,null,null,null,"",""]
[null,null,null,null,"",""]
[null,null,null,null,"",""]
[null,null,null,null,"",""]
[null,null,null,null,"",""]
[null,null,null,null,"",""]
[null,null,null,null,"",""]
[null,null,null,null,"",""]
[null,null,null,null,"",""]
[null,null,null,null,"",""]
[null,null,null,null,"",""]
[null,null,null,null,"",""]
[null,null,null,null,"",""]
[null,null,null,null,"",""]
[null,null,null,null,"",""]
[null,null,null,null,{"$f":"IF(C2540=\"\",\"\",VLOOKUP(C2540,$J$4:$J$10,2,FALSE))","v":""},""]
[null,null,null,null,"",""]
[null,null,null,null,"",""]
[null,null,null,null,"",""]
[null,null,null,null,"",""]
[null,null,null,null,"",""]
[null,null,null,null,"",""]
[null,null,null,null,"",""]
[null,null,null,null,"",""]
[null,null,null,null,"",""]
[null,null,null,null,"",""]
[null,null,null,null,"",""]
[null,null,null,null,"",""]
[null,null,null,null,"",""]
[null,null,null,null,"",""]
[null,null,null,null,"",""]
[null,null,null,null,"",""]
[null,null,null,null,"",""]
[null,null,null,null,"",""]
[null,null,null,null,"",""]
[null,null,null,null,"",""]
[null,null,null,null,"",""]
[null,null,null,null,"",""]
[null,null,null,null,"",""]
[null,null,null,null,"",""]
[null,null,null,null,"",{"$f":"IF(E2565=\"\",\"\",D2565*E2565)","v":""}]
[null,null,null,null,"",""]
[null,null,null,null,"",""]
[null,null,null,null,"",""]
[null,null,null,null,"",""]
[null,null,null,null,"",""]
[null,null,null,null,"",""]
[null,null,null,null,"",""]
[null,null,null,null,"",""]
[null,null,null,null,"",""]
[null,null,null,null,"",""]
[null,null,null,null,"",""]
[null,null,null,null,"",""]
[null,null,null,null,"",""]
[null,null,null,null,"",""]
[null,null,null,null,"",""]
[null,null,null,null,"",""]
[null,null,null,null,"",""]
[null,null,null,null,"",""]
[null,null,null,null,"",""]
[null,null,null,null,"",""]
[null,null,null,null,"",""]
[null,null,null,null,"",""]
[null,null,null,null,"",""]
[null,null,null,null,"",""]
[null,null,null,null,"",""]
[null,null,null,null,"",""]
[null,null,null,null,"",""]
[null,null,null,null,"",""]
[null,null,null,null,"",""]
[null,null,null,null,"",""]
[null,null,null,null,"",""]
[null,null,null,null,"",""]
[null,null,null,null,"",""]
[null,null,null,null,"",""]
[null,null,null,null,"",""]
[null,null,null,null,"",""]
[null,null,null,null,"",""]
[null,null,null,null,"",""]
[null,null,null,null,{"$f":"IF(C2604=\"\",\"\",VLOOKUP(C2604,$J$4:$J$10,2,FALSE))","v":""},""]
[null,null,null,null,"",""]
[null,null,null,null,"",""]
[null,null,null,null,"",""]
[null,null,null,null,"",""]
[null,null,null,null,"",""]
[null,null,null,null,"",""]
[null,null,null,null,"",""]
[null,null,null,null,"",""]
[null,null,null,null,"",""]
[null,null,null,null,"",""]
[null,null,null,null,"",""]
[null,null,null,null,"",""]
[null,null,null,null,"",""]
[null,null,null,null,"",""]
[null,null,null,null,"",""]
[null,null,null,null,"",""]
[null,null,null,null,"",""]
[null,null,null,null,"",""]
[null,null,null,null,"",""]
[null,null,null,null,"",""]
[null,null,null,null,"",""]
[null,null,null,null,"",""]
[null,null,null,null,"",""]
[null,null,null,null,"",""]
[null,null,null,null,"",{"$f":"IF(E2629=\"\",\"\",D2629*E2629)","v":""}]
[null,null,null,null,"",""]
[null,null,null,null,"",""]
[null,null,null,null,"",""]
[null,null,null,null,"",""]
[null,null,null,null,"",""]
[null,null,null,null,"",""]
[null,null,null,null,"",""]
[null,null,null,null,"",""]
[null,null,null,null,"",""]
[null,null,null,null,"",""]
[null,null,null,null,"",""]
[null,null,null,null,"",""]
[null,null,null,null,"",""]
[null,null,null,null,"",""]
[null,null,null,null,"",""]
[null,null,null,null,"",""]
[null,null,null,null,"",""]
[null,null,null,null,"",""]
[null,null,null,null,"",""]
[null,null,null,null,"",""]
[null,null,null,null,"",""]
[null,null,null,null,"",""]
[null,null,null,null,"",""]
[null,null,null,null,"",""]
[null,null,null,null,"",""]
[null,null,null,null,"",""]
[null,null,null,null,"",""]
[null,null,null,null,"",""]
[null,null,null,null,"",""]
[null,null,null,null,"",""]
[null,null,null,null,"",""]
[null,null,null,null,"",""]
[null,null,null,null,"",""]
[null,null,null,null,"",""]
[null,null,null,null,"",""]
[null,null,null,null,"",""]
[null,null,null,null,"",""]
[null,null,null,null,"",""]
[null,null,null,null,{"$f":"IF(C2668=\"\",\"\",VLOOKUP(C2668,$J$4:$J$10,2,FALSE))","v":""},""]
[null,null,null,null,"",""]
[null,null,null,null,"",""]
[null,null,null,null,"",""]
[null,null,null,null,"",""]
[null,null,null,null,"",""]
[null,null,null,null,"",""]
[null,null,null,null,"",""]
[null,null,null,null,"",""]
[null,null,null,null,"",""]
[null,null,null,null,"",""]
[null,null,null,null,"",""]
[null,null,null,null,"",""]
[null,null,null,null,"",""]
[null,null,null,null,"",""]
[null,null,null,null,"",""]
[null,null,null,null,"",""]
[null,null,null,null,"",""]
[null,null,null,null,"",""]
[null,null,null,null,"",""]
[null,null,null,null,"",""]
[null,null,null,null,"",""]
[null,null,null,null,"",""]
[null,null,null,null,"",""]
[null,null,null,null,"",""]
[null,null,null,null,"",{"$f":"IF(E2693=\"\",\"\",D2693*E2693)","v":""}]
[null,null,null,null,"",""]
[null,null,null,null,"",""]
[null,null,null,null,"",""]
[null,null,null,null,"",""]
[null,null,null,null,"",""]
[null,null,null,null,"",""]
[null,null,null,null,"",""]
[null,null,null,null,"",""]
[null,null,null,null,"",""]
[null,null,null,null,"",""]
[null,null,null,null,"",""]
[null,null,null,null,"",""]
[null,null,null,null,"",""]
[null,null,null,null,"",""]
[null,null,null,null,"",""]
[null,null,null,null,"",""]
[null,null,null,null,"",""]
[null,null,null,null,"",""]
[null,null,null,null,"",""]
[null,null,null,null,"",""]
[null,null,null,null,"",""]
[null,null,null,null,"",""]
[null,null,null,null,"",""]
[null,null,null,null,"",""]
[null,null,null,null,"",""]
[null,null,null,null,"",""]
[null,null,null,null,"",""]
[null,null,null,null,"",""]
[null,null,null,null,"",""]
[null,null,null,null,"",""]
[null,null,null,null,"",""]
[null,null,null,null,"",""]
[null,null,null,null,"",""]
[null,null,null,null,"",""]
[null,null,null,null,"",""]
[null,null,null,null,"",""]
[null,null,null,null,"",""]
[null,null,null,null,"",""]
[null,null,null,null,{"$f":"IF(C2732=\"\",\"\",VLOOKUP(C2732,$J$4:$J$10,2,FALSE))","v":""},""]
[null,null,null,null,"",""]
[null,null,null,null,"",""]
[null,null,null,null,"",""]
[null,null,null,null,"",""]
[null,null,null,null,"",""]
[null,null,null,null,"",""]
[null,null,null,null,"",""]
[null,null,null,null,"",""]
[null,null,null,null,"",""]
[null,null,null,null,"",""]
[null,null,null,null,"",""]
[null,null,null,null,"",""]
[null,null,null,null,"",""]
[null,null,null,null,"",""]
[null,null,null,null,"",""]
[null,null,null,null,"",""]
[null,null,null,null,"",""]
[null,null,null,null,"",""]
[null,null,null,null,"",""]
[null,null,null,null,"",""]
[null,null,null,null,"",""]
[null,null,null,null,"",""]
[null,null,null,null,"",""]
[null,null,null,null,"",""]
[null,null,null,null,"",{"$f":"IF(E2757=\"\",\"\",D2757*E2757)","v":""}]
[null,null,null,null,"",""]
[null,null,null,null,"",""]
[null,null,null,null,"",""]
[null,null,null,null,"",""]
[null,null,null,null,"",""]
[null,null,null,null,"",""]
[null,null,null,null,"",""]
[null,null,null,null,"",""]
[null,null,null,null,"",""]
[null,null,null,null,"",""]
[null,null,null,null,"",""]
[null,null,null,null,"",""]
[null,null,null,null,"",""]
[null,null,null,null,"",""]
[null,null,null,null,"",""]
[null,null,null,null,"",""]
[null,null,null,null,"",""]
[null,null,null,null,"",""]
[null,null,null,null,"",""]
[null,null,null,null,"",""]
[null,null,null,null,"",""]
[null,null,null,null,"",""]
[null,null,null,null,"",""]
[null,null,null,null,"",""]
[null,null,null,null,"",""]
[null,null,null,null,"",""]
[null,null,null,null,"",""]
[null,null,null,null,"",""]
[null,null,null,null,"",""]
[null,null,null,null,"",""]
[null,null,null,null,"",""]
[null,null,null,null,"",""]
[null,null,null,null,"",""]
[null,null,null,null,"",""]
[null,null,null,null,"",""]
[null,null,null,null,"",""]
[null,null,null,null,"",""]
[null,null,null,null,"",""]
[null,null,null,null,{"$f":"IF(C2796=\"\",\"\",VLOOKUP(C2796,$J$4:$J$10,2,FALSE))","v":""},""]
[null,null,null,null,"",""]
[null,null,null,null,"",""]
[null,null,null,null,"",""]
[null,null,null,null,"",""]
[null,null,null,null,"",""]
[null,null,null,null,"",""]
[null,null,null,null,"",""]
[null,null,null,null,"",""]
[null,null,null,null,"",""]
[null,null,null,null,"",""]
[null,null,null,null,"",""]
[null,null,null,null,"",""]
[null,null,null,null,"",""]
[null,null,null,null,"",""]
[null,null,null,null,"",""]
[null,null,null,null,"",""]
[null,null,null,null,"",""]
[null,null,null,null,"",""]
[null,null,null,null,"",""]
[null,null,null,null,"",""]
[null,null,null,null,"",""]
[null,null,null,null,"",""]
[null,null,null,null,"",""]
[null,null,null,null,"",""]
[null,null,null,null,"",{"$f":"IF(E2821=\"\",\"\",D2821*E2821)","v":""}]
[null,null,null,null,"",""]
[null,null,null,null,"",""]
[null,null,null,null,"",""]
[null,null,null,null,"",""]
[null,null,null,null,"",""]
[null,null,null,null,"",""]
[null,null,null,null,"",""]
[null,null,null,null,"",""]
[null,null,null,null,"",""]
[null,null,null,null,"",""]
[null,null,null,null,"",""]
[null,null,null,null,"",""]
[null,null,null,null,"",""]
[null,null,null,null,"",""]
[null,null,null,null,"",""]
[null,null,null,null,"",""]
[null,null,null,null,"",""]
[null,null,null,null,"",""]
[null,null,null,null,"",""]
[null,null,null,null,"",""]
[null,null,null,null,"",""]
[null,null,null,null,"",""]
[null,null,null,null,"",""]
[null,null,null,null,"",""]
[null,null,null,null,"",""]
[null,null,null,null,"",""]
[null,null,null,null,"",""]
[null,null,null,null,"",""]
[null,null,null,null,"",""]
[null,null,null,null,"",""]
[null,null,null,null,"",""]
[null,null,null,null,"",""]
[null,null,null,null,"",""]
[null,null,null,null,"",""]
[null,null,null,null,"",""]
[null,null,null,null,"",""]
[null,null,null,null,"",""]
[null,null,null,null,"",""]
[null,null,null,null,{"$f":"IF(C2860=\"\",\"\",VLOOKUP(C2860,$J$4:$J$10,2,FALSE))","v":""},""]
[null,null,null,null,"",""]
[null,null,null,null,"",""]
[null,null,null,null,"",""]
[null,null,null,null,"",""]
[null,null,null,null,"",""]
[null,null,null,null,"",""]
[null,null,null,null,"",""]
[null,null,null,null,"",""]
[null,null,null,null,"",""]
[null,null,null,null,"",""]
[null,null,null,null,"",""]
[null,null,null,null,"",""]
[null,null,null,null,"",""]
[null,null,null,null,"",""]
[null,null,null,null,"",""]
[null,null,null,null,"",""]
[null,null,null,null,"",""]
[null,null,null,null,"",""]
[null,null,null,null,"",""]
[null,null,null,null,"",""]
[null,null,null,null,"",""]
[null,null,null,null,"",""]
[null,null,null,null,"",""]
[null,null,null,null,"",""]
[null,null,null,null,"",{"$f":"IF(E2885=\"\",\"\",D2885*E2885)","v":""}]
[null,null,null,null,"",""]
[null,null,null,null,"",""]
[null,null,null,null,"",""]
[null,null,null,null,"",""]
[null,null,null,null,"",""]
[null,null,null,null,"",""]
[null,null,null,null,"",""]
[null,null,null,null,"",""]
[null,null,null,null,"",""]
[null,null,null,null,"",""]
[null,null,null,null,"",""]
[null,null,null,null,"",""]
[null,null,null,null,"",""]
[null,null,null,null,"",""]
[null,null,null,null,"",""]
[null,null,null,null,"",""]
[null,null,null,null,"",""]
[null,null,null,null,"",""]
[null,null,null,null,"",""]
[null,null,null,null,"",""]
[null,null,null,null,"",""]
[null,null,null,null,"",""]
[null,null,null,null,"",""]
[null,null,null,null,"",""]
[null,null,null,null,"",""]
[null,null,null,null,"",""]
[null,null,null,null,"",""]
[null,null,null,null,"",""]
[null,null,null,null,"",""]
[null,null,null,null,"",""]
[null,null,null,null,"",""]
[null,null,null,null,"",""]
[null,null,null,null,"",""]
[null,null,null,null,"",""]
[null,null,null,null,"",""]
[null,null,null,null,"",""]
[null,null,null,null,"",""]
[null,null,null,null,"",""]
[null,null,null,null,{"$f":"IF(C2924=\"\",\"\",VLOOKUP(C2924,$J$4:$J$10,2,FALSE))","v":""},""]
[null,null,null,null,"",""]
[null,null,null,null,"",""]
[null,null,null,null,"",""]
[null,null,null,null,"",""]
[null,null,null,null,"",""]
[null,null,null,null,"",""]
[null,null,null,null,"",""]
[null,null,null,null,"",""]
[null,null,null,null,"",""]
[null,null,null,null,"",""]
[null,null,null,null,"",""]
[null,null,null,null,"",""]
[null,null,null,null,"",""]
[null,null,null,null,"",""]
[null,null,null,null,"",""]
[null,null,null,null,"",""]
[null,null,null,null,"",""]
[null,null,null,null,"",""]
[null,null,null,null,"",""]
[null,null,null,null,"",""]
[null,null,null,null,"",""]
[null,null,null,null,"",""]
[null,null,null,null,"",""]
[null,null,null,null,"",""]
[null,null,null,null,"",{"$f":"IF(E2949=\"\",\"\",D2949*E2949)","v":""}]
[null,null,null,null,"",""]
[null,null,null,null,"",""]
[null,null,null,null,"",""]
[null,null,null,null,"",""]
[null,null,null,null,"",""]
[null,null,null,null,"",""]
[null,null,null,null,"",""]
[null,null,null,null,"",""]
[null,null,null,null,"",""]
[null,null,null,null,"",""]
[null,null,null,null,"",""]
[null,null,null,null,"",""]
[null,null,null,null,"",""]
[null,null,null,null,"",""]
[null,null,null,null,"",""]
[null,null,null,null,"",""]
[null,null,null,null,"",""]
[null,null,null,null,"",""]
[null,null,null,null,"",""]
[null,null,null,null,"",""]
[null,null,null,null,"",""]
[null,null,null,null,"",""]
[null,null,null,null,"",""]
[null,null,null,null,"",""]
[null,null,null,null,"",""]
[null,null,null,null,"",""]
[null,null,null,null,"",""]
[null,null,null,null,"",""]
[null,null,null,null,"",""]
[null,null,null,null,"",""]
[null,null,null,null,"",""]
[null,null,null,null,"",""]
[null,null,null,null,"",""]
[null,null,null,null,"",""]
[null,null,null,null,"",""]
[null,null,null,null,"",""]
[null,null,null,null,"",""]
[null,null,null,null,"",""]
[null,null,null,null,{"$f":"IF(C2988=\"\",\"\",VLOOKUP(C2988,$J$4:$J$10,2,FALSE))","v":""},""]
[null,null,null,null,"",""]
[null,null,null,null,"",""]
[null,null,null,null,"",""]
[null,null,null,null,"",""]
[null,null,null,null,"",""]
[null,null,null,null,"",""]
[null,null,null,null,"",""]
[null,null,null,null,"",""]
[null,null,null,null,"",""]
[null,null,null,null,"",""]
[null,null,null,null,"",""]
[null,null,null,null,"",""]
[null,null,null,null,"",""]
[null,null,null,null,"",""]
[null,null,null,null,"",""]
[null,null,null,null,"",""]
[null,null,null,null,"",""]
[null,null,null,null,"",""]
[null,null,null,null,"",""]
[null,null,null,null,"",""]
[null,null,null,null,"",""]
[null,null,null,null,"",""]
[null,null,null,null,"",""]
[null,null,null,null,"",""]
[null,null,null,null,"",{"$f":"IF(E3013=\"\",\"\",D3013*E3013)","v":""}]
[null,null,null,null,"",""]
[null,null,null,null,"",""]
[null,null,null,null,"",""]
[null,null,null,null,"",""]
[null,null,null,null,"",""]
[null,null,null,null,"",""]
[null,null,null,null,"",""]
[null,null,null,null,"",""]
[null,null,null,null,"",""]
[null,null,null,null,"",""]
[null,null,null,null,"",""]
[null,null,null,null,"",""]
[null,null,null,null,"",""]
[null,null,null,null,"",""]
[null,null,null,null,"",""]
[null,null,null,null,"",""]
[null,null,null,null,"",""]
[null,null,null,null,"",""]
[null,null,null,null,"",""]
[null,null,null,null,"",""]
[null,null,null,null,"",""]
[null,null,null,null,"",""]
[null,null,null,null,"",""]
[null,null,null,null,"",""]
[null,null,null,null,"",""]
[null,null,null,null,"",""]
[null,null,null,null,"",""]
[null,null,null,null,"",""]
[null,null,null,null,"",""]
[null,null,null,null,"",""]
[null,null,null,null,"",""]
[null,null,null,null,"",""]
[null,null,null,null,"",""]
[null,null,null,null,"",""]
[null,null,null,null,"",""]
[null,null,null,null,"",""]
[null,null,null,null,"",""]
[null,null,null,null,"",""]
[null,null,null,null,{"$f":"IF(C3052=\"\",\"\",VLOOKUP(C3052,$J$4:$J$10,2,FALSE))","v":""},""]
[null,null,null,null,"",""]
[null,null,null,null,"",""]
[null,null,null,null,"",""]
[null,null,null,null,"",""]
[null,null,null,null,"",""]
[null,null,null,null,"",""]
[null,null,null,null,"",""]
[null,null,null,null,"",""]
[null,null,null,null,"",""]
[null,null,null,null,"",""]
[null,null,null,null,"",""]
[null,null,null,null,"",""]
[null,null,null,null,"",""]
[null,null,null,null,"",""]
[null,null,null,null,"",""]
[null,null,null,null,"",""]
[null,null,null,null,"",""]
[null,null,null,null,"",""]
[null,null,null,null,"",""]
[null,null,null,null,"",""]
[null,null,null,null,"",""]
[null,null,null,null,"",""]
[null,null,null,null,"",""]
[null,null,null,null,"",""]
[null,null,null,null,"",{"$f":"IF(E3077=\"\",\"\",D3077*E3077)","v":""}]
[null,null,null,null,"",""]
[null,null,null,null,"",""]
[null,null,null,null,"",""]
[null,null,null,null,"",""]
[null,null,null,null,"",""]
[null,null,null,null,"",""]
[null,null,null,null,"",""]
[null,null,null,null,"",""]
[null,null,null,null,"",""]
[null,null,null,null,"",""]
[null,null,null,null,"",""]
[null,null,null,null,"",""]
[null,null,null,null,"",""]
[null,null,null,null,"",""]
[null,null,null,null,"",""]
[null,null,null,null,"",""]
[null,null,null,null,"",""]
[null,null,null,null,"",""]
[null,null,null,null,"",""]
[null,null,null,null,"",""]
[null,null,null,null,"",""]
[null,null,null,null,"",""]
[null,null,null,null,"",""]
[null,null,null,null,"",""]
[null,null,null,null,"",""]
[null,null,null,null,"",""]
[null,null,null,null,"",""]
[null,null,null,null,"",""]
[null,null,null,null,"",""]
[null,null,null,null,"",""]
[null,null,null,null,"",""]
[null,null,null,null,"",""]
[null,null,null,null,"",""]
[null,null,null,null,"",""]
[null,null,null,null,"",""]
[null,null,null,null,"",""]
[null,null,null,null,"",""]
[null,null,null,null,"",""]
[null,null,null,null,{"$f":"IF(C3116=\"\",\"\",VLOOKUP(C3116,$J$4:$J$10,2,FALSE))","v":""},""]
[null,null,null,null,"",""]
[null,null,null,null,"",""]
[null,null,null,null,"",""]
[null,null,null,null,"",""]
[null,null,null,null,"",""]
[null,null,null,null,"",""]
[null,null,null,null,"",""]
[null,null,null,null,"",""]
[null,null,null,null,"",""]
[null,null,null,null,"",""]
[null,null,null,null,"",""]
[null,null,null,null,"",""]
[null,null,null,null,"",""]
[null,null,null,null,"",""]
[null,null,null,null,"",""]
[null,null,null,null,"",""]
[null,null,null,null,"",""]
[null,null,null,null,"",""]
[null,null,null,null,"",""]
[null,null,null,null,"",""]
[null,null,null,null,"",""]
[null,null,null,null,"",""]
[null,null,null,null,"",""]
[null,null,null,null,"",""]
[null,null,null,null,"",{"$f":"IF(E3141=\"\",\"\",D3141*E3141)","v":""}]
[null,null,null,null,"",""]
[null,null,null,null,"",""]
[null,null,null,null,"",""]
[null,null,null,null,"",""]
[null,null,null,null,"",""]
[null,null,null,null,"",""]
[null,null,null,null,"",""]
[null,null,null,null,"",""]
[null,null,null,null,"",""]
[null,null,null,null,"",""]
[null,null,null,null,"",""]
[null,null,null,null,"",""]
[null,null,null,null,"",""]
[null,null,null,null,"",""]
[null,null,null,null,"",""]
[null,null,null,null,"",""]
[null,null,null,null,"",""]
[null,null,null,null,"",""]
[null,null,null,null,"",""]
[null,null,null,null,"",""]
[null,null,null,null,"",""]
[null,null,null,null,"",""]
[null,null,null,null,"",""]
[null,null,null,null,"",""]
[null,null,null,null,"",""]
[null,null,null,null,"",""]
[null,null,null,null,"",""]
[null,null,null,null,"",""]
[null,null,null,null,"",""]
[null,null,null,null,"",""]
[null,null,null,null,"",""]
[null,null,null,null,"",""]
[null,null,null,null,"",""]
[null,null,null,null,"",""]
[null,null,null,null,"",""]
[null,null,null,null,"",""]
[null,null,null,null,"",""]
[null,null,null,null,"",""]
[null,null,null,null,{"$f":"IF(C3180=\"\",\"\",VLOOKUP(C3180,$J$4:$J$10,2,FALSE))","v":""},""]
[null,null,null,null,"",""]
[null,null,null,null,"",""]
[null,null,null,null,"",""]
[null,null,null,null,"",""]
[null,null,null,null,"",""]
[null,null,null,null,"",""]
[null,null,null,null,"",""]
[null,null,null,null,"",""]
[null,null,null,null,"",""]
[null,null,null,null,"",""]
[null,null,null,null,"",""]
[null,null,null,null,"",""]
[null,null,null,null,"",""]
[null,null,null,null,"",""]
[null,null,null,null,"",""]
[null,null,null,null,"",""]
[null,null,null,null,"",""]
[null,null,null,null,"",""]
[null,null,null,null,"",""]
[null,null,null,null,"",""]
[null,null,null,null,"",""]
[null,null,null,null,"",""]
[null,null,null,null,"",""]
[null,null,null,null,"",""]
[null,null,null,null,"",{"$f":"IF(E3205=\"\",\"\",D3205*E3205)","v":""}]
[null,null,null,null,"",""]
[null,null,null,null,"",""]
[null,null,null,null,"",""]
[null,null,null,null,"",""]
[null,null,null,null,"",""]
[null,null,null,null,"",""]
[null,null,null,null,"",""]
[null,null,null,null,"",""]
[null,null,null,null,"",""]
[null,null,null,null,"",""]
[null,null,null,null,"",""]
[null,null,null,null,"",""]
[null,null,null,null,"",""]
[null,null,null,null,"",""]
[null,null,null,null,"",""]
[null,null,null,null,"",""]
[null,null,null,null,"",""]
[null,null,null,null,"",""]
[null,null,null,null,"",""]
[null,null,null,null,"",""]
[null,null,null,null,"",""]
[null,null,null,null,"",""]
[null,null,null,null,"",""]
[null,null,null,null,"",""]
[null,null,null,null,"",""]
[null,null,null,null,"",""]
[null,null,null,null,"",""]
[null,null,null,null,"",""]
[null,null,null,null,"",""]
[null,null,null,null,"",""]
[null,null,null,null,"",""]
[null,null,null,null,"",""]
[null,null,null,null,"",""]
[null,null,null,null,"",""]
[null,null,null,null,"",""]
[null,null,null,null,"",""]
[null,null,null,null,"",""]
[null,null,null,null,"",""]
[null,null,null,null,{"$f":"IF(C3244=\"\",\"\",VLOOKUP(C3244,$J$4:$J$10,2,FALSE))","v":""},""]
[null,null,null,null,"",""]
[null,null,null,null,"",""]
[null,null,null,null,"",""]
[null,null,null,null,"",""]
[null,null,null,null,"",""]
[null,null,null,null,"",""]
[null,null,null,null,"",""]
[null,null,null,null,"",""]
[null,null,null,null,"",""]
[null,null,null,null,"",""]
[null,null,null,null,"",""]
[null,null,null,null,"",""]
[null,null,null,null,"",""]
[null,null,null,null,"",""]
[null,null,null,null,"",""]
[null,null,null,null,"",""]
[null,null,null,null,"",""]
[null,null,null,null,"",""]
[null,null,null,null,"",""]
[null,null,null,null,"",""]
[null,null,null,null,"",""]
[null,null,null,null,"",""]
[null,null,null,null,"",""]
[null,null,null,null,"",""]
[null,null,null,null,"",{"$f":"IF(E3269=\"\",\"\",D3269*E3269)","v":""}]
[null,null,null,null,"",""]
[null,null,null,null,"",""]
[null,null,null,null,"",""]
[null,null,null,null,"",""]
[null,null,null,null,"",""]
[null,null,null,null,"",""]
[null,null,null,null,"",""]
[null,null,null,null,"",""]
[null,null,null,null,"",""]
[null,null,null,null,"",""]
[null,null,null,null,"",""]
[null,null,null,null,"",""]
[null,null,null,null,"",""]
[null,null,null,null,"",""]
[null,null,null,null,"",""]
[null,null,null,null,"",""]
[null,null,null,null,"",""]
[null,null,null,null,"",""]
[null,null,null,null,"",""]
[null,null,null,null,"",""]
[null,null,null,null,"",""]
[null,null,null,null,"",""]
[null,null,null,null,"",""]
[null,null,null,null,"",""]
[null,null,null,null,"",""]
[null,null,null,null,"",""]
[null,null,null,null,"",""]
[null,null,null,null,"",""]
[null,null,null,null,"",""]
[null,null,null,null,"",""]
[null,null,null,null,"",""]
[null,null,null,null,"",""]
[null,null,null,null,"",""]
[null,null,null,null,"",""]
[null,null,null,null,"",""]
[null,null,null,null,"",""]
[null,null,null,null,"",""]
[null,null,null,null,"",""]
[null,null,null,null,{"$f":"IF(C3308=\"\",\"\",VLOOKUP(C3308,$J$4:$J$10,2,FALSE))","v":""},""]
[null,null,null,null,"",""]
[null,null,null,null,"",""]
[null,null,null,null,"",""]
[null,null,null,null,"",""]
[null,null,null,null,"",""]
[null,null,null,null,"",""]
[null,null,null,null,"",""]
[null,null,null,null,"",""]
[null,null,null,null,"",""]
[null,null,null,null,"",""]
[null,null,null,null,"",""]
[null,null,null,null,"",""]
[null,null,null,null,"",""]
[null,null,null,null,"",""]
[null,null,null,null,"",""]
[null,null,null,null,"",""]
[null,null,null,null,"",""]
[null,null,null,null,"",""]
[null,null,null,null,"",""]
[null,null,null,null,"",""]
[null,null,null,null,"",""]
[null,null,null,null,"",""]
[null,null,null,null,"",""]
[null,null,null,null,"",""]
[null,null,null,null,"",{"$f":"IF(E3333=\"\",\"\",D3333*E3333)","v":""}]
[null,null,null,null,"",""]
[null,null,null,null,"",""]
[null,null,null,null,"",""]
[null,null,null,null,"",""]
[null,null,null,null,"",""]
[null,null,null,null,"",""]
[null,null,null,null,"",""]
[null,null,null,null,"",""]
[null,null,null,null,"",""]
[null,null,null,null,"",""]
[null,null,null,null,"",""]
[null,null,null,null,"",""]
[null,null,null,null,"",""]
[null,null,null,null,"",""]
[null,null,null,null,"",""]
[null,null,null,null,"",""]
[null,null,null,null,"",""]
[null,null,null,null,"",""]
[null,null,null,null,"",""]
[null,null,null,null,"",""]
[null,null,null,null,"",""]
[null,null,null,null,"",""]
[null,null,null,null,"",""]
[null,null,null,null,"",""]
[null,null,null,null,"",""]
[null,null,null,null,"",""]
[null,null,null,null,"",""]
[null,null,null,null,"",""]
[null,null,null,null,"",""]
[null,null,null,null,"",""]
[null,null,null,null,"",""]
[null,null,null,null,"",""]
[null,null,null,null,"",""]
[null,null,null,null,"",""]
[null,null,null,null,"",""]
[null,null,null,null,"",""]
[null,null,null,null,"",""]
[null,null,null,null,"",""]
[null,null,null,null,{"$f":"IF(C3372=\"\",\"\",VLOOKUP(C3372,$J$4:$J$10,2,FALSE))","v":""},""]
[null,null,null,null,"",""]
[null,null,null,null,"",""]
[null,null,null,null,"",""]
[null,null,null,null,"",""]
[null,null,null,null,"",""]
[null,null,null,null,"",""]
[null,null,null,null,"",""]
[null,null,null,null,"",""]
[null,null,null,null,"",""]
[null,null,null,null,"",""]
[null,null,null,null,"",""]
[null,null,null,null,"",""]
[null,null,null,null,"",""]
[null,null,null,null,"",""]
[null,null,null,null,"",""]
[null,null,null,null,"",""]
[null,null,null,null,"",""]
[null,null,null,null,"",""]
[null,null,null,null,"",""]
[null,null,null,null,"",""]
[null,null,null,null,"",""]
[null,null,null,null,"",""]
[null,null,null,null,"",""]
[null,null,null,null,"",""]
[null,null,null,null,"",{"$f":"IF(E3397=\"\",\"\",D3397*E3397)","v":""}]
[null,null,null,null,"",""]
[null,null,null,null,"",""]
[null,null,null,null,"",""]
[null,null,null,null,"",""]
[null,null,null,null,"",""]
[null,null,null,null,"",""]
[null,null,null,null,"",""]
[null,null,null,null,"",""]
[null,null,null,null,"",""]
[null,null,null,null,"",""]
[null,null,null,null,"",""]
[null,null,null,null,"",""]
[null,null,null,null,"",""]
[null,null,null,null,"",""]
[null,null,null,null,"",""]
[null,null,null,null,"",""]
[null,null,null,null,"",""]
[null,null,null,null,"",""]
[null,null,null,null,"",""]
[null,null,null,null,"",""]
[null,null,null,null,"",""]
[null,null,null,null,"",""]
[null,null,null,null,"",""]
[null,null,null,null,"",""]
[null,null,null,null,"",""]
[null,null,null,null,"",""]
[null,null,null,null,"",""]
[null,null,null,null,"",""]
[null,null,null,null,"",""]
[null,null,null,null,"",""]
[null,null,null,null,"",""]
[null,null,null,null,"",""]
[null,null,null,null,"",""]
[null,null,null,null,"",""]
[null,null,null,null,"",""]
[null,null,null,null,"",""]
[null,null,null,null,"",""]
[null,null,null,null,"",""]
[null,null,null,null,{"$f":"IF(C3436=\"\",\"\",VLOOKUP(C3436,$J$4:$J$10,2,FALSE))","v":""},""]
[null,null,null,null,"",""]
[null,null,null,null,"",""]
[null,null,null,null,"",""]
[null,null,null,null,"",""]
[null,null,null,null,"",""]
[null,null,null,null,"",""]
[null,null,null,null,"",""]
[null,null,null,null,"",""]
[null,null,null,null,"",""]
[null,null,null,null,"",""]
[null,null,null,null,"",""]
[null,null,null,null,"",""]
[null,null,null,null,"",""]
[null,null,null,null,"",""]
[null,null,null,null,"",""]
[null,null,null,null,"",""]
[null,null,null,null,"",""]
[null,null,null,null,"",""]
[null,null,null,null,"",""]
[null,null,null,null,"",""]
[null,null,null,null,"",""]
[null,null,null,null,"",""]
[null,null,null,null,"",""]
[null,null,null,null,"",""]
[null,null,null,null,"",{"$f":"IF(E3461=\"\",\"\",D3461*E3461)","v":""}]
[null,null,null,null,"",""]
[null,null,null,null,"",""]
[null,null,null,null,"",""]
[null,null,null,null,"",""]
[null,null,null,null,"",""]
[null,null,null,null,"",""]
[null,null,null,null,"",""]
[null,null,null,null,"",""]
[null,null,null,null,"",""]
[null,null,null,null,"",""]
[null,null,null,null,"",""]
[null,null,null,null,"",""]
[null,null,null,null,"",""]
[null,null,null,null,"",""]
[null,null,null,null,"",""]
[null,null,null,null,"",""]
[null,null,null,null,"",""]
[null,null,null,null,"",""]
[null,null,null,null,"",""]
[null,null,null,null,"",""]
[null,null,null,null,"",""]
[null,null,null,null,"",""]
[null,null,null,null,"",""]
[null,null,null,null,"",""]
[null,null,null,null,"",""]
[null,null,null,null,"",""]
[null,null,null,null,"",""]
[null,null,null,null,"",""]
[null,null,null,null,"",""]
[null,null,null,null,"",""]
[null,null,null,null,"",""]
[null,null,null,null,"",""]
[null,null,null,null,"",""]
[null,null,null,null,"",""]
[null,null,null,null,"",""]
[null,null,null,null,"",""]
[null,null,null,null,"",""]
[null,null,null,null,"",""]
[null,null,null,null,{"$f":"IF(C3500=\"\",\"\",VLOOKUP(C3500,$J$4:$J$10,2,FALSE))","v":""},""]
[null,null,null,null,"",""]
[null,null,null,null,"",""]
[null,null,null,null,"",""]
[null,null,null,null,"",""]
[null,null,null,null,"",""]
[null,null,null,null,"",""]
[null,null,null,null,"",""]
[null,null,null,null,"",""]
[null,null,null,null,"",""]
[null,null,null,null,"",""]
[null,null,null,null,"",""]
[null,null,null,null,"",""]
[null,null,null,null,"",""]
[null,null,null,null,"",""]
[null,null,null,null,"",""]
[null,null,null,null,"",""]
[null,null,null,null,"",""]
[null,null,null,null,"",""]
[null,null,null,null,"",""]
[null,null,null,null,"",""]
[null,null,null,null,"",""]
[null,null,null,null,"",""]
[null,null,null,null,"",""]
[null,null,null,null,"",""]
[null,null,null,null,"",{"$f":"IF(E3525=\"\",\"\",D3525*E3525)","v":""}]
[null,null,null,null,"",""]
[null,null,null,null,"",""]
[null,null,null,null,"",""]
[null,null,null,null,"",""]
[null,null,null,null,"",""]
[null,null,null,null,"",""]
[null,null,null,null,"",""]
[null,null,null,null,"",""]
[null,null,null,null,"",""]
[null,null,null,null,"",""]
[null,null,null,null,"",""]
[null,null,null,null,"",""]
[null,null,null,null,"",""]
[null,null,null,null,"",""]
[null,null,null,null,"",""]
[null,null,null,null,"",""]
[null,null,null,null,"",""]
[null,null,null,null,"",""]
[null,null,null,null,"",""]
[null,null,null,null,"",""]
[null,null,null,null,"",""]
[null,null,null,null,"",""]
[null,null,null,null,"",""]
[null,null,null,null,"",""]
[null,null,null,null,"",""]
[null,null,null,null,"",""]
[null,null,null,null,"",""]
[null,null,null,null,"",""]
[null,null,null,null,"",""]
[null,null,null,null,"",""]
[null,null,null,null,"",""]
[null,null,null,null,"",""]
[null,null,null,null,"",""]
[null,null,null,null,"",""]
[null,null,null,null,"",""]
[null,null,null,null,"",""]
[null,null,null,null,"",""]
[null,null,null,null,"",""]
[null,null,null,null,{"$f":"IF(C3564=\"\",\"\",VLOOKUP(C3564,$J$4:$J$10,2,FALSE))","v":""},""]
[null,null,null,null,"",""]
[null,null,null,null,"",""]
[null,null,null,null,"",""]
[null,null,null,null,"",""]
[null,null,null,null,"",""]
[null,null,null,null,"",""]
[null,null,null,null,"",""]
[null,null,null,null,"",""]
[null,null,null,null,"",""]
[null,null,null,null,"",""]
[null,null,null,null,"",""]
[null,null,null,null,"",""]
[null,null,null,null,"",""]
[null,null,null,null,"",""]
[null,null,null,null,"",""]
[null,null,null,null,"",""]
[null,null,null,null,"",""]
[null,null,null,null,"",""]
[null,null,null,null,"",""]
[null,null,null,null,"",""]
[null,null,null,null,"",""]
[null,null,null,null,"",""]
[null,null,null,null,"",""]
[null,null,null,null,"",""]
[null,null,null,null,"",{"$f":"IF(E3589=\"\",\"\",D3589*E3589)","v":""}]
[null,null,null,null,"",""]
[null,null,null,null,"",""]
[null,null,null,null,"",""]
[null,null,null,null,"",""]
[null,null,null,null,"",""]
[null,null,null,null,"",""]
[null,null,null,null,"",""]
[null,null,null,null,"",""]
[null,null,null,null,"",""]
[null,null,null,null,"",""]
[null,null,null,null,"",""]
[null,null,null,null,"",""]
[null,null,null,null,"",""]
[null,null,null,null,"",""]
[null,null,null,null,"",""]
[null,null,null,null,"",""]
[null,null,null,null,"",""]
[null,null,null,null,"",""]
[null,null,null,null,"",""]
[null,null,null,null,"",""]
[null,null,null,null,"",""]
[null,null,null,null,"",""]
[null,null,null,null,"",""]
[null,null,null,null,"",""]
[null,null,null,null,"",""]
[null,null,null,null,"",""]
[null,null,null,null,"",""]
[null,null,null,null,"",""]
[null,null,null,null,"",""]
[null,null,null,null,"",""]
[null,null,null,null,"",""]
[null,null,null,null,"",""]
[null,null,null,null,"",""]
[null,null,null,null,"",""]
[null,null,null,null,"",""]
[null,null,null,null,"",""]
[null,null,null,null,"",""]
[null,null,null,null,"",""]
[null,null,null,null,{"$f":"IF(C3628=\"\",\"\",VLOOKUP(C3628,$J$4:$J$10,2,FALSE))","v":""},""]
[null,null,null,null,"",""]
[null,null,null,null,"",""]
[null,null,null,null,"",""]
[null,null,null,null,"",""]
[null,null,null,null,"",""]
[null,null,null,null,"",""]
[null,null,null,null,"",""]
[null,null,null,null,"",""]
[null,null,null,null,"",""]
[null,null,null,null,"",""]
[null,null,null,null,"",""]
[null,null,null,null,"",""]
[null,null,null,null,"",""]
[null,null,null,null,"",""]
[null,null,null,null,"",""]
[null,null,null,null,"",""]
[null,null,null,null,"",""]
[null,null,null,null,"",""]
[null,null,null,null,"",""]
[null,null,null,null,"",""]
[null,null,null,null,"",""]
[null,null,null,null,"",""]
[null,null,null,null,"",""]
[null,null,null,null,"",""]
[null,null,null,null,"",{"$f":"IF(E3653=\"\",\"\",D3653*E3653)","v":""}]
[null,null,null,null,"",""]
[null,null,null,null,"",""]
[null,null,null,null,"",""]
[null,null,null,null,"",""]
[null,null,null,null,"",""]
[null,null,null,null,"",""]
[null,null,null,null,"",""]
[null,null,null,null,"",""]
[null,null,null,null,"",""]
[null,null,null,null,"",""]
[null,null,null,null,"",""]
[null,null,null,null,"",""]
[null,null,null,null,"",""]
[null,null,null,null,"",""]
[null,null,null,null,"",""]
[null,null,null,null,"",""]
[null,null,null,null,"",""]
[null,null,null,null,"",""]
[null,null,null,null,"",""]
[null,null,null,null,"",""]
[null,null,null,null,"",""]
[null,null,null,null,"",""]
[null,null,null,null,"",""]
[null,null,null,null,"",""]
[null,null,null,null,"",""]
[null,null,null,null,"",""]
[null,null,null,null,"",""]
[null,null,null,null,"",""]
[null,null,null,null,"",""]
[null,null,null,null,"",""]
[null,null,null,null,"",""]
[null,null,null,null,"",""]
[null,null,null,null,"",""]
[null,null,null,null,"",""]
[null,null,null,null,"",""]
[null,null,null,null,"",""]
[null,null,null,null,"",""]
[null,null,null,null,"",""]
[null,null,null,null,{"$f":"IF(C3692=\"\",\"\",VLOOKUP(C3692,$J$4:$J$10,2,FALSE))","v":""},""]
[null,null,null,null,"",""]
[null,null,null,null,"",""]
[null,null,null,null,"",""]
[null,null,null,null,"",""]
[null,null,null,null,"",""]
[null,null,null,null,"",""]
[null,null,null,null,"",""]
[null,null,null,null,"",""]
[null,null,null,null,"",""]
[null,null,null,null,"",""]
[null,null,null,null,"",""]
[null,null,null,null,"",""]
[null,null,null,null,"",""]
[null,null,null,null,"",""]
[null,null,null,null,"",""]
[null,null,null,null,"",""]
[null,null,null,null,"",""]
[null,null,null,null,"",""]
[null,null,null,null,"",""]
[null,null,null,null,"",""]
[null,null,null,null,"",""]
[null,null,null,null,"",""]
[null,null,null,null,"",""]
[null,null,null,null,"",""]
[null,null,null,null,"",{"$f":"IF(E3717=\"\",\"\",D3717*E3717)","v":""}]
[null,null,null,null,"",""]
[null,null,null,null,"",""]
[null,null,null,null,"",""]
[null,null,null,null,"",""]
[null,null,null,null,"",""]
[null,null,null,null,"",""]
[null,null,null,null,"",""]
[null,null,null,null,"",""]
[null,null,null,null,"",""]
[null,null,null,null,"",""]
[null,null,null,null,"",""]
[null,null,null,null,"",""]
[null,null,null,null,"",""]
[null,null,null,null,"",""]
[null,null,null,null,"",""]
[null,null,null,null,"",""]
[null,null,null,null,"",""]
[null,null,null,null,"",""]
[null,null,null,null,"",""]
[null,null,null,null,"",""]
[null,null,null,null,"",""]
[null,null,null,null,"",""]
[null,null,null,null,"",""]
[null,null,null,null,"",""]
[null,null,null,null,"",""]
[null,null,null,null,"",""]
[null,null,null,null,"",""]
[null,null,null,null,"",""]
[null,null,null,null,"",""]
[null,null,null,null,"",""]
[null,null,null,null,"",""]
[null,null,null,null,"",""]
[null,null,null,null,"",""]
[null,null,null,null,"",""]
[null,null,null,null,"",""]
[null,null,null,null,"",""]
[null,null,null,null,"",""]
[null,null,null,null,"",""]
[null,null,null,null,{"$f":"IF(C3756=\"\",\"\",VLOOKUP(C3756,$J$4:$J$10,2,FALSE))","v":""},""]
[null,null,null,null,"",""]
[null,null,null,null,"",""]
[null,null,null,null,"",""]
[null,null,null,null,"",""]
[null,null,null,null,"",""]
[null,null,null,null,"",""]
[null,null,null,null,"",""]
[null,null,null,null,"",""]
[null,null,null,null,"",""]
[null,null,null,null,"",""]
[null,null,null,null,"",""]
[null,null,null,null,"",""]
[null,null,null,null,"",""]
[null,null,null,null,"",""]
[null,null,null,null,"",""]
[null,null,null,null,"",""]
[null,null,null,null,"",""]
[null,null,null,null,"",""]
[null,null,null,null,"",""]
[null,null,null,null,"",""]
[null,null,null,null,"",""]
[null,null,null,null,"",""]
[null,null,null,null,"",""]
[null,null,null,null,"",""]
[null,null,null,null,"",{"$f":"IF(E3781=\"\",\"\",D3781*E3781)","v":""}]
[null,null,null,null,"",""]
[null,null,null,null,"",""]
[null,null,null,null,"",""]
[null,null,null,null,"",""]
[null,null,null,null,"",""]
[null,null,null,null,"",""]
[null,null,null,null,"",""]
[null,null,null,null,"",""]
[null,null,null,null,"",""]
[null,null,null,null,"",""]
[null,null,null,null,"",""]
[null,null,null,null,"",""]
[null,null,null,null,"",""]
[null,null,null,null,"",""]
[null,null,null,null,"",""]
[null,null,null,null,"",""]
[null,null,null,null,"",""]
[null,null,null,null,"",""]
[null,null,null,null,"",""]
[null,null,null,null,"",""]
[null,null,null,null,"",""]
[null,null,null,null,"",""]
[null,null,null,null,"",""]
[null,null,null,null,"",""]
[null,null,null,null,"",""]
[null,null,null,null,"",""]
[null,null,null,null,"",""]
[null,null,null,null,"",""]
[null,null,null,null,"",""]
[null,null,null,null,"",""]
[null,null,null,null,"",""]
[null,null,null,null,"",""]
[null,null,null,null,"",""]
[null,null,null,null,"",""]
[null,null,null,null,"",""]
[null,null,null,null,"",""]
[null,null,null,null,"",""]
[null,null,null,null,"",""]
[null,null,null,null,{"$f":"IF(C3820=\"\",\"\",VLOOKUP(C3820,$J$4:$J$10,2,FALSE))","v":""},""]
[null,null,null,null,"",""]
[null,null,null,null,"",""]
[null,null,null,null,"",""]
[null,null,null,null,"",""]
[null,null,null,null,"",""]
[null,null,null,null,"",""]
[null,null,null,null,"",""]
[null,null,null,null,"",""]
[null,null,null,null,"",""]
[null,null,null,null,"",""]
[null,null,null,null,"",""]
[null,null,null,null,"",""]
[null,null,null,null,"",""]
[null,null,null,null,"",""]
[null,null,null,null,"",""]
[null,null,null,null,"",""]
[null,null,null,null,"",""]
[null,null,null,null,"",""]
[null,null,null,null,"",""]
[null,null,null,null,"",""]
[null,null,null,null,"",""]
[null,null,null,null,"",""]
[null,null,null,null,"",""]
[null,null,null,null,"",""]
[null,null,null,null,"",{"$f":"IF(E3845=\"\",\"\",D3845*E3845)","v":""}]
[null,null,null,null,"",""]
[null,null,null,null,"",""]
[null,null,null,null,"",""]
[null,null,null,null,"",""]
[null,null,null,null,"",""]
[null,null,null,null,"",""]
[null,null,null,null,"",""]
[null,null,null,null,"",""]
[null,null,null,null,"",""]
[null,null,null,null,"",""]
[null,null,null,null,"",""]
[null,null,null,null,"",""]
[null,null,null,null,"",""]
[null,null,null,null,"",""]
[null,null,null,null,"",""]
[null,null,null,null,"",""]
[null,null,null,null,"",""]
[null,null,null,null,"",""]
[null,null,null,null,"",""]
[null,null,null,null,"",""]
[null,null,null,null,"",""]
[null,null,null,null,"",""]
[null,null,null,null,"",""]
[null,null,null,null,"",""]
[null,null,null,null,"",""]
[null,null,null,null,"",""]
[null,null,null,null,"",""]
[null,null,null,null,"",""]
[null,null,null,null,"",""]
[null,null,null,null,"",""]
[null,null,null,null,"",""]
[null,null,null,null,"",""]
[null,null,null,null,"",""]
[null,null,null,null,"",""]
[null,null,null,null,"",""]
[null,null,null,null,"",""]
[null,null,null,null,"",""]
[null,null,null,null,"",""]
[null,null,null,null,{"$f":"IF(C3884=\"\",\"\",VLOOKUP(C3884,$J$4:$J$10,2,FALSE))","v":""},""]
[null,null,null,null,"",""]
[null,null,null,null,"",""]
[null,null,null,null,"",""]
[null,null,null,null,"",""]
[null,null,null,null,"",""]
[null,null,null,null,"",""]
[null,null,null,null,"",""]
[null,null,null,null,"",""]
[null,null,null,null,"",""]
[null,null,null,null,"",""]
[null,null,null,null,"",""]
[null,null,null,null,"",""]
[null,null,null,null,"",""]
[null,null,null,null,"",""]
[null,null,null,null,"",""]
[null,null,null,null,"",""]
[null,null,null,null,"",""]
[null,null,null,null,"",""]
[null,null,null,null,"",""]
[null,null,null,null,"",""]
[null,null,null,null,"",""]
[null,null,null,null,"",""]
[null,null,null,null,"",""]
[null,null,null,null,"",""]
[null,null,null,null,"",{"$f":"IF(E3909=\"\",\"\",D3909*E3909)","v":""}]
[null,null,null,null,"",""]
[null,null,null,null,"",""]
[null,null,null,null,"",""]
[null,null,null,null,"",""]
[null,null,null,null,"",""]
[null,null,null,null,"",""]
[null,null,null,null,"",""]
[null,null,null,null,"",""]
[null,null,null,null,"",""]
[null,null,null,null,"",""]
[null,null,null,null,"",""]
[null,null,null,null,"",""]
[null,null,null,null,"",""]
[null,null,null,null,"",""]
[null,null,null,null,"",""]
[null,null,null,null,"",""]
[null,null,null,null,"",""]
[null,null,null,null,"",""]
[null,null,null,null,"",""]
[null,null,null,null,"",""]
[null,null,null,null,"",""]
[null,null,null,null,"",""]
[null,null,null,null,"",""]
[null,null,null,null,"",""]
[null,null,null,null,"",""]
[null,null,null,null,"",""]
[null,null,null,null,"",""]
[null,null,null,null,"",""]
[null,null,null,null,"",""]
[null,null,null,null,"",""]
[null,null,null,null,"",""]
[null,null,null,null,"",""]
[null,null,null,null,"",""]
[null,null,null,null,"",""]
[null,null,null,null,"",""]
[null,null,null,null,"",""]
[null,null,null,null,"",""]
[null,null,null,null,"",""]
[null,null,null,null,{"$f":"IF(C3948=\"\",\"\",VLOOKUP(C3948,$J$4:$J$10,2,FALSE))","v":""},""]
[null,null,null,null,"",""]
[null,null,null,null,"",""]
[null,null,null,null,"",""]
[null,null,null,null,"",""]
[null,null,null,null,"",""]
[null,null,null,null,"",""]
[null,null,null,null,"",""]
[null,null,null,null,"",""]
[null,null,null,null,"",""]
[null,null,null,null,"",""]
[null,null,null,null,"",""]
[null,null,null,null,"",""]
[null,null,null,null,"",""]
[null,null,null,null,"",""]
[null,null,null,null,"",""]
[null,null,null,null,"",""]
[null,null,null,null,"",""]
[null,null,null,null,"",""]
[null,null,null,null,"",""]
[null,null,null,null,"",""]
[null,null,null,null,"",""]
[null,null,null,null,"",""]
[null,null,null,null,"",""]
[null,null,null,null,"",""]
[null,null,null,null,"",{"$f":"IF(E3973=\"\",\"\",D3973*E3973)","v":""}]
[null,null,null,null,"",""]
[null,null,null,null,"",""]
[null,null,null,null,"",""]
[null,null,null,null,"",""]
[null,null,null,null,"",""]
[null,null,null,null,"",""]
[null,null,null,null,"",""]
[null,null,null,null,"",""]
[null,null,null,null,"",""]
[null,null,null,null,"",""]
[null,null,null,null,"",""]
[null,null,null,null,"",""]
[null,null,null,null,"",""]
[null,null,null,null,"",""]
[null,null,null,null,"",""]
[null,null,null,null,"",""]
[null,null,null,null,"",""]
[null,null,null,null,"",""]
[null,null,null,null,"",""]
[null,null,null,null,"",""]
[null,null,null,null,"",""]
[null,null,null,null,"",""]
[null,null,null,null,"",""]
[null,null,null,null,"",""]
[null,null,null,null,"",""]
[null,null,null,null,"",""]
[null,null,null,null,"",""]
[null,null,null,null,"",""]
[null,null,null,null,"",""]
[null,null,null,null,"",""]
[null,null,null,null,"",""]
[null,null,null,null,"",""]
[null,null,null,null,"",""]
[null,null,null,null,"",""]
[null,null,null,null,"",""]
[null,null,null,null,"",""]
[null,null,null,null,"",""]
[null,null,null,null,"",""]
[null,null,null,null,{"$f":"IF(C4012=\"\",\"\",VLOOKUP(C4012,$J$4:$J$10,2,FALSE))","v":""},""]
[null,null,null,null,"",""]
[null,null,null,null,"",""]
[null,null,null,null,"",""]
[null,null,null,null,"",""]
[null,null,null,null,"",""]
[null,null,null,null,"",""]
[null,null,null,null,"",""]
[null,null,null,null,"",""]
[null,null,null,null,"",""]
[null,null,null,null,"",""]
[null,null,null,null,"",""]
[null,null,null,null,"",""]
[null,null,null,null,"",""]
[null,null,null,null,"",""]
[null,null,null,null,"",""]
[null,null,null,null,"",""]
[null,null,null,null,"",""]
[null,null,null,null,"",""]
[null,null,null,null,"",""]
[null,null,null,null,"",""]
[null,null,null,null,"",""]
[null,null,null,null,"",""]
[null,null,null,null,"",""]
[null,null,null,null,"",""]
[null,null,null,null,"",{"$f":"IF(E4037=\"\",\"\",D4037*E4037)","v":""}]
[null,null,null,null,"",""]
[null,null,null,null,"",""]
[null,null,null,null,"",""]
[null,null,null,null,"",""]
[null,null,null,null,"",""]
[null,null,null,null,"",""]
[null,null,null,null,"",""]
[null,null,null,null,"",""]
[null,null,null,null,"",""]
[null,null,null,null,"",""]
[null,null,null,null,"",""]
[null,null,null,null,"",""]
[null,null,null,null,"",""]
[null,null,null,null,"",""]
[null,null,null,null,"",""]
[null,null,null,null,"",""]
[null,null,null,null,"",""]
[null,null,null,null,"",""]
[null,null,null,null,"",""]
[null,null,null,null,"",""]
[null,null,null,null,"",""]
[null,null,null,null,"",""]
[null,null,null,null,"",""]
[null,null,null,null,"",""]
[null,null,null,null,"",""]
[null,null,null,null,"",""]
[null,null,null,null,"",""]
[null,null,null,null,"",""]
[null,null,null,null,"",""]
[null,null,null,null,"",""]
[null,null,null,null,"",""]
[null,null,null,null,"",""]
[null,null,null,null,"",""]
[null,null,null,null,"",""]
[null,null,null,null,"",""]
[null,null,null,null,"",""]
[null,null,null,null,"",""]
[null,null,null,null,"",""]
[null,null,null,null,{"$f":"IF(C4076=\"\",\"\",VLOOKUP(C4076,$J$4:$J$10,2,FALSE))","v":""},""]
[null,null,null,null,"",""]
[null,null,null,null,"",""]
[null,null,null,null,"",""]
[null,null,null,null,"",""]
[null,null,null,null,"",""]
[null,null,null,null,"",""]
[null,null,null,null,"",""]
[null,null,null,null,"",""]
[null,null,null,null,"",""]
[null,null,null,null,"",""]
[null,null,null,null,"",""]
[null,null,null,null,"",""]
[null,null,null,null,"",""]
[null,null,null,null,"",""]
[null,null,null,null,"",""]
[null,null,null,null,"",""]
[null,null,null,null,"",""]
[null,null,null,null,"",""]
[null,null,null,null,"",""]
[null,null,null,null,"",""]
[null,null,null,null,"",""]
[null,null,null,null,"",""]
[null,null,null,null,"",""]
[null,null,null,null,"",""]
[null,null,null,null,"",{"$f":"IF(E4101=\"\",\"\",D4101*E4101)","v":""}]
[null,null,null,null,"",""]
[null,null,null,null,"",""]
[null,null,null,null,"",""]
[null,null,null,null,"",""]
[null,null,null,null,"",""]
[null,null,null,null,"",""]
[null,null,null,null,"",""]
[null,null,null,null,"",""]
[null,null,null,null,"",""]
[null,null,null,null,"",""]
[null,null,null,null,"",""]
[null,null,null,null,"",""]
[null,null,null,null,"",""]
[null,null,null,null,"",""]
[null,null,null,null,"",""]
[null,null,null,null,"",""]
[null,null,null,null,"",""]
[null,null,null,null,"",""]
[null,null,null,null,"",""]
[null,null,null,null,"",""]
[null,null,null,null,"",""]
[null,null,null,null,"",""]
[null,null,null,null,"",""]
[null,null,null,null,"",""]
[null,null,null,null,"",""]
[null,null,null,null,"",""]
[null,null,null,null,"",""]
[null,null,null,null,"",""]
[null,null,null,null,"",""]
[null,null,null,null,"",""]
[null,null,null,null,"",""]
[null,null,null,null,"",""]
[null,null,null,null,"",""]
[null,null,null,null,"",""]
[null,null,null,null,"",""]
[null,null,null,null,"",""]
[null,null,null,null,"",""]
[null,null,null,null,"",""]
[null,null,null,null,{"$f":"IF(C4140=\"\",\"\",VLOOKUP(C4140,$J$4:$J$10,2,FALSE))","v":""},""]
[null,null,null,null,"",""]
[null,null,null,null,"",""]
[null,null,null,null,"",""]
[null,null,null,null,"",""]
[null,null,null,null,"",""]
[null,null,null,null,"",""]
[null,null,null,null,"",""]
[null,null,null,null,"",""]
[null,null,null,null,"",""]
[null,null,null,null,"",""]
[null,null,null,null,"",""]
[null,null,null,null,"",""]
[null,null,null,null,"",""]
[null,null,null,null,"",""]
[null,null,null,null,"",""]
[null,null,null,null,"",""]
[null,null,null,null,"",""]
[null,null,null,null,"",""]
[null,null,null,null,"",""]
[null,null,null,null,"",""]
[null,null,null,null,"",""]
[null,null,null,null,"",""]
[null,null,null,null,"",""]
[null,null,null,null,"",""]
[null,null,null,null,"",{"$f":"IF(E4165=\"\",\"\",D4165*E4165)","v":""}]
[null,null,null,null,"",""]
[null,null,null,null,"",""]
[null,null,null,null,"",""]
[null,null,null,null,"",""]
[null,null,null,null,"",""]
[null,null,null,null,"",""]
[null,null,null,null,"",""]
[null,null,null,null,"",""]
[null,null,null,null,"",""]
[null,null,null,null,"",""]
[null,null,null,null,"",""]
[null,null,null,null,"",""]
[null,null,null,null,"",""]
[null,null,null,null,"",""]
[null,null,null,null,"",""]
[null,null,null,null,"",""]
[null,null,null,null,"",""]
[null,null,null,null,"",""]
[null,null,null,null,"",""]
[null,null,null,null,"",""]
[null,null,null,null,"",""]
[null,null,null,null,"",""]
[null,null,null,null,"",""]
[null,null,null,null,"",""]
[null,null,null,null,"",""]
[null,null,null,null,"",""]
[null,null,null,null,"",""]
[null,null,null,null,"",""]
[null,null,null,null,"",""]
[null,null,null,null,"",""]
[null,null,null,null,"",""]
[null,null,null,null,"",""]
[null,null,null,null,"",""]
[null,null,null,null,"",""]
[null,null,null,null,"",""]
[null,null,null,null,"",""]
[null,null,null,null,"",""]
[null,null,null,null,"",""]
[null,null,null,null,{"$f":"IF(C4204=\"\",\"\",VLOOKUP(C4204,$J$4:$J$10,2,FALSE))","v":""},""]
[null,null,null,null,"",""]
[null,null,null,null,"",""]
[null,null,null,null,"",""]
[null,null,null,null,"",""]
[null,null,null,null,"",""]
[null,null,null,null,"",""]
[null,null,null,null,"",""]
[null,null,null,null,"",""]
[null,null,null,null,"",""]
[null,null,null,null,"",""]
[null,null,null,null,"",""]
[null,null,null,null,"",""]
[null,null,null,null,"",""]
[null,null,null,null,"",""]
[null,null,null,null,"",""]
[null,null,null,null,"",""]
[null,null,null,null,"",""]
[null,null,null,null,"",""]
[null,null,null,null,"",""]
[null,null,null,null,"",""]
[null,null,null,null,"",""]
[null,null,null,null,"",""]
[null,null,null,null,"",""]
[null,null,null,null,"",""]
[null,null,null,null,"",{"$f":"IF(E4229=\"\",\"\",D4229*E4229)","v":""}]
[null,null,null,null,"",""]
[null,null,null,null,"",""]
[null,null,null,null,"",""]
[null,null,null,null,"",""]
[null,null,null,null,"",""]
[null,null,null,null,"",""]
[null,null,null,null,"",""]
[null,null,null,null,"",""]
[null,null,null,null,"",""]
[null,null,null,null,"",""]
[null,null,null,null,"",""]
[null,null,null,null,"",""]
[null,null,null,null,"",""]
[null,null,null,null,"",""]
[null,null,null,null,"",""]
[null,null,null,null,"",""]
[null,null,null,null,"",""]
[null,null,null,null,"",""]
[null,null,null,null,"",""]
[null,null,null,null,"",""]
[null,null,null,null,"",""]
[null,null,null,null,"",""]
[null,null,null,null,"",""]
[null,null,null,null,"",""]
[null,null,null,null,"",""]
[null,null,null,null,"",""]
[null,null,null,null,"",""]
[null,null,null,null,"",""]
[null,null,null,null,"",""]
[null,null,null,null,"",""]
[null,null,null,null,"",""]
[null,null,null,null,"",""]
[null,null,null,null,"",""]
[null,null,null,null,"",""]
[null,null,null,null,"",""]
[null,null,null,null,"",""]
[null,null,null,null,"",""]
[null,null,null,null,"",""]
[null,null,null,null,{"$f":"IF(C4268=\"\",\"\",VLOOKUP(C4268,$J$4:$J$10,2,FALSE))","v":""},""]
[null,null,null,null,"",""]
[null,null,null,null,"",""]
[null,null,null,null,"",""]
[null,null,null,null,"",""]
[null,null,null,null,"",""]
[null,null,null,null,"",""]
[null,null,null,null,"",""]
[null,null,null,null,"",""]
[null,null,null,null,"",""]
[null,null,null,null,"",""]
[null,null,null,null,"",""]
[null,null,null,null,"",""]
[null,null,null,null,"",""]
[null,null,null,null,"",""]
[null,null,null,null,"",""]
[null,null,null,null,"",""]
[null,null,null,null,"",""]
[null,null,null,null,"",""]
[null,null,null,null,"",""]
[null,null,null,null,"",""]
[null,null,null,null,"",""]
[null,null,null,null,"",""]
[null,null,null,null,"",""]
[null,null,null,null,"",""]
[null,null,null,null,"",{"$f":"IF(E4293=\"\",\"\",D4293*E4293)","v":""}]
[null,null,null,null,"",""]
[null,null,null,null,"",""]
[null,null,null,null,"",""]
[null,null,null,null,"",""]
[null,null,null,null,"",""]
[null,null,null,null,"",""]
[null,null,null,null,"",""]
[null,null,null,null,"",""]
[null,null,null,null,"",""]
[null,null,null,null,"",""]
[null,null,null,null,"",""]
[null,null,null,null,"",""]
[null,null,null,null,"",""]
[null,null,null,null,"",""]
[null,null,null,null,"",""]
[null,null,null,null,"",""]
[null,null,null,null,"",""]
[null,null,null,null,"",""]
[null,null,null,null,"",""]
[null,null,null,null,"",""]
[null,null,null,null,"",""]
[null,null,null,null,"",""]
[null,null,null,null,"",""]
[null,null,null,null,"",""]
[null,null,null,null,"",""]
[null,null,null,null,"",""]
[null,null,null,null,"",""]
[null,null,null,null,"",""]
[null,null,null,null,"",""]
[null,null,null,null,"",""]
[null,null,null,null,"",""]
[null,null,null,null,"",""]
[null,null,null,null,"",""]
[null,null,null,null,"",""]
[null,null,null,null,"",""]
[null,null,null,null,"",""]
[null,null,null,null,"",""]
[null,null,null,null,"",""]
[null,null,null,null,{"$f":"IF(C4332=\"\",\"\",VLOOKUP(C4332,$J$4:$J$10,2,FALSE))","v":""},""]
[null,null,null,null,"",""]
[null,null,null,null,"",""]
[null,null,null,null,"",""]
[null,null,null,null,"",""]
[null,null,null,null,"",""]
[null,null,null,null,"",""]
[null,null,null,null,"",""]
[null,null,null,null,"",""]
[null,null,null,null,"",""]
[null,null,null,null,"",""]
[null,null,null,null,"",""]
[null,null,null,null,"",""]
[null,null,null,null,"",""]
[null,null,null,null,"",""]
[null,null,null,null,"",""]
[null,null,null,null,"",""]
[null,null,null,null,"",""]
[null,null,null,null,"",""]
[null,null,null,null,"",""]
[null,null,null,null,"",""]
[null,null,null,null,"",""]
[null,null,null,null,"",""]
[null,null,null,null,"",""]
[null,null,null,null,"",""]
[null,null,null,null,"",{"$f":"IF(E4357=\"\",\"\",D4357*E4357)","v":""}]
[null,null,null,null,"",""]
[null,null,null,null,"",""]
[null,null,null,null,"",""]
[null,null,null,null,"",""]
[null,null,null,null,"",""]
[null,null,null,null,"",""]
[null,null,null,null,"",""]
[null,null,null,null,"",""]
[null,null,null,null,"",""]
[null,null,null,null,"",""]
[null,null,null,null,"",""]
[null,null,null,null,"",""]
[null,null,null,null,"",""]
[null,null,null,null,"",""]
[null,null,null,null,"",""]
[null,null,null,null,"",""]
[null,null,null,null,"",""]
[null,null,null,null,"",""]
[null,null,null,null,"",""]
[null,null,null,null,"",""]
[null,null,null,null,"",""]
[null,null,null,null,"",""]
[null,null,null,null,"",""]
[null,null,null,null,"",""]
[null,null,null,null,"",""]
[null,null,null,null,"",""]
[null,null,null,null,"",""]
[null,null,null,null,"",""]
[null,null,null,null,"",""]
[null,null,null,null,"",""]
[null,null,null,null,"",""]
[null,null,null,null,"",""]
[null,null,null,null,"",""]
[null,null,null,null,"",""]
[null,null,null,null,"",""]
[null,null,null,null,"",""]
[null,null,null,null,"",""]
[null,null,null,null,"",""]
[null,null,null,null,{"$f":"IF(C4396=\"\",\"\",VLOOKUP(C4396,$J$4:$J$10,2,FALSE))","v":""},""]
[null,null,null,null,"",""]
[null,null,null,null,"",""]
[null,null,null,null,"",""]
[null,null,null,null,"",""]
[null,null,null,null,"",""]
[null,null,null,null,"",""]
[null,null,null,null,"",""]
[null,null,null,null,"",""]
[null,null,null,null,"",""]
[null,null,null,null,"",""]
[null,null,null,null,"",""]
[null,null,null,null,"",""]
[null,null,null,null,"",""]
[null,null,null,null,"",""]
[null,null,null,null,"",""]
[null,null,null,null,"",""]
[null,null,null,null,"",""]
[null,null,null,null,"",""]
[null,null,null,null,"",""]
[null,null,null,null,"",""]
[null,null,null,null,"",""]
[null,null,null,null,"",""]
[null,null,null,null,"",""]
[null,null,null,null,"",""]
[null,null,null,null,"",{"$f":"IF(E4421=\"\",\"\",D4421*E4421)","v":""}]
[null,null,null,null,"",""]
[null,null,null,null,"",""]
[null,null,null,null,"",""]
[null,null,null,null,"",""]
[null,null,null,null,"",""]
[null,null,null,null,"",""]
[null,null,null,null,"",""]
[null,null,null,null,"",""]
[null,null,null,null,"",""]
[null,null,null,null,"",""]
[null,null,null,null,"",""]
[null,null,null,null,"",""]
[null,null,null,null,"",""]
[null,null,null,null,"",""]
[null,null,null,null,"",""]
[null,null,null,null,"",""]
[null,null,null,null,"",""]
[null,null,null,null,"",""]
[null,null,null,null,"",""]
[null,null,null,null,"",""]
[null,null,null,null,"",""]
[null,null,null,null,"",""]
[null,null,null,null,"",""]
[null,null,null,null,"",""]
[null,null,null,null,"",""]
[null,null,null,null,"",""]
[null,null,null,null,"",""]
[null,null,null,null,"",""]
[null,null,null,null,"",""]
[null,null,null,null,"",""]
[null,null,null,null,"",""]
[null,null,null,null,"",""]
[null,null,null,null,"",""]
[null,null,null,null,"",""]
[null,null,null,null,"",""]
[null,null,null,null,"",""]
[null,null,null,null,"",""]
[null,null,null,null,"",""]
[null,null,null,null,{"$f":"IF(C4460=\"\",\"\",VLOOKUP(C4460,$J$4:$J$10,2,FALSE))","v":""},""]
[null,null,null,null,"",""]
[null,null,null,null,"",""]
[null,null,null,null,"",""]
[null,null,null,null,"",""]
[null,null,null,null,"",""]
[null,null,null,null,"",""]
[null,null,null,null,"",""]
[null,null,null,null,"",""]
[null,null,null,null,"",""]
[null,null,null,null,"",""]
[null,null,null,null,"",""]
[null,null,null,null,"",""]
[null,null,null,null,"",""]
[null,null,null,null,"",""]
[null,null,null,null,"",""]
[null,null,null,null,"",""]
[null,null,null,null,"",""]
[null,null,null,null,"",""]
[null,null,null,null,"",""]
[null,null,null,null,"",""]
[null,null,null,null,"",""]
[null,null,null,null,"",""]
[null,null,null,null,"",""]
[null,null,null,null,"",""]
[null,null,null,null,"",{"$f":"IF(E4485=\"\",\"\",D4485*E4485)","v":""}]
[null,null,null,null,"",""]
[null,null,null,null,"",""]
[null,null,null,null,"",""]
[null,null,null,null,"",""]
[null,null,null,null,"",""]
[null,null,null,null,"",""]
[null,null,null,null,"",""]
[null,null,null,null,"",""]
[null,null,null,null,"",""]
[null,null,null,null,"",""]
[null,null,null,null,"",""]
[null,null,null,null,"",""]
[null,null,null,null,"",""]
[null,null,null,null,"",""]
[null,null,null,null,"",""]
[null,null,null,null,"",""]
[null,null,null,null,"",""]
[null,null,null,null,"",""]
[null,null,null,null,"",""]
[null,null,null,null,"",""]
[null,null,null,null,"",""]
[null,null,null,null,"",""]
[null,null,null,null,"",""]
[null,null,null,null,"",""]
[null,null,null,null,"",""]
[null,null,null,null,"",""]
[null,null,null,null,"",""]
[null,null,null,null,"",""]
[null,null,null,null,"",""]
[null,null,null,null,"",""]
[null,null,null,null,"",""]
[null,null,null,null,"",""]
[null,null,null,null,"",""]
[null,null,null,null,"",""]
[null,null,null,null,"",""]
[null,null,null,null,"",""]
[null,null,null,null,"",""]
[null,null,null,null,"",""]
[null,null,null,null,{"$f":"IF(C4524=\"\",\"\",VLOOKUP(C4524,$J$4:$J$10,2,FALSE))","v":""},""]
[null,null,null,null,"",""]
[null,null,null,null,"",""]
[null,null,null,null,"",""]
[null,null,null,null,"",""]
[null,null,null,null,"",""]
[null,null,null,null,"",""]
[null,null,null,null,"",""]
[null,null,null,null,"",""]
[null,null,null,null,"",""]
[null,null,null,null,"",""]
[null,null,null,null,"",""]
[null,null,null,null,"",""]
[null,null,null,null,"",""]
[null,null,null,null,"",""]
[null,null,null,null,"",""]
[null,null,null,null,"",""]
[null,null,null,null,"",""]
[null,null,null,null,"",""]
[null,null,null,null,"",""]
[null,null,null,null,"",""]
[null,null,null,null,"",""]
[null,null,null,null,"",""]
[null,null,null,null,"",""]
[null,null,null,null,"",""]
[null,null,null,null,"",{"$f":"IF(E4549=\"\",\"\",D4549*E4549)","v":""}]
[null,null,null,null,"",""]
[null,null,null,null,"",""]
[null,null,null,null,"",""]
[null,null,null,null,"",""]
[null,null,null,null,"",""]
[null,null,null,null,"",""]
[null,null,null,null,"",""]
[null,null,null,null,"",""]
[null,null,null,null,"",""]
[null,null,null,null,"",""]
[null,null,null,null,"",""]
[null,null,null,null,"",""]
[null,null,null,null,"",""]
[null,null,null,null,"",""]
[null,null,null,null,"",""]
[null,null,null,null,"",""]
[null,null,null,null,"",""]
[null,null,null,null,"",""]
[null,null,null,null,"",""]
[null,null,null,null,"",""]
[null,null,null,null,"",""]
[null,null,null,null,"",""]
[null,null,null,null,"",""]
[null,null,null,null,"",""]
[null,null,null,null,"",""]
[null,null,null,null,"",""]
[null,null,null,null,"",""]
[null,null,null,null,"",""]
[null,null,null,null,"",""]
[null,null,null,null,"",""]
[null,null,null,null,"",""]
[null,null,null,null,"",""]
[null,null,null,null,"",""]
[null,null,null,null,"",""]
[null,null,null,null,"",""]
[null,null,null,null,"",""]
[null,null,null,null,"",""]
[null,null,null,null,"",""]
[null,null,null,null,{"$f":"IF(C4588=\"\",\"\",VLOOKUP(C4588,$J$4:$J$10,2,FALSE))","v":""},""]
[null,null,null,null,"",""]
[null,null,null,null,"",""]
[null,null,null,null,"",""]
[null,null,null,null,"",""]
[null,null,null,null,"",""]
[null,null,null,null,"",""]
[null,null,null,null,"",""]
[null,null,null,null,"",""]
[null,null,null,null,"",""]
[null,null,null,null,"",""]
[null,null,null,null,"",""]
[null,null,null,null,"",""]
[null,null,null,null,"",""]
[null,null,null,null,"",""]
[null,null,null,null,"",""]
[null,null,null,null,"",""]
[null,null,null,null,"",""]
[null,null,null,null,"",""]
[null,null,null,null,"",""]
[null,null,null,null,"",""]
[null,null,null,null,"",""]
[null,null,null,null,"",""]
[null,null,null,null,"",""]
[null,null,null,null,"",""]
[null,null,null,null,"",{"$f":"IF(E4613=\"\",\"\",D4613*E4613)","v":""}]
[null,null,null,null,"",""]
[null,null,null,null,"",""]
[null,null,null,null,"",""]
[null,null,null,null,"",""]
[null,null,null,null,"",""]
[null,null,null,null,"",""]
[null,null,null,null,"",""]
[null,null,null,null,"",""]
[null,null,null,null,"",""]
[null,null,null,null,"",""]
[null,null,null,null,"",""]
[null,null,null,null,"",""]
[null,null,null,null,"",""]
[null,null,null,null,"",""]
[null,null,null,null,"",""]
[null,null,null,null,"",""]
[null,null,null,null,"",""]
[null,null,null,null,"",""]
[null,null,null,null,"",""]
[null,null,null,null,"",""]
[null,null,null,null,"",""]
[null,null,null,null,"",""]
[null,null,null,null,"",""]
[null,null,null,null,"",""]
[null,null,null,null,"",""]
[null,null,null,null,"",""]
[null,null,null,null,"",""]
[null,null,null,null,"",""]
[null,null,null,null,"",""]
[null,null,null,null,"",""]
[null,null,null,null,"",""]
[null,null,null,null,"",""]
[null,null,null,null,"",""]
[null,null,null,null,"",""]
[null,null,null,null,"",""]
[null,null,null,null,"",""]
[null,null,null,null,"",""]
[null,null,null,null,"",""]
[null,null,null,null,{"$f":"IF(C4652=\"\",\"\",VLOOKUP(C4652,$J$4:$J$10,2,FALSE))","v":""},""]
[null,null,null,null,"",""]
[null,null,null,null,"",""]
[null,null,null,null,"",""]
[null,null,null,null,"",""]
[null,null,null,null,"",""]
[null,null,null,null,"",""]
[null,null,null,null,"",""]
[null,null,null,null,"",""]
[null,null,null,null,"",""]
[null,null,null,null,"",""]
[null,null,null,null,"",""]
[null,null,null,null,"",""]
[null,null,null,null,"",""]
[null,null,null,null,"",""]
[null,null,null,null,"",""]
[null,null,null,null,"",""]
[null,null,null,null,"",""]
[null,null,null,null,"",""]
[null,null,null,null,"",""]
[null,null,null,null,"",""]
[null,null,null,null,"",""]
[null,null,null,null,"",""]
[null,null,null,null,"",""]
[null,null,null,null,"",""]
[null,null,null,null,"",{"$f":"IF(E4677=\"\",\"\",D4677*E4677)","v":""}]
[null,null,null,null,"",""]
[null,null,null,null,"",""]
[null,null,null,null,"",""]
[null,null,null,null,"",""]
[null,null,null,null,"",""]
[null,null,null,null,"",""]
[null,null,null,null,"",""]
[null,null,null,null,"",""]
[null,null,null,null,"",""]
[null,null,null,null,"",""]
[null,null,null,null,"",""]
[null,null,null,null,"",""]
[null,null,null,null,"",""]
[null,null,null,null,"",""]
[null,null,null,null,"",""]
[null,null,null,null,"",""]
[null,null,null,null,"",""]
[null,null,null,null,"",""]
[null,null,null,null,"",""]
[null,null,null,null,"",""]
[null,null,null,null,"",""]
[null,null,null,null,"",""]
[null,null,null,null,"",""]
[null,null,null,null,"",""]
[null,null,null,null,"",""]
[null,null,null,null,"",""]
[null,null,null,null,"",""]
[null,null,null,null,"",""]
[null,null,null,null,"",""]
[null,null,null,null,"",""]
[null,null,null,null,"",""]
[null,null,null,null,"",""]
[null,null,null,null,"",""]
[null,null,null,null,"",""]
[null,null,null,null,"",""]
[null,null,null,null,"",""]
[null,null,null,null,"",""]
[null,null,null,null,"",""]
[null,null,null,null,{"$f":"IF(C4716=\"\",\"\",VLOOKUP(C4716,$J$4:$J$10,2,FALSE))","v":""},""]
[null,null,null,null,"",""]
[null,null,null,null,"",""]
[null,null,null,null,"",""]
[null,null,null,null,"",""]
[null,null,null,null,"",""]
[null,null,null,null,"",""]
[null,null,null,null,"",""]
[null,null,null,null,"",""]
[null,null,null,null,"",""]
[null,null,null,null,"",""]
[null,null,null,null,"",""]
[null,null,null,null,"",""]
[null,null,null,null,"",""]
[null,null,null,null,"",""]
[null,null,null,null,"",""]
[null,null,null,null,"",""]
[null,null,null,null,"",""]
[null,null,null,null,"",""]
[null,null,null,null,"",""]
[null,null,null,null,"",""]
[null,null,null,null,"",""]
[null,null,null,null,"",""]
[null,null,null,null,"",""]
[null,null,null,null,"",""]
[null,null,null,null,"",{"$f":"IF(E4741=\"\",\"\",D4741*E4741)","v":""}]
[null,null,null,null,"",""]
[null,null,null,null,"",""]
[null,null,null,null,"",""]
[null,null,null,null,"",""]
[null,null,null,null,"",""]
[null,null,null,null,"",""]
[null,null,null,null,"",""]
[null,null,null,null,"",""]
[null,null,null,null,"",""]
[null,null,null,null,"",""]
[null,null,null,null,"",""]
[null,null,null,null,"",""]
[null,null,null,null,"",""]
[null,null,null,null,"",""]
[null,null,null,null,"",""]
[null,null,null,null,"",""]
[null,null,null,null,"",""]
[null,null,null,null,"",""]
[null,null,null,null,"",""]
[null,null,null,null,"",""]
[null,null,null,null,"",""]
[null,null,null,null,"",""]
[null,null,null,null,"",""]
[null,null,null,null,"",""]
[null,null,null,null,"",""]
[null,null,null,null,"",""]
[null,null,null,null,"",""]
[null,null,null,null,"",""]
[null,null,null,null,"",""]
[null,null,null,null,"",""]
[null,null,null,null,"",""]
[null,null,null,null,"",""]
[null,null,null,null,"",""]
[null,null,null,null,"",""]
[null,null,null,null,"",""]
[null,null,null,null,"",""]
[null,null,null,null,"",""]
[null,null,null,null,"",""]
[null,null,null,null,{"$f":"IF(C4780=\"\",\"\",VLOOKUP(C4780,$J$4:$J$10,2,FALSE))","v":""},""]
[null,null,null,null,"",""]
[null,null,null,null,"",""]
[null,null,null,null,"",""]
[null,null,null,null,"",""]
[null,null,null,null,"",""]
[null,null,null,null,"",""]
[null,null,null,null,"",""]
[null,null,null,null,"",""]
[null,null,null,null,"",""]
[null,null,null,null,"",""]
[null,null,null,null,"",""]
[null,null,null,null,"",""]
[null,null,null,null,"",""]
[null,null,null,null,"",""]
[null,null,null,null,"",""]
[null,null,null,null,"",""]
[null,null,null,null,"",""]
[null,null,null,null,"",""]
[null,null,null,null,"",""]
[null,null,null,null,"",""]
[null,null,null,null,"",""]
[null,null,null,null,"",""]
[null,null,null,null,"",""]
[null,null,null,null,"",""]
[null,null,null,null,"",{"$f":"IF(E4805=\"\",\"\",D4805*E4805)","v":""}]
[null,null,null,null,"",""]
[null,null,null,null,"",""]
[null,null,null,null,"",""]
[null,null,null,null,"",""]
[null,null,null,null,"",""]
[null,null,null,null,"",""]
[null,null,null,null,"",""]
[null,null,null,null,"",""]
[null,null,null,null,"",""]
[null,null,null,null,"",""]
[null,null,null,null,"",""]
[null,null,null,null,"",""]
[null,null,null,null,"",""]
[null,null,null,null,"",""]
[null,null,null,null,"",""]
[null,null,null,null,"",""]
[null,null,null,null,"",""]
[null,null,null,null,"",""]
[null,null,null,null,"",""]
[null,null,null,null,"",""]
[null,null,null,null,"",""]
[null,null,null,null,"",""]
[null,null,null,null,"",""]
[null,null,null,null,"",""]
[null,null,null,null,"",""]
[null,null,null,null,"",""]
[null,null,null,null,"",""]
[null,null,null,null,"",""]
[null,null,null,null,"",""]
[null,null,null,null,"",""]
[null,null,null,null,"",""]
[null,null,null,null,"",""]
[null,null,null,null,"",""]
[null,null,null,null,"",""]
[null,null,null,null,"",""]
[null,null,null,null,"",""]
[null,null,null,null,"",""]
[null,null,null,null,"",""]
[null,null,null,null,{"$f":"IF(C4844=\"\",\"\",VLOOKUP(C4844,$J$4:$J$10,2,FALSE))","v":""},""]
[null,null,null,null,"",""]
[null,null,null,null,"",""]
[null,null,null,null,"",""]
[null,null,null,null,"",""]
[null,null,null,null,"",""]
[null,null,null,null,"",""]
[null,null,null,null,"",""]
[null,null,null,null,"",""]
[null,null,null,null,"",""]
[null,null,null,null,"",""]
[null,null,null,null,"",""]
[null,null,null,null,"",""]
[null,null,null,null,"",""]
[null,null,null,null,"",""]
[null,null,null,null,"",""]
[null,null,null,null,"",""]
[null,null,null,null,"",""]
[null,null,null,null,"",""]
[null,null,null,null,"",""]
[null,null,null,null,"",""]
[null,null,null,null,"",""]
[null,null,null,null,"",""]
[null,null,null,null,"",""]
[null,null,null,null,"",""]
[null,null,null,null,"",{"$f":"IF(E4869=\"\",\"\",D4869*E4869)","v":""}]
[null,null,null,null,"",""]
[null,null,null,null,"",""]
[null,null,null,null,"",""]
[null,null,null,null,"",""]
[null,null,null,null,"",""]
[null,null,null,null,"",""]
[null,null,null,null,"",""]
[null,null,null,null,"",""]
[null,null,null,null,"",""]
[null,null,null,null,"",""]
[null,null,null,null,"",""]
[null,null,null,null,"",""]
[null,null,null,null,"",""]
[null,null,null,null,"",""]
[null,null,null,null,"",""]
[null,null,null,null,"",""]
[null,null,null,null,"",""]
[null,null,null,null,"",""]
[null,null,null,null,"",""]
[null,null,null,null,"",""]
[null,null,null,null,"",""]
[null,null,null,null,"",""]
[null,null,null,null,"",""]
[null,null,null,null,"",""]
[null,null,null,null,"",""]
[null,null,null,null,"",""]
[null,null,null,null,"",""]
[null,null,null,null,"",""]
[null,null,null,null,"",""]
[null,null,null,null,"",""]
[null,null,null,null,"",""]
[null,null,null,null,"",""]
[null,null,null,null,"",""]
[null,null,null,null,"",""]
[null,null,null,null,"",""]
[null,null,null,null,"",""]
[null,null,null,null,"",""]
[null,null,null,null,"",""]
[null,null,null,null,{"$f":"IF(C4908=\"\",\"\",VLOOKUP(C4908,$J$4:$J$10,2,FALSE))","v":""},""]
[null,null,null,null,"",""]
[null,null,null,null,"",""]
[null,null,null,null,"",""]
[null,null,null,null,"",""]
[null,null,null,null,"",""]
[null,null,null,null,"",""]
[null,null,null,null,"",""]
[null,null,null,null,"",""]
[null,null,null,null,"",""]
[null,null,null,null,"",""]
[null,null,null,null,"",""]
[null,null,null,null,"",""]
[null,null,null,null,"",""]
[null,null,null,null,"",""]
[null,null,null,null,"",""]
[null,null,null,null,"",""]
[null,null,null,null,"",""]
[null,null,null,null,"",""]
[null,null,null,null,"",""]
[null,null,null,null,"",""]
[null,null,null,null,"",""]
[null,null,null,null,"",""]
[null,null,null,null,"",""]
[null,null,null,null,"",""]
[null,null,null,null,"",{"$f":"IF(E4933=\"\",\"\",D4933*E4933)","v":""}]
[null,null,null,null,"",""]
[null,null,null,null,"",""]
[null,null,null,null,"",""]
[null,null,null,null,"",""]
[null,null,null,null,"",""]
[null,null,null,null,"",""]
[null,null,null,null,"",""]
[null,null,null,null,"",""]
[null,null,null,null,"",""]
[null,null,null,null,"",""]
[null,null,null,null,"",""]
[null,null,null,null,"",""]
[null,null,null,null,"",""]
[null,null,null,null,"",""]
[null,null,null,null,"",""]
[null,null,null,null,"",""]
[null,null,null,null,"",""]
[null,null,null,null,"",""]
[null,null,null,null,"",""]
[null,null,null,null,"",""]
[null,null,null,null,"",""]
[null,null,null,null,"",""]
[null,null,null,null,"",""]
[null,null,null,null,"",""]
[null,null,null,null,"",""]
[null,null,null,null,"",""]
[null,null,null,null,"",""]
[null,null,null,null,"",""]
[null,null,null,null,"",""]
[null,null,null,null,"",""]
[null,null,null,null,"",""]
[null,null,null,null,"",""]
[null,null,null,null,"",""]
[null,null,null,null,"",""]
[null,null,null,null,"",""]
[null,null,null,null,"",""]
[null,null,null,null,"",""]
[null,null,null,null,"",""]
[null,null,null,null,{"$f":"IF(C4972=\"\",\"\",VLOOKUP(C4972,$J$4:$J$10,2,FALSE))","v":""},""]
[null,null,null,null,"",""]
[null,null,null,null,"",""]
[null,null,null,null,"",""]
[null,null,null,null,"",""]
[null,null,null,null,"",""]
[null,null,null,null,"",""]
[null,null,null,null,"",""]
[null,null,null,null,"",""]
[null,null,null,null,"",""]
[null,null,null,null,"",""]
[null,null,null,null,"",""]
[null,null,null,null,"",""]
[null,null,null,null,"",""]
[null,null,null,null,"",""]
[null,null,null,null,"",""]
[null,null,null,null,"",""]
[null,null,null,null,"",""]
[null,null,null,null,"",""]
[null,null,null,null,"",""]
[null,null,null,null,"",""]
[null,null,null,null,"",""]
[null,null,null,null,"",""]
[null,null,null,null,"",""]
[null,null,null,null,"",""]
[null,null,null,null,"",{"$f":"IF(E4997=\"\",\"\",D4997*E4997)","v":""}]
[null,null,null,null,"",""]
[null,null,null,null,"",""]
[null,null,null,null,"",""]
[null,null,null,null,"",""]
[null,null,null,null,"",""]
[null,null,null,null,"",""]
[null,null,null,null,"",""]
[null,null,null,null,"",""]
[null,null,null,null,"",""]
[null,null,null,null,"",""]
[null,null,null,null,"",""]
[null,null,null,null,"",""]
[null,null,null,null,"",""]
[null,null,null,null,"",""]
[null,null,null,null,"",""]
[null,null,null,null,"",""]
[null,null,null,null,"",""]
[null,null,null,null,"",""]
[null,null,null,null,"",""]
[null,null,null,null,"",""]
[null,null,null,null,"",""]
[null,null,null,null,"",""]
[null,null,null,null,"",""]
[null,null,null,null,"",""]
[null,null,null,null,"",""]
[null,null,null,null,"",""]
[null,null,null,null,"",""]
[null,null,null,null,"",""]
[null,null,null,null,"",""]
[null,null,null,null,"",""]
[null,null,null,null,"",""]
[null,null,null,null,"",""]
[null,null,null,null,"",""]
[null,null,null,null,"",""]
[null,null,null,null,"",""]
[null,null,null,null,"",""]
[null,null,null,null,"",""]
[null,null,null,null,"",""]
[null,null,null,null,{"$f":"IF(C5036=\"\",\"\",VLOOKUP(C5036,$J$4:$J$10,2,FALSE))","v":""},""]
[null,null,null,null,"",""]
[null,null,null,null,"",""]
[null,null,null,null,"",""]
[null,null,null,null,"",""]
[null,null,null,null,"",""]
[null,null,null,null,"",""]
[null,null,null,null,"",""]
[null,null,null,null,"",""]
[null,null,null,null,"",""]
[null,null,null,null,"",""]
[null,null,null,null,"",""]
[null,null,null,null,"",""]
[null,null,null,null,"",""]
[null,null,null,null,"",""]
[null,null,null,null,"",""]
[null,null,null,null,"",""]
[null,null,null,null,"",""]
[null,null,null,null,"",""]
[null,null,null,null,"",""]
[null,null,null,null,"",""]
[null,null,null,null,"",""]
[null,null,null,null,"",""]
[null,null,null,null,"",""]
[null,null,null,null,"",""]
[null,null,null,null,"",{"$f":"IF(E5061=\"\",\"\",D5061*E5061)","v":""}]
[null,null,null,null,"",""]
[null,null,null,null,"",""]
[null,null,null,null,"",""]
[null,null,null,null,"",""]
[null,null,null,null,"",""]
[null,null,null,null,"",""]
[null,null,null,null,"",""]
[null,null,null,null,"",""]
[null,null,null,null,"",""]
[null,null,null,null,"",""]
[null,null,null,null,"",""]
[null,null,null,null,"",""]
[null,null,null,null,"",""]
[null,null,null,null,"",""]
[null,null,null,null,"",""]
[null,null,null,null,"",""]
[null,null,null,null,"",""]
[null,null,null,null,"",""]
[null,null,null,null,"",""]
[null,null,null,null,"",""]
[null,null,null,null,"",""]
[null,null,null,null,"",""]
[null,null,null,null,"",""]
[null,null,null,null,"",""]
[null,null,null,null,"",""]
[null,null,null,null,"",""]
[null,null,null,null,"",""]
[null,null,null,null,"",""]
[null,null,null,null,"",""]
[null,null,null,null,"",""]
[null,null,null,null,"",""]
[null,null,null,null,"",""]
[null,null,null,null,"",""]
[null,null,null,null,"",""]
[null,null,null,null,"",""]
[null,null,null,null,"",""]
[null,null,null,null,"",""]
[null,null,null,null,"",""]
[null,null,null,null,{"$f":"IF(C5100=\"\",\"\",VLOOKUP(C5100,$J$4:$J$10,2,FALSE))","v":""},""]
[null,null,null,null,"",""]
[null,null,null,null,"",""]
[null,null,null,null,"",""]
[null,null,null,null,"",""]
[null,null,null,null,"",""]
[null,null,null,null,"",""]
[null,null,null,null,"",""]
[null,null,null,null,"",""]
[null,null,null,null,"",""]
[null,null,null,null,"",""]
[null,null,null,null,"",""]
[null,null,null,null,"",""]
[null,null,null,null,"",""]
[null,null,null,null,"",""]
[null,null,null,null,"",""]
[null,null,null,null,"",""]
[null,null,null,null,"",""]
[null,null,null,null,"",""]
[null,null,null,null,"",""]
[null,null,null,null,"",""]
[null,null,null,null,"",""]
[null,null,null,null,"",""]
[null,null,null,null,"",""]
[null,null,null,null,"",""]
[null,null,null,null,"",{"$f":"IF(E5125=\"\",\"\",D5125*E5125)","v":""}]
[null,null,null,null,"",""]
[null,null,null,null,"",""]
[null,null,null,null,"",""]
[null,null,null,null,"",""]
[null,null,null,null,"",""]
[null,null,null,null,"",""]
[null,null,null,null,"",""]
[null,null,null,null,"",""]
[null,null,null,null,"",""]
[null,null,null,null,"",""]
[null,null,null,null,"",""]
[null,null,null,null,"",""]
[null,null,null,null,"",""]
[null,null,null,null,"",""]
[null,null,null,null,"",""]
[null,null,null,null,"",""]
[null,null,null,null,"",""]
[null,null,null,null,"",""]
[null,null,null,null,"",""]
[null,null,null,null,"",""]
[null,null,null,null,"",""]
[null,null,null,null,"",""]
[null,null,null,null,"",""]
[null,null,null,null,"",""]
[null,null,null,null,"",""]
[null,null,null,null,"",""]
[null,null,null,null,"",""]
[null,null,null,null,"",""]
[null,null,null,null,"",""]
[null,null,null,null,"",""]
[null,null,null,null,"",""]
[null,null,null,null,"",""]
[null,null,null,null,"",""]
[null,null,null,null,"",""]
[null,null,null,null,"",""]
[null,null,null,null,"",""]
[null,null,null,null,"",""]
[null,null,null,null,"",""]
[null,null,null,null,{"$f":"IF(C5164=\"\",\"\",VLOOKUP(C5164,$J$4:$J$10,2,FALSE))","v":""},""]
[null,null,null,null,"",""]
[null,null,null,null,"",""]
[null,null,null,null,"",""]
[null,null,null,null,"",""]
[null,null,null,null,"",""]
[null,null,null,null,"",""]
[null,null,null,null,"",""]
[null,null,null,null,"",""]
[null,null,null,null,"",""]
[null,null,null,null,"",""]
[null,null,null,null,"",""]
[null,null,null,null,"",""]
[null,null,null,null,"",""]
[null,null,null,null,"",""]
[null,null,null,null,"",""]
[null,null,null,null,"",""]
[null,null,null,null,"",""]
[null,null,null,null,"",""]
[null,null,null,null,"",""]
[null,null,null,null,"",""]
[null,null,null,null,"",""]
[null,null,null,null,"",""]
[null,null,null,null,"",""]
[null,null,null,null,"",""]
[null,null,null,null,"",{"$f":"IF(E5189=\"\",\"\",D5189*E5189)","v":""}]
[null,null,null,null,"",""]
[null,null,null,null,"",""]
[null,null,null,null,"",""]
[null,null,null,null,"",""]
[null,null,null,null,"",""]
[null,null,null,null,"",""]
[null,null,null,null,"",""]
[null,null,null,null,"",""]
[null,null,null,null,"",""]
[null,null,null,null,"",""]
[null,null,null,null,"",""]
[null,null,null,null,"",""]
[null,null,null,null,"",""]
[null,null,null,null,"",""]
[null,null,null,null,"",""]
[null,null,null,null,"",""]
[null,null,null,null,"",""]
[null,null,null,null,"",""]
[null,null,null,null,"",""]
[null,null,null,null,"",""]
[null,null,null,null,"",""]
[null,null,null,null,"",""]
[null,null,null,null,"",""]
[null,null,null,null,"",""]
[null,null,null,null,"",""]
[null,null,null,null,"",""]
[null,null,null,null,"",""]
[null,null,null,null,"",""]
[null,null,null,null,"",""]
[null,null,null,null,"",""]
[null,null,null,null,"",""]
[null,null,null,null,"",""]
[null,null,null,null,"",""]
[null,null,null,null,"",""]
[null,null,null,null,"",""]
[null,null,null,null,"",""]
[null,null,null,null,"",""]
[null,null,null,null,"",""]
[null,null,null,null,{"$f":"IF(C5228=\"\",\"\",VLOOKUP(C5228,$J$4:$J$10,2,FALSE))","v":""},""]
[null,null,null,null,"",""]
[null,null,null,null,"",""]
[null,null,null,null,"",""]
[null,null,null,null,"",""]
[null,null,null,null,"",""]
[null,null,null,null,"",""]
[null,null,null,null,"",""]
[null,null,null,null,"",""]
[null,null,null,null,"",""]
[null,null,null,null,"",""]
[null,null,null,null,"",""]
[null,null,null,null,"",""]
[null,null,null,null,"",""]
[null,null,null,null,"",""]
[null,null,null,null,"",""]
[null,null,null,null,"",""]
[null,null,null,null,"",""]
[null,null,null,null,"",""]
[null,null,null,null,"",""]
[null,null,null,null,"",""]
[null,null,null,null,"",""]
[null,null,null,null,"",""]
[null,null,null,null,"",""]
[null,null,null,null,"",""]
[null,null,null,null,"",{"$f":"IF(E5253=\"\",\"\",D5253*E5253)","v":""}]
[null,null,null,null,"",""]
[null,null,null,null,"",""]
[null,null,null,null,"",""]
[null,null,null,null,"",""]
[null,null,null,null,"",""]
[null,null,null,null,"",""]
[null,null,null,null,"",""]
[null,null,null,null,"",""]
[null,null,null,null,"",""]
[null,null,null,null,"",""]
[null,null,null,null,"",""]
[null,null,null,null,"",""]
[null,null,null,null,"",""]
[null,null,null,null,"",""]
[null,null,null,null,"",""]
[null,null,null,null,"",""]
[null,null,null,null,"",""]
[null,null,null,null,"",""]
[null,null,null,null,"",""]
[null,null,null,null,"",""]
[null,null,null,null,"",""]
[null,null,null,null,"",""]
[null,null,null,null,"",""]
[null,null,null,null,"",""]
[null,null,null,null,"",""]
[null,null,null,null,"",""]
[null,null,null,null,"",""]
[null,null,null,null,"",""]
[null,null,null,null,"",""]
[null,null,null,null,"",""]
[null,null,null,null,"",""]
[null,null,null,null,"",""]
[null,null,null,null,"",""]
[null,null,null,null,"",""]
[null,null,null,null,"",""]
[null,null,null,null,"",""]
[null,null,null,null,"",""]
[null,null,null,null,"",""]
[null,null,null,null,{"$f":"IF(C5292=\"\",\"\",VLOOKUP(C5292,$J$4:$J$10,2,FALSE))","v":""},""]
[null,null,null,null,"",""]
[null,null,null,null,"",""]
[null,null,null,null,"",""]
[null,null,null,null,"",""]
[null,null,null,null,"",""]
[null,null,null,null,"",""]
[null,null,null,null,"",""]
[null,null,null,null,"",""]
[null,null,null,null,"",""]
[null,null,null,null,"",""]
[null,null,null,null,"",""]
[null,null,null,null,"",""]
[null,null,null,null,"",""]
[null,null,null,null,"",""]
[null,null,null,null,"",""]
[null,null,null,null,"",""]
[null,null,null,null,"",""]
[null,null,null,null,"",""]
[null,null,null,null,"",""]
[null,null,null,null,"",""]
[null,null,null,null,"",""]
[null,null,null,null,"",""]
[null,null,null,null,"",""]
[null,null,null,null,"",""]
[null,null,null,null,"",{"$f":"IF(E5317=\"\",\"\",D5317*E5317)","v":""}]
[null,null,null,null,"",""]
[null,null,null,null,"",""]
[null,null,null,null,"",""]
[null,null,null,null,"",""]
[null,null,null,null,"",""]
[null,null,null,null,"",""]
[null,null,null,null,"",""]
[null,null,null,null,"",""]
[null,null,null,null,"",""]
[null,null,null,null,"",""]
[null,null,null,null,"",""]
[null,null,null,null,"",""]
[null,null,null,null,"",""]
[null,null,null,null,"",""]
[null,null,null,null,"",""]
[null,null,null,null,"",""]
[null,null,null,null,"",""]
[null,null,null,null,"",""]
[null,null,null,null,"",""]
[null,null,null,null,"",""]
[null,null,null,null,"",""]
[null,null,null,null,"",""]
[null,null,null,null,"",""]
[null,null,null,null,"",""]
[null,null,null,null,"",""]
[null,null,null,null,"",""]
[null,null,null,null,"",""]
[null,null,null,null,"",""]
[null,null,null,null,"",""]
[null,null,null,null,"",""]
[null,null,null,null,"",""]
[null,null,null,null,"",""]
[null,null,null,null,"",""]
[null,null,null,null,"",""]
[null,null,null,null,"",""]
[null,null,null,null,"",""]
[null,null,null,null,"",""]
[null,null,null,null,"",""]
[null,null,null,null,{"$f":"IF(C5356=\"\",\"\",VLOOKUP(C5356,$J$4:$J$10,2,FALSE))","v":""},""]
[null,null,null,null,"",""]
[null,null,null,null,"",""]
[null,null,null,null,"",""]
[null,null,null,null,"",""]
[null,null,null,null,"",""]
[null,null,null,null,"",""]
[null,null,null,null,"",""]
[null,null,null,null,"",""]
[null,null,null,null,"",""]
[null,null,null,null,"",""]
[null,null,null,null,"",""]
[null,null,null,null,"",""]
[null,null,null,null,"",""]
[null,null,null,null,"",""]
[null,null,null,null,"",""]
[null,null,null,null,"",""]
[null,null,null,null,"",""]
[null,null,null,null,"",""]
[null,null,null,null,"",""]
[null,null,null,null,"",""]
[null,null,null,null,"",""]
[null,null,null,null,"",""]
[null,null,null,null,"",""]
[null,null,null,null,"",""]
[null,null,null,null,"",{"$f":"IF(E5381=\"\",\"\",D5381*E5381)","v":""}]
[null,null,null,null,"",""]
[null,null,null,null,"",""]
[null,null,null,null,"",""]
[null,null,null,null,"",""]
[null,null,null,null,"",""]
[null,null,null,null,"",""]
[null,null,null,null,"",""]
[null,null,null,null,"",""]
[null,null,null,null,"",""]
[null,null,null,null,"",""]
[null,null,null,null,"",""]
[null,null,null,null,"",""]
[null,null,null,null,"",""]
[null,null,null,null,"",""]
[null,null,null,null,"",""]
[null,null,null,null,"",""]
[null,null,null,null,"",""]
[null,null,null,null,"",""]
[null,null,null,null,"",""]
[null,null,null,null,"",""]
[null,null,null,null,"",""]
[null,null,null,null,"",""]
[null,null,null,null,"",""]
[null,null,null,null,"",""]
[null,null,null,null,"",""]
[null,null,null,null,"",""]
[null,null,null,null,"",""]
[null,null,null,null,"",""]
[null,null,null,null,"",""]
[null,null,null,null,"",""]
[null,null,null,null,"",""]
[null,null,null,null,"",""]
[null,null,null,null,"",""]
[null,null,null,null,"",""]
[null,null,null,null,"",""]
[null,null,null,null,"",""]
[null,null,null,null,"",""]
[null,null,null,null,"",""]
[null,null,null,null,{"$f":"IF(C5420=\"\",\"\",VLOOKUP(C5420,$J$4:$J$10,2,FALSE))","v":""},""]
[null,null,null,null,"",""]
[null,null,null,null,"",""]
[null,null,null,null,"",""]
[null,null,null,null,"",""]
[null,null,null,null,"",""]
[null,null,null,null,"",""]
[null,null,null,null,"",""]
[null,null,null,null,"",""]
[null,null,null,null,"",""]
[null,null,null,null,"",""]
[null,null,null,null,"",""]
[null,null,null,null,"",""]
[null,null,null,null,"",""]
[null,null,null,null,"",""]
[null,null,null,null,"",""]
[null,null,null,null,"",""]
[null,null,null,null,"",""]
[null,null,null,null,"",""]
[null,null,null,null,"",""]
[null,null,null,null,"",""]
[null,null,null,null,"",""]
[null,null,null,null,"",""]
[null,null,null,null,"",""]
[null,null,null,null,"",""]
[null,null,null,null,"",{"$f":"IF(E5445=\"\",\"\",D5445*E5445)","v":""}]
[null,null,null,null,"",""]
[null,null,null,null,"",""]
[null,null,null,null,"",""]
[null,null,null,null,"",""]
[null,null,null,null,"",""]
[null,null,null,null,"",""]
[null,null,null,null,"",""]
[null,null,null,null,"",""]
[null,null,null,null,"",""]
[null,null,null,null,"",""]
[null,null,null,null,"",""]
[null,null,null,null,"",""]
[null,null,null,null,"",""]
[null,null,null,null,"",""]
[null,null,null,null,"",""]
[null,null,null,null,"",""]
[null,null,null,null,"",""]
[null,null,null,null,"",""]
[null,null,null,null,"",""]
[null,null,null,null,"",""]
[null,null,null,null,"",""]
[null,null,null,null,"",""]
[null,null,null,null,"",""]
[null,null,null,null,"",""]
[null,null,null,null,"",""]
[null,null,null,null,"",""]
[null,null,null,null,"",""]
[null,null,null,null,"",""]
[null,null,null,null,"",""]
[null,null,null,null,"",""]
[null,null,null,null,"",""]
[null,null,null,null,"",""]
[null,null,null,null,"",""]
[null,null,null,null,"",""]
[null,null,null,null,"",""]
[null,null,null,null,"",""]
[null,null,null,null,"",""]
[null,null,null,null,"",""]
[null,null,null,null,{"$f":"IF(C5484=\"\",\"\",VLOOKUP(C5484,$J$4:$J$10,2,FALSE))","v":""},""]
[null,null,null,null,"",""]
[null,null,null,null,"",""]
[null,null,null,null,"",""]
[null,null,null,null,"",""]
[null,null,null,null,"",""]
[null,null,null,null,"",""]
[null,null,null,null,"",""]
[null,null,null,null,"",""]
[null,null,null,null,"",""]
[null,null,null,null,"",""]
[null,null,null,null,"",""]
[null,null,null,null,"",""]
[null,null,null,null,"",""]
[null,null,null,null,"",""]
[null,null,null,null,"",""]
[null,null,null,null,"",""]
[null,null,null,null,"",""]
[null,null,null,null,"",""]
[null,null,null,null,"",""]
[null,null,null,null,"",""]
[null,null,null,null,"",""]
[null,null,null,null,"",""]
[null,null,null,null,"",""]
[null,null,null,null,"",""]
[null,null,null,null,"",{"$f":"IF(E5509=\"\",\"\",D5509*E5509)","v":""}]
[null,null,null,null,"",""]
[null,null,null,null,"",""]
[null,null,null,null,"",""]
[null,null,null,null,"",""]
[null,null,null,null,"",""]
[null,null,null,null,"",""]
[null,null,null,null,"",""]
[null,null,null,null,"",""]
[null,null,null,null,"",""]
[null,null,null,null,"",""]
[null,null,null,null,"",""]
[null,null,null,null,"",""]
[null,null,null,null,"",""]
[null,null,null,null,"",""]
[null,null,null,null,"",""]
[null,null,null,null,"",""]
[null,null,null,null,"",""]
[null,null,null,null,"",""]
[null,null,null,null,"",""]
[null,null,null,null,"",""]
[null,null,null,null,"",""]
[null,null,null,null,"",""]
[null,null,null,null,"",""]
[null,null,null,null,"",""]
[null,null,null,null,"",""]
[null,null,null,null,"",""]
[null,null,null,null,"",""]
[null,null,null,null,"",""]
[null,null,null,null,"",""]
[null,null,null,null,"",""]
[null,null,null,null,"",""]
[null,null,null,null,"",""]
[null,null,null,null,"",""]
[null,null,null,null,"",""]
[null,null,null,null,"",""]
[null,null,null,null,"",""]
[null,null,null,null,"",""]
[null,null,null,null,"",""]
[null,null,null,null,{"$f":"IF(C5548=\"\",\"\",VLOOKUP(C5548,$J$4:$J$10,2,FALSE))","v":""},""]
[null,null,null,null,"",""]
[null,null,null,null,"",""]
[null,null,null,null,"",""]
[null,null,null,null,"",""]
[null,null,null,null,"",""]
[null,null,null,null,"",""]
[null,null,null,null,"",""]
[null,null,null,null,"",""]
[null,null,null,null,"",""]
[null,null,null,null,"",""]
[null,null,null,null,"",""]
[null,null,null,null,"",""]
[null,null,null,null,"",""]
[null,null,null,null,"",""]
[null,null,null,null,"",""]
[null,null,null,null,"",""]
[null,null,null,null,"",""]
[null,null,null,null,"",""]
[null,null,null,null,"",""]
[null,null,null,null,"",""]
[null,null,null,null,"",""]
[null,null,null,null,"",""]
[null,null,null,null,"",""]
[null,null,null,null,"",""]
[null,null,null,null,"",{"$f":"IF(E5573=\"\",\"\",D5573*E5573)","v":""}]
[null,null,null,null,"",""]
[null,null,null,null,"",""]
[null,null,null,null,"",""]
[null,null,null,null,"",""]
[null,null,null,null,"",""]
[null,null,null,null,"",""]
[null,null,null,null,"",""]
[null,null,null,null,"",""]
[null,null,null,null,"",""]
[null,null,null,null,"",""]
[null,null,null,null,"",""]
[null,null,null,null,"",""]
[null,null,null,null,"",""]
[null,null,null,null,"",""]
[null,null,null,null,"",""]
[null,null,null,null,"",""]
[null,null,null,null,"",""]
[null,null,null,null,"",""]
[null,null,null,null,"",""]
[null,null,null,null,"",""]
[null,null,null,null,"",""]
[null,null,null,null,"",""]
[null,null,null,null,"",""]
[null,null,null,null,"",""]
[null,null,null,null,"",""]
[null,null,null,null,"",""]
[null,null,null,null,"",""]
[null,null,null,null,"",""]
[null,null,null,null,"",""]
[null,null,null,null,"",""]
[null,null,null,null,"",""]
[null,null,null,null,"",""]
[null,null,null,null,"",""]
[null,null,null,null,"",""]
[null,null,null,null,"",""]
[null,null,null,null,"",""]
[null,null,null,null,"",""]
[null,null,null,null,"",""]
[null,null,null,null,{"$f":"IF(C5612=\"\",\"\",VLOOKUP(C5612,$J$4:$J$10,2,FALSE))","v":""},""]
[null,null,null,null,"",""]
[null,null,null,null,"",""]
[null,null,null,null,"",""]
[null,null,null,null,"",""]
[null,null,null,null,"",""]
[null,null,null,null,"",""]
[null,null,null,null,"",""]
[null,null,null,null,"",""]
[null,null,null,null,"",""]
[null,null,null,null,"",""]
[null,null,null,null,"",""]
[null,null,null,null,"",""]
[null,null,null,null,"",""]
[null,null,null,null,"",""]
[null,null,null,null,"",""]
[null,null,null,null,"",""]
[null,null,null,null,"",""]
[null,null,null,null,"",""]
[null,null,null,null,"",""]
[null,null,null,null,"",""]
[null,null,null,null,"",""]
[null,null,null,null,"",""]
[null,null,null,null,"",""]
[null,null,null,null,"",""]
[null,null,null,null,"",{"$f":"IF(E5637=\"\",\"\",D5637*E5637)","v":""}]
[null,null,null,null,"",""]
[null,null,null,null,"",""]
[null,null,null,null,"",""]
[null,null,null,null,"",""]
[null,null,null,null,"",""]
[null,null,null,null,"",""]
[null,null,null,null,"",""]
[null,null,null,null,"",""]
[null,null,null,null,"",""]
[null,null,null,null,"",""]
[null,null,null,null,"",""]
[null,null,null,null,"",""]
[null,null,null,null,"",""]
[null,null,null,null,"",""]
[null,null,null,null,"",""]
[null,null,null,null,"",""]
[null,null,null,null,"",""]
[null,null,null,null,"",""]
[null,null,null,null,"",""]
[null,null,null,null,"",""]
[null,null,null,null,"",""]
[null,null,null,null,"",""]
[null,null,null,null,"",""]
[null,null,null,null,"",""]
[null,null,null,null,"",""]
[null,null,null,null,"",""]
[null,null,null,null,"",""]
[null,null,null,null,"",""]
[null,null,null,null,"",""]
[null,null,null,null,"",""]
[null,null,null,null,"",""]
[null,null,null,null,"",""]
[null,null,null,null,"",""]
[null,null,null,null,"",""]
[null,null,null,null,"",""]
[null,null,null,null,"",""]
[null,null,null,null,"",""]
[null,null,null,null,"",""]
[null,null,null,null,{"$f":"IF(C5676=\"\",\"\",VLOOKUP(C5676,$J$4:$J$10,2,FALSE))","v":""},""]
[null,null,null,null,"",""]
[null,null,null,null,"",""]
[null,null,null,null,"",""]
[null,null,null,null,"",""]
[null,null,null,null,"",""]
[null,null,null,null,"",""]
[null,null,null,null,"",""]
[null,null,null,null,"",""]
[null,null,null,null,"",""]
[null,null,null,null,"",""]
[null,null,null,null,"",""]
[null,null,null,null,"",""]
[null,null,null,null,"",""]
[null,null,null,null,"",""]
[null,null,null,null,"",""]
[null,null,null,null,"",""]
[null,null,null,null,"",""]
[null,null,null,null,"",""]
[null,null,null,null,"",""]
[null,null,null,null,"",""]
[null,null,null,null,"",""]
[null,null,null,null,"",""]
[null,null,null,null,"",""]
[null,null,null,null,"",""]
[null,null,null,null,"",{"$f":"IF(E5701=\"\",\"\",D5701*E5701)","v":""}]
[null,null,null,null,"",""]
[null,null,null,null,"",""]
[null,null,null,null,"",""]
[null,null,null,null,"",""]
[null,null,null,null,"",""]
[null,null,null,null,"",""]
[null,null,null,null,"",""]
[null,null,null,null,"",""]
[null,null,null,null,"",""]
[null,null,null,null,"",""]
[null,null,null,null,"",""]
[null,null,null,null,"",""]
[null,null,null,null,"",""]
[null,null,null,null,"",""]
[null,null,null,null,"",""]
[null,null,null,null,"",""]
[null,null,null,null,"",""]
[null,null,null,null,"",""]
[null,null,null,null,"",""]
[null,null,null,null,"",""]
[null,null,null,null,"",""]
[null,null,null,null,"",""]
[null,null,null,null,"",""]
[null,null,null,null,"",""]
[null,null,null,null,"",""]
[null,null,null,null,"",""]
[null,null,null,null,"",""]
[null,null,null,null,"",""]
[null,null,null,null,"",""]
[null,null,null,null,"",""]
[null,null,null,null,"",""]
[null,null,null,null,"",""]
[null,null,null,null,"",""]
[null,null,null,null,"",""]
[null,null,null,null,"",""]
[null,null,null,null,"",""]
[null,null,null,null,"",""]
[null,null,null,null,"",""]
[null,null,null,null,{"$f":"IF(C5740=\"\",\"\",VLOOKUP(C5740,$J$4:$J$10,2,FALSE))","v":""},""]
[null,null,null,null,"",""]
[null,null,null,null,"",""]
[null,null,null,null,"",""]
[null,null,null,null,"",""]
[null,null,null,null,"",""]
[null,null,null,null,"",""]
[null,null,null,null,"",""]
[null,null,null,null,"",""]
[null,null,null,null,"",""]
[null,null,null,null,"",""]
[null,null,null,null,"",""]
[null,null,null,null,"",""]
[null,null,null,null,"",""]
[null,null,null,null,"",""]
[null,null,null,null,"",""]
[null,null,null,null,"",""]
[null,null,null,null,"",""]
[null,null,null,null,"",""]
[null,null,null,null,"",""]
[null,null,null,null,"",""]
[null,null,null,null,"",""]
[null,null,null,null,"",""]
[null,null,null,null,"",""]
[null,null,null,null,"",""]
[null,null,null,null,"",{"$f":"IF(E5765=\"\",\"\",D5765*E5765)","v":""}]
[null,null,null,null,"",""]
[null,null,null,null,"",""]
[null,null,null,null,"",""]
[null,null,null,null,"",""]
[null,null,null,null,"",""]
[null,null,null,null,"",""]
[null,null,null,null,"",""]
[null,null,null,null,"",""]
[null,null,null,null,"",""]
[null,null,null,null,"",""]
[null,null,null,null,"",""]
[null,null,null,null,"",""]
[null,null,null,null,"",""]
[null,null,null,null,"",""]
[null,null,null,null,"",""]
[null,null,null,null,"",""]
[null,null,null,null,"",""]
[null,null,null,null,"",""]
[null,null,null,null,"",""]
[null,null,null,null,"",""]
[null,null,null,null,"",""]
[null,null,null,null,"",""]
[null,null,null,null,"",""]
[null,null,null,null,"",""]
[null,null,null,null,"",""]
[null,null,null,null,"",""]
[null,null,null,null,"",""]
[null,null,null,null,"",""]
[null,null,null,null,"",""]
[null,null,null,null,"",""]
[null,null,null,null,"",""]
[null,null,null,null,"",""]
[null,null,null,null,"",""]
[null,null,null,null,"",""]
[null,null,null,null,"",""]
[null,null,null,null,"",""]
[null,null,null,null,"",""]
[null,null,null,null,"",""]
[null,null,null,null,{"$f":"IF(C5804=\"\",\"\",VLOOKUP(C5804,$J$4:$J$10,2,FALSE))","v":""},""]
[null,null,null,null,"",""]
[null,null,null,null,"",""]
[null,null,null,null,"",""]
[null,null,null,null,"",""]
[null,null,null,null,"",""]
[null,null,null,null,"",""]
[null,null,null,null,"",""]
[null,null,null,null,"",""]
[null,null,null,null,"",""]
[null,null,null,null,"",""]
[null,null,null,null,"",""]
[null,null,null,null,"",""]
[null,null,null,null,"",""]
[null,null,null,null,"",""]
[null,null,null,null,"",""]
[null,null,null,null,"",""]
[null,null,null,null,"",""]
[null,null,null,null,"",""]
[null,null,null,null,"",""]
[null,null,null,null,"",""]
[null,null,null,null,"",""]
[null,null,null,null,"",""]
[null,null,null,null,"",""]
[null,null,null,null,"",""]
[null,null,null,null,"",{"$f":"IF(E5829=\"\",\"\",D5829*E5829)","v":""}]
[null,null,null,null,"",""]
[null,null,null,null,"",""]
[null,null,null,null,"",""]
[null,null,null,null,"",""]
[null,null,null,null,"",""]
[null,null,null,null,"",""]
[null,null,null,null,"",""]
[null,null,null,null,"",""]
[null,null,null,null,"",""]
[null,null,null,null,"",""]
[null,null,null,null,"",""]
[null,null,null,null,"",""]
[null,null,null,null,"",""]
[null,null,null,null,"",""]
[null,null,null,null,"",""]
[null,null,null,null,"",""]
[null,null,null,null,"",""]
[null,null,null,null,"",""]
[null,null,null,null,"",""]
[null,null,null,null,"",""]
[null,null,null,null,"",""]
[null,null,null,null,"",""]
[null,null,null,null,"",""]
[null,null,null,null,"",""]
[null,null,null,null,"",""]
[null,null,null,null,"",""]
[null,null,null,null,"",""]
[null,null,null,null,"",""]
[null,null,null,null,"",""]
[null,null,null,null,"",""]
[null,null,null,null,"",""]
[null,null,null,null,"",""]
[null,null,null,null,"",""]
[null,null,null,null,"",""]
[null,null,null,null,"",""]
[null,null,null,null,"",""]
[null,null,null,null,"",""]
[null,null,null,null,"",""]
[null,null,null,null,{"$f":"IF(C5868=\"\",\"\",VLOOKUP(C5868,$J$4:$J$10,2,FALSE))","v":""},""]
[null,null,null,null,"",""]
[null,null,null,null,"",""]
[null,null,null,null,"",""]
[null,null,null,null,"",""]
[null,null,null,null,"",""]
[null,null,null,null,"",""]
[null,null,null,null,"",""]
[null,null,null,null,"",""]
[null,null,null,null,"",""]
[null,null,null,null,"",""]
[null,null,null,null,"",""]
[null,null,null,null,"",""]
[null,null,null,null,"",""]
[null,null,null,null,"",""]
[null,null,null,null,"",""]
[null,null,null,null,"",""]
[null,null,null,null,"",""]
[null,null,null,null,"",""]
[null,null,null,null,"",""]
[null,null,null,null,"",""]
[null,null,null,null,"",""]
[null,null,null,null,"",""]
[null,null,null,null,"",""]
[null,null,null,null,"",""]
[null,null,null,null,"",{"$f":"IF(E5893=\"\",\"\",D5893*E5893)","v":""}]
[null,null,null,null,"",""]
[null,null,null,null,"",""]
[null,null,null,null,"",""]
[null,null,null,null,"",""]
[null,null,null,null,"",""]
[null,null,null,null,"",""]
[null,null,null,null,"",""]
[null,null,null,null,"",""]
[null,null,null,null,"",""]
[null,null,null,null,"",""]
[null,null,null,null,"",""]
[null,null,null,null,"",""]
[null,null,null,null,"",""]
[null,null,null,null,"",""]
[null,null,null,null,"",""]
[null,null,null,null,"",""]
[null,null,null,null,"",""]
[null,null,null,null,"",""]
[null,null,null,null,"",""]
[null,null,null,null,"",""]
[null,null,null,null,"",""]
[null,null,null,null,"",""]
[null,null,null,null,"",""]
[null,null,null,null,"",""]
[null,null,null,null,"",""]
[null,null,null,null,"",""]
[null,null,null,null,"",""]
[null,null,null,null,"",""]
[null,null,null,null,"",""]
[null,null,null,null,"",""]
[null,null,null,null,"",""]
[null,null,null,null,"",""]
[null,null,null,null,"",""]
[null,null,null,null,"",""]
[null,null,null,null,"",""]
[null,null,null,null,"",""]
[null,null,null,null,"",""]
[null,null,null,null,"",""]
[null,null,null,null,{"$f":"IF(C5932=\"\",\"\",VLOOKUP(C5932,$J$4:$J$10,2,FALSE))","v":""},""]
[null,null,null,null,"",""]
[null,null,null,null,"",""]
[null,null,null,null,"",""]
[null,null,null,null,"",""]
[null,null,null,null,"",""]
[null,null,null,null,"",""]
[null,null,null,null,"",""]
[null,null,null,null,"",""]
[null,null,null,null,"",""]
[null,null,null,null,"",""]
[null,null,null,null,"",""]
[null,null,null,null,"",""]
[null,null,null,null,"",""]
[null,null,null,null,"",""]
[null,null,null,null,"",""]
[null,null,null,null,"",""]
[null,null,null,null,"",""]
[null,null,null,null,"",""]
[null,null,null,null,"",""]
[null,null,null,null,"",""]
[null,null,null,null,"",""]
[null,null,null,null,"",""]
[null,null,null,null,"",""]
[null,null,null,null,"",""]
[null,null,null,null,"",{"$f":"IF(E5957=\"\",\"\",D5957*E5957)","v":""}]
[null,null,null,null,"",""]
[null,null,null,null,"",""]
[null,null,null,null,"",""]
[null,null,null,null,"",""]
[null,null,null,null,"",""]
[null,null,null,null,"",""]
[null,null,null,null,"",""]
[null,null,null,null,"",""]
[null,null,null,null,"",""]
[null,null,null,null,"",""]
[null,null,null,null,"",""]
[null,null,null,null,"",""]
[null,null,null,null,"",""]
[null,null,null,null,"",""]
[null,null,null,null,"",""]
[null,null,null,null,"",""]
[null,null,null,null,"",""]
[null,null,null,null,"",""]
[null,null,null,null,"",""]
[null,null,null,null,"",""]
[null,null,null,null,"",""]
[null,null,null,null,"",""]
[null,null,null,null,"",""]
[null,null,null,null,"",""]
[null,null,null,null,"",""]
[null,null,null,null,"",""]
[null,null,null,null,"",""]
[null,null,null,null,"",""]
[null,null,null,null,"",""]
[null,null,null,null,"",""]
[null,null,null,null,"",""]
[null,null,null,null,"",""]
[null,null,null,null,"",""]
[null,null,null,null,"",""]
[null,null,null,null,"",""]
[null,null,null,null,"",""]
[null,null,null,null,"",""]
[null,null,null,null,"",""]
[null,null,null,null,{"$f":"IF(C5996=\"\",\"\",VLOOKUP(C5996,$J$4:$J$10,2,FALSE))","v":""},""]
[null,null,null,null,"",""]
[null,null,null,null,"",""]
[null,null,null,null,"",""]
[null,null,null,null,"",""]
[null,null,null,null,"",""]
[null,null,null,null,"",""]
[null,null,null,null,"",""]
[null,null,null,null,"",""]
[null,null,null,null,"",""]
[null,null,null,null,"",""]
[null,null,null,null,"",""]
[null,null,null,null,"",""]
[null,null,null,null,"",""]
[null,null,null,null,"",""]
[null,null,null,null,"",""]
[null,null,null,null,"",""]
[null,null,null,null,"",""]
[null,null,null,null,"",""]
[null,null,null,null,"",""]
[null,null,null,null,"",""]
[null,null,null,null,"",""]
[null,null,null,null,"",""]
[null,null,null,null,"",""]
[null,null,null,null,"",""]
[null,null,null,null,"",{"$f":"IF(E6021=\"\",\"\",D6021*E6021)","v":""}]
[null,null,null,null,"",""]
[null,null,null,null,"",""]
[null,null,null,null,"",""]
[null,null,null,null,"",""]
[null,null,null,null,"",""]
[null,null,null,null,"",""]
[null,null,null,null,"",""]
[null,null,null,null,"",""]
[null,null,null,null,"",""]
[null,null,null,null,"",""]
[null,null,null,null,"",""]
[null,null,null,null,"",""]
[null,null,null,null,"",""]
[null,null,null,null,"",""]
[null,null,null,null,"",""]
[null,null,null,null,"",""]
[null,null,null,null,"",""]
[null,null,null,null,"",""]
[null,null,null,null,"",""]
[null,null,null,null,"",""]
[null,null,null,null,"",""]
[null,null,null,null,"",""]
[null,null,null,null,"",""]
[null,null,null,null,"",""]
[null,null,null,null,"",""]
[null,null,null,null,"",""]
[null,null,null,null,"",""]
[null,null,null,null,"",""]
[null,null,null,null,"",""]
[null,null,null,null,"",""]
[null,null,null,null,"",""]
[null,null,null,null,"",""]
[null,null,null,null,"",""]
[null,null,null,null,"",""]
[null,null,null,null,"",""]
[null,null,null,null,"",""]
[null,null,null,null,"",""]
[null,null,null,null,"",""]
[null,null,null,null,{"$f":"IF(C6060=\"\",\"\",VLOOKUP(C6060,$J$4:$J$10,2,FALSE))","v":""},""]
[null,null,null,null,"",""]
[null,null,null,null,"",""]
[null,null,null,null,"",""]
[null,null,null,null,"",""]
[null,null,null,null,"",""]
[null,null,null,null,"",""]
[null,null,null,null,"",""]
[null,null,null,null,"",""]
[null,null,null,null,"",""]
[null,null,null,null,"",""]
[null,null,null,null,"",""]
[null,null,null,null,"",""]
[null,null,null,null,"",""]
[null,null,null,null,"",""]
[null,null,null,null,"",""]
[null,null,null,null,"",""]
[null,null,null,null,"",""]
[null,null,null,null,"",""]
[null,null,null,null,"",""]
[null,null,null,null,"",""]
[null,null,null,null,"",""]
[null,null,null,null,"",""]
[null,null,null,null,"",""]
[null,null,null,null,"",""]
[null,null,null,null,"",{"$f":"IF(E6085=\"\",\"\",D6085*E6085)","v":""}]
[null,null,null,null,"",""]
[null,null,null,null,"",""]
[null,null,null,null,"",""]
[null,null,null,null,"",""]
[null,null,null,null,"",""]
[null,null,null,null,"",""]
[null,null,null,null,"",""]
[null,null,null,null,"",""]
[null,null,null,null,"",""]
[null,null,null,null,"",""]
[null,null,null,null,"",""]
[null,null,null,null,"",""]
[null,null,null,null,"",""]
[null,null,null,null,"",""]
[null,null,null,null,"",""]
[null,null,null,null,"",""]
[null,null,null,null,"",""]
[null,null,null,null,"",""]
[null,null,null,null,"",""]
[null,null,null,null,"",""]
[null,null,null,null,"",""]
[null,null,null,null,"",""]
[null,null,null,null,"",""]
[null,null,null,null,"",""]
[null,null,null,null,"",""]
[null,null,null,null,"",""]
[null,null,null,null,"",""]
[null,null,null,null,"",""]
[null,null,null,null,"",""]
[null,null,null,null,"",""]
[null,null,null,null,"",""]
[null,null,null,null,"",""]
[null,null,null,null,"",""]
[null,null,null,null,"",""]
[null,null,null,null,"",""]
[null,null,null,null,"",""]
[null,null,null,null,"",""]
[null,null,null,null,"",""]
[null,null,null,null,{"$f":"IF(C6124=\"\",\"\",VLOOKUP(C6124,$J$4:$J$10,2,FALSE))","v":""},""]
[null,null,null,null,"",""]
[null,null,null,null,"",""]
[null,null,null,null,"",""]
[null,null,null,null,"",""]
[null,null,null,null,"",""]
[null,null,null,null,"",""]
[null,null,null,null,"",""]
[null,null,null,null,"",""]
[null,null,null,null,"",""]
[null,null,null,null,"",""]
[null,null,null,null,"",""]
[null,null,null,null,"",""]
[null,null,null,null,"",""]
[null,null,null,null,"",""]
[null,null,null,null,"",""]
[null,null,null,null,"",""]
[null,null,null,null,"",""]
[null,null,null,null,"",""]
[null,null,null,null,"",""]
[null,null,null,null,"",""]
[null,null,null,null,"",""]
[null,null,null,null,"",""]
[null,null,null,null,"",""]
[null,null,null,null,"",""]
[null,null,null,null,"",{"$f":"IF(E6149=\"\",\"\",D6149*E6149)","v":""}]
[null,null,null,null,"",""]
[null,null,null,null,"",""]
[null,null,null,null,"",""]
[null,null,null,null,"",""]
[null,null,null,null,"",""]
[null,null,null,null,"",""]
[null,null,null,null,"",""]
[null,null,null,null,"",""]
[null,null,null,null,"",""]
[null,null,null,null,"",""]
[null,null,null,null,"",""]
[null,null,null,null,"",""]
[null,null,null,null,"",""]
[null,null,null,null,"",""]
[null,null,null,null,"",""]
[null,null,null,null,"",""]
[null,null,null,null,"",""]
[null,null,null,null,"",""]
[null,null,null,null,"",""]
[null,null,null,null,"",""]
[null,null,null,null,"",""]
[null,null,null,null,"",""]
[null,null,null,null,"",""]
[null,null,null,null,"",""]
[null,null,null,null,"",""]
[null,null,null,null,"",""]
[null,null,null,null,"",""]
[null,null,null,null,"",""]
[null,null,null,null,"",""]
[null,null,null,null,"",""]
[null,null,null,null,"",""]
[null,null,null,null,"",""]
[null,null,null,null,"",""]
[null,null,null,null,"",""]
[null,null,null,null,"",""]
[null,null,null,null,"",""]
[null,null,null,null,"",""]
[null,null,null,null,"",""]
[null,null,null,null,{"$f":"IF(C6188=\"\",\"\",VLOOKUP(C6188,$J$4:$J$10,2,FALSE))","v":""},""]
[null,null,null,null,"",""]
[null,null,null,null,"",""]
[null,null,null,null,"",""]
[null,null,null,null,"",""]
[null,null,null,null,"",""]
[null,null,null,null,"",""]
[null,null,null,null,"",""]
[null,null,null,null,"",""]
[null,null,null,null,"",""]
[null,null,null,null,"",""]
[null,null,null,null,"",""]
[null,null,null,null,"",""]
[null,null,null,null,"",""]
[null,null,null,null,"",""]
[null,null,null,null,"",""]
[null,null,null,null,"",""]
[null,null,null,null,"",""]
[null,null,null,null,"",""]
[null,null,null,null,"",""]
[null,null,null,null,"",""]
[null,null,null,null,"",""]
[null,null,null,null,"",""]
[null,null,null,null,"",""]
[null,null,null,null,"",""]
[null,null,null,null,"",{"$f":"IF(E6213=\"\",\"\",D6213*E6213)","v":""}]
[null,null,null,null,"",""]
[null,null,null,null,"",""]
[null,null,null,null,"",""]
[null,null,null,null,"",""]
[null,null,null,null,"",""]
[null,null,null,null,"",""]
[null,null,null,null,"",""]
[null,null,null,null,"",""]
[null,null,null,null,"",""]
[null,null,null,null,"",""]
[null,null,null,null,"",""]
[null,null,null,null,"",""]
[null,null,null,null,"",""]
[null,null,null,null,"",""]
[null,null,null,null,"",""]
[null,null,null,null,"",""]
[null,null,null,null,"",""]
[null,null,null,null,"",""]
[null,null,null,null,"",""]
[null,null,null,null,"",""]
[null,null,null,null,"",""]
[null,null,null,null,"",""]
[null,null,null,null,"",""]
[null,null,null,null,"",""]
[null,null,null,null,"",""]
[null,null,null,null,"",""]
[null,null,null,null,"",""]
[null,null,null,null,"",""]
[null,null,null,null,"",""]
[null,null,null,null,"",""]
[null,null,null,null,"",""]
[null,null,null,null,"",""]
[null,null,null,null,"",""]
[null,null,null,null,"",""]
[null,null,null,null,"",""]
[null,null,null,null,"",""]
[null,null,null,null,"",""]
[null,null,null,null,"",""]
[null,null,null,null,{"$f":"IF(C6252=\"\",\"\",VLOOKUP(C6252,$J$4:$J$10,2,FALSE))","v":""},""]
[null,null,null,null,"",""]
[null,null,null,null,"",""]
[null,null,null,null,"",""]
[null,null,null,null,"",""]
[null,null,null,null,"",""]
[null,null,null,null,"",""]
[null,null,null,null,"",""]
[null,null,null,null,"",""]
[null,null,null,null,"",""]
[null,null,null,null,"",""]
[null,null,null,null,"",""]
[null,null,null,null,"",""]
[null,null,null,null,"",""]
[null,null,null,null,"",""]
[null,null,null,null,"",""]
[null,null,null,null,"",""]
[null,null,null,null,"",""]
[null,null,null,null,"",""]
[null,null,null,null,"",""]
[null,null,null,null,"",""]
[null,null,null,null,"",""]
[null,null,null,null,"",""]
[null,null,null,null,"",""]
[null,null,null,null,"",""]
[null,null,null,null,"",{"$f":"IF(E6277=\"\",\"\",D6277*E6277)","v":""}]
[null,null,null,null,"",""]
[null,null,null,null,"",""]
[null,null,null,null,"",""]
[null,null,null,null,"",""]
[null,null,null,null,"",""]
[null,null,null,null,"",""]
[null,null,null,null,"",""]
[null,null,null,null,"",""]
[null,null,null,null,"",""]
[null,null,null,null,"",""]
[null,null,null,null,"",""]
[null,null,null,null,"",""]
[null,null,null,null,"",""]
[null,null,null,null,"",""]
[null,null,null,null,"",""]
[null,null,null,null,"",""]
[null,null,null,null,"",""]
[null,null,null,null,"",""]
[null,null,null,null,"",""]
[null,null,null,null,"",""]
[null,null,null,null,"",""]
[null,null,null,null,"",""]
[null,null,null,null,"",""]
[null,null,null,null,"",""]
[null,null,null,null,"",""]
[null,null,null,null,"",""]
[null,null,null,null,"",""]
[null,null,null,null,"",""]
[null,null,null,null,"",""]
[null,null,null,null,"",""]
[null,null,null,null,"",""]
[null,null,null,null,"",""]
[null,null,null,null,"",""]
[null,null,null,null,"",""]
[null,null,null,null,"",""]
[null,null,null,null,"",""]
[null,null,null,null,"",""]
[null,null,null,null,"",""]
[null,null,null,null,{"$f":"IF(C6316=\"\",\"\",VLOOKUP(C6316,$J$4:$J$10,2,FALSE))","v":""},""]
[null,null,null,null,"",""]
[null,null,null,null,"",""]
[null,null,null,null,"",""]
[null,null,null,null,"",""]
[null,null,null,null,"",""]
[null,null,null,null,"",""]
[null,null,null,null,"",""]
[null,null,null,null,"",""]
[null,null,null,null,"",""]
[null,null,null,null,"",""]
[null,null,null,null,"",""]
[null,null,null,null,"",""]
[null,null,null,null,"",""]
[null,null,null,null,"",""]
[null,null,null,null,"",""]
[null,null,null,null,"",""]
[null,null,null,null,"",""]
[null,null,null,null,"",""]
[null,null,null,null,"",""]
[null,null,null,null,"",""]
[null,null,null,null,"",""]
[null,null,null,null,"",""]
[null,null,null,null,"",""]
[null,null,null,null,"",""]
[null,null,null,null,"",{"$f":"IF(E6341=\"\",\"\",D6341*E6341)","v":""}]
[null,null,null,null,"",""]
[null,null,null,null,"",""]
[null,null,null,null,"",""]
[null,null,null,null,"",""]
[null,null,null,null,"",""]
[null,null,null,null,"",""]
[null,null,null,null,"",""]
[null,null,null,null,"",""]
[null,null,null,null,"",""]
[null,null,null,null,"",""]
[null,null,null,null,"",""]
[null,null,null,null,"",""]
[null,null,null,null,"",""]
[null,null,null,null,"",""]
[null,null,null,null,"",""]
[null,null,null,null,"",""]
[null,null,null,null,"",""]
[null,null,null,null,"",""]
[null,null,null,null,"",""]
[null,null,null,null,"",""]
[null,null,null,null,"",""]
[null,null,null,null,"",""]
[null,null,null,null,"",""]
[null,null,null,null,"",""]
[null,null,null,null,"",""]
[null,null,null,null,"",""]
[null,null,null,null,"",""]
[null,null,null,null,"",""]
[null,null,null,null,"",""]
[null,null,null,null,"",""]
[null,null,null,null,"",""]
[null,null,null,null,"",""]
[null,null,null,null,"",""]
[null,null,null,null,"",""]
[null,null,null,null,"",""]
[null,null,null,null,"",""]
[null,null,null,null,"",""]
[null,null,null,null,"",""]
[null,null,null,null,{"$f":"IF(C6380=\"\",\"\",VLOOKUP(C6380,$J$4:$J$10,2,FALSE))","v":""},""]
[null,null,null,null,"",""]
[null,null,null,null,"",""]
[null,null,null,null,"",""]
[null,null,null,null,"",""]
[null,null,null,null,"",""]
[null,null,null,null,"",""]
[null,null,null,null,"",""]
[null,null,null,null,"",""]
[null,null,null,null,"",""]
[null,null,null,null,"",""]
[null,null,null,null,"",""]
[null,null,null,null,"",""]
[null,null,null,null,"",""]
[null,null,null,null,"",""]
[null,null,null,null,"",""]
[null,null,null,null,"",""]
[null,null,null,null,"",""]
[null,null,null,null,"",""]
[null,null,null,null,"",""]
[null,null,null,null,"",""]
[null,null,null,null,"",""]
[null,null,null,null,"",""]
[null,null,null,null,"",""]
[null,null,null,null,"",""]
[null,null,null,null,"",{"$f":"IF(E6405=\"\",\"\",D6405*E6405)","v":""}]
[null,null,null,null,"",""]
[null,null,null,null,"",""]
[null,null,null,null,"",""]
[null,null,null,null,"",""]
[null,null,null,null,"",""]
[null,null,null,null,"",""]
[null,null,null,null,"",""]
[null,null,null,null,"",""]
[null,null,null,null,"",""]
[null,null,null,null,"",""]
[null,null,null,null,"",""]
[null,null,null,null,"",""]
[null,null,null,null,"",""]
[null,null,null,null,"",""]
[null,null,null,null,"",""]
[null,null,null,null,"",""]
[null,null,null,null,"",""]
[null,null,null,null,"",""]
[null,null,null,null,"",""]
[null,null,null,null,"",""]
[null,null,null,null,"",""]
[null,null,null,null,"",""]
[null,null,null,null,"",""]
[null,null,null,null,"",""]
[null,null,null,null,"",""]
[null,null,null,null,"",""]
[null,null,null,null,"",""]
[null,null,null,null,"",""]
[null,null,null,null,"",""]
[null,null,null,null,"",""]
[null,null,null,null,"",""]
[null,null,null,null,"",""]
[null,null,null,null,"",""]
[null,null,null,null,"",""]
[null,null,null,null,"",""]
[null,null,null,null,"",""]
[null,null,null,null,"",""]
[null,null,null,null,"",""]
[null,null,null,null,{"$f":"IF(C6444=\"\",\"\",VLOOKUP(C6444,$J$4:$J$10,2,FALSE))","v":""},""]
[null,null,null,null,"",""]
[null,null,null,null,"",""]
[null,null,null,null,"",""]
[null,null,null,null,"",""]
[null,null,null,null,"",""]
[null,null,null,null,"",""]
[null,null,null,null,"",""]
[null,null,null,null,"",""]
[null,null,null,null,"",""]
[null,null,null,null,"",""]
[null,null,null,null,"",""]
[null,null,null,null,"",""]
[null,null,null,null,"",""]
[null,null,null,null,"",""]
[null,null,null,null,"",""]
[null,null,null,null,"",""]
[null,null,null,null,"",""]
[null,null,null,null,"",""]
[null,null,null,null,"",""]
[null,null,null,null,"",""]
[null,null,null,null,"",""]
[null,null,null,null,"",""]
[null,null,null,null,"",""]
[null,null,null,null,"",""]
[null,null,null,null,"",{"$f":"IF(E6469=\"\",\"\",D6469*E6469)","v":""}]
[null,null,null,null,"",""]
[null,null,null,null,"",""]
[null,null,null,null,"",""]
[null,null,null,null,"",""]
[null,null,null,null,"",""]
[null,null,null,null,"",""]
[null,null,null,null,"",""]
[null,null,null,null,"",""]
[null,null,null,null,"",""]
[null,null,null,null,"",""]
[null,null,null,null,"",""]
[null,null,null,null,"",""]
[null,null,null,null,"",""]
[null,null,null,null,"",""]
[null,null,null,null,"",""]
[null,null,null,null,"",""]
[null,null,null,null,"",""]
[null,null,null,null,"",""]
[null,null,null,null,"",""]
[null,null,null,null,"",""]
[null,null,null,null,"",""]
[null,null,null,null,"",""]
[null,null,null,null,"",""]
[null,null,null,null,"",""]
[null,null,null,null,"",""]
[null,null,null,null,"",""]
[null,null,null,null,"",""]
[null,null,null,null,"",""]
[null,null,null,null,"",""]
[null,null,null,null,"",""]
[null,null,null,null,"",""]
[null,null,null,null,"",""]
[null,null,null,null,"",""]
[null,null,null,null,"",""]
[null,null,null,null,"",""]
[null,null,null,null,"",""]
[null,null,null,null,"",""]
[null,null,null,null,"",""]
[null,null,null,null,{"$f":"IF(C6508=\"\",\"\",VLOOKUP(C6508,$J$4:$J$10,2,FALSE))","v":""},""]
[null,null,null,null,"",""]
[null,null,null,null,"",""]
[null,null,null,null,"",""]
[null,null,null,null,"",""]
[null,null,null,null,"",""]
[null,null,null,null,"",""]
[null,null,null,null,"",""]
[null,null,null,null,"",""]
[null,null,null,null,"",""]
[null,null,null,null,"",""]
[null,null,null,null,"",""]
[null,null,null,null,"",""]
[null,null,null,null,"",""]
[null,null,null,null,"",""]
[null,null,null,null,"",""]
[null,null,null,null,"",""]
[null,null,null,null,"",""]
[null,null,null,null,"",""]
[null,null,null,null,"",""]
[null,null,null,null,"",""]
[null,null,null,null,"",""]
[null,null,null,null,"",""]
[null,null,null,null,"",""]
[null,null,null,null,"",""]
[null,null,null,null,"",{"$f":"IF(E6533=\"\",\"\",D6533*E6533)","v":""}]
[null,null,null,null,"",""]
[null,null,null,null,"",""]
[null,null,null,null,"",""]
[null,null,null,null,"",""]
[null,null,null,null,"",""]
[null,null,null,null,"",""]
[null,null,null,null,"",""]
[null,null,null,null,"",""]
[null,null,null,null,"",""]
[null,null,null,null,"",""]
[null,null,null,null,"",""]
[null,null,null,null,"",""]
[null,null,null,null,"",""]
[null,null,null,null,"",""]
[null,null,null,null,"",""]
[null,null,null,null,"",""]
[null,null,null,null,"",""]
[null,null,null,null,"",""]
[null,null,null,null,"",""]
[null,null,null,null,"",""]
[null,null,null,null,"",""]
[null,null,null,null,"",""]
[null,null,null,null,"",""]
[null,null,null,null,"",""]
[null,null,null,null,"",""]
[null,null,null,null,"",""]
[null,null,null,null,"",""]
[null,null,null,null,"",""]
[null,null,null,null,"",""]
[null,null,null,null,"",""]
[null,null,null,null,"",""]
[null,null,null,null,"",""]
[null,null,null,null,"",""]
[null,null,null,null,"",""]
[null,null,null,null,"",""]
[null,null,null,null,"",""]
[null,null,null,null,"",""]
[null,null,null,null,"",""]
[null,null,null,null,{"$f":"IF(C6572=\"\",\"\",VLOOKUP(C6572,$J$4:$J$10,2,FALSE))","v":""},""]
[null,null,null,null,"",""]
[null,null,null,null,"",""]
[null,null,null,null,"",""]
[null,null,null,null,"",""]
[null,null,null,null,"",""]
[null,null,null,null,"",""]
[null,null,null,null,"",""]
[null,null,null,null,"",""]
[null,null,null,null,"",""]
[null,null,null,null,"",""]
[null,null,null,null,"",""]
[null,null,null,null,"",""]
[null,null,null,null,"",""]
[null,null,null,null,"",""]
[null,null,null,null,"",""]
[null,null,null,null,"",""]
[null,null,null,null,"",""]
[null,null,null,null,"",""]
[null,null,null,null,"",""]
[null,null,null,null,"",""]
[null,null,null,null,"",""]
[null,null,null,null,"",""]
[null,null,null,null,"",""]
[null,null,null,null,"",""]
[null,null,null,null,"",{"$f":"IF(E6597=\"\",\"\",D6597*E6597)","v":""}]
[null,null,null,null,"",""]
[null,null,null,null,"",""]
[null,null,null,null,"",""]
[null,null,null,null,"",""]
[null,null,null,null,"",""]
[null,null,null,null,"",""]
[null,null,null,null,"",""]
[null,null,null,null,"",""]
[null,null,null,null,"",""]
[null,null,null,null,"",""]
[null,null,null,null,"",""]
[null,null,null,null,"",""]
[null,null,null,null,"",""]
[null,null,null,null,"",""]
[null,null,null,null,"",""]
[null,null,null,null,"",""]
[null,null,null,null,"",""]
[null,null,null,null,"",""]
[null,null,null,null,"",""]
[null,null,null,null,"",""]
[null,null,null,null,"",""]
[null,null,null,null,"",""]
[null,null,null,null,"",""]
[null,null,null,null,"",""]
[null,null,null,null,"",""]
[null,null,null,null,"",""]
[null,null,null,null,"",""]
[null,null,null,null,"",""]
[null,null,null,null,"",""]
[null,null,null,null,"",""]
[null,null,null,null,"",""]
[null,null,null,null,"",""]
[null,null,null,null,"",""]
[null,null,null,null,"",""]
[null,null,null,null,"",""]
[null,null,null,null,"",""]
[null,null,null,null,"",""]
[null,null,null,null,"",""]
[null,null,null,null,{"$f":"IF(C6636=\"\",\"\",VLOOKUP(C6636,$J$4:$J$10,2,FALSE))","v":""},""]
[null,null,null,null,"",""]
[null,null,null,null,"",""]
[null,null,null,null,"",""]
[null,null,null,null,"",""]
[null,null,null,null,"",""]
[null,null,null,null,"",""]
[null,null,null,null,"",""]
[null,null,null,null,"",""]
[null,null,null,null,"",""]
[null,null,null,null,"",""]
[null,null,null,null,"",""]
[null,null,null,null,"",""]
[null,null,null,null,"",""]
[null,null,null,null,"",""]
[null,null,null,null,"",""]
[null,null,null,null,"",""]
[null,null,null,null,"",""]
[null,null,null,null,"",""]
[null,null,null,null,"",""]
[null,null,null,null,"",""]
[null,null,null,null,"",""]
[null,null,null,null,"",""]
[null,null,null,null,"",""]
[null,null,null,null,"",""]
[null,null,null,null,"",{"$f":"IF(E6661=\"\",\"\",D6661*E6661)","v":""}]
[null,null,null,null,"",""]
[null,null,null,null,"",""]
[null,null,null,null,"",""]
[null,null,null,null,"",""]
[null,null,null,null,"",""]
[null,null,null,null,"",""]
[null,null,null,null,"",""]
[null,null,null,null,"",""]
[null,null,null,null,"",""]
[null,null,null,null,"",""]
[null,null,null,null,"",""]
[null,null,null,null,"",""]
[null,null,null,null,"",""]
[null,null,null,null,"",""]
[null,null,null,null,"",""]
[null,null,null,null,"",""]
[null,null,null,null,"",""]
[null,null,null,null,"",""]
[null,null,null,null,"",""]
[null,null,null,null,"",""]
[null,null,null,null,"",""]
[null,null,null,null,"",""]
[null,null,null,null,"",""]
[null,null,null,null,"",""]
[null,null,null,null,"",""]
[null,null,null,null,"",""]
[null,null,null,null,"",""]
[null,null,null,null,"",""]
[null,null,null,null,"",""]
[null,null,null,null,"",""]
[null,null,null,null,"",""]
[null,null,null,null,"",""]
[null,null,null,null,"",""]
[null,null,null,null,"",""]
[null,null,null,null,"",""]
[null,null,null,null,"",""]
[null,null,null,null,"",""]
[null,null,null,null,"",""]
[null,null,null,null,{"$f":"IF(C6700=\"\",\"\",VLOOKUP(C6700,$J$4:$J$10,2,FALSE))","v":""},""]
[null,null,null,null,"",""]
[null,null,null,null,"",""]
[null,null,null,null,"",""]
[null,null,null,null,"",""]
[null,null,null,null,"",""]
[null,null,null,null,"",""]
[null,null,null,null,"",""]
[null,null,null,null,"",""]
[null,null,null,null,"",""]
[null,null,null,null,"",""]
[null,null,null,null,"",""]
[null,null,null,null,"",""]
[null,null,null,null,"",""]
[null,null,null,null,"",""]
[null,null,null,null,"",""]
[null,null,null,null,"",""]
[null,null,null,null,"",""]
[null,null,null,null,"",""]
[null,null,null,null,"",""]
[null,null,null,null,"",""]
[null,null,null,null,"",""]
[null,null,null,null,"",""]
[null,null,null,null,"",""]
[null,null,null,null,"",""]
[null,null,null,null,"",{"$f":"IF(E6725=\"\",\"\",D6725*E6725)","v":""}]
[null,null,null,null,"",""]
[null,null,null,null,"",""]
[null,null,null,null,"",""]
[null,null,null,null,"",""]
[null,null,null,null,"",""]
[null,null,null,null,"",""]
[null,null,null,null,"",""]
[null,null,null,null,"",""]
[null,null,null,null,"",""]
[null,null,null,null,"",""]
[null,null,null,null,"",""]
[null,null,null,null,"",""]
[null,null,null,null,"",""]
[null,null,null,null,"",""]
[null,null,null,null,"",""]
[null,null,null,null,"",""]
[null,null,null,null,"",""]
[null,null,null,null,"",""]
[null,null,null,null,"",""]
[null,null,null,null,"",""]
[null,null,null,null,"",""]
[null,null,null,null,"",""]
[null,null,null,null,"",""]
[null,null,null,null,"",""]
[null,null,null,null,"",""]
[null,null,null,null,"",""]
[null,null,null,null,"",""]
[null,null,null,null,"",""]
[null,null,null,null,"",""]
[null,null,null,null,"",""]
[null,null,null,null,"",""]
[null,null,null,null,"",""]
[null,null,null,null,"",""]
[null,null,null,null,"",""]
[null,null,null,null,"",""]
[null,null,null,null,"",""]
[null,null,null,null,"",""]
[null,null,null,null,"",""]
[null,null,null,null,{"$f":"IF(C6764=\"\",\"\",VLOOKUP(C6764,$J$4:$J$10,2,FALSE))","v":""},""]
[null,null,null,null,"",""]
[null,null,null,null,"",""]
[null,null,null,null,"",""]
[null,null,null,null,"",""]
[null,null,null,null,"",""]
[null,null,null,null,"",""]
[null,null,null,null,"",""]
[null,null,null,null,"",""]
[null,null,null,null,"",""]
[null,null,null,null,"",""]
[null,null,null,null,"",""]
[null,null,null,null,"",""]
[null,null,null,null,"",""]
[null,null,null,null,"",""]
[null,null,null,null,"",""]
[null,null,null,null,"",""]
[null,null,null,null,"",""]
[null,null,null,null,"",""]
[null,null,null,null,"",""]
[null,null,null,null,"",""]
[null,null,null,null,"",""]
[null,null,null,null,"",""]
[null,null,null,null,"",""]
[null,null,null,null,"",""]
[null,null,null,null,"",{"$f":"IF(E6789=\"\",\"\",D6789*E6789)","v":""}]
[null,null,null,null,"",""]
[null,null,null,null,"",""]
[null,null,null,null,"",""]
[null,null,null,null,"",""]
[null,null,null,null,"",""]
[null,null,null,null,"",""]
[null,null,null,null,"",""]
[null,null,null,null,"",""]
[null,null,null,null,"",""]
[null,null,null,null,"",""]
[null,null,null,null,"",""]
[null,null,null,null,"",""]
[null,null,null,null,"",""]
[null,null,null,null,"",""]
[null,null,null,null,"",""]
[null,null,null,null,"",""]
[null,null,null,null,"",""]
[null,null,null,null,"",""]
[null,null,null,null,"",""]
[null,null,null,null,"",""]
[null,null,null,null,"",""]
[null,null,null,null,"",""]
[null,null,null,null,"",""]
[null,null,null,null,"",""]
[null,null,null,null,"",""]
[null,null,null,null,"",""]
[null,null,null,null,"",""]
[null,null,null,null,"",""]
[null,null,null,null,"",""]
[null,null,null,null,"",""]
[null,null,null,null,"",""]
[null,null,null,null,"",""]
[null,null,null,null,"",""]
[null,null,null,null,"",""]
[null,null,null,null,"",""]
[null,null,null,null,"",""]
[null,null,null,null,"",""]
[null,null,null,null,"",""]
[null,null,null,null,{"$f":"IF(C6828=\"\",\"\",VLOOKUP(C6828,$J$4:$J$10,2,FALSE))","v":""},""]
[null,null,null,null,"",""]
[null,null,null,null,"",""]
[null,null,null,null,"",""]
[null,null,null,null,"",""]
[null,null,null,null,"",""]
[null,null,null,null,"",""]
[null,null,null,null,"",""]
[null,null,null,null,"",""]
[null,null,null,null,"",""]
[null,null,null,null,"",""]
[null,null,null,null,"",""]
[null,null,null,null,"",""]
[null,null,null,null,"",""]
[null,null,null,null,"",""]
[null,null,null,null,"",""]
[null,null,null,null,"",""]
[null,null,null,null,"",""]
[null,null,null,null,"",""]
[null,null,null,null,"",""]
[null,null,null,null,"",""]
[null,null,null,null,"",""]
[null,null,null,null,"",""]
[null,null,null,null,"",""]
[null,null,null,null,"",""]
[null,null,null,null,"",{"$f":"IF(E6853=\"\",\"\",D6853*E6853)","v":""}]
[null,null,null,null,"",""]
[null,null,null,null,"",""]
[null,null,null,null,"",""]
[null,null,null,null,"",""]
[null,null,null,null,"",""]
[null,null,null,null,"",""]
[null,null,null,null,"",""]
[null,null,null,null,"",""]
[null,null,null,null,"",""]
[null,null,null,null,"",""]
[null,null,null,null,"",""]
[null,null,null,null,"",""]
[null,null,null,null,"",""]
[null,null,null,null,"",""]
[null,null,null,null,"",""]
[null,null,null,null,"",""]
[null,null,null,null,"",""]
[null,null,null,null,"",""]
[null,null,null,null,"",""]
[null,null,null,null,"",""]
[null,null,null,null,"",""]
[null,null,null,null,"",""]
[null,null,null,null,"",""]
[null,null,null,null,"",""]
[null,null,null,null,"",""]
[null,null,null,null,"",""]
[null,null,null,null,"",""]
[null,null,null,null,"",""]
[null,null,null,null,"",""]
[null,null,null,null,"",""]
[null,null,null,null,"",""]
[null,null,null,null,"",""]
[null,null,null,null,"",""]
[null,null,null,null,"",""]
[null,null,null,null,"",""]
[null,null,null,null,"",""]
[null,null,null,null,"",""]
[null,null,null,null,"",""]
[null,null,null,null,{"$f":"IF(C6892=\"\",\"\",VLOOKUP(C6892,$J$4:$J$10,2,FALSE))","v":""},""]
[null,null,null,null,"",""]
[null,null,null,null,"",""]
[null,null,null,null,"",""]
[null,null,null,null,"",""]
[null,null,null,null,"",""]
[null,null,null,null,"",""]
[null,null,null,null,"",""]
[null,null,null,null,"",""]
[null,null,null,null,"",""]
[null,null,null,null,"",""]
[null,null,null,null,"",""]
[null,null,null,null,"",""]
[null,null,null,null,"",""]
[null,null,null,null,"",""]
[null,null,null,null,"",""]
[null,null,null,null,"",""]
[null,null,null,null,"",""]
[null,null,null,null,"",""]
[null,null,null,null,"",""]
[null,null,null,null,"",""]
[null,null,null,null,"",""]
[null,null,null,null,"",""]
[null,null,null,null,"",""]
[null,null,null,null,"",""]
[null,null,null,null,"",{"$f":"IF(E6917=\"\",\"\",D6917*E6917)","v":""}]
[null,null,null,null,"",""]
[null,null,null,null,"",""]
[null,null,null,null,"",""]
[null,null,null,null,"",""]
[null,null,null,null,"",""]
[null,null,null,null,"",""]
[null,null,null,null,"",""]
[null,null,null,null,"",""]
[null,null,null,null,"",""]
[null,null,null,null,"",""]
[null,null,null,null,"",""]
[null,null,null,null,"",""]
[null,null,null,null,"",""]
[null,null,null,null,"",""]
[null,null,null,null,"",""]
[null,null,null,null,"",""]
[null,null,null,null,"",""]
[null,null,null,null,"",""]
[null,null,null,null,"",""]
[null,null,null,null,"",""]
[null,null,null,null,"",""]
[null,null,null,null,"",""]
[null,null,null,null,"",""]
[null,null,null,null,"",""]
[null,null,null,null,"",""]
[null,null,null,null,"",""]
[null,null,null,null,"",""]
[null,null,null,null,"",""]
[null,null,null,null,"",""]
[null,null,null,null,"",""]
[null,null,null,null,"",""]
[null,null,null,null,"",""]
[null,null,null,null,"",""]
[null,null,null,null,"",""]
[null,null,null,null,"",""]
[null,null,null,null,"",""]
[null,null,null,null,"",""]
[null,null,null,null,"",""]
[null,null,null,null,{"$f":"IF(C6956=\"\",\"\",VLOOKUP(C6956,$J$4:$J$10,2,FALSE))","v":""},""]
[null,null,null,null,"",""]
[null,null,null,null,"",""]
[null,null,null,null,"",""]
[null,null,null,null,"",""]
[null,null,null,null,"",""]
[null,null,null,null,"",""]
[null,null,null,null,"",""]
[null,null,null,null,"",""]
[null,null,null,null,"",""]
[null,null,null,null,"",""]
[null,null,null,null,"",""]
[null,null,null,null,"",""]
[null,null,null,null,"",""]
[null,null,null,null,"",""]
[null,null,null,null,"",""]
[null,null,null,null,"",""]
[null,null,null,null,"",""]
[null,null,null,null,"",""]
[null,null,null,null,"",""]
[null,null,null,null,"",""]
[null,null,null,null,"",""]
[null,null,null,null,"",""]
[null,null,null,null,"",""]
[null,null,null,null,"",""]
[null,null,null,null,"",{"$f":"IF(E6981=\"\",\"\",D6981*E6981)","v":""}]
[null,null,null,null,"",""]
[null,null,null,null,"",""]
[null,null,null,null,"",""]
[null,null,null,null,"",""]
[null,null,null,null,"",""]
[null,null,null,null,"",""]
[null,null,null,null,"",""]
[null,null,null,null,"",""]
[null,null,null,null,"",""]
[null,null,null,null,"",""]
[null,null,null,null,"",""]
[null,null,null,null,"",""]
[null,null,null,null,"",""]
[null,null,null,null,"",""]
[null,null,null,null,"",""]
[null,null,null,null,"",""]
[null,null,null,null,"",""]
[null,null,null,null,"",""]
[null,null,null,null,"",""]
[null,null,null,null,"",""]
[null,null,null,null,"",""]
[null,null,null,null,"",""]
[null,null,null,null,"",""]
[null,null,null,null,"",""]
[null,null,null,null,"",""]
[null,null,null,null,"",""]
[null,null,null,null,"",""]
[null,null,null,null,"",""]
[null,null,null,null,"",""]
[null,null,null,null,"",""]
[null,null,null,null,"",""]
[null,null,null,null,"",""]
[null,null,null,null,"",""]
[null,null,null,null,"",""]
[null,null,null,null,"",""]
[null,null,null,null,"",""]
[null,null,null,null,"",""]
[null,null,null,null,"",""]
[null,null,null,null,{"$f":"IF(C7020=\"\",\"\",VLOOKUP(C7020,$J$4:$J$10,2,FALSE))","v":""},""]
[null,null,null,null,"",""]
[null,null,null,null,"",""]
[null,null,null,null,"",""]
[null,null,null,null,"",""]
[null,null,null,null,"",""]
[null,null,null,null,"",""]
[null,null,null,null,"",""]
[null,null,null,null,"",""]
[null,null,null,null,"",""]
[null,null,null,null,"",""]
[null,null,null,null,"",""]
[null,null,null,null,"",""]
[null,null,null,null,"",""]
[null,null,null,null,"",""]
[null,null,null,null,"",""]
[null,null,null,null,"",""]
[null,null,null,null,"",""]
[null,null,null,null,"",""]
[null,null,null,null,"",""]
[null,null,null,null,"",""]
[null,null,null,null,"",""]
[null,null,null,null,"",""]
[null,null,null,null,"",""]
[null,null,null,null,"",""]
[null,null,null,null,"",{"$f":"IF(E7045=\"\",\"\",D7045*E7045)","v":""}]
[null,null,null,null,"",""]
[null,null,null,null,"",""]
[null,null,null,null,"",""]
[null,null,null,null,"",""]
[null,null,null,null,"",""]
[null,null,null,null,"",""]
[null,null,null,null,"",""]
[null,null,null,null,"",""]
[null,null,null,null,"",""]
[null,null,null,null,"",""]
[null,null,null,null,"",""]
[null,null,null,null,"",""]
[null,null,null,null,"",""]
[null,null,null,null,"",""]
[null,null,null,null,"",""]
[null,null,null,null,"",""]
[null,null,null,null,"",""]
[null,null,null,null,"",""]
[null,null,null,null,"",""]
[null,null,null,null,"",""]
[null,null,null,null,"",""]
[null,null,null,null,"",""]
[null,null,null,null,"",""]
[null,null,null,null,"",""]
[null,null,null,null,"",""]
[null,null,null,null,"",""]
[null,null,null,null,"",""]
[null,null,null,null,"",""]
[null,null,null,null,"",""]
[null,null,null,null,"",""]
[null,null,null,null,"",""]
[null,null,null,null,"",""]
[null,null,null,null,"",""]
[null,null,null,null,"",""]
[null,null,null,null,"",""]
[null,null,null,null,"",""]
[null,null,null,null,"",""]
[null,null,null,null,"",""]
[null,null,null,null,{"$f":"IF(C7084=\"\",\"\",VLOOKUP(C7084,$J$4:$J$10,2,FALSE))","v":""},""]
[null,null,null,null,"",""]
[null,null,null,null,"",""]
[null,null,null,null,"",""]
[null,null,null,null,"",""]
[null,null,null,null,"",""]
[null,null,null,null,"",""]
[null,null,null,null,"",""]
[null,null,null,null,"",""]
[null,null,null,null,"",""]
[null,null,null,null,"",""]
[null,null,null,null,"",""]
[null,null,null,null,"",""]
[null,null,null,null,"",""]
[null,null,null,null,"",""]
[null,null,null,null,"",""]
[null,null,null,null,"",""]
[null,null,null,null,"",""]
[null,null,null,null,"",""]
[null,null,null,null,"",""]
[null,null,null,null,"",""]
[null,null,null,null,"",""]
[null,null,null,null,"",""]
[null,null,null,null,"",""]
[null,null,null,null,"",""]
[null,null,null,null,"",{"$f":"IF(E7109=\"\",\"\",D7109*E7109)","v":""}]
[null,null,null,null,"",""]
[null,null,null,null,"",""]
[null,null,null,null,"",""]
[null,null,null,null,"",""]
[null,null,null,null,"",""]
[null,null,null,null,"",""]
[null,null,null,null,"",""]
[null,null,null,null,"",""]
[null,null,null,null,"",""]
[null,null,null,null,"",""]
[null,null,null,null,"",""]
[null,null,null,null,"",""]
[null,null,null,null,"",""]
[null,null,null,null,"",""]
[null,null,null,null,"",""]
[null,null,null,null,"",""]
[null,null,null,null,"",""]
[null,null,null,null,"",""]
[null,null,null,null,"",""]
[null,null,null,null,"",""]
[null,null,null,null,"",""]
[null,null,null,null,"",""]
[null,null,null,null,"",""]
[null,null,null,null,"",""]
[null,null,null,null,"",""]
[null,null,null,null,"",""]
[null,null,null,null,"",""]
[null,null,null,null,"",""]
[null,null,null,null,"",""]
[null,null,null,null,"",""]
[null,null,null,null,"",""]
[null,null,null,null,"",""]
[null,null,null,null,"",""]
[null,null,null,null,"",""]
[null,null,null,null,"",""]
[null,null,null,null,"",""]
[null,null,null,null,"",""]
[null,null,null,null,"",""]
[null,null,null,null,{"$f":"IF(C7148=\"\",\"\",VLOOKUP(C7148,$J$4:$J$10,2,FALSE))","v":""},""]
[null,null,null,null,"",""]
[null,null,null,null,"",""]
[null,null,null,null,"",""]
[null,null,null,null,"",""]
[null,null,null,null,"",""]
[null,null,null,null,"",""]
[null,null,null,null,"",""]
[null,null,null,null,"",""]
[null,null,null,null,"",""]
[null,null,null,null,"",""]
[null,null,null,null,"",""]
[null,null,null,null,"",""]
[null,null,null,null,"",""]
[null,null,null,null,"",""]
[null,null,null,null,"",""]
[null,null,null,null,"",""]
[null,null,null,null,"",""]
[null,null,null,null,"",""]
[null,null,null,null,"",""]
[null,null,null,null,"",""]
[null,null,null,null,"",""]
[null,null,null,null,"",""]
[null,null,null,null,"",""]
[null,null,null,null,"",""]
[null,null,null,null,"",{"$f":"IF(E7173=\"\",\"\",D7173*E7173)","v":""}]
[null,null,null,null,"",""]
[null,null,null,null,"",""]
[null,null,null,null,"",""]
[null,null,null,null,"",""]
[null,null,null,null,"",""]
[null,null,null,null,"",""]
[null,null,null,null,"",""]
[null,null,null,null,"",""]
[null,null,null,null,"",""]
[null,null,null,null,"",""]
[null,null,null,null,"",""]
[null,null,null,null,"",""]
[null,null,null,null,"",""]
[null,null,null,null,"",""]
[null,null,null,null,"",""]
[null,null,null,null,"",""]
[null,null,null,null,"",""]
[null,null,null,null,"",""]
[null,null,null,null,"",""]
[null,null,null,null,"",""]
[null,null,null,null,"",""]
[null,null,null,null,"",""]
[null,null,null,null,"",""]
[null,null,null,null,"",""]
[null,null,null,null,"",""]
[null,null,null,null,"",""]
[null,null,null,null,"",""]
[null,null,null,null,"",""]
[null,null,null,null,"",""]
[null,null,null,null,"",""]
[null,null,null,null,"",""]
[null,null,null,null,"",""]
[null,null,null,null,"",""]
[null,null,null,null,"",""]
[null,null,null,null,"",""]
[null,null,null,null,"",""]
[null,null,null,null,"",""]
[null,null,null,null,"",""]
[null,null,null,null,{"$f":"IF(C7212=\"\",\"\",VLOOKUP(C7212,$J$4:$J$10,2,FALSE))","v":""},""]
[null,null,null,null,"",""]
[null,null,null,null,"",""]
[null,null,null,null,"",""]
[null,null,null,null,"",""]
[null,null,null,null,"",""]
[null,null,null,null,"",""]
[null,null,null,null,"",""]
[null,null,null,null,"",""]
[null,null,null,null,"",""]
[null,null,null,null,"",""]
[null,null,null,null,"",""]
[null,null,null,null,"",""]
[null,null,null,null,"",""]
[null,null,null,null,"",""]
[null,null,null,null,"",""]
[null,null,null,null,"",""]
[null,null,null,null,"",""]
[null,null,null,null,"",""]
[null,null,null,null,"",""]
[null,null,null,null,"",""]
[null,null,null,null,"",""]
[null,null,null,null,"",""]
[null,null,null,null,"",""]
[null,null,null,null,"",""]
[null,null,null,null,"",{"$f":"IF(E7237=\"\",\"\",D7237*E7237)","v":""}]
[null,null,null,null,"",""]
[null,null,null,null,"",""]
[null,null,null,null,"",""]
[null,null,null,null,"",""]
[null,null,null,null,"",""]
[null,null,null,null,"",""]
[null,null,null,null,"",""]
[null,null,null,null,"",""]
[null,null,null,null,"",""]
[null,null,null,null,"",""]
[null,null,null,null,"",""]
[null,null,null,null,"",""]
[null,null,null,null,"",""]
[null,null,null,null,"",""]
[null,null,null,null,"",""]
[null,null,null,null,"",""]
[null,null,null,null,"",""]
[null,null,null,null,"",""]
[null,null,null,null,"",""]
[null,null,null,null,"",""]
[null,null,null,null,"",""]
[null,null,null,null,"",""]
[null,null,null,null,"",""]
[null,null,null,null,"",""]
[null,null,null,null,"",""]
[null,null,null,null,"",""]
[null,null,null,null,"",""]
[null,null,null,null,"",""]
[null,null,null,null,"",""]
[null,null,null,null,"",""]
[null,null,null,null,"",""]
[null,null,null,null,"",""]
[null,null,null,null,"",""]
[null,null,null,null,"",""]
[null,null,null,null,"",""]
[null,null,null,null,"",""]
[null,null,null,null,"",""]
[null,null,null,null,"",""]
[null,null,null,null,{"$f":"IF(C7276=\"\",\"\",VLOOKUP(C7276,$J$4:$J$10,2,FALSE))","v":""},""]
[null,null,null,null,"",""]
[null,null,null,null,"",""]
[null,null,null,null,"",""]
[null,null,null,null,"",""]
[null,null,null,null,"",""]
[null,null,null,null,"",""]
[null,null,null,null,"",""]
[null,null,null,null,"",""]
[null,null,null,null,"",""]
[null,null,null,null,"",""]
[null,null,null,null,"",""]
[null,null,null,null,"",""]
[null,null,null,null,"",""]
[null,null,null,null,"",""]
[null,null,null,null,"",""]
[null,null,null,null,"",""]
[null,null,null,null,"",""]
[null,null,null,null,"",""]
[null,null,null,null,"",""]
[null,null,null,null,"",""]
[null,null,null,null,"",""]
[null,null,null,null,"",""]
[null,null,null,null,"",""]
[null,null,null,null,"",""]
[null,null,null,null,"",{"$f":"IF(E7301=\"\",\"\",D7301*E7301)","v":""}]
[null,null,null,null,"",""]
[null,null,null,null,"",""]
[null,null,null,null,"",""]
[null,null,null,null,"",""]
[null,null,null,null,"",""]
[null,null,null,null,"",""]
[null,null,null,null,"",""]
[null,null,null,null,"",""]
[null,null,null,null,"",""]
[null,null,null,null,"",""]
[null,null,null,null,"",""]
[null,null,null,null,"",""]
[null,null,null,null,"",""]
[null,null,null,null,"",""]
[null,null,null,null,"",""]
[null,null,null,null,"",""]
[null,null,null,null,"",""]
[null,null,null,null,"",""]
[null,null,null,null,"",""]
[null,null,null,null,"",""]
[null,null,null,null,"",""]
[null,null,null,null,"",""]
[null,null,null,null,"",""]
[null,null,null,null,"",""]
[null,null,null,null,"",""]
[null,null,null,null,"",""]
[null,null,null,null,"",""]
[null,null,null,null,"",""]
[null,null,null,null,"",""]
[null,null,null,null,"",""]
[null,null,null,null,"",""]
[null,null,null,null,"",""]
[null,null,null,null,"",""]
[null,null,null,null,"",""]
[null,null,null,null,"",""]
[null,null,null,null,"",""]
[null,null,null,null,"",""]
[null,null,null,null,"",""]
[null,null,null,null,{"$f":"IF(C7340=\"\",\"\",VLOOKUP(C7340,$J$4:$J$10,2,FALSE))","v":""},""]
[null,null,null,null,"",""]
[null,null,null,null,"",""]
[null,null,null,null,"",""]
[null,null,null,null,"",""]
[null,null,null,null,"",""]
[null,null,null,null,"",""]
[null,null,null,null,"",""]
[null,null,null,null,"",""]
[null,null,null,null,"",""]
[null,null,null,null,"",""]
[null,null,null,null,"",""]
[null,null,null,null,"",""]
[null,null,null,null,"",""]
[null,null,null,null,"",""]
[null,null,null,null,"",""]
[null,null,null,null,"",""]
[null,null,null,null,"",""]
[null,null,null,null,"",""]
[null,null,null,null,"",""]
[null,null,null,null,"",""]
[null,null,null,null,"",""]
[null,null,null,null,"",""]
[null,null,null,null,"",""]
[null,null,null,null,"",""]
[null,null,null,null,"",{"$f":"IF(E7365=\"\",\"\",D7365*E7365)","v":""}]
[null,null,null,null,"",""]
[null,null,null,null,"",""]
[null,null,null,null,"",""]
[null,null,null,null,"",""]
[null,null,null,null,"",""]
[null,null,null,null,"",""]
[null,null,null,null,"",""]
[null,null,null,null,"",""]
[null,null,null,null,"",""]
[null,null,null,null,"",""]
[null,null,null,null,"",""]
[null,null,null,null,"",""]
[null,null,null,null,"",""]
[null,null,null,null,"",""]
[null,null,null,null,"",""]
[null,null,null,null,"",""]
[null,null,null,null,"",""]
[null,null,null,null,"",""]
[null,null,null,null,"",""]
[null,null,null,null,"",""]
[null,null,null,null,"",""]
[null,null,null,null,"",""]
[null,null,null,null,"",""]
[null,null,null,null,"",""]
[null,null,null,null,"",""]
[null,null,null,null,"",""]
[null,null,null,null,"",""]
[null,null,null,null,"",""]
[null,null,null,null,"",""]
[null,null,null,null,"",""]
[null,null,null,null,"",""]
[null,null,null,null,"",""]
[null,null,null,null,"",""]
[null,null,null,null,"",""]
[null,null,null,null,"",""]
[null,null,null,null,"",""]
[null,null,null,null,"",""]
[null,null,null,null,"",""]
[null,null,null,null,{"$f":"IF(C7404=\"\",\"\",VLOOKUP(C7404,$J$4:$J$10,2,FALSE))","v":""},""]
[null,null,null,null,"",""]
[null,null,null,null,"",""]
[null,null,null,null,"",""]
[null,null,null,null,"",""]
[null,null,null,null,"",""]
[null,null,null,null,"",""]
[null,null,null,null,"",""]
[null,null,null,null,"",""]
[null,null,null,null,"",""]
[null,null,null,null,"",""]
[null,null,null,null,"",""]
[null,null,null,null,"",""]
[null,null,null,null,"",""]
[null,null,null,null,"",""]
[null,null,null,null,"",""]
[null,null,null,null,"",""]
[null,null,null,null,"",""]
[null,null,null,null,"",""]
[null,null,null,null,"",""]
[null,null,null,null,"",""]
[null,null,null,null,"",""]
[null,null,null,null,"",""]
[null,null,null,null,"",""]
[null,null,null,null,"",""]
[null,null,null,null,"",{"$f":"IF(E7429=\"\",\"\",D7429*E7429)","v":""}]
[null,null,null,null,"",""]
[null,null,null,null,"",""]
[null,null,null,null,"",""]
[null,null,null,null,"",""]
[null,null,null,null,"",""]
[null,null,null,null,"",""]
[null,null,null,null,"",""]
[null,null,null,null,"",""]
[null,null,null,null,"",""]
[null,null,null,null,"",""]
[null,null,null,null,"",""]
[null,null,null,null,"",""]
[null,null,null,null,"",""]
[null,null,null,null,"",""]
[null,null,null,null,"",""]
[null,null,null,null,"",""]
[null,null,null,null,"",""]
[null,null,null,null,"",""]
[null,null,null,null,"",""]
[null,null,null,null,"",""]
[null,null,null,null,"",""]
[null,null,null,null,"",""]
[null,null,null,null,"",""]
[null,null,null,null,"",""]
[null,null,null,null,"",""]
[null,null,null,null,"",""]
[null,null,null,null,"",""]
[null,null,null,null,"",""]
[null,null,null,null,"",""]
[null,null,null,null,"",""]
[null,null,null,null,"",""]
[null,null,null,null,"",""]
[null,null,null,null,"",""]
[null,null,null,null,"",""]
[null,null,null,null,"",""]
[null,null,null,null,"",""]
[null,null,null,null,"",""]
[null,null,null,null,"",""]
[null,null,null,null,{"$f":"IF(C7468=\"\",\"\",VLOOKUP(C7468,$J$4:$J$10,2,FALSE))","v":""},""]
[null,null,null,null,"",""]
[null,null,null,null,"",""]
[null,null,null,null,"",""]
[null,null,null,null,"",""]
[null,null,null,null,"",""]
[null,null,null,null,"",""]
[null,null,null,null,"",""]
[null,null,null,null,"",""]
[null,null,null,null,"",""]
[null,null,null,null,"",""]
[null,null,null,null,"",""]
[null,null,null,null,"",""]
[null,null,null,null,"",""]
[null,null,null,null,"",""]
[null,null,null,null,"",""]
[null,null,null,null,"",""]
[null,null,null,null,"",""]
[null,null,null,null,"",""]
[null,null,null,null,"",""]
[null,null,null,null,"",""]
[null,null,null,null,"",""]
[null,null,null,null,"",""]
[null,null,null,null,"",""]
[null,null,null,null,"",""]
[null,null,null,null,"",{"$f":"IF(E7493=\"\",\"\",D7493*E7493)","v":""}]
[null,null,null,null,"",""]
[null,null,null,null,"",""]
[null,null,null,null,"",""]
[null,null,null,null,"",""]
[null,null,null,null,"",""]
[null,null,null,null,"",""]
[null,null,null,null,"",""]
[null,null,null,null,"",""]
[null,null,null,null,"",""]
[null,null,null,null,"",""]
[null,null,null,null,"",""]
[null,null,null,null,"",""]
[null,null,null,null,"",""]
[null,null,null,null,"",""]
[null,null,null,null,"",""]
[null,null,null,null,"",""]
[null,null,null,null,"",""]
[null,null,null,null,"",""]
[null,null,null,null,"",""]
[null,null,null,null,"",""]
[null,null,null,null,"",""]
[null,null,null,null,"",""]
[null,null,null,null,"",""]
[null,null,null,null,"",""]
[null,null,null,null,"",""]
[null,null,null,null,"",""]
[null,null,null,null,"",""]
[null,null,null,null,"",""]
[null,null,null,null,"",""]
[null,null,null,null,"",""]
[null,null,null,null,"",""]
[null,null,null,null,"",""]
[null,null,null,null,"",""]
[null,null,null,null,"",""]
[null,null,null,null,"",""]
[null,null,null,null,"",""]
[null,null,null,null,"",""]
[null,null,null,null,"",""]
[null,null,null,null,{"$f":"IF(C7532=\"\",\"\",VLOOKUP(C7532,$J$4:$J$10,2,FALSE))","v":""},""]
[null,null,null,null,"",""]
[null,null,null,null,"",""]
[null,null,null,null,"",""]
[null,null,null,null,"",""]
[null,null,null,null,"",""]
[null,null,null,null,"",""]
[null,null,null,null,"",""]
[null,null,null,null,"",""]
[null,null,null,null,"",""]
[null,null,null,null,"",""]
[null,null,null,null,"",""]
[null,null,null,null,"",""]
[null,null,null,null,"",""]
[null,null,null,null,"",""]
[null,null,null,null,"",""]
[null,null,null,null,"",""]
[null,null,null,null,"",""]
[null,null,null,null,"",""]
[null,null,null,null,"",""]
[null,null,null,null,"",""]
[null,null,null,null,"",""]
[null,null,null,null,"",""]
[null,null,null,null,"",""]
[null,null,null,null,"",""]
[null,null,null,null,"",{"$f":"IF(E7557=\"\",\"\",D7557*E7557)","v":""}]
[null,null,null,null,"",""]
[null,null,null,null,"",""]
[null,null,null,null,"",""]
[null,null,null,null,"",""]
[null,null,null,null,"",""]
[null,null,null,null,"",""]
[null,null,null,null,"",""]
[null,null,null,null,"",""]
[null,null,null,null,"",""]
[null,null,null,null,"",""]
[null,null,null,null,"",""]
[null,null,null,null,"",""]
[null,null,null,null,"",""]
[null,null,null,null,"",""]
[null,null,null,null,"",""]
[null,null,null,null,"",""]
[null,null,null,null,"",""]
[null,null,null,null,"",""]
[null,null,null,null,"",""]
[null,null,null,null,"",""]
[null,null,null,null,"",""]
[null,null,null,null,"",""]
[null,null,null,null,"",""]
[null,null,null,null,"",""]
[null,null,null,null,"",""]
[null,null,null,null,"",""]
[null,null,null,null,"",""]
[null,null,null,null,"",""]
[null,null,null,null,"",""]
[null,null,null,null,"",""]
[null,null,null,null,"",""]
[null,null,null,null,"",""]
[null,null,null,null,"",""]
[null,null,null,null,"",""]
[null,null,null,null,"",""]
[null,null,null,null,"",""]
[null,null,null,null,"",""]
[null,null,null,null,"",""]
[null,null,null,null,{"$f":"IF(C7596=\"\",\"\",VLOOKUP(C7596,$J$4:$J$10,2,FALSE))","v":""},""]
[null,null,null,null,"",""]
[null,null,null,null,"",""]
[null,null,null,null,"",""]
[null,null,null,null,"",""]
[null,null,null,null,"",""]
[null,null,null,null,"",""]
[null,null,null,null,"",""]
[null,null,null,null,"",""]
[null,null,null,null,"",""]
[null,null,null,null,"",""]
[null,null,null,null,"",""]
[null,null,null,null,"",""]
[null,null,null,null,"",""]
[null,null,null,null,"",""]
[null,null,null,null,"",""]
[null,null,null,null,"",""]
[null,null,null,null,"",""]
[null,null,null,null,"",""]
[null,null,null,null,"",""]
[null,null,null,null,"",""]
[null,null,null,null,"",""]
[null,null,null,null,"",""]
[null,null,null,null,"",""]
[null,null,null,null,"",""]
[null,null,null,null,"",{"$f":"IF(E7621=\"\",\"\",D7621*E7621)","v":""}]
[null,null,null,null,"",""]
[null,null,null,null,"",""]
[null,null,null,null,"",""]
[null,null,null,null,"",""]
[null,null,null,null,"",""]
[null,null,null,null,"",""]
[null,null,null,null,"",""]
[null,null,null,null,"",""]
[null,null,null,null,"",""]
[null,null,null,null,"",""]
[null,null,null,null,"",""]
[null,null,null,null,"",""]
[null,null,null,null,"",""]
[null,null,null,null,"",""]
[null,null,null,null,"",""]
[null,null,null,null,"",""]
[null,null,null,null,"",""]
[null,null,null,null,"",""]
[null,null,null,null,"",""]
[null,null,null,null,"",""]
[null,null,null,null,"",""]
[null,null,null,null,"",""]
[null,null,null,null,"",""]
[null,null,null,null,"",""]
[null,null,null,null,"",""]
[null,null,null,null,"",""]
[null,null,null,null,"",""]
[null,null,null,null,"",""]
[null,null,null,null,"",""]
[null,null,null,null,"",""]
[null,null,null,null,"",""]
[null,null,null,null,"",""]
[null,null,null,null,"",""]
[null,null,null,null,"",""]
[null,null,null,null,"",""]
[null,null,null,null,"",""]
[null,null,null,null,"",""]
[null,null,null,null,"",""]
[null,null,null,null,{"$f":"IF(C7660=\"\",\"\",VLOOKUP(C7660,$J$4:$J$10,2,FALSE))","v":""},""]
[null,null,null,null,"",""]
[null,null,null,null,"",""]
[null,null,null,null,"",""]
[null,null,null,null,"",""]
[null,null,null,null,"",""]
[null,null,null,null,"",""]
[null,null,null,null,"",""]
[null,null,null,null,"",""]
[null,null,null,null,"",""]
[null,null,null,null,"",""]
[null,null,null,null,"",""]
[null,null,null,null,"",""]
[null,null,null,null,"",""]
[null,null,null,null,"",""]
[null,null,null,null,"",""]
[null,null,null,null,"",""]
[null,null,null,null,"",""]
[null,null,null,null,"",""]
[null,null,null,null,"",""]
[null,null,null,null,"",""]
[null,null,null,null,"",""]
[null,null,null,null,"",""]
[null,null,null,null,"",""]
[null,null,null,null,"",""]
[null,null,null,null,"",{"$f":"IF(E7685=\"\",\"\",D7685*E7685)","v":""}]
[null,null,null,null,"",""]
[null,null,null,null,"",""]
[null,null,null,null,"",""]
[null,null,null,null,"",""]
[null,null,null,null,"",""]
[null,null,null,null,"",""]
[null,null,null,null,"",""]
[null,null,null,null,"",""]
[null,null,null,null,"",""]
[null,null,null,null,"",""]
[null,null,null,null,"",""]
[null,null,null,null,"",""]
[null,null,null,null,"",""]
[null,null,null,null,"",""]
[null,null,null,null,"",""]
[null,null,null,null,"",""]
[null,null,null,null,"",""]
[null,null,null,null,"",""]
[null,null,null,null,"",""]
[null,null,null,null,"",""]
[null,null,null,null,"",""]
[null,null,null,null,"",""]
[null,null,null,null,"",""]
[null,null,null,null,"",""]
[null,null,null,null,"",""]
[null,null,null,null,"",""]
[null,null,null,null,"",""]
[null,null,null,null,"",""]
[null,null,null,null,"",""]
[null,null,null,null,"",""]
[null,null,null,null,"",""]
[null,null,null,null,"",""]
[null,null,null,null,"",""]
[null,null,null,null,"",""]
[null,null,null,null,"",""]
[null,null,null,null,"",""]
[null,null,null,null,"",""]
[null,null,null,null,"",""]
[null,null,null,null,{"$f":"IF(C7724=\"\",\"\",VLOOKUP(C7724,$J$4:$J$10,2,FALSE))","v":""},""]
[null,null,null,null,"",""]
[null,null,null,null,"",""]
[null,null,null,null,"",""]
[null,null,null,null,"",""]
[null,null,null,null,"",""]
[null,null,null,null,"",""]
[null,null,null,null,"",""]
[null,null,null,null,"",""]
[null,null,null,null,"",""]
[null,null,null,null,"",""]
[null,null,null,null,"",""]
[null,null,null,null,"",""]
[null,null,null,null,"",""]
[null,null,null,null,"",""]
[null,null,null,null,"",""]
[null,null,null,null,"",""]
[null,null,null,null,"",""]
[null,null,null,null,"",""]
[null,null,null,null,"",""]
[null,null,null,null,"",""]
[null,null,null,null,"",""]
[null,null,null,null,"",""]
[null,null,null,null,"",""]
[null,null,null,null,"",""]
[null,null,null,null,"",{"$f":"IF(E7749=\"\",\"\",D7749*E7749)","v":""}]
[null,null,null,null,"",""]
[null,null,null,null,"",""]
[null,null,null,null,"",""]
[null,null,null,null,"",""]
[null,null,null,null,"",""]
[null,null,null,null,"",""]
[null,null,null,null,"",""]
[null,null,null,null,"",""]
[null,null,null,null,"",""]
[null,null,null,null,"",""]
[null,null,null,null,"",""]
[null,null,null,null,"",""]
[null,null,null,null,"",""]
[null,null,null,null,"",""]
[null,null,null,null,"",""]
[null,null,null,null,"",""]
[null,null,null,null,"",""]
[null,null,null,null,"",""]
[null,null,null,null,"",""]
[null,null,null,null,"",""]
[null,null,null,null,"",""]
[null,null,null,null,"",""]
[null,null,null,null,"",""]
[null,null,null,null,"",""]
[null,null,null,null,"",""]
[null,null,null,null,"",""]
[null,null,null,null,"",""]
[null,null,null,null,"",""]
[null,null,null,null,"",""]
[null,null,null,null,"",""]
[null,null,null,null,"",""]
[null,null,null,null,"",""]
[null,null,null,null,"",""]
[null,null,null,null,"",""]
[null,null,null,null,"",""]
[null,null,null,null,"",""]
[null,null,null,null,"",""]
[null,null,null,null,"",""]
[null,null,null,null,{"$f":"IF(C7788=\"\",\"\",VLOOKUP(C7788,$J$4:$J$10,2,FALSE))","v":""},""]
[null,null,null,null,"",""]
[null,null,null,null,"",""]
[null,null,null,null,"",""]
[null,null,null,null,"",""]
[null,null,null,null,"",""]
[null,null,null,null,"",""]
[null,null,null,null,"",""]
[null,null,null,null,"",""]
[null,null,null,null,"",""]
[null,null,null,null,"",""]
[null,null,null,null,"",""]
[null,null,null,null,"",""]
[null,null,null,null,"",""]
[null,null,null,null,"",""]
[null,null,null,null,"",""]
[null,null,null,null,"",""]
[null,null,null,null,"",""]
[null,null,null,null,"",""]
[null,null,null,null,"",""]
[null,null,null,null,"",""]
[null,null,null,null,"",""]
[null,null,null,null,"",""]
[null,null,null,null,"",""]
[null,null,null,null,"",""]
[null,null,null,null,"",{"$f":"IF(E7813=\"\",\"\",D7813*E7813)","v":""}]
[null,null,null,null,"",""]
[null,null,null,null,"",""]
[null,null,null,null,"",""]
[null,null,null,null,"",""]
[null,null,null,null,"",""]
[null,null,null,null,"",""]
[null,null,null,null,"",""]
[null,null,null,null,"",""]
[null,null,null,null,"",""]
[null,null,null,null,"",""]
[null,null,null,null,"",""]
[null,null,null,null,"",""]
[null,null,null,null,"",""]
[null,null,null,null,"",""]
[null,null,null,null,"",""]
[null,null,null,null,"",""]
[null,null,null,null,"",""]
[null,null,null,null,"",""]
[null,null,null,null,"",""]
[null,null,null,null,"",""]
[null,null,null,null,"",""]
[null,null,null,null,"",""]
[null,null,null,null,"",""]
[null,null,null,null,"",""]
[null,null,null,null,"",""]
[null,null,null,null,"",""]
[null,null,null,null,"",""]
[null,null,null,null,"",""]
[null,null,null,null,"",""]
[null,null,null,null,"",""]
[null,null,null,null,"",""]
[null,null,null,null,"",""]
[null,null,null,null,"",""]
[null,null,null,null,"",""]
[null,null,null,null,"",""]
[null,null,null,null,"",""]
[null,null,null,null,"",""]
[null,null,null,null,"",""]
[null,null,null,null,{"$f":"IF(C7852=\"\",\"\",VLOOKUP(C7852,$J$4:$J$10,2,FALSE))","v":""},""]
[null,null,null,null,"",""]
[null,null,null,null,"",""]
[null,null,null,null,"",""]
[null,null,null,null,"",""]
[null,null,null,null,"",""]
[null,null,null,null,"",""]
[null,null,null,null,"",""]
[null,null,null,null,"",""]
[null,null,null,null,"",""]
[null,null,null,null,"",""]
[null,null,null,null,"",""]
[null,null,null,null,"",""]
[null,null,null,null,"",""]
[null,null,null,null,"",""]
[null,null,null,null,"",""]
[null,null,null,null,"",""]
[null,null,null,null,"",""]
[null,null,null,null,"",""]
[null,null,null,null,"",""]
[null,null,null,null,"",""]
[null,null,null,null,"",""]
[null,null,null,null,"",""]
[null,null,null,null,"",""]
[null,null,null,null,"",""]
[null,null,null,null,"",{"$f":"IF(E7877=\"\",\"\",D7877*E7877)","v":""}]
[null,null,null,null,"",""]
[null,null,null,null,"",""]
[null,null,null,null,"",""]
[null,null,null,null,"",""]
[null,null,null,null,"",""]
[null,null,null,null,"",""]
[null,null,null,null,"",""]
[null,null,null,null,"",""]
[null,null,null,null,"",""]
[null,null,null,null,"",""]
[null,null,null,null,"",""]
[null,null,null,null,"",""]
[null,null,null,null,"",""]
[null,null,null,null,"",""]
[null,null,null,null,"",""]
[null,null,null,null,"",""]
[null,null,null,null,"",""]
[null,null,null,null,"",""]
[null,null,null,null,"",""]
[null,null,null,null,"",""]
[null,null,null,null,"",""]
[null,null,null,null,"",""]
[null,null,null,null,"",""]
[null,null,null,null,"",""]
[null,null,null,null,"",""]
[null,null,null,null,"",""]
[null,null,null,null,"",""]
[null,null,null,null,"",""]
[null,null,null,null,"",""]
[null,null,null,null,"",""]
[null,null,null,null,"",""]
[null,null,null,null,"",""]
[null,null,null,null,"",""]
[null,null,null,null,"",""]
[null,null,null,null,"",""]
[null,null,null,null,"",""]
[null,null,null,null,"",""]
[null,null,null,null,"",""]
[null,null,null,null,{"$f":"IF(C7916=\"\",\"\",VLOOKUP(C7916,$J$4:$J$10,2,FALSE))","v":""},""]
[null,null,null,null,"",""]
[null,null,null,null,"",""]
[null,null,null,null,"",""]
[null,null,null,null,"",""]
[null,null,null,null,"",""]
[null,null,null,null,"",""]
[null,null,null,null,"",""]
[null,null,null,null,"",""]
[null,null,null,null,"",""]
[null,null,null,null,"",""]
[null,null,null,null,"",""]
[null,null,null,null,"",""]
[null,null,null,null,"",""]
[null,null,null,null,"",""]
[null,null,null,null,"",""]
[null,null,null,null,"",""]
[null,null,null,null,"",""]
[null,null,null,null,"",""]
[null,null,null,null,"",""]
[null,null,null,null,"",""]
[null,null,null,null,"",""]
[null,null,null,null,"",""]
[null,null,null,null,"",""]
[null,null,null,null,"",""]
[null,null,null,null,"",{"$f":"IF(E7941=\"\",\"\",D7941*E7941)","v":""}]
[null,null,null,null,"",""]
[null,null,null,null,"",""]
[null,null,null,null,"",""]
[null,null,null,null,"",""]
[null,null,null,null,"",""]
[null,null,null,null,"",""]
[null,null,null,null,"",""]
[null,null,null,null,"",""]
[null,null,null,null,"",""]
[null,null,null,null,"",""]
[null,null,null,null,"",""]
[null,null,null,null,"",""]
[null,null,null,null,"",""]
[null,null,null,null,"",""]
[null,null,null,null,"",""]
[null,null,null,null,"",""]
[null,null,null,null,"",""]
[null,null,null,null,"",""]
[null,null,null,null,"",""]
[null,null,null,null,"",""]
[null,null,null,null,"",""]
[null,null,null,null,"",""]
[null,null,null,null,"",""]
[null,null,null,null,"",""]
[null,null,null,null,"",""]
[null,null,null,null,"",""]
[null,null,null,null,"",""]
[null,null,null,null,"",""]
[null,null,null,null,"",""]
[null,null,null,null,"",""]
[null,null,null,null,"",""]
[null,null,null,null,"",""]
[null,null,null,null,"",""]
[null,null,null,null,"",""]
[null,null,null,null,"",""]
[null,null,null,null,"",""]
[null,null,null,null,"",""]
[null,null,null,null,"",""]
[null,null,null,null,{"$f":"IF(C7980=\"\",\"\",VLOOKUP(C7980,$J$4:$J$10,2,FALSE))","v":""},""]
[null,null,null,null,"",""]
[null,null,null,null,"",""]
[null,null,null,null,"",""]
[null,null,null,null,"",""]
[null,null,null,null,"",""]
[null,null,null,null,"",""]
[null,null,null,null,"",""]
[null,null,null,null,"",""]
[null,null,null,null,"",""]
[null,null,null,null,"",""]
[null,null,null,null,"",""]
[null,null,null,null,"",""]
[null,null,null,null,"",""]
[null,null,null,null,"",""]
[null,null,null,null,"",""]
[null,null,null,null,"",""]
[null,null,null,null,"",""]
[null,null,null,null,"",""]
[null,null,null,null,"",""]
[null,null,null,null,"",""]
[null,null,null,null,"",""]
[null,null,null,null,"",""]
[null,null,null,null,"",""]
[null,null,null,null,"",""]
[null,null,null,null,"",{"$f":"IF(E8005=\"\",\"\",D8005*E8005)","v":""}]
[null,null,null,null,"",""]
[null,null,null,null,"",""]
[null,null,null,null,"",""]
[null,null,null,null,"",""]
[null,null,null,null,"",""]
[null,null,null,null,"",""]
[null,null,null,null,"",""]
[null,null,null,null,"",""]
[null,null,null,null,"",""]
[null,null,null,null,"",""]
[null,null,null,null,"",""]
[null,null,null,null,"",""]
[null,null,null,null,"",""]
[null,null,null,null,"",""]
[null,null,null,null,"",""]
[null,null,null,null,"",""]
[null,null,null,null,"",""]
[null,null,null,null,"",""]
[null,null,null,null,"",""]
[null,null,null,null,"",""]
[null,null,null,null,"",""]
[null,null,null,null,"",""]
[null,null,null,null,"",""]
[null,null,null,null,"",""]
[null,null,null,null,"",""]
[null,null,null,null,"",""]
[null,null,null,null,"",""]
[null,null,null,null,"",""]
[null,null,null,null,"",""]
[null,null,null,null,"",""]
[null,null,null,null,"",""]
[null,null,null,null,"",""]
[null,null,null,null,"",""]
[null,null,null,null,"",""]
[null,null,null,null,"",""]
[null,null,null,null,"",""]
[null,null,null,null,"",""]
[null,null,null,null,"",""]
[null,null,null,null,{"$f":"IF(C8044=\"\",\"\",VLOOKUP(C8044,$J$4:$J$10,2,FALSE))","v":""},""]
[null,null,null,null,"",""]
[null,null,null,null,"",""]
[null,null,null,null,"",""]
[null,null,null,null,"",""]
[null,null,null,null,"",""]
[null,null,null,null,"",""]
[null,null,null,null,"",""]
[null,null,null,null,"",""]
[null,null,null,null,"",""]
[null,null,null,null,"",""]
[null,null,null,null,"",""]
[null,null,null,null,"",""]
[null,null,null,null,"",""]
[null,null,null,null,"",""]
[null,null,null,null,"",""]
[null,null,null,null,"",""]
[null,null,null,null,"",""]
[null,null,null,null,"",""]
[null,null,null,null,"",""]
[null,null,null,null,"",""]
[null,null,null,null,"",""]
[null,null,null,null,"",""]
[null,null,null,null,"",""]
[null,null,null,null,"",""]
[null,null,null,null,"",{"$f":"IF(E8069=\"\",\"\",D8069*E8069)","v":""}]
[null,null,null,null,"",""]
[null,null,null,null,"",""]
[null,null,null,null,"",""]
[null,null,null,null,"",""]
[null,null,null,null,"",""]
[null,null,null,null,"",""]
[null,null,null,null,"",""]
[null,null,null,null,"",""]
[null,null,null,null,"",""]
[null,null,null,null,"",""]
[null,null,null,null,"",""]
[null,null,null,null,"",""]
[null,null,null,null,"",""]
[null,null,null,null,"",""]
[null,null,null,null,"",""]
[null,null,null,null,"",""]
[null,null,null,null,"",""]
[null,null,null,null,"",""]
[null,null,null,null,"",""]
[null,null,null,null,"",""]
[null,null,null,null,"",""]
[null,null,null,null,"",""]
[null,null,null,null,"",""]
[null,null,null,null,"",""]
[null,null,null,null,"",""]
[null,null,null,null,"",""]
[null,null,null,null,"",""]
[null,null,null,null,"",""]
[null,null,null,null,"",""]
[null,null,null,null,"",""]
[null,null,null,null,"",""]
[null,null,null,null,"",""]
[null,null,null,null,"",""]
[null,null,null,null,"",""]
[null,null,null,null,"",""]
[null,null,null,null,"",""]
[null,null,null,null,"",""]
[null,null,null,null,"",""]
[null,null,null,null,{"$f":"IF(C8108=\"\",\"\",VLOOKUP(C8108,$J$4:$J$10,2,FALSE))","v":""},""]
[null,null,null,null,"",""]
[null,null,null,null,"",""]
[null,null,null,null,"",""]
[null,null,null,null,"",""]
[null,null,null,null,"",""]
[null,null,null,null,"",""]
[null,null,null,null,"",""]
[null,null,null,null,"",""]
[null,null,null,null,"",""]
[null,null,null,null,"",""]
[null,null,null,null,"",""]
[null,null,null,null,"",""]
[null,null,null,null,"",""]
[null,null,null,null,"",""]
[null,null,null,null,"",""]
[null,null,null,null,"",""]
[null,null,null,null,"",""]
[null,null,null,null,"",""]
[null,null,null,null,"",""]
[null,null,null,null,"",""]
[null,null,null,null,"",""]
[null,null,null,null,"",""]
[null,null,null,null,"",""]
[null,null,null,null,"",""]
[null,null,null,null,"",{"$f":"IF(E8133=\"\",\"\",D8133*E8133)","v":""}]
[null,null,null,null,"",""]
[null,null,null,null,"",""]
[null,null,null,null,"",""]
[null,null,null,null,"",""]
[null,null,null,null,"",""]
[null,null,null,null,"",""]
[null,null,null,null,"",""]
[null,null,null,null,"",""]
[null,null,null,null,"",""]
[null,null,null,null,"",""]
[null,null,null,null,"",""]
[null,null,null,null,"",""]
[null,null,null,null,"",""]
[null,null,null,null,"",""]
[null,null,null,null,"",""]
[null,null,null,null,"",""]
[null,null,null,null,"",""]
[null,null,null,null,"",""]
[null,null,null,null,"",""]
[null,null,null,null,"",""]
[null,null,null,null,"",""]
[null,null,null,null,"",""]
[null,null,null,null,"",""]
[null,null,null,null,"",""]
[null,null,null,null,"",""]
[null,null,null,null,"",""]
[null,null,null,null,"",""]
[null,null,null,null,"",""]
[null,null,null,null,"",""]
[null,null,null,null,"",""]
[null,null,null,null,"",""]
[null,null,null,null,"",""]
[null,null,null,null,"",""]
[null,null,null,null,"",""]
[null,null,null,null,"",""]
[null,null,null,null,"",""]
[null,null,null,null,"",""]
[null,null,null,null,"",""]
[null,null,null,null,{"$f":"IF(C8172=\"\",\"\",VLOOKUP(C8172,$J$4:$J$10,2,FALSE))","v":""},""]
[null,null,null,null,"",""]
[null,null,null,null,"",""]
[null,null,null,null,"",""]
[null,null,null,null,"",""]
[null,null,null,null,"",""]
[null,null,null,null,"",""]
[null,null,null,null,"",""]
[null,null,null,null,"",""]
[null,null,null,null,"",""]
[null,null,null,null,"",""]
[null,null,null,null,"",""]
[null,null,null,null,"",""]
[null,null,null,null,"",""]
[null,null,null,null,"",""]
[null,null,null,null,"",""]
[null,null,null,null,"",""]
[null,null,null,null,"",""]
[null,null,null,null,"",""]
[null,null,null,null,"",""]
[null,null,null,null,"",""]
[null,null,null,null,"",""]
[null,null,null,null,"",""]
[null,null,null,null,"",""]
[null,null,null,null,"",""]
[null,null,null,null,"",{"$f":"IF(E8197=\"\",\"\",D8197*E8197)","v":""}]
[null,null,null,null,"",""]
[null,null,null,null,"",""]
[null,null,null,null,"",""]
[null,null,null,null,"",""]
[null,null,null,null,"",""]
[null,null,null,null,"",""]
[null,null,null,null,"",""]
[null,null,null,null,"",""]
[null,null,null,null,"",""]
[null,null,null,null,"",""]
[null,null,null,null,"",""]
[null,null,null,null,"",""]
[null,null,null,null,"",""]
[null,null,null,null,"",""]
[null,null,null,null,"",""]
[null,null,null,null,"",""]
[null,null,null,null,"",""]
[null,null,null,null,"",""]
[null,null,null,null,"",""]
[null,null,null,null,"",""]
[null,null,null,null,"",""]
[null,null,null,null,"",""]
[null,null,null,null,"",""]
[null,null,null,null,"",""]
[null,null,null,null,"",""]
[null,null,null,null,"",""]
[null,null,null,null,"",""]
[null,null,null,null,"",""]
[null,null,null,null,"",""]
[null,null,null,null,"",""]
[null,null,null,null,"",""]
[null,null,null,null,"",""]
[null,null,null,null,"",""]
[null,null,null,null,"",""]
[null,null,null,null,"",""]
[null,null,null,null,"",""]
[null,null,null,null,"",""]
[null,null,null,null,"",""]
[null,null,null,null,{"$f":"IF(C8236=\"\",\"\",VLOOKUP(C8236,$J$4:$J$10,2,FALSE))","v":""},""]
[null,null,null,null,"",""]
[null,null,null,null,"",""]
[null,null,null,null,"",""]
[null,null,null,null,"",""]
[null,null,null,null,"",""]
[null,null,null,null,"",""]
[null,null,null,null,"",""]
[null,null,null,null,"",""]
[null,null,null,null,"",""]
[null,null,null,null,"",""]
[null,null,null,null,"",""]
[null,null,null,null,"",""]
[null,null,null,null,"",""]
[null,null,null,null,"",""]
[null,null,null,null,"",""]
[null,null,null,null,"",""]
[null,null,null,null,"",""]
[null,null,null,null,"",""]
[null,null,null,null,"",""]
[null,null,null,null,"",""]
[null,null,null,null,"",""]
[null,null,null,null,"",""]
[null,null,null,null,"",""]
[null,null,null,null,"",""]
[null,null,null,null,"",{"$f":"IF(E8261=\"\",\"\",D8261*E8261)","v":""}]
[null,null,null,null,"",""]
[null,null,null,null,"",""]
[null,null,null,null,"",""]
[null,null,null,null,"",""]
[null,null,null,null,"",""]
[null,null,null,null,"",""]
[null,null,null,null,"",""]
[null,null,null,null,"",""]
[null,null,null,null,"",""]
[null,null,null,null,"",""]
[null,null,null,null,"",""]
[null,null,null,null,"",""]
[null,null,null,null,"",""]
[null,null,null,null,"",""]
[null,null,null,null,"",""]
[null,null,null,null,"",""]
[null,null,null,null,"",""]
[null,null,null,null,"",""]
[null,null,null,null,"",""]
[null,null,null,null,"",""]
[null,null,null,null,"",""]
[null,null,null,null,"",""]
[null,null,null,null,"",""]
[null,null,null,null,"",""]
[null,null,null,null,"",""]
[null,null,null,null,"",""]
[null,null,null,null,"",""]
[null,null,null,null,"",""]
[null,null,null,null,"",""]
[null,null,null,null,"",""]
[null,null,null,null,"",""]
[null,null,null,null,"",""]
[null,null,null,null,"",""]
[null,null,null,null,"",""]
[null,null,null,null,"",""]
[null,null,null,null,"",""]
[null,null,null,null,"",""]
[null,null,null,null,"",""]
[null,null,null,null,{"$f":"IF(C8300=\"\",\"\",VLOOKUP(C8300,$J$4:$J$10,2,FALSE))","v":""},""]
[null,null,null,null,"",""]
[null,null,null,null,"",""]
[null,null,null,null,"",""]
[null,null,null,null,"",""]
[null,null,null,null,"",""]
[null,null,null,null,"",""]
[null,null,null,null,"",""]
[null,null,null,null,"",""]
[null,null,null,null,"",""]
[null,null,null,null,"",""]
[null,null,null,null,"",""]
[null,null,null,null,"",""]
[null,null,null,null,"",""]
[null,null,null,null,"",""]
[null,null,null,null,"",""]
[null,null,null,null,"",""]
[null,null,null,null,"",""]
[null,null,null,null,"",""]
[null,null,null,null,"",""]
[null,null,null,null,"",""]
[null,null,null,null,"",""]
[null,null,null,null,"",""]
[null,null,null,null,"",""]
[null,null,null,null,"",""]
[null,null,null,null,"",{"$f":"IF(E8325=\"\",\"\",D8325*E8325)","v":""}]
[null,null,null,null,"",""]
[null,null,null,null,"",""]
[null,null,null,null,"",""]
[null,null,null,null,"",""]
[null,null,null,null,"",""]
[null,null,null,null,"",""]
[null,null,null,null,"",""]
[null,null,null,null,"",""]
[null,null,null,null,"",""]
[null,null,null,null,"",""]
[null,null,null,null,"",""]
[null,null,null,null,"",""]
[null,null,null,null,"",""]
[null,null,null,null,"",""]
[null,null,null,null,"",""]
[null,null,null,null,"",""]
[null,null,null,null,"",""]
[null,null,null,null,"",""]
[null,null,null,null,"",""]
[null,null,null,null,"",""]
[null,null,null,null,"",""]
[null,null,null,null,"",""]
[null,null,null,null,"",""]
[null,null,null,null,"",""]
[null,null,null,null,"",""]
[null,null,null,null,"",""]
[null,null,null,null,"",""]
[null,null,null,null,"",""]
[null,null,null,null,"",""]
[null,null,null,null,"",""]
[null,null,null,null,"",""]
[null,null,null,null,"",""]
[null,null,null,null,"",""]
[null,null,null,null,"",""]
[null,null,null,null,"",""]
[null,null,null,null,"",""]
[null,null,null,null,"",""]
[null,null,null,null,"",""]
[null,null,null,null,{"$f":"IF(C8364=\"\",\"\",VLOOKUP(C8364,$J$4:$J$10,2,FALSE))","v":""},""]
[null,null,null,null,"",""]
[null,null,null,null,"",""]
[null,null,null,null,"",""]
[null,null,null,null,"",""]
[null,null,null,null,"",""]
[null,null,null,null,"",""]
[null,null,null,null,"",""]
[null,null,null,null,"",""]
[null,null,null,null,"",""]
[null,null,null,null,"",""]
[null,null,null,null,"",""]
[null,null,null,null,"",""]
[null,null,null,null,"",""]
[null,null,null,null,"",""]
[null,null,null,null,"",""]
[null,null,null,null,"",""]
[null,null,null,null,"",""]
[null,null,null,null,"",""]
[null,null,null,null,"",""]
[null,null,null,null,"",""]
[null,null,null,null,"",""]
[null,null,null,null,"",""]
[null,null,null,null,"",""]
[null,null,null,null,"",""]
[null,null,null,null,"",{"$f":"IF(E8389=\"\",\"\",D8389*E8389)","v":""}]
[null,null,null,null,"",""]
[null,null,null,null,"",""]
[null,null,null,null,"",""]
[null,null,null,null,"",""]
[null,null,null,null,"",""]
[null,null,null,null,"",""]
[null,null,null,null,"",""]
[null,null,null,null,"",""]
[null,null,null,null,"",""]
[null,null,null,null,"",""]
[null,null,null,null,"",""]
[null,null,null,null,"",""]
[null,null,null,null,"",""]
[null,null,null,null,"",""]
[null,null,null,null,"",""]
[null,null,null,null,"",""]
[null,null,null,null,"",""]
[null,null,null,null,"",""]
[null,null,null,null,"",""]
[null,null,null,null,"",""]
[null,null,null,null,"",""]
[null,null,null,null,"",""]
[null,null,null,null,"",""]
[null,null,null,null,"",""]
[null,null,null,null,"",""]
[null,null,null,null,"",""]
[null,null,null,null,"",""]
[null,null,null,null,"",""]
[null,null,null,null,"",""]
[null,null,null,null,"",""]
[null,null,null,null,"",""]
[null,null,null,null,"",""]
[null,null,null,null,"",""]
[null,null,null,null,"",""]
[null,null,null,null,"",""]
[null,null,null,null,"",""]
[null,null,null,null,"",""]
[null,null,null,null,"",""]
[null,null,null,null,{"$f":"IF(C8428=\"\",\"\",VLOOKUP(C8428,$J$4:$J$10,2,FALSE))","v":""},""]
[null,null,null,null,"",""]
[null,null,null,null,"",""]
[null,null,null,null,"",""]
[null,null,null,null,"",""]
[null,null,null,null,"",""]
[null,null,null,null,"",""]
[null,null,null,null,"",""]
[null,null,null,null,"",""]
[null,null,null,null,"",""]
[null,null,null,null,"",""]
[null,null,null,null,"",""]
[null,null,null,null,"",""]
[null,null,null,null,"",""]
[null,null,null,null,"",""]
[null,null,null,null,"",""]
[null,null,null,null,"",""]
[null,null,null,null,"",""]
[null,null,null,null,"",""]
[null,null,null,null,"",""]
[null,null,null,null,"",""]
[null,null,null,null,"",""]
[null,null,null,null,"",""]
[null,null,null,null,"",""]
[null,null,null,null,"",""]
[null,null,null,null,"",{"$f":"IF(E8453=\"\",\"\",D8453*E8453)","v":""}]
[null,null,null,null,"",""]
[null,null,null,null,"",""]
[null,null,null,null,"",""]
[null,null,null,null,"",""]
[null,null,null,null,"",""]
[null,null,null,null,"",""]
[null,null,null,null,"",""]
[null,null,null,null,"",""]
[null,null,null,null,"",""]
[null,null,null,null,"",""]
[null,null,null,null,"",""]
[null,null,null,null,"",""]
[null,null,null,null,"",""]
[null,null,null,null,"",""]
[null,null,null,null,"",""]
[null,null,null,null,"",""]
[null,null,null,null,"",""]
[null,null,null,null,"",""]
[null,null,null,null,"",""]
[null,null,null,null,"",""]
[null,null,null,null,"",""]
[null,null,null,null,"",""]
[null,null,null,null,"",""]
[null,null,null,null,"",""]
[null,null,null,null,"",""]
[null,null,null,null,"",""]
[null,null,null,null,"",""]
[null,null,null,null,"",""]
[null,null,null,null,"",""]
[null,null,null,null,"",""]
[null,null,null,null,"",""]
[null,null,null,null,"",""]
[null,null,null,null,"",""]
[null,null,null,null,"",""]
[null,null,null,null,"",""]
[null,null,null,null,"",""]
[null,null,null,null,"",""]
[null,null,null,null,"",""]
[null,null,null,null,{"$f":"IF(C8492=\"\",\"\",VLOOKUP(C8492,$J$4:$J$10,2,FALSE))","v":""},""]
[null,null,null,null,"",""]
[null,null,null,null,"",""]
[null,null,null,null,"",""]
[null,null,null,null,"",""]
[null,null,null,null,"",""]
[null,null,null,null,"",""]
[null,null,null,null,"",""]
[null,null,null,null,"",""]
[null,null,null,null,"",""]
[null,null,null,null,"",""]
[null,null,null,null,"",""]
[null,null,null,null,"",""]
[null,null,null,null,"",""]
[null,null,null,null,"",""]
[null,null,null,null,"",""]
[null,null,null,null,"",""]
[null,null,null,null,"",""]
[null,null,null,null,"",""]
[null,null,null,null,"",""]
[null,null,null,null,"",""]
[null,null,null,null,"",""]
[null,null,null,null,"",""]
[null,null,null,null,"",""]
[null,null,null,null,"",""]
[null,null,null,null,"",{"$f":"IF(E8517=\"\",\"\",D8517*E8517)","v":""}]
[null,null,null,null,"",""]
[null,null,null,null,"",""]
[null,null,null,null,"",""]
[null,null,null,null,"",""]
[null,null,null,null,"",""]
[null,null,null,null,"",""]
[null,null,null,null,"",""]
[null,null,null,null,"",""]
[null,null,null,null,"",""]
[null,null,null,null,"",""]
[null,null,null,null,"",""]
[null,null,null,null,"",""]
[null,null,null,null,"",""]
[null,null,null,null,"",""]
[null,null,null,null,"",""]
[null,null,null,null,"",""]
[null,null,null,null,"",""]
[null,null,null,null,"",""]
[null,null,null,null,"",""]
[null,null,null,null,"",""]
[null,null,null,null,"",""]
[null,null,null,null,"",""]
[null,null,null,null,"",""]
[null,null,null,null,"",""]
[null,null,null,null,"",""]
[null,null,null,null,"",""]
[null,null,null,null,"",""]
[null,null,null,null,"",""]
[null,null,null,null,"",""]
[null,null,null,null,"",""]
[null,null,null,null,"",""]
[null,null,null,null,"",""]
[null,null,null,null,"",""]
[null,null,null,null,"",""]
[null,null,null,null,"",""]
[null,null,null,null,"",""]
[null,null,null,null,"",""]
[null,null,null,null,"",""]
[null,null,null,null,{"$f":"IF(C8556=\"\",\"\",VLOOKUP(C8556,$J$4:$J$10,2,FALSE))","v":""},""]
[null,null,null,null,"",""]
[null,null,null,null,"",""]
[null,null,null,null,"",""]
[null,null,null,null,"",""]
[null,null,null,null,"",""]
[null,null,null,null,"",""]
[null,null,null,null,"",""]
[null,null,null,null,"",""]
[null,null,null,null,"",""]
[null,null,null,null,"",""]
[null,null,null,null,"",""]
[null,null,null,null,"",""]
[null,null,null,null,"",""]
[null,null,null,null,"",""]
[null,null,null,null,"",""]
[null,null,null,null,"",""]
[null,null,null,null,"",""]
[null,null,null,null,"",""]
[null,null,null,null,"",""]
[null,null,null,null,"",""]
[null,null,null,null,"",""]
[null,null,null,null,"",""]
[null,null,null,null,"",""]
[null,null,null,null,"",""]
[null,null,null,null,"",{"$f":"IF(E8581=\"\",\"\",D8581*E8581)","v":""}]
[null,null,null,null,"",""]
[null,null,null,null,"",""]
[null,null,null,null,"",""]
[null,null,null,null,"",""]
[null,null,null,null,"",""]
[null,null,null,null,"",""]
[null,null,null,null,"",""]
[null,null,null,null,"",""]
[null,null,null,null,"",""]
[null,null,null,null,"",""]
[null,null,null,null,"",""]
[null,null,null,null,"",""]
[null,null,null,null,"",""]
[null,null,null,null,"",""]
[null,null,null,null,"",""]
[null,null,null,null,"",""]
[null,null,null,null,"",""]
[null,null,null,null,"",""]
[null,null,null,null,"",""]
[null,null,null,null,"",""]
[null,null,null,null,"",""]
[null,null,null,null,"",""]
[null,null,null,null,"",""]
[null,null,null,null,"",""]
[null,null,null,null,"",""]
[null,null,null,null,"",""]
[null,null,null,null,"",""]
[null,null,null,null,"",""]
[null,null,null,null,"",""]
[null,null,null,null,"",""]
[null,null,null,null,"",""]
[null,null,null,null,"",""]
[null,null,null,null,"",""]
[null,null,null,null,"",""]
[null,null,null,null,"",""]
[null,null,null,null,"",""]
[null,null,null,null,"",""]
[null,null,null,null,"",""]
[null,null,null,null,{"$f":"IF(C8620=\"\",\"\",VLOOKUP(C8620,$J$4:$J$10,2,FALSE))","v":""},""]
[null,null,null,null,"",""]
[null,null,null,null,"",""]
[null,null,null,null,"",""]
[null,null,null,null,"",""]
[null,null,null,null,"",""]
[null,null,null,null,"",""]
[null,null,null,null,"",""]
[null,null,null,null,"",""]
[null,null,null,null,"",""]
[null,null,null,null,"",""]
[null,null,null,null,"",""]
[null,null,null,null,"",""]
[null,null,null,null,"",""]
[null,null,null,null,"",""]
[null,null,null,null,"",""]
[null,null,null,null,"",""]
[null,null,null,null,"",""]
[null,null,null,null,"",""]
[null,null,null,null,"",""]
[null,null,null,null,"",""]
[null,null,null,null,"",""]
[null,null,null,null,"",""]
[null,null,null,null,"",""]
[null,null,null,null,"",""]
[null,null,null,null,"",{"$f":"IF(E8645=\"\",\"\",D8645*E8645)","v":""}]
[null,null,null,null,"",""]
[null,null,null,null,"",""]
[null,null,null,null,"",""]
[null,null,null,null,"",""]
[null,null,null,null,"",""]
[null,null,null,null,"",""]
[null,null,null,null,"",""]
[null,null,null,null,"",""]
[null,null,null,null,"",""]
[null,null,null,null,"",""]
[null,null,null,null,"",""]
[null,null,null,null,"",""]
[null,null,null,null,"",""]
[null,null,null,null,"",""]
[null,null,null,null,"",""]
[null,null,null,null,"",""]
[null,null,null,null,"",""]
[null,null,null,null,"",""]
[null,null,null,null,"",""]
[null,null,null,null,"",""]
[null,null,null,null,"",""]
[null,null,null,null,"",""]
[null,null,null,null,"",""]
[null,null,null,null,"",""]
[null,null,null,null,"",""]
[null,null,null,null,"",""]
[null,null,null,null,"",""]
[null,null,null,null,"",""]
[null,null,null,null,"",""]
[null,null,null,null,"",""]
[null,null,null,null,"",""]
[null,null,null,null,"",""]
[null,null,null,null,"",""]
[null,null,null,null,"",""]
[null,null,null,null,"",""]
[null,null,null,null,"",""]
[null,null,null,null,"",""]
[null,null,null,null,"",""]
[null,null,null,null,{"$f":"IF(C8684=\"\",\"\",VLOOKUP(C8684,$J$4:$J$10,2,FALSE))","v":""},""]
[null,null,null,null,"",""]
[null,null,null,null,"",""]
[null,null,null,null,"",""]
[null,null,null,null,"",""]
[null,null,null,null,"",""]
[null,null,null,null,"",""]
[null,null,null,null,"",""]
[null,null,null,null,"",""]
[null,null,null,null,"",""]
[null,null,null,null,"",""]
[null,null,null,null,"",""]
[null,null,null,null,"",""]
[null,null,null,null,"",""]
[null,null,null,null,"",""]
[null,null,null,null,"",""]
[null,null,null,null,"",""]
[null,null,null,null,"",""]
[null,null,null,null,"",""]
[null,null,null,null,"",""]
[null,null,null,null,"",""]
[null,null,null,null,"",""]
[null,null,null,null,"",""]
[null,null,null,null,"",""]
[null,null,null,null,"",""]
[null,null,null,null,"",{"$f":"IF(E8709=\"\",\"\",D8709*E8709)","v":""}]
[null,null,null,null,"",""]
[null,null,null,null,"",""]
[null,null,null,null,"",""]
[null,null,null,null,"",""]
[null,null,null,null,"",""]
[null,null,null,null,"",""]
[null,null,null,null,"",""]
[null,null,null,null,"",""]
[null,null,null,null,"",""]
[null,null,null,null,"",""]
[null,null,null,null,"",""]
[null,null,null,null,"",""]
[null,null,null,null,"",""]
[null,null,null,null,"",""]
[null,null,null,null,"",""]
[null,null,null,null,"",""]
[null,null,null,null,"",""]
[null,null,null,null,"",""]
[null,null,null,null,"",""]
[null,null,null,null,"",""]
[null,null,null,null,"",""]
[null,null,null,null,"",""]
[null,null,null,null,"",""]
[null,null,null,null,"",""]
[null,null,null,null,"",""]
[null,null,null,null,"",""]
[null,null,null,null,"",""]
[null,null,null,null,"",""]
[null,null,null,null,"",""]
[null,null,null,null,"",""]
[null,null,null,null,"",""]
[null,null,null,null,"",""]
[null,null,null,null,"",""]
[null,null,null,null,"",""]
[null,null,null,null,"",""]
[null,null,null,null,"",""]
[null,null,null,null,"",""]
[null,null,null,null,"",""]
[null,null,null,null,{"$f":"IF(C8748=\"\",\"\",VLOOKUP(C8748,$J$4:$J$10,2,FALSE))","v":""},""]
[null,null,null,null,"",""]
[null,null,null,null,"",""]
[null,null,null,null,"",""]
[null,null,null,null,"",""]
[null,null,null,null,"",""]
[null,null,null,null,"",""]
[null,null,null,null,"",""]
[null,null,null,null,"",""]
[null,null,null,null,"",""]
[null,null,null,null,"",""]
[null,null,null,null,"",""]
[null,null,null,null,"",""]
[null,null,null,null,"",""]
[null,null,null,null,"",""]
[null,null,null,null,"",""]
[null,null,null,null,"",""]
[null,null,null,null,"",""]
[null,null,null,null,"",""]
[null,null,null,null,"",""]
[null,null,null,null,"",""]
[null,null,null,null,"",""]
[null,null,null,null,"",""]
[null,null,null,null,"",""]
[null,null,null,null,"",""]
[null,null,null,null,"",{"$f":"IF(E8773=\"\",\"\",D8773*E8773)","v":""}]
[null,null,null,null,"",""]
[null,null,null,null,"",""]
[null,null,null,null,"",""]
[null,null,null,null,"",""]
[null,null,null,null,"",""]
[null,null,null,null,"",""]
[null,null,null,null,"",""]
[null,null,null,null,"",""]
[null,null,null,null,"",""]
[null,null,null,null,"",""]
[null,null,null,null,"",""]
[null,null,null,null,"",""]
[null,null,null,null,"",""]
[null,null,null,null,"",""]
[null,null,null,null,"",""]
[null,null,null,null,"",""]
[null,null,null,null,"",""]
[null,null,null,null,"",""]
[null,null,null,null,"",""]
[null,null,null,null,"",""]
[null,null,null,null,"",""]
[null,null,null,null,"",""]
[null,null,null,null,"",""]
[null,null,null,null,"",""]
[null,null,null,null,"",""]
[null,null,null,null,"",""]
[null,null,null,null,"",""]
[null,null,null,null,"",""]
[null,null,null,null,"",""]
[null,null,null,null,"",""]
[null,null,null,null,"",""]
[null,null,null,null,"",""]
[null,null,null,null,"",""]
[null,null,null,null,"",""]
[null,null,null,null,"",""]
[null,null,null,null,"",""]
[null,null,null,null,"",""]
[null,null,null,null,"",""]
[null,null,null,null,{"$f":"IF(C8812=\"\",\"\",VLOOKUP(C8812,$J$4:$J$10,2,FALSE))","v":""},""]
[null,null,null,null,"",""]
[null,null,null,null,"",""]
[null,null,null,null,"",""]
[null,null,null,null,"",""]
[null,null,null,null,"",""]
[null,null,null,null,"",""]
[null,null,null,null,"",""]
[null,null,null,null,"",""]
[null,null,null,null,"",""]
[null,null,null,null,"",""]
[null,null,null,null,"",""]
[null,null,null,null,"",""]
[null,null,null,null,"",""]
[null,null,null,null,"",""]
[null,null,null,null,"",""]
[null,null,null,null,"",""]
[null,null,null,null,"",""]
[null,null,null,null,"",""]
[null,null,null,null,"",""]
[null,null,null,null,"",""]
[null,null,null,null,"",""]
[null,null,null,null,"",""]
[null,null,null,null,"",""]
[null,null,null,null,"",""]
[null,null,null,null,"",{"$f":"IF(E8837=\"\",\"\",D8837*E8837)","v":""}]
[null,null,null,null,"",""]
[null,null,null,null,"",""]
[null,null,null,null,"",""]
[null,null,null,null,"",""]
[null,null,null,null,"",""]
[null,null,null,null,"",""]
[null,null,null,null,"",""]
[null,null,null,null,"",""]
[null,null,null,null,"",""]
[null,null,null,null,"",""]
[null,null,null,null,"",""]
[null,null,null,null,"",""]
[null,null,null,null,"",""]
[null,null,null,null,"",""]
[null,null,null,null,"",""]
[null,null,null,null,"",""]
[null,null,null,null,"",""]
[null,null,null,null,"",""]
[null,null,null,null,"",""]
[null,null,null,null,"",""]
[null,null,null,null,"",""]
[null,null,null,null,"",""]
[null,null,null,null,"",""]
[null,null,null,null,"",""]
[null,null,null,null,"",""]
[null,null,null,null,"",""]
[null,null,null,null,"",""]
[null,null,null,null,"",""]
[null,null,null,null,"",""]
[null,null,null,null,"",""]
[null,null,null,null,"",""]
[null,null,null,null,"",""]
[null,null,null,null,"",""]
[null,null,null,null,"",""]
[null,null,null,null,"",""]
[null,null,null,null,"",""]
[null,null,null,null,"",""]
[null,null,null,null,"",""]
[null,null,null,null,{"$f":"IF(C8876=\"\",\"\",VLOOKUP(C8876,$J$4:$J$10,2,FALSE))","v":""},""]
[null,null,null,null,"",""]
[null,null,null,null,"",""]
[null,null,null,null,"",""]
[null,null,null,null,"",""]
[null,null,null,null,"",""]
[null,null,null,null,"",""]
[null,null,null,null,"",""]
[null,null,null,null,"",""]
[null,null,null,null,"",""]
[null,null,null,null,"",""]
[null,null,null,null,"",""]
[null,null,null,null,"",""]
[null,null,null,null,"",""]
[null,null,null,null,"",""]
[null,null,null,null,"",""]
[null,null,null,null,"",""]
[null,null,null,null,"",""]
[null,null,null,null,"",""]
[null,null,null,null,"",""]
[null,null,null,null,"",""]
[null,null,null,null,"",""]
[null,null,null,null,"",""]
[null,null,null,null,"",""]
[null,null,null,null,"",""]
[null,null,null,null,"",{"$f":"IF(E8901=\"\",\"\",D8901*E8901)","v":""}]
[null,null,null,null,"",""]
[null,null,null,null,"",""]
[null,null,null,null,"",""]
[null,null,null,null,"",""]
[null,null,null,null,"",""]
[null,null,null,null,"",""]
[null,null,null,null,"",""]
[null,null,null,null,"",""]
[null,null,null,null,"",""]
[null,null,null,null,"",""]
[null,null,null,null,"",""]
[null,null,null,null,"",""]
[null,null,null,null,"",""]
[null,null,null,null,"",""]
[null,null,null,null,"",""]
[null,null,null,null,"",""]
[null,null,null,null,"",""]
[null,null,null,null,"",""]
[null,null,null,null,"",""]
[null,null,null,null,"",""]
[null,null,null,null,"",""]
[null,null,null,null,"",""]
[null,null,null,null,"",""]
[null,null,null,null,"",""]
[null,null,null,null,"",""]
[null,null,null,null,"",""]
[null,null,null,null,"",""]
[null,null,null,null,"",""]
[null,null,null,null,"",""]
[null,null,null,null,"",""]
[null,null,null,null,"",""]
[null,null,null,null,"",""]
[null,null,null,null,"",""]
[null,null,null,null,"",""]
[null,null,null,null,"",""]
[null,null,null,null,"",""]
[null,null,null,null,"",""]
[null,null,null,null,"",""]
[null,null,null,null,{"$f":"IF(C8940=\"\",\"\",VLOOKUP(C8940,$J$4:$J$10,2,FALSE))","v":""},""]
[null,null,null,null,"",""]
[null,null,null,null,"",""]
[null,null,null,null,"",""]
[null,null,null,null,"",""]
[null,null,null,null,"",""]
[null,null,null,null,"",""]
[null,null,null,null,"",""]
[null,null,null,null,"",""]
[null,null,null,null,"",""]
[null,null,null,null,"",""]
[null,null,null,null,"",""]
[null,null,null,null,"",""]
[null,null,null,null,"",""]
[null,null,null,null,"",""]
[null,null,null,null,"",""]
[null,null,null,null,"",""]
[null,null,null,null,"",""]
[null,null,null,null,"",""]
[null,null,null,null,"",""]
[null,null,null,null,"",""]
[null,null,null,null,"",""]
[null,null,null,null,"",""]
[null,null,null,null,"",""]
[null,null,null,null,"",""]
[null,null,null,null,"",{"$f":"IF(E8965=\"\",\"\",D8965*E8965)","v":""}]
[null,null,null,null,"",""]
[null,null,null,null,"",""]
[null,null,null,null,"",""]
[null,null,null,null,"",""]
[null,null,null,null,"",""]
[null,null,null,null,"",""]
[null,null,null,null,"",""]
[null,null,null,null,"",""]
[null,null,null,null,"",""]
[null,null,null,null,"",""]
[null,null,null,null,"",""]
[null,null,null,null,"",""]
[null,null,null,null,"",""]
[null,null,null,null,"",""]
[null,null,null,null,"",""]
[null,null,null,null,"",""]
[null,null,null,null,"",""]
[null,null,null,null,"",""]
[null,null,null,null,"",""]
[null,null,null,null,"",""]
[null,null,null,null,"",""]
[null,null,null,null,"",""]
[null,null,null,null,"",""]
[null,null,null,null,"",""]
[null,null,null,null,"",""]
[null,null,null,null,"",""]
[null,null,null,null,"",""]
[null,null,null,null,"",""]
[null,null,null,null,"",""]
[null,null,null,null,"",""]
[null,null,null,null,"",""]
[null,null,null,null,"",""]
[null,null,null,null,"",""]
[null,null,null,null,"",""]
[null,null,null,null,"",""]
[null,null,null,null,"",""]
[null,null,null,null,"",""]
[null,null,null,null,"",""]
[null,null,null,null,{"$f":"IF(C9004=\"\",\"\",VLOOKUP(C9004,$J$4:$J$10,2,FALSE))","v":""},""]
[null,null,null,null,"",""]
[null,null,null,null,"",""]
[null,null,null,null,"",""]
[null,null,null,null,"",""]
[null,null,null,null,"",""]
[null,null,null,null,"",""]
[null,null,null,null,"",""]
[null,null,null,null,"",""]
[null,null,null,null,"",""]
[null,null,null,null,"",""]
[null,null,null,null,"",""]
[null,null,null,null,"",""]
[null,null,null,null,"",""]
[null,null,null,null,"",""]
[null,null,null,null,"",""]
[null,null,null,null,"",""]
[null,null,null,null,"",""]
[null,null,null,null,"",""]
[null,null,null,null,"",""]
[null,null,null,null,"",""]
[null,null,null,null,"",""]
[null,null,null,null,"",""]
[null,null,null,null,"",""]
[null,null,null,null,"",""]
[null,null,null,null,"",{"$f":"IF(E9029=\"\",\"\",D9029*E9029)","v":""}]
[null,null,null,null,"",""]
[null,null,null,null,"",""]
[null,null,null,null,"",""]
[null,null,null,null,"",""]
[null,null,null,null,"",""]
[null,null,null,null,"",""]
[null,null,null,null,"",""]
[null,null,null,null,"",""]
[null,null,null,null,"",""]
[null,null,null,null,"",""]
[null,null,null,null,"",""]
[null,null,null,null,"",""]
[null,null,null,null,"",""]
[null,null,null,null,"",""]
[null,null,null,null,"",""]
[null,null,null,null,"",""]
[null,null,null,null,"",""]
[null,null,null,null,"",""]
[null,null,null,null,"",""]
[null,null,null,null,"",""]
[null,null,null,null,"",""]
[null,null,null,null,"",""]
[null,null,null,null,"",""]
[null,null,null,null,"",""]
[null,null,null,null,"",""]
[null,null,null,null,"",""]
[null,null,null,null,"",""]
[null,null,null,null,"",""]
[null,null,null,null,"",""]
[null,null,null,null,"",""]
[null,null,null,null,"",""]
[null,null,null,null,"",""]
[null,null,null,null,"",""]
[null,null,null,null,"",""]
[null,null,null,null,"",""]
[null,null,null,null,"",""]
[null,null,null,null,"",""]
[null,null,null,null,"",""]
[null,null,null,null,{"$f":"IF(C9068=\"\",\"\",VLOOKUP(C9068,$J$4:$J$10,2,FALSE))","v":""},""]
[null,null,null,null,"",""]
[null,null,null,null,"",""]
[null,null,null,null,"",""]
[null,null,null,null,"",""]
[null,null,null,null,"",""]
[null,null,null,null,"",""]
[null,null,null,null,"",""]
[null,null,null,null,"",""]
[null,null,null,null,"",""]
[null,null,null,null,"",""]
[null,null,null,null,"",""]
[null,null,null,null,"",""]
[null,null,null,null,"",""]
[null,null,null,null,"",""]
[null,null,null,null,"",""]
[null,null,null,null,"",""]
[null,null,null,null,"",""]
[null,null,null,null,"",""]
[null,null,null,null,"",""]
[null,null,null,null,"",""]
[null,null,null,null,"",""]
[null,null,null,null,"",""]
[null,null,null,null,"",""]
[null,null,null,null,"",""]
[null,null,null,null,"",{"$f":"IF(E9093=\"\",\"\",D9093*E9093)","v":""}]
[null,null,null,null,"",""]
[null,null,null,null,"",""]
[null,null,null,null,"",""]
[null,null,null,null,"",""]
[null,null,null,null,"",""]
[null,null,null,null,"",""]
[null,null,null,null,"",""]
[null,null,null,null,"",""]
[null,null,null,null,"",""]
[null,null,null,null,"",""]
[null,null,null,null,"",""]
[null,null,null,null,"",""]
[null,null,null,null,"",""]
[null,null,null,null,"",""]
[null,null,null,null,"",""]
[null,null,null,null,"",""]
[null,null,null,null,"",""]
[null,null,null,null,"",""]
[null,null,null,null,"",""]
[null,null,null,null,"",""]
[null,null,null,null,"",""]
[null,null,null,null,"",""]
[null,null,null,null,"",""]
[null,null,null,null,"",""]
[null,null,null,null,"",""]
[null,null,null,null,"",""]
[null,null,null,null,"",""]
[null,null,null,null,"",""]
[null,null,null,null,"",""]
[null,null,null,null,"",""]
[null,null,null,null,"",""]
[null,null,null,null,"",""]
[null,null,null,null,"",""]
[null,null,null,null,"",""]
[null,null,null,null,"",""]
[null,null,null,null,"",""]
[null,null,null,null,"",""]
[null,null,null,null,"",""]
[null,null,null,null,{"$f":"IF(C9132=\"\",\"\",VLOOKUP(C9132,$J$4:$J$10,2,FALSE))","v":""},""]
[null,null,null,null,"",""]
[null,null,null,null,"",""]
[null,null,null,null,"",""]
[null,null,null,null,"",""]
[null,null,null,null,"",""]
[null,null,null,null,"",""]
[null,null,null,null,"",""]
[null,null,null,null,"",""]
[null,null,null,null,"",""]
[null,null,null,null,"",""]
[null,null,null,null,"",""]
[null,null,null,null,"",""]
[null,null,null,null,"",""]
[null,null,null,null,"",""]
[null,null,null,null,"",""]
[null,null,null,null,"",""]
[null,null,null,null,"",""]
[null,null,null,null,"",""]
[null,null,null,null,"",""]
[null,null,null,null,"",""]
[null,null,null,null,"",""]
[null,null,null,null,"",""]
[null,null,null,null,"",""]
[null,null,null,null,"",""]
[null,null,null,null,"",{"$f":"IF(E9157=\"\",\"\",D9157*E9157)","v":""}]
[null,null,null,null,"",""]
[null,null,null,null,"",""]
[null,null,null,null,"",""]
[null,null,null,null,"",""]
[null,null,null,null,"",""]
[null,null,null,null,"",""]
[null,null,null,null,"",""]
[null,null,null,null,"",""]
[null,null,null,null,"",""]
[null,null,null,null,"",""]
[null,null,null,null,"",""]
[null,null,null,null,"",""]
[null,null,null,null,"",""]
[null,null,null,null,"",""]
[null,null,null,null,"",""]
[null,null,null,null,"",""]
[null,null,null,null,"",""]
[null,null,null,null,"",""]
[null,null,null,null,"",""]
[null,null,null,null,"",""]
[null,null,null,null,"",""]
[null,null,null,null,"",""]
[null,null,null,null,"",""]
[null,null,null,null,"",""]
[null,null,null,null,"",""]
[null,null,null,null,"",""]
[null,null,null,null,"",""]
[null,null,null,null,"",""]
[null,null,null,null,"",""]
[null,null,null,null,"",""]
[null,null,null,null,"",""]
[null,null,null,null,"",""]
[null,null,null,null,"",""]
[null,null,null,null,"",""]
[null,null,null,null,"",""]
[null,null,null,null,"",""]
[null,null,null,null,"",""]
[null,null,null,null,"",""]
[null,null,null,null,{"$f":"IF(C9196=\"\",\"\",VLOOKUP(C9196,$J$4:$J$10,2,FALSE))","v":""},""]
[null,null,null,null,"",""]
[null,null,null,null,"",""]
[null,null,null,null,"",""]
[null,null,null,null,"",""]
[null,null,null,null,"",""]
[null,null,null,null,"",""]
[null,null,null,null,"",""]
[null,null,null,null,"",""]
[null,null,null,null,"",""]
[null,null,null,null,"",""]
[null,null,null,null,"",""]
[null,null,null,null,"",""]
[null,null,null,null,"",""]
[null,null,null,null,"",""]
[null,null,null,null,"",""]
[null,null,null,null,"",""]
[null,null,null,null,"",""]
[null,null,null,null,"",""]
[null,null,null,null,"",""]
[null,null,null,null,"",""]
[null,null,null,null,"",""]
[null,null,null,null,"",""]
[null,null,null,null,"",""]
[null,null,null,null,"",""]
[null,null,null,null,"",{"$f":"IF(E9221=\"\",\"\",D9221*E9221)","v":""}]
[null,null,null,null,"",""]
[null,null,null,null,"",""]
[null,null,null,null,"",""]
[null,null,null,null,"",""]
[null,null,null,null,"",""]
[null,null,null,null,"",""]
[null,null,null,null,"",""]
[null,null,null,null,"",""]
[null,null,null,null,"",""]
[null,null,null,null,"",""]
[null,null,null,null,"",""]
[null,null,null,null,"",""]
[null,null,null,null,"",""]
[null,null,null,null,"",""]
[null,null,null,null,"",""]
[null,null,null,null,"",""]
[null,null,null,null,"",""]
[null,null,null,null,"",""]
[null,null,null,null,"",""]
[null,null,null,null,"",""]
[null,null,null,null,"",""]
[null,null,null,null,"",""]
[null,null,null,null,"",""]
[null,null,null,null,"",""]
[null,null,null,null,"",""]
[null,null,null,null,"",""]
[null,null,null,null,"",""]
[null,null,null,null,"",""]
[null,null,null,null,"",""]
[null,null,null,null,"",""]
[null,null,null,null,"",""]
[null,null,null,null,"",""]
[null,null,null,null,"",""]
[null,null,null,null,"",""]
[null,null,null,null,"",""]
[null,null,null,null,"",""]
[null,null,null,null,"",""]
[null,null,null,null,"",""]
[null,null,null,null,{"$f":"IF(C9260=\"\",\"\",VLOOKUP(C9260,$J$4:$J$10,2,FALSE))","v":""},""]
[null,null,null,null,"",""]
[null,null,null,null,"",""]
[null,null,null,null,"",""]
[null,null,null,null,"",""]
[null,null,null,null,"",""]
[null,null,null,null,"",""]
[null,null,null,null,"",""]
[null,null,null,null,"",""]
[null,null,null,null,"",""]
[null,null,null,null,"",""]
[null,null,null,null,"",""]
[null,null,null,null,"",""]
[null,null,null,null,"",""]
[null,null,null,null,"",""]
[null,null,null,null,"",""]
[null,null,null,null,"",""]
[null,null,null,null,"",""]
[null,null,null,null,"",""]
[null,null,null,null,"",""]
[null,null,null,null,"",""]
[null,null,null,null,"",""]
[null,null,null,null,"",""]
[null,null,null,null,"",""]
[null,null,null,null,"",""]
[null,null,null,null,"",{"$f":"IF(E9285=\"\",\"\",D9285*E9285)","v":""}]
[null,null,null,null,"",""]
[null,null,null,null,"",""]
[null,null,null,null,"",""]
[null,null,null,null,"",""]
[null,null,null,null,"",""]
[null,null,null,null,"",""]
[null,null,null,null,"",""]
[null,null,null,null,"",""]
[null,null,null,null,"",""]
[null,null,null,null,"",""]
[null,null,null,null,"",""]
[null,null,null,null,"",""]
[null,null,null,null,"",""]
[null,null,null,null,"",""]
[null,null,null,null,"",""]
[null,null,null,null,"",""]
[null,null,null,null,"",""]
[null,null,null,null,"",""]
[null,null,null,null,"",""]
[null,null,null,null,"",""]
[null,null,null,null,"",""]
[null,null,null,null,"",""]
[null,null,null,null,"",""]
[null,null,null,null,"",""]
[null,null,null,null,"",""]
[null,null,null,null,"",""]
[null,null,null,null,"",""]
[null,null,null,null,"",""]
[null,null,null,null,"",""]
[null,null,null,null,"",""]
[null,null,null,null,"",""]
[null,null,null,null,"",""]
[null,null,null,null,"",""]
[null,null,null,null,"",""]
[null,null,null,null,"",""]
[null,null,null,null,"",""]
[null,null,null,null,"",""]
[null,null,null,null,"",""]
[null,null,null,null,{"$f":"IF(C9324=\"\",\"\",VLOOKUP(C9324,$J$4:$J$10,2,FALSE))","v":""},""]
[null,null,null,null,"",""]
[null,null,null,null,"",""]
[null,null,null,null,"",""]
[null,null,null,null,"",""]
[null,null,null,null,"",""]
[null,null,null,null,"",""]
[null,null,null,null,"",""]
[null,null,null,null,"",""]
[null,null,null,null,"",""]
[null,null,null,null,"",""]
[null,null,null,null,"",""]
[null,null,null,null,"",""]
[null,null,null,null,"",""]
[null,null,null,null,"",""]
[null,null,null,null,"",""]
[null,null,null,null,"",""]
[null,null,null,null,"",""]
[null,null,null,null,"",""]
[null,null,null,null,"",""]
[null,null,null,null,"",""]
[null,null,null,null,"",""]
[null,null,null,null,"",""]
[null,null,null,null,"",""]
[null,null,null,null,"",""]
[null,null,null,null,"",{"$f":"IF(E9349=\"\",\"\",D9349*E9349)","v":""}]
[null,null,null,null,"",""]
[null,null,null,null,"",""]
[null,null,null,null,"",""]
[null,null,null,null,"",""]
[null,null,null,null,"",""]
[null,null,null,null,"",""]
[null,null,null,null,"",""]
[null,null,null,null,"",""]
[null,null,null,null,"",""]
[null,null,null,null,"",""]
[null,null,null,null,"",""]
[null,null,null,null,"",""]
[null,null,null,null,"",""]
[null,null,null,null,"",""]
[null,null,null,null,"",""]
[null,null,null,null,"",""]
[null,null,null,null,"",""]
[null,null,null,null,"",""]
[null,null,null,null,"",""]
[null,null,null,null,"",""]
[null,null,null,null,"",""]
[null,null,null,null,"",""]
[null,null,null,null,"",""]
[null,null,null,null,"",""]
[null,null,null,null,"",""]
[null,null,null,null,"",""]
[null,null,null,null,"",""]
[null,null,null,null,"",""]
[null,null,null,null,"",""]
[null,null,null,null,"",""]
[null,null,null,null,"",""]
[null,null,null,null,"",""]
[null,null,null,null,"",""]
[null,null,null,null,"",""]
[null,null,null,null,"",""]
[null,null,null,null,"",""]
[null,null,null,null,"",""]
[null,null,null,null,"",""]
[null,null,null,null,{"$f":"IF(C9388=\"\",\"\",VLOOKUP(C9388,$J$4:$J$10,2,FALSE))","v":""},""]
[null,null,null,null,"",""]
[null,null,null,null,"",""]
[null,null,null,null,"",""]
[null,null,null,null,"",""]
[null,null,null,null,"",""]
[null,null,null,null,"",""]
[null,null,null,null,"",""]
[null,null,null,null,"",""]
[null,null,null,null,"",""]
[null,null,null,null,"",""]
[null,null,null,null,"",""]
[null,null,null,null,"",""]
[null,null,null,null,"",""]
[null,null,null,null,"",""]
[null,null,null,null,"",""]
[null,null,null,null,"",""]
[null,null,null,null,"",""]
[null,null,null,null,"",""]
[null,null,null,null,"",""]
[null,null,null,null,"",""]
[null,null,null,null,"",""]
[null,null,null,null,"",""]
[null,null,null,null,"",""]
[null,null,null,null,"",""]
[null,null,null,null,"",{"$f":"IF(E9413=\"\",\"\",D9413*E9413)","v":""}]
[null,null,null,null,"",""]
[null,null,null,null,"",""]
[null,null,null,null,"",""]
[null,null,null,null,"",""]
[null,null,null,null,"",""]
[null,null,null,null,"",""]
[null,null,null,null,"",""]
[null,null,null,null,"",""]
[null,null,null,null,"",""]
[null,null,null,null,"",""]
[null,null,null,null,"",""]
[null,null,null,null,"",""]
[null,null,null,null,"",""]
[null,null,null,null,"",""]
[null,null,null,null,"",""]
[null,null,null,null,"",""]
[null,null,null,null,"",""]
[null,null,null,null,"",""]
[null,null,null,null,"",""]
[null,null,null,null,"",""]
[null,null,null,null,"",""]
[null,null,null,null,"",""]
[null,null,null,null,"",""]
[null,null,null,null,"",""]
[null,null,null,null,"",""]
[null,null,null,null,"",""]
[null,null,null,null,"",""]
[null,null,null,null,"",""]
[null,null,null,null,"",""]
[null,null,null,null,"",""]
[null,null,null,null,"",""]
[null,null,null,null,"",""]
[null,null,null,null,"",""]
[null,null,null,null,"",""]
[null,null,null,null,"",""]
[null,null,null,null,"",""]
[null,null,null,null,"",""]
[null,null,null,null,"",""]
[null,null,null,null,{"$f":"IF(C9452=\"\",\"\",VLOOKUP(C9452,$J$4:$J$10,2,FALSE))","v":""},""]
[null,null,null,null,"",""]
[null,null,null,null,"",""]
[null,null,null,null,"",""]
[null,null,null,null,"",""]
[null,null,null,null,"",""]
[null,null,null,null,"",""]
[null,null,null,null,"",""]
[null,null,null,null,"",""]
[null,null,null,null,"",""]
[null,null,null,null,"",""]
[null,null,null,null,"",""]
[null,null,null,null,"",""]
[null,null,null,null,"",""]
[null,null,null,null,"",""]
[null,null,null,null,"",""]
[null,null,null,null,"",""]
[null,null,null,null,"",""]
[null,null,null,null,"",""]
[null,null,null,null,"",""]
[null,null,null,null,"",""]
[null,null,null,null,"",""]
[null,null,null,null,"",""]
[null,null,null,null,"",""]
[null,null,null,null,"",""]
[null,null,null,null,"",{"$f":"IF(E9477=\"\",\"\",D9477*E9477)","v":""}]
[null,null,null,null,"",""]
[null,null,null,null,"",""]
[null,null,null,null,"",""]
[null,null,null,null,"",""]
[null,null,null,null,"",""]
[null,null,null,null,"",""]
[null,null,null,null,"",""]
[null,null,null,null,"",""]
[null,null,null,null,"",""]
[null,null,null,null,"",""]
[null,null,null,null,"",""]
[null,null,null,null,"",""]
[null,null,null,null,"",""]
[null,null,null,null,"",""]
[null,null,null,null,"",""]
[null,null,null,null,"",""]
[null,null,null,null,"",""]
[null,null,null,null,"",""]
[null,null,null,null,"",""]
[null,null,null,null,"",""]
[null,null,null,null,"",""]
[null,null,null,null,"",""]
[null,null,null,null,"",""]
[null,null,null,null,"",""]
[null,null,null,null,"",""]
[null,null,null,null,"",""]
[null,null,null,null,"",""]
[null,null,null,null,"",""]
[null,null,null,null,"",""]
[null,null,null,null,"",""]
[null,null,null,null,"",""]
[null,null,null,null,"",""]
[null,null,null,null,"",""]
[null,null,null,null,"",""]
[null,null,null,null,"",""]
[null,null,null,null,"",""]
[null,null,null,null,"",""]
[null,null,null,null,"",""]
[null,null,null,null,{"$f":"IF(C9516=\"\",\"\",VLOOKUP(C9516,$J$4:$J$10,2,FALSE))","v":""},""]
[null,null,null,null,"",""]
[null,null,null,null,"",""]
[null,null,null,null,"",""]
[null,null,null,null,"",""]
[null,null,null,null,"",""]
[null,null,null,null,"",""]
[null,null,null,null,"",""]
[null,null,null,null,"",""]
[null,null,null,null,"",""]
[null,null,null,null,"",""]
[null,null,null,null,"",""]
[null,null,null,null,"",""]
[null,null,null,null,"",""]
[null,null,null,null,"",""]
[null,null,null,null,"",""]
[null,null,null,null,"",""]
[null,null,null,null,"",""]
[null,null,null,null,"",""]
[null,null,null,null,"",""]
[null,null,null,null,"",""]
[null,null,null,null,"",""]
[null,null,null,null,"",""]
[null,null,null,null,"",""]
[null,null,null,null,"",""]
[null,null,null,null,"",{"$f":"IF(E9541=\"\",\"\",D9541*E9541)","v":""}]
[null,null,null,null,"",""]
[null,null,null,null,"",""]
[null,null,null,null,"",""]
[null,null,null,null,"",""]
[null,null,null,null,"",""]
[null,null,null,null,"",""]
[null,null,null,null,"",""]
[null,null,null,null,"",""]
[null,null,null,null,"",""]
[null,null,null,null,"",""]
[null,null,null,null,"",""]
[null,null,null,null,"",""]
[null,null,null,null,"",""]
[null,null,null,null,"",""]
[null,null,null,null,"",""]
[null,null,null,null,"",""]
[null,null,null,null,"",""]
[null,null,null,null,"",""]
[null,null,null,null,"",""]
[null,null,null,null,"",""]
[null,null,null,null,"",""]
[null,null,null,null,"",""]
[null,null,null,null,"",""]
[null,null,null,null,"",""]
[null,null,null,null,"",""]
[null,null,null,null,"",""]
[null,null,null,null,"",""]
[null,null,null,null,"",""]
[null,null,null,null,"",""]
[null,null,null,null,"",""]
[null,null,null,null,"",""]
[null,null,null,null,"",""]
[null,null,null,null,"",""]
[null,null,null,null,"",""]
[null,null,null,null,"",""]
[null,null,null,null,"",""]
[null,null,null,null,"",""]
[null,null,null,null,"",""]
[null,null,null,null,{"$f":"IF(C9580=\"\",\"\",VLOOKUP(C9580,$J$4:$J$10,2,FALSE))","v":""},""]
[null,null,null,null,"",""]
[null,null,null,null,"",""]
[null,null,null,null,"",""]
[null,null,null,null,"",""]
[null,null,null,null,"",""]
[null,null,null,null,"",""]
[null,null,null,null,"",""]
[null,null,null,null,"",""]
[null,null,null,null,"",""]
[null,null,null,null,"",""]
[null,null,null,null,"",""]
[null,null,null,null,"",""]
[null,null,null,null,"",""]
[null,null,null,null,"",""]
[null,null,null,null,"",""]
[null,null,null,null,"",""]
[null,null,null,null,"",""]
[null,null,null,null,"",""]
[null,null,null,null,"",""]
[null,null,null,null,"",""]
[null,null,null,null,"",""]
[null,null,null,null,"",""]
[null,null,null,null,"",""]
[null,null,null,null,"",""]
[null,null,null,null,"",{"$f":"IF(E9605=\"\",\"\",D9605*E9605)","v":""}]
[null,null,null,null,"",""]
[null,null,null,null,"",""]
[null,null,null,null,"",""]
[null,null,null,null,"",""]
[null,null,null,null,"",""]
[null,null,null,null,"",""]
[null,null,null,null,"",""]
[null,null,null,null,"",""]
[null,null,null,null,"",""]
[null,null,null,null,"",""]
[null,null,null,null,"",""]
[null,null,null,null,"",""]
[null,null,null,null,"",""]
[null,null,null,null,"",""]
[null,null,null,null,"",""]
[null,null,null,null,"",""]
[null,null,null,null,"",""]
[null,null,null,null,"",""]
[null,null,null,null,"",""]
[null,null,null,null,"",""]
[null,null,null,null,"",""]
[null,null,null,null,"",""]
[null,null,null,null,"",""]
[null,null,null,null,"",""]
[null,null,null,null,"",""]
[null,null,null,null,"",""]
[null,null,null,null,"",""]
[null,null,null,null,"",""]
[null,null,null,null,"",""]
[null,null,null,null,"",""]
[null,null,null,null,"",""]
[null,null,null,null,"",""]
[null,null,null,null,"",""]
[null,null,null,null,"",""]
[null,null,null,null,"",""]
[null,null,null,null,"",""]
[null,null,null,null,"",""]
[null,null,null,null,"",""]
[null,null,null,null,{"$f":"IF(C9644=\"\",\"\",VLOOKUP(C9644,$J$4:$J$10,2,FALSE))","v":""},""]
[null,null,null,null,"",""]
[null,null,null,null,"",""]
[null,null,null,null,"",""]
[null,null,null,null,"",""]
[null,null,null,null,"",""]
[null,null,null,null,"",""]
[null,null,null,null,"",""]
[null,null,null,null,"",""]
[null,null,null,null,"",""]
[null,null,null,null,"",""]
[null,null,null,null,"",""]
[null,null,null,null,"",""]
[null,null,null,null,"",""]
[null,null,null,null,"",""]
[null,null,null,null,"",""]
[null,null,null,null,"",""]
[null,null,null,null,"",""]
[null,null,null,null,"",""]
[null,null,null,null,"",""]
[null,null,null,null,"",""]
[null,null,null,null,"",""]
[null,null,null,null,"",""]
[null,null,null,null,"",""]
[null,null,null,null,"",""]
[null,null,null,null,"",{"$f":"IF(E9669=\"\",\"\",D9669*E9669)","v":""}]
[null,null,null,null,"",""]
[null,null,null,null,"",""]
[null,null,null,null,"",""]
[null,null,null,null,"",""]
[null,null,null,null,"",""]
[null,null,null,null,"",""]
[null,null,null,null,"",""]
[null,null,null,null,"",""]
[null,null,null,null,"",""]
[null,null,null,null,"",""]
[null,null,null,null,"",""]
[null,null,null,null,"",""]
[null,null,null,null,"",""]
[null,null,null,null,"",""]
[null,null,null,null,"",""]
[null,null,null,null,"",""]
[null,null,null,null,"",""]
[null,null,null,null,"",""]
[null,null,null,null,"",""]
[null,null,null,null,"",""]
[null,null,null,null,"",""]
[null,null,null,null,"",""]
[null,null,null,null,"",""]
[null,null,null,null,"",""]
[null,null,null,null,"",""]
[null,null,null,null,"",""]
[null,null,null,null,"",""]
[null,null,null,null,"",""]
[null,null,null,null,"",""]
[null,null,null,null,"",""]
[null,null,null,null,"",""]
[null,null,null,null,"",""]
[null,null,null,null,"",""]
[null,null,null,null,"",""]
[null,null,null,null,"",""]
[null,null,null,null,"",""]
[null,null,null,null,"",""]
[null,null,null,null,"",""]
[null,null,null,null,{"$f":"IF(C9708=\"\",\"\",VLOOKUP(C9708,$J$4:$J$10,2,FALSE))","v":""},""]
[null,null,null,null,"",""]
[null,null,null,null,"",""]
[null,null,null,null,"",""]
[null,null,null,null,"",""]
[null,null,null,null,"",""]
[null,null,null,null,"",""]
[null,null,null,null,"",""]
[null,null,null,null,"",""]
[null,null,null,null,"",""]
[null,null,null,null,"",""]
[null,null,null,null,"",""]
[null,null,null,null,"",""]
[null,null,null,null,"",""]
[null,null,null,null,"",""]
[null,null,null,null,"",""]
[null,null,null,null,"",""]
[null,null,null,null,"",""]
[null,null,null,null,"",""]
[null,null,null,null,"",""]
[null,null,null,null,"",""]
[null,null,null,null,"",""]
[null,null,null,null,"",""]
[null,null,null,null,"",""]
[null,null,null,null,"",""]
[null,null,null,null,"",{"$f":"IF(E9733=\"\",\"\",D9733*E9733)","v":""}]
[null,null,null,null,"",""]
[null,null,null,null,"",""]
[null,null,null,null,"",""]
[null,null,null,null,"",""]
[null,null,null,null,"",""]
[null,null,null,null,"",""]
[null,null,null,null,"",""]
[null,null,null,null,"",""]
[null,null,null,null,"",""]
[null,null,null,null,"",""]
[null,null,null,null,"",""]
[null,null,null,null,"",""]
[null,null,null,null,"",""]
[null,null,null,null,"",""]
[null,null,null,null,"",""]
[null,null,null,null,"",""]
[null,null,null,null,"",""]
[null,null,null,null,"",""]
[null,null,null,null,"",""]
[null,null,null,null,"",""]
[null,null,null,null,"",""]
[null,null,null,null,"",""]
[null,null,null,null,"",""]
[null,null,null,null,"",""]
[null,null,null,null,"",""]
[null,null,null,null,"",""]
[null,null,null,null,"",""]
[null,null,null,null,"",""]
[null,null,null,null,"",""]
[null,null,null,null,"",""]
[null,null,null,null,"",""]
[null,null,null,null,"",""]
[null,null,null,null,"",""]
[null,null,null,null,"",""]
[null,null,null,null,"",""]
[null,null,null,null,"",""]
[null,null,null,null,"",""]
[null,null,null,null,"",""]
[null,null,null,null,{"$f":"IF(C9772=\"\",\"\",VLOOKUP(C9772,$J$4:$J$10,2,FALSE))","v":""},""]
[null,null,null,null,"",""]
[null,null,null,null,"",""]
[null,null,null,null,"",""]
[null,null,null,null,"",""]
[null,null,null,null,"",""]
[null,null,null,null,"",""]
[null,null,null,null,"",""]
[null,null,null,null,"",""]
[null,null,null,null,"",""]
[null,null,null,null,"",""]
[null,null,null,null,"",""]
[null,null,null,null,"",""]
[null,null,null,null,"",""]
[null,null,null,null,"",""]
[null,null,null,null,"",""]
[null,null,null,null,"",""]
[null,null,null,null,"",""]
[null,null,null,null,"",""]
[null,null,null,null,"",""]
[null,null,null,null,"",""]
[null,null,null,null,"",""]
[null,null,null,null,"",""]
[null,null,null,null,"",""]
[null,null,null,null,"",""]
[null,null,null,null,"",{"$f":"IF(E9797=\"\",\"\",D9797*E9797)","v":""}]
[null,null,null,null,"",""]
[null,null,null,null,"",""]
[null,null,null,null,"",""]
[null,null,null,null,"",""]
[null,null,null,null,"",""]
[null,null,null,null,"",""]
[null,null,null,null,"",""]
[null,null,null,null,"",""]
[null,null,null,null,"",""]
[null,null,null,null,"",""]
[null,null,null,null,"",""]
[null,null,null,null,"",""]
[null,null,null,null,"",""]
[null,null,null,null,"",""]
[null,null,null,null,"",""]
[null,null,null,null,"",""]
[null,null,null,null,"",""]
[null,null,null,null,"",""]
[null,null,null,null,"",""]
[null,null,null,null,"",""]
[null,null,null,null,"",""]
[null,null,null,null,"",""]
[null,null,null,null,"",""]
[null,null,null,null,"",""]
[null,null,null,null,"",""]
[null,null,null,null,"",""]
[null,null,null,null,"",""]
[null,null,null,null,"",""]
[null,null,null,null,"",""]
[null,null,null,null,"",""]
[null,null,null,null,"",""]
[null,null,null,null,"",""]
[null,null,null,null,"",""]
[null,null,null,null,"",""]
[null,null,null,null,"",""]
[null,null,null,null,"",""]
[null,null,null,null,"",""]
[null,null,null,null,"",""]
[null,null,null,null,{"$f":"IF(C9836=\"\",\"\",VLOOKUP(C9836,$J$4:$J$10,2,FALSE))","v":""},""]
[null,null,null,null,"",""]
[null,null,null,null,"",""]
[null,null,null,null,"",""]
[null,null,null,null,"",""]
[null,null,null,null,"",""]
[null,null,null,null,"",""]
[null,null,null,null,"",""]
[null,null,null,null,"",""]
[null,null,null,null,"",""]
[null,null,null,null,"",""]
[null,null,null,null,"",""]
[null,null,null,null,"",""]
[null,null,null,null,"",""]
[null,null,null,null,"",""]
[null,null,null,null,"",""]
[null,null,null,null,"",""]
[null,null,null,null,"",""]
[null,null,null,null,"",""]
[null,null,null,null,"",""]
[null,null,null,null,"",""]
[null,null,null,null,"",""]
[null,null,null,null,"",""]
[null,null,null,null,"",""]
[null,null,null,null,"",""]
[null,null,null,null,"",{"$f":"IF(E9861=\"\",\"\",D9861*E9861)","v":""}]
[null,null,null,null,"",""]
[null,null,null,null,"",""]
[null,null,null,null,"",""]
[null,null,null,null,"",""]
[null,null,null,null,"",""]
[null,null,null,null,"",""]
[null,null,null,null,"",""]
[null,null,null,null,"",""]
[null,null,null,null,"",""]
[null,null,null,null,"",""]
[null,null,null,null,"",""]
[null,null,null,null,"",""]
[null,null,null,null,"",""]
[null,null,null,null,"",""]
[null,null,null,null,"",""]
[null,null,null,null,"",""]
[null,null,null,null,"",""]
[null,null,null,null,"",""]
[null,null,null,null,"",""]
[null,null,null,null,"",""]
[null,null,null,null,"",""]
[null,null,null,null,"",""]
[null,null,null,null,"",""]
[null,null,null,null,"",""]
[null,null,null,null,"",""]
[null,null,null,null,"",""]
[null,null,null,null,"",""]
[null,null,null,null,"",""]
[null,null,null,null,"",""]
[null,null,null,null,"",""]
[null,null,null,null,"",""]
[null,null,null,null,"",""]
[null,null,null,null,"",""]
[null,null,null,null,"",""]
[null,null,null,null,"",""]
[null,null,null,null,"",""]
[null,null,null,null,"",""]
[null,null,null,null,"",""]
[null,null,null,null,{"$f":"IF(C9900=\"\",\"\",VLOOKUP(C9900,$J$4:$J$10,2,FALSE))","v":""},""]
[null,null,null,null,"",""]
[null,null,null,null,"",""]
[null,null,null,null,"",""]
[null,null,null,null,"",""]
[null,null,null,null,"",""]
[null,null,null,null,"",""]
[null,null,null,null,"",""]
[null,null,null,null,"",""]
[null,null,null,null,"",""]
[null,null,null,null,"",""]
[null,null,null,null,"",""]
[null,null,null,null,"",""]
[null,null,null,null,"",""]
[null,null,null,null,"",""]
[null,null,null,null,"",""]
[null,null,null,null,"",""]
[null,null,null,null,"",""]
[null,null,null,null,"",""]
[null,null,null,null,"",""]
[null,null,null,null,"",""]
[null,null,null,null,"",""]
[null,null,null,null,"",""]
[null,null,null,null,"",""]
[null,null,null,null,"",""]
[null,null,null,null,"",{"$f":"IF(E9925=\"\",\"\",D9925*E9925)","v":""}]
[null,null,null,null,"",""]
[null,null,null,null,"",""]
[null,null,null,null,"",""]
[null,null,null,null,"",""]
[null,null,null,null,"",""]
[null,null,null,null,"",""]
[null,null,null,null,"",""]
[null,null,null,null,"",""]
[null,null,null,null,"",""]
[null,null,null,null,"",""]
[null,null,null,null,"",""]
[null,null,null,null,"",""]
[null,null,null,null,"",""]
[null,null,null,null,"",""]
[null,null,null,null,"",""]
[null,null,null,null,"",""]
[null,null,null,null,"",""]
[null,null,null,null,"",""]
[null,null,null,null,"",""]
[null,null,null,null,"",""]
[null,null,null,null,"",""]
[null,null,null,null,"",""]
[null,null,null,null,"",""]
[null,null,null,null,"",""]
[null,null,null,null,"",""]
[null,null,null,null,"",""]
[null,null,null,null,"",""]
[null,null,null,null,"",""]
[null,null,null,null,"",""]
[null,null,null,null,"",""]
[null,null,null,null,"",""]
[null,null,null,null,"",""]
[null,null,null,null,"",""]
[null,null,null,null,"",""]
[null,null,null,null,"",""]
[null,null,null,null,"",""]
[null,null,null,null,"",""]
[null,null,null,null,"",""]
[null,null,null,null,{"$f":"IF(C9964=\"\",\"\",VLOOKUP(C9964,$J$4:$J$10,2,FALSE))","v":""},""]
[null,null,null,null,"",""]
[null,null,null,null,"",""]
[null,null,null,null,"",""]
[null,null,null,null,"",""]
[null,null,null,null,"",""]
[null,null,null,null,"",""]
[null,null,null,null,"",""]
[null,null,null,null,"",""]
[null,null,null,null,"",""]
[null,null,null,null,"",""]
[null,null,null,null,"",""]
[null,null,null,null,"",""]
[null,null,null,null,"",""]
[null,null,null,null,"",""]
[null,null,null,null,"",""]
[null,null,null,null,"",""]
[null,null,null,null,"",""]
[null,null,null,null,"",""]
[null,null,null,null,"",""]
[null,null,null,null,"",""]
[null,null,null,null,"",""]
[null,null,null,null,"",""]
[null,null,null,null,"",""]
[null,null,null,null,"",""]
[null,null,null,null,"",{"$f":"IF(E9989=\"\",\"\",D9989*E9989)","v":""}]
[null,null,null,null,"",""]
[null,null,null,null,"",""]
[null,null,null,null,"",""]
[null,null,null,null,"",""]
[null,null,null,null,"",""]
[null,null,null,null,"",""]
[null,null,null,null,"",""]
[null,null,null,null,"",""]
[null,null,null,null,"",""]
[null,null,null,null,"",""]
[null,null,null,null,"",""]

{"sheet":"売上高分析","index":5,"n_rows":46,"n_cols":29,"rows_kept":46,"cut":false,"hidden":false,"merged":[[36,19,36,21],[1,0,1,2],[1,4,1,6],[13,0,13,2],[25,19,25,21]]}
["売上高分析"]
["時間帯別売上高",null,null,null,"商品別売上高",null,null,null,"商品別時間帯別売上高",null,null,null,null,null,null,null,null,null,null,"客層別時間帯別売上高"]
["時間帯",{"$f":"IF(損益分岐点売上高・投資!B10=\"\",\"\",損益分岐点売上高・投資!B10)","v":""},{"$f":"IF(損益分岐点売上高・投資!B11=\"\",\"\",損益分岐点売上高・投資!B11)","v":""},null,"商品名",{"$f":"IF(損益分岐点売上高・投資!B10=\"\",\"\",損益分岐点売上高・投資!B10)","v":""},{"$f":"IF(損益分岐点売上高・投資!B11=\"\",\"\",損益分岐点売上高・投資!B11)","v":""},null,{"$f":"IF(損益分岐点売上高・投資!B10=\"\",\"\",損益分岐点売上高・投資!B10)","v":""},"10時前","10時","11時","12時","13時","14時","15時","16時以降","合計",null,{"$f":"IF(損益分岐点売上高・投資!B10=\"\",\"\",損益分岐点売上高・投資!B10)","v":""},"10時前","10時","11時","12時","13時","14時","15時","16時以降","合計"]
["10時前",{"$f":"IF(A4=\"\",\"\",SUMIFS(日記帳!$F$4:$F$10000,日記帳!$B$4:$B$10000,\">=0\",日記帳!$B$4:$B$10000,\"<=9:59:59\",日記帳!$A$4:$A$10000,B$3))","v":0},{"$f":"IF(A4=\"\",\"\",SUMIFS(日記帳!$F$4:$F$10000,日記帳!$B$4:$B$10000,\">=0\",日記帳!$B$4:$B$10000,\"<=9:59:59\",日記帳!$A$4:$A$10000,C$3))","v":0},null,{"$f":"IF(日記帳!J4=\"\",\"\",日記帳!J4)","v":"醤油ラーメン"},{"$f":"IF($E4=\"\",\"\",SUMIFS(日記帳!$F$4:$F$10000,日記帳!$C$4:$C$10000,$E4,日記帳!$A$4:$A$10000,F$3))","v":0},{"$f":"IF($E4=\"\",\"\",SUMIFS(日記帳!$F$4:$F$10000,日記帳!$C$4:$C$10000,$E4,日記帳!$A$4:$A$10000,G$3))","v":0},null,{"$f":"IF(日記帳!J4=\"\",\"\",日記帳!J4)","v":"醤油ラーメン"},{"$f":"IF($I4=\"\",\"\",SUMIFS(日記帳!$F$4:$F$10000,日記帳!$C$4:$C$10000,$I4,日記帳!$A$4:$A$10000,$I$3,日記帳!$B$4:$B$10000,\"<=9:59:59\" ))","v":0},{"$f":"IF($I4=\"\",\"\",SUMIFS(日記帳!$F$4:$F$10000,日記帳!$C$4:$C$10000,$I4,日記帳!$A$4:$A$10000,$I$3,日記帳!$B$4:$B$10000,\">=10:00:00\",日記帳!$B$4:$B$10000,\"<=10:59:59\"))","v":0},{"$f":"IF($I4=\"\",\"\",SUMIFS(日記帳!$F$4:$F$10000,日記帳!$C$4:$C$10000,$I4,日記帳!$A$4:$A$10000,$I$3,日記帳!$B$4:$B$10000,\">=11:00:00\",日記帳!$B$4:$B$10000,\"<=11:59:59\"))","v":0},{"$f":"IF($I4=\"\",\"\",SUMIFS(日記帳!$F$4:$F$10000,日記帳!$C$4:$C$10000,$I4,日記帳!$A$4:$A$10000,$I$3,日記帳!$B$4:$B$10000,\">=12:00:00\",日記帳!$B$4:$B$10000,\"<=12:59:59\"))","v":0},{"$f":"IF($I4=\"\",\"\",SUMIFS(日記帳!$F$4:$F$10000,日記帳!$C$4:$C$10000,$I4,日記帳!$A$4:$A$10000,$I$3,日記帳!$B$4:$B$10000,\">=13:00:00\",日記帳!$B$4:$B$10000,\"<=13:59:59\"))","v":0},{"$f":"IF($I4=\"\",\"\",SUMIFS(日記帳!$F$4:$F$10000,日記帳!$C$4:$C$10000,$I4,日記帳!$A$4:$A$10000,$I$3,日記帳!$B$4:$B$10000,\">=14:00:00\",日記帳!$B$4:$B$10000,\"<=14:59:59\"))","v":0},{"$f":"IF($I4=\"\",\"\",SUMIFS(日記帳!$F$4:$F$10000,日記帳!$C$4:$C$10000,$I4,日記帳!$A$4:$A$10000,$I$3,日記帳!$B$4:$B$10000,\">=15:00:00\",日記帳!$B$4:$B$10000,\"<=15:59:59\"))","v":0},{"$f":"IF($I4=\"\",\"\",SUMIFS(日記帳!$F$4:$F$10000,日記帳!$C$4:$C$10000,$I4,日記帳!$A$4:$A$10000,$I$3,日記帳!$B$4:$B$10000,\">=16:00:00\",日記帳!$B$4:$B$10000,\"<=23:59:59\"))","v":0},{"$f":"SUM(J4:Q4)","v":0},null,{"$f":"IF(日記帳!K4=\"\",\"\",日記帳!K4)","v":""},{"$f":"IF($T4=\"\",\"\",SUMIFS(日記帳!$F$4:$F$10000,日記帳!$G$4:$G$10000,$T4,日記帳!$A$4:$A$10000,$T$3,日記帳!$B$4:$B$10000,\"<=9:59:59\" ))","v":""},{"$f":"IF($T4=\"\",\"\",SUMIFS(日記帳!$F$4:$F$10000,日記帳!$G$4:$G$10000,$T4,日記帳!$A$4:$A$10000,$T$3,日記帳!$B$4:$B$10000,\">=10:00:00\",日記帳!$B$4:$B$10000,\"<=10:59:59\"))","v":""},{"$f":"IF($T4=\"\",\"\",SUMIFS(日記帳!$F$4:$F$10000,日記帳!$G$4:$G$10000,$T4,日記帳!$A$4:$A$10000,$T$3,日記帳!$B$4:$B$10000,\">=11:00:00\",日記帳!$B$4:$B$10000,\"<=11:59:59\"))","v":""},{"$f":"IF($T4=\"\",\"\",SUMIFS(日記帳!$F$4:$F$10000,日記帳!$G$4:$G$10000,$T4,日記帳!$A$4:$A$10000,$T$3,日記帳!$B$4:$B$10000,\">=12:00:00\",日記帳!$B$4:$B$10000,\"<=12:59:59\"))","v":""},{"$f":"IF($T4=\"\",\"\",SUMIFS(日記帳!$F$4:$F$10000,日記帳!$G$4:$G$10000,$T4,日記帳!$A$4:$A$10000,$T$3,日記帳!$B$4:$B$10000,\">=13:00:00\",日記帳!$B$4:$B$10000,\"<=13:59:59\"))","v":""},{"$f":"IF($T4=\"\",\"\",SUMIFS(日記帳!$F$4:$F$10000,日記帳!$G$4:$G$10000,$T4,日記帳!$A$4:$A$10000,$T$3,日記帳!$B$4:$B$10000,\">=14:00:00\",日記帳!$B$4:$B$10000,\"<=14:59:59\"))","v":""},{"$f":"IF($T4=\"\",\"\",SUMIFS(日記帳!$F$4:$F$10000,日記帳!$G$4:$G$10000,$T4,日記帳!$A$4:$A$10000,$T$3,日記帳!$B$4:$B$10000,\">=15:00:00\",日記帳!$B$4:$B$10000,\"<=15:59:59\"))","v":""},{"$f":"IF($T4=\"\",\"\",SUMIFS(日記帳!$F$4:$F$10000,日記帳!$G$4:$G$10000,$T4,日記帳!$A$4:$A$10000,$T$3,日記帳!$B$4:$B$10000,\">=16:00:00\",日記帳!$B$4:$B$10000,\"<=23:59:59\"))","v":""},{"$f":"SUM(U4:AB4)","v":0}]
["10時",{"$f":"IF(A5=\"\",\"\",SUMIFS(日記帳!$F$4:$F$10000,日記帳!$B$4:$B$10000,\">=10：00：00\",日記帳!$B$4:$B$10000,\"<=10:59:59\",日記帳!$A$4:$A$10000,B$3))","v":0},{"$f":"IF(A5=\"\",\"\",SUMIFS(日記帳!$F$4:$F$10000,日記帳!$B$4:$B$10000,\">=10：00：00\",日記帳!$B$4:$B$10000,\"<=10:59:59\",日記帳!$A$4:$A$10000,C$3))","v":0},null,{"$f":"IF(日記帳!J5=\"\",\"\",日記帳!J5)","v":"みそラーメン"},{"$f":"IF($E5=\"\",\"\",SUMIFS(日記帳!$F$4:$F$10000,日記帳!$C$4:$C$10000,$E5,日記帳!$A$4:$A$10000,F$3))","v":0},{"$f":"IF($E5=\"\",\"\",SUMIFS(日記帳!$F$4:$F$10000,日記帳!$C$4:$C$10000,$E5,日記帳!$A$4:$A$10000,G$3))","v":0},null,{"$f":"IF(日記帳!J5=\"\",\"\",日記帳!J5)","v":"みそラーメン"},{"$f":"IF($I5=\"\",\"\",SUMIFS(日記帳!$F$4:$F$10000,日記帳!$C$4:$C$10000,$I5,日記帳!$A$4:$A$10000,$I$3,日記帳!$B$4:$B$10000,\"<=9:59:59\" ))","v":0},{"$f":"IF($I5=\"\",\"\",SUMIFS(日記帳!$F$4:$F$10000,日記帳!$C$4:$C$10000,$I5,日記帳!$A$4:$A$10000,$I$3,日記帳!$B$4:$B$10000,\">=10:00:00\",日記帳!$B$4:$B$10000,\"<=10:59:59\"))","v":0},{"$f":"IF($I5=\"\",\"\",SUMIFS(日記帳!$F$4:$F$10000,日記帳!$C$4:$C$10000,$I5,日記帳!$A$4:$A$10000,$I$3,日記帳!$B$4:$B$10000,\">=11:00:00\",日記帳!$B$4:$B$10000,\"<=11:59:59\"))","v":0},{"$f":"IF($I5=\"\",\"\",SUMIFS(日記帳!$F$4:$F$10000,日記帳!$C$4:$C$10000,$I5,日記帳!$A$4:$A$10000,$I$3,日記帳!$B$4:$B$10000,\">=12:00:00\",日記帳!$B$4:$B$10000,\"<=12:59:59\"))","v":0},{"$f":"IF($I5=\"\",\"\",SUMIFS(日記帳!$F$4:$F$10000,日記帳!$C$4:$C$10000,$I5,日記帳!$A$4:$A$10000,$I$3,日記帳!$B$4:$B$10000,\">=13:00:00\",日記帳!$B$4:$B$10000,\"<=13:59:59\"))","v":0},{"$f":"IF($I5=\"\",\"\",SUMIFS(日記帳!$F$4:$F$10000,日記帳!$C$4:$C$10000,$I5,日記帳!$A$4:$A$10000,$I$3,日記帳!$B$4:$B$10000,\">=14:00:00\",日記帳!$B$4:$B$10000,\"<=14:59:59\"))","v":0},{"$f":"IF($I5=\"\",\"\",SUMIFS(日記帳!$F$4:$F$10000,日記帳!$C$4:$C$10000,$I5,日記帳!$A$4:$A$10000,$I$3,日記帳!$B$4:$B$10000,\">=15:00:00\",日記帳!$B$4:$B$10000,\"<=15:59:59\"))","v":0},{"$f":"IF($I5=\"\",\"\",SUMIFS(日記帳!$F$4:$F$10000,日記帳!$C$4:$C$10000,$I5,日記帳!$A$4:$A$10000,$I$3,日記帳!$B$4:$B$10000,\">=16:00:00\",日記帳!$B$4:$B$10000,\"<=23:59:59\"))","v":0},{"$f":"SUM(J5:Q5)","v":0},null,{"$f":"IF(日記帳!K5=\"\",\"\",日記帳!K5)","v":""},{"$f":"IF($T5=\"\",\"\",SUMIFS(日記帳!$F$4:$F$10000,日記帳!$G$4:$G$10000,$T5,日記帳!$A$4:$A$10000,$T$3,日記帳!$B$4:$B$10000,\"<=9:59:59\" ))","v":""},{"$f":"IF($T5=\"\",\"\",SUMIFS(日記帳!$F$4:$F$10000,日記帳!$G$4:$G$10000,$T5,日記帳!$A$4:$A$10000,$T$3,日記帳!$B$4:$B$10000,\">=10:00:00\",日記帳!$B$4:$B$10000,\"<=10:59:59\"))","v":""},{"$f":"IF($T5=\"\",\"\",SUMIFS(日記帳!$F$4:$F$10000,日記帳!$G$4:$G$10000,$T5,日記帳!$A$4:$A$10000,$T$3,日記帳!$B$4:$B$10000,\">=11:00:00\",日記帳!$B$4:$B$10000,\"<=11:59:59\"))","v":""},{"$f":"IF($T5=\"\",\"\",SUMIFS(日記帳!$F$4:$F$10000,日記帳!$G$4:$G$10000,$T5,日記帳!$A$4:$A$10000,$T$3,日記帳!$B$4:$B$10000,\">=12:00:00\",日記帳!$B$4:$B$10000,\"<=12:59:59\"))","v":""},{"$f":"IF($T5=\"\",\"\",SUMIFS(日記帳!$F$4:$F$10000,日記帳!$G$4:$G$10000,$T5,日記帳!$A$4:$A$10000,$T$3,日記帳!$B$4:$B$10000,\">=13:00:00\",日記帳!$B$4:$B$10000,\"<=13:59:59\"))","v":""},{"$f":"IF($T5=\"\",\"\",SUMIFS(日記帳!$F$4:$F$10000,日記帳!$G$4:$G$10000,$T5,日記帳!$A$4:$A$10000,$T$3,日記帳!$B$4:$B$10000,\">=14:00:00\",日記帳!$B$4:$B$10000,\"<=14:59:59\"))","v":""},{"$f":"IF($T5=\"\",\"\",SUMIFS(日記帳!$F$4:$F$10000,日記帳!$G$4:$G$10000,$T5,日記帳!$A$4:$A$10000,$T$3,日記帳!$B$4:$B$10000,\">=15:00:00\",日記帳!$B$4:$B$10000,\"<=15:59:59\"))","v":""},{"$f":"IF($T5=\"\",\"\",SUMIFS(日記帳!$F$4:$F$10000,日記帳!$G$4:$G$10000,$T5,日記帳!$A$4:$A$10000,$T$3,日記帳!$B$4:$B$10000,\">=16:00:00\",日記帳!$B$4:$B$10000,\"<=23:59:59\"))","v":""},{"$f":"SUM(U5:AB5)","v":0}]
["11時",{"$f":"IF(A6=\"\",\"\",SUMIFS(日記帳!$F$4:$F$10000,日記帳!$B$4:$B$10000,\">=11:00:00\",日記帳!$B$4:$B$10000,\"<=11:59:59\",日記帳!$A$4:$A$10000,B$3))","v":0},{"$f":"IF(A6=\"\",\"\",SUMIFS(日記帳!$F$4:$F$10000,日記帳!$B$4:$B$10000,\">=11:00:00\",日記帳!$B$4:$B$10000,\"<=11:59:59\",日記帳!$A$4:$A$10000,C$3))","v":0},null,{"$f":"IF(日記帳!J6=\"\",\"\",日記帳!J6)","v":""},{"$f":"IF($E6=\"\",\"\",SUMIFS(日記帳!$F$4:$F$10000,日記帳!$C$4:$C$10000,$E6,日記帳!$A$4:$A$10000,F$3))","v":""},{"$f":"IF($E6=\"\",\"\",SUMIFS(日記帳!$F$4:$F$10000,日記帳!$C$4:$C$10000,$E6,日記帳!$A$4:$A$10000,G$3))","v":""},null,{"$f":"IF(日記帳!J6=\"\",\"\",日記帳!J6)","v":""},null,{"$f":"IF($I6=\"\",\"\",SUMIFS(日記帳!$F$4:$F$10000,日記帳!$C$4:$C$10000,$I6,日記帳!$A$4:$A$10000,$I$3,日記帳!#REF!,K$3 ))","v":""},{"$f":"IF($I6=\"\",\"\",SUMIFS(日記帳!$F$4:$F$10000,日記帳!$C$4:$C$10000,$I6,日記帳!$A$4:$A$10000,$I$3,日記帳!#REF!,L$3 ))","v":""},{"$f":"IF($I6=\"\",\"\",SUMIFS(日記帳!$F$4:$F$10000,日記帳!$C$4:$C$10000,$I6,日記帳!$A$4:$A$10000,$I$3,日記帳!#REF!,M$3 ))","v":""},{"$f":"IF($I6=\"\",\"\",SUMIFS(日記帳!$F$4:$F$10000,日記帳!$C$4:$C$10000,$I6,日記帳!$A$4:$A$10000,$I$3,日記帳!#REF!,N$3 ))","v":""},{"$f":"IF($I6=\"\",\"\",SUMIFS(日記帳!$F$4:$F$10000,日記帳!$C$4:$C$10000,$I6,日記帳!$A$4:$A$10000,$I$3,日記帳!#REF!,O$3 ))","v":""},{"$f":"IF($I6=\"\",\"\",SUMIFS(日記帳!$F$4:$F$10000,日記帳!$C$4:$C$10000,$I6,日記帳!$A$4:$A$10000,$I$3,日記帳!#REF!,P$3 ))","v":""},{"$f":"IF($I6=\"\",\"\",SUMIFS(日記帳!$F$4:$F$10000,日記帳!$C$4:$C$10000,$I6,日記帳!$A$4:$A$10000,$I$3,日記帳!#REF!,Q$3 ))","v":""},0,null,{"$f":"IF(日記帳!K6=\"\",\"\",日記帳!K6)","v":""},{"$f":"IF($T6=\"\",\"\",SUMIFS(日記帳!$F$4:$F$10000,日記帳!$G$4:$G$10000,$T6,日記帳!$A$4:$A$10000,$T$3,日記帳!$B$4:$B$10000,\"<=9:59:59\" ))","v":""},{"$f":"IF($T6=\"\",\"\",SUMIFS(日記帳!$F$4:$F$10000,日記帳!$G$4:$G$10000,$T6,日記帳!$A$4:$A$10000,$T$3,日記帳!$B$4:$B$10000,\">=10:00:00\",日記帳!$B$4:$B$10000,\"<=10:59:59\"))","v":""},{"$f":"IF($T6=\"\",\"\",SUMIFS(日記帳!$F$4:$F$10000,日記帳!$G$4:$G$10000,$T6,日記帳!$A$4:$A$10000,$T$3,日記帳!$B$4:$B$10000,\">=11:00:00\",日記帳!$B$4:$B$10000,\"<=11:59:59\"))","v":""},{"$f":"IF($T6=\"\",\"\",SUMIFS(日記帳!$F$4:$F$10000,日記帳!$G$4:$G$10000,$T6,日記帳!$A$4:$A$10000,$T$3,日記帳!$B$4:$B$10000,\">=12:00:00\",日記帳!$B$4:$B$10000,\"<=12:59:59\"))","v":""},{"$f":"IF($T6=\"\",\"\",SUMIFS(日記帳!$F$4:$F$10000,日記帳!$G$4:$G$10000,$T6,日記帳!$A$4:$A$10000,$T$3,日記帳!$B$4:$B$10000,\">=13:00:00\",日記帳!$B$4:$B$10000,\"<=13:59:59\"))","v":""},{"$f":"IF($T6=\"\",\"\",SUMIFS(日記帳!$F$4:$F$10000,日記帳!$G$4:$G$10000,$T6,日記帳!$A$4:$A$10000,$T$3,日記帳!$B$4:$B$10000,\">=14:00:00\",日記帳!$B$4:$B$10000,\"<=14:59:59\"))","v":""},{"$f":"IF($T6=\"\",\"\",SUMIFS(日記帳!$F$4:$F$10000,日記帳!$G$4:$G$10000,$T6,日記帳!$A$4:$A$10000,$T$3,日記帳!$B$4:$B$10000,\">=15:00:00\",日記帳!$B$4:$B$10000,\"<=15:59:59\"))","v":""},{"$f":"IF($T6=\"\",\"\",SUMIFS(日記帳!$F$4:$F$10000,日記帳!$G$4:$G$10000,$T6,日記帳!$A$4:$A$10000,$T$3,日記帳!$B$4:$B$10000,\">=16:00:00\",日記帳!$B$4:$B$10000,\"<=23:59:59\"))","v":""},0]
["12時",{"$f":"IF(A7=\"\",\"\",SUMIFS(日記帳!$F$4:$F$10000,日記帳!$B$4:$B$10000,\">=12:00:00\",日記帳!$B$4:$B$10000,\"<=12:59:59\",日記帳!$A$4:$A$10000,B$3))","v":0},{"$f":"IF(A7=\"\",\"\",SUMIFS(日記帳!$F$4:$F$10000,日記帳!$B$4:$B$10000,\">=12:00:00\",日記帳!$B$4:$B$10000,\"<=12:59:59\",日記帳!$A$4:$A$10000,C$3))","v":0},null,{"$f":"IF(日記帳!J7=\"\",\"\",日記帳!J7)","v":""},{"$f":"IF($E7=\"\",\"\",SUMIFS(日記帳!$F$4:$F$10000,日記帳!$C$4:$C$10000,$E7,日記帳!$A$4:$A$10000,F$3))","v":""},{"$f":"IF($E7=\"\",\"\",SUMIFS(日記帳!$F$4:$F$10000,日記帳!$C$4:$C$10000,$E7,日記帳!$A$4:$A$10000,G$3))","v":""},null,{"$f":"IF(日記帳!J7=\"\",\"\",日記帳!J7)","v":""},null,{"$f":"IF($I7=\"\",\"\",SUMIFS(日記帳!$F$4:$F$10000,日記帳!$C$4:$C$10000,$I7,日記帳!$A$4:$A$10000,$I$3,日記帳!#REF!,K$3 ))","v":""},{"$f":"IF($I7=\"\",\"\",SUMIFS(日記帳!$F$4:$F$10000,日記帳!$C$4:$C$10000,$I7,日記帳!$A$4:$A$10000,$I$3,日記帳!#REF!,L$3 ))","v":""},{"$f":"IF($I7=\"\",\"\",SUMIFS(日記帳!$F$4:$F$10000,日記帳!$C$4:$C$10000,$I7,日記帳!$A$4:$A$10000,$I$3,日記帳!#REF!,M$3 ))","v":""},{"$f":"IF($I7=\"\",\"\",SUMIFS(日記帳!$F$4:$F$10000,日記帳!$C$4:$C$10000,$I7,日記帳!$A$4:$A$10000,$I$3,日記帳!#REF!,N$3 ))","v":""},{"$f":"IF($I7=\"\",\"\",SUMIFS(日記帳!$F$4:$F$10000,日記帳!$C$4:$C$10000,$I7,日記帳!$A$4:$A$10000,$I$3,日記帳!#REF!,O$3 ))","v":""},{"$f":"IF($I7=\"\",\"\",SUMIFS(日記帳!$F$4:$F$10000,日記帳!$C$4:$C$10000,$I7,日記帳!$A$4:$A$10000,$I$3,日記帳!#REF!,P$3 ))","v":""},{"$f":"IF($I7=\"\",\"\",SUMIFS(日記帳!$F$4:$F$10000,日記帳!$C$4:$C$10000,$I7,日記帳!$A$4:$A$10000,$I$3,日記帳!#REF!,Q$3 ))","v":""},0,null,{"$f":"IF(日記帳!K7=\"\",\"\",日記帳!K7)","v":""},{"$f":"IF($T7=\"\",\"\",SUMIFS(日記帳!$F$4:$F$10000,日記帳!$G$4:$G$10000,$T7,日記帳!$A$4:$A$10000,$T$3,日記帳!$B$4:$B$10000,\"<=9:59:59\" ))","v":""},{"$f":"IF($T7=\"\",\"\",SUMIFS(日記帳!$F$4:$F$10000,日記帳!$G$4:$G$10000,$T7,日記帳!$A$4:$A$10000,$T$3,日記帳!$B$4:$B$10000,\">=10:00:00\",日記帳!$B$4:$B$10000,\"<=10:59:59\"))","v":""},{"$f":"IF($T7=\"\",\"\",SUMIFS(日記帳!$F$4:$F$10000,日記帳!$G$4:$G$10000,$T7,日記帳!$A$4:$A$10000,$T$3,日記帳!$B$4:$B$10000,\">=11:00:00\",日記帳!$B$4:$B$10000,\"<=11:59:59\"))","v":""},{"$f":"IF($T7=\"\",\"\",SUMIFS(日記帳!$F$4:$F$10000,日記帳!$G$4:$G$10000,$T7,日記帳!$A$4:$A$10000,$T$3,日記帳!$B$4:$B$10000,\">=12:00:00\",日記帳!$B$4:$B$10000,\"<=12:59:59\"))","v":""},{"$f":"IF($T7=\"\",\"\",SUMIFS(日記帳!$F$4:$F$10000,日記帳!$G$4:$G$10000,$T7,日記帳!$A$4:$A$10000,$T$3,日記帳!$B$4:$B$10000,\">=13:00:00\",日記帳!$B$4:$B$10000,\"<=13:59:59\"))","v":""},{"$f":"IF($T7=\"\",\"\",SUMIFS(日記帳!$F$4:$F$10000,日記帳!$G$4:$G$10000,$T7,日記帳!$A$4:$A$10000,$T$3,日記帳!$B$4:$B$10000,\">=14:00:00\",日記帳!$B$4:$B$10000,\"<=14:59:59\"))","v":""},{"$f":"IF($T7=\"\",\"\",SUMIFS(日記帳!$F$4:$F$10000,日記帳!$G$4:$G$10000,$T7,日記帳!$A$4:$A$10000,$T$3,日記帳!$B$4:$B$10000,\">=15:00:00\",日記帳!$B$4:$B$10000,\"<=15:59:59\"))","v":""},{"$f":"IF($T7=\"\",\"\",SUMIFS(日記帳!$F$4:$F$10000,日記帳!$G$4:$G$10000,$T7,日記帳!$A$4:$A$10000,$T$3,日記帳!$B$4:$B$10000,\">=16:00:00\",日記帳!$B$4:$B$10000,\"<=23:59:59\"))","v":""},0]
["13時",{"$f":"IF(A8=\"\",\"\",SUMIFS(日記帳!$F$4:$F$10000,日記帳!$B$4:$B$10000,\">=13:00:00\",日記帳!$B$4:$B$10000,\"<=13:59:59\",日記帳!$A$4:$A$10000,B$3))","v":0},{"$f":"IF(A8=\"\",\"\",SUMIFS(日記帳!$F$4:$F$10000,日記帳!$B$4:$B$10000,\">=13:00:00\",日記帳!$B$4:$B$10000,\"<=13:59:59\",日記帳!$A$4:$A$10000,C$3))","v":0},null,{"$f":"IF(日記帳!J8=\"\",\"\",日記帳!J8)","v":""},{"$f":"IF($E8=\"\",\"\",SUMIFS(日記帳!$F$4:$F$10000,日記帳!$C$4:$C$10000,$E8,日記帳!$A$4:$A$10000,F$3))","v":""},{"$f":"IF($E8=\"\",\"\",SUMIFS(日記帳!$F$4:$F$10000,日記帳!$C$4:$C$10000,$E8,日記帳!$A$4:$A$10000,G$3))","v":""},null,{"$f":"IF(日記帳!J8=\"\",\"\",日記帳!J8)","v":""},null,{"$f":"IF($I8=\"\",\"\",SUMIFS(日記帳!$F$4:$F$10000,日記帳!$C$4:$C$10000,$I8,日記帳!$A$4:$A$10000,$I$3,日記帳!#REF!,K$3 ))","v":""},{"$f":"IF($I8=\"\",\"\",SUMIFS(日記帳!$F$4:$F$10000,日記帳!$C$4:$C$10000,$I8,日記帳!$A$4:$A$10000,$I$3,日記帳!#REF!,L$3 ))","v":""},{"$f":"IF($I8=\"\",\"\",SUMIFS(日記帳!$F$4:$F$10000,日記帳!$C$4:$C$10000,$I8,日記帳!$A$4:$A$10000,$I$3,日記帳!#REF!,M$3 ))","v":""},{"$f":"IF($I8=\"\",\"\",SUMIFS(日記帳!$F$4:$F$10000,日記帳!$C$4:$C$10000,$I8,日記帳!$A$4:$A$10000,$I$3,日記帳!#REF!,N$3 ))","v":""},{"$f":"IF($I8=\"\",\"\",SUMIFS(日記帳!$F$4:$F$10000,日記帳!$C$4:$C$10000,$I8,日記帳!$A$4:$A$10000,$I$3,日記帳!#REF!,O$3 ))","v":""},{"$f":"IF($I8=\"\",\"\",SUMIFS(日記帳!$F$4:$F$10000,日記帳!$C$4:$C$10000,$I8,日記帳!$A$4:$A$10000,$I$3,日記帳!#REF!,P$3 ))","v":""},{"$f":"IF($I8=\"\",\"\",SUMIFS(日記帳!$F$4:$F$10000,日記帳!$C$4:$C$10000,$I8,日記帳!$A$4:$A$10000,$I$3,日記帳!#REF!,Q$3 ))","v":""},0,null,{"$f":"IF(日記帳!U8=\"\",\"\",日記帳!U8)","v":""},{"$f":"IF($T8=\"\",\"\",SUMIFS(日記帳!$F$4:$F$10000,日記帳!$G$4:$G$10000,$T8,日記帳!$A$4:$A$10000,$T$3,日記帳!$B$4:$B$10000,\"<=9:59:59\" ))","v":""},{"$f":"IF($T8=\"\",\"\",SUMIFS(日記帳!$F$4:$F$10000,日記帳!$G$4:$G$10000,$T8,日記帳!$A$4:$A$10000,$T$3,日記帳!$B$4:$B$10000,\">=10:00:00\",日記帳!$B$4:$B$10000,\"<=10:59:59\"))","v":""},{"$f":"IF($T8=\"\",\"\",SUMIFS(日記帳!$F$4:$F$10000,日記帳!$G$4:$G$10000,$T8,日記帳!$A$4:$A$10000,$T$3,日記帳!$B$4:$B$10000,\">=11:00:00\",日記帳!$B$4:$B$10000,\"<=11:59:59\"))","v":""},{"$f":"IF($T8=\"\",\"\",SUMIFS(日記帳!$F$4:$F$10000,日記帳!$G$4:$G$10000,$T8,日記帳!$A$4:$A$10000,$T$3,日記帳!$B$4:$B$10000,\">=12:00:00\",日記帳!$B$4:$B$10000,\"<=12:59:59\"))","v":""},{"$f":"IF($T8=\"\",\"\",SUMIFS(日記帳!$F$4:$F$10000,日記帳!$G$4:$G$10000,$T8,日記帳!$A$4:$A$10000,$T$3,日記帳!$B$4:$B$10000,\">=13:00:00\",日記帳!$B$4:$B$10000,\"<=13:59:59\"))","v":""},{"$f":"IF($T8=\"\",\"\",SUMIFS(日記帳!$F$4:$F$10000,日記帳!$G$4:$G$10000,$T8,日記帳!$A$4:$A$10000,$T$3,日記帳!$B$4:$B$10000,\">=14:00:00\",日記帳!$B$4:$B$10000,\"<=14:59:59\"))","v":""},{"$f":"IF($T8=\"\",\"\",SUMIFS(日記帳!$F$4:$F$10000,日記帳!$G$4:$G$10000,$T8,日記帳!$A$4:$A$10000,$T$3,日記帳!$B$4:$B$10000,\">=15:00:00\",日記帳!$B$4:$B$10000,\"<=15:59:59\"))","v":""},{"$f":"IF($T8=\"\",\"\",SUMIFS(日記帳!$F$4:$F$10000,日記帳!$G$4:$G$10000,$T8,日記帳!$A$4:$A$10000,$T$3,日記帳!$B$4:$B$10000,\">=16:00:00\",日記帳!$B$4:$B$10000,\"<=23:59:59\"))","v":""},0]
["14時",{"$f":"IF(A9=\"\",\"\",SUMIFS(日記帳!$F$4:$F$10000,日記帳!$B$4:$B$10000,\">=14:00:00\",日記帳!$B$4:$B$10000,\"<=14:59:59\",日記帳!$A$4:$A$10000,B$3))","v":0},{"$f":"IF(A9=\"\",\"\",SUMIFS(日記帳!$F$4:$F$10000,日記帳!$B$4:$B$10000,\">=14:00:00\",日記帳!$B$4:$B$10000,\"<=14:59:59\",日記帳!$A$4:$A$10000,C$3))","v":0},null,{"$f":"IF(日記帳!J9=\"\",\"\",日記帳!J9)","v":""},{"$f":"IF($E9=\"\",\"\",SUMIFS(日記帳!$F$4:$F$10000,日記帳!$C$4:$C$10000,$E9,日記帳!$A$4:$A$10000,F$3))","v":""},{"$f":"IF($E9=\"\",\"\",SUMIFS(日記帳!$F$4:$F$10000,日記帳!$C$4:$C$10000,$E9,日記帳!$A$4:$A$10000,G$3))","v":""},null,{"$f":"IF(日記帳!J9=\"\",\"\",日記帳!J9)","v":""},null,{"$f":"IF($I9=\"\",\"\",SUMIFS(日記帳!$F$4:$F$10000,日記帳!$C$4:$C$10000,$I9,日記帳!$A$4:$A$10000,$I$3,日記帳!#REF!,K$3 ))","v":""},{"$f":"IF($I9=\"\",\"\",SUMIFS(日記帳!$F$4:$F$10000,日記帳!$C$4:$C$10000,$I9,日記帳!$A$4:$A$10000,$I$3,日記帳!#REF!,L$3 ))","v":""},{"$f":"IF($I9=\"\",\"\",SUMIFS(日記帳!$F$4:$F$10000,日記帳!$C$4:$C$10000,$I9,日記帳!$A$4:$A$10000,$I$3,日記帳!#REF!,M$3 ))","v":""},{"$f":"IF($I9=\"\",\"\",SUMIFS(日記帳!$F$4:$F$10000,日記帳!$C$4:$C$10000,$I9,日記帳!$A$4:$A$10000,$I$3,日記帳!#REF!,N$3 ))","v":""},{"$f":"IF($I9=\"\",\"\",SUMIFS(日記帳!$F$4:$F$10000,日記帳!$C$4:$C$10000,$I9,日記帳!$A$4:$A$10000,$I$3,日記帳!#REF!,O$3 ))","v":""},{"$f":"IF($I9=\"\",\"\",SUMIFS(日記帳!$F$4:$F$10000,日記帳!$C$4:$C$10000,$I9,日記帳!$A$4:$A$10000,$I$3,日記帳!#REF!,P$3 ))","v":""},{"$f":"IF($I9=\"\",\"\",SUMIFS(日記帳!$F$4:$F$10000,日記帳!$C$4:$C$10000,$I9,日記帳!$A$4:$A$10000,$I$3,日記帳!#REF!,Q$3 ))","v":""},0,null,{"$f":"IF(日記帳!U9=\"\",\"\",日記帳!U9)","v":""},{"$f":"IF($T9=\"\",\"\",SUMIFS(日記帳!$F$4:$F$10000,日記帳!$G$4:$G$10000,$T9,日記帳!$A$4:$A$10000,$T$3,日記帳!$B$4:$B$10000,\"<=9:59:59\" ))","v":""},{"$f":"IF($T9=\"\",\"\",SUMIFS(日記帳!$F$4:$F$10000,日記帳!$G$4:$G$10000,$T9,日記帳!$A$4:$A$10000,$T$3,日記帳!$B$4:$B$10000,\">=10:00:00\",日記帳!$B$4:$B$10000,\"<=10:59:59\"))","v":""},{"$f":"IF($T9=\"\",\"\",SUMIFS(日記帳!$F$4:$F$10000,日記帳!$G$4:$G$10000,$T9,日記帳!$A$4:$A$10000,$T$3,日記帳!$B$4:$B$10000,\">=11:00:00\",日記帳!$B$4:$B$10000,\"<=11:59:59\"))","v":""},{"$f":"IF($T9=\"\",\"\",SUMIFS(日記帳!$F$4:$F$10000,日記帳!$G$4:$G$10000,$T9,日記帳!$A$4:$A$10000,$T$3,日記帳!$B$4:$B$10000,\">=12:00:00\",日記帳!$B$4:$B$10000,\"<=12:59:59\"))","v":""},{"$f":"IF($T9=\"\",\"\",SUMIFS(日記帳!$F$4:$F$10000,日記帳!$G$4:$G$10000,$T9,日記帳!$A$4:$A$10000,$T$3,日記帳!$B$4:$B$10000,\">=13:00:00\",日記帳!$B$4:$B$10000,\"<=13:59:59\"))","v":""},{"$f":"IF($T9=\"\",\"\",SUMIFS(日記帳!$F$4:$F$10000,日記帳!$G$4:$G$10000,$T9,日記帳!$A$4:$A$10000,$T$3,日記帳!$B$4:$B$10000,\">=14:00:00\",日記帳!$B$4:$B$10000,\"<=14:59:59\"))","v":""},{"$f":"IF($T9=\"\",\"\",SUMIFS(日記帳!$F$4:$F$10000,日記帳!$G$4:$G$10000,$T9,日記帳!$A$4:$A$10000,$T$3,日記帳!$B$4:$B$10000,\">=15:00:00\",日記帳!$B$4:$B$10000,\"<=15:59:59\"))","v":""},{"$f":"IF($T9=\"\",\"\",SUMIFS(日記帳!$F$4:$F$10000,日記帳!$G$4:$G$10000,$T9,日記帳!$A$4:$A$10000,$T$3,日記帳!$B$4:$B$10000,\">=16:00:00\",日記帳!$B$4:$B$10000,\"<=23:59:59\"))","v":""},0]
["15時",{"$f":"IF(A10=\"\",\"\",SUMIFS(日記帳!$F$4:$F$10000,日記帳!$B$4:$B$10000,\">=15:00:00\",日記帳!$B$4:$B$10000,\"<=15:59:59\",日記帳!$A$4:$A$10000,B$3))","v":0},{"$f":"IF(A10=\"\",\"\",SUMIFS(日記帳!$F$4:$F$10000,日記帳!$B$4:$B$10000,\">=15:00:00\",日記帳!$B$4:$B$10000,\"<=15:59:59\",日記帳!$A$4:$A$10000,C$3))","v":0},null,null,null,null,null,null,null,null,null,null,null,null,null,null,0,null,null,{"$f":"IF($T10=\"\",\"\",SUMIFS(日記帳!$F$4:$F$10000,日記帳!$G$4:$G$10000,$T10,日記帳!$A$4:$A$10000,$T$3,日記帳!$B$4:$B$10000,\"<=9:59:59\" ))","v":""},{"$f":"IF($T10=\"\",\"\",SUMIFS(日記帳!$F$4:$F$10000,日記帳!$G$4:$G$10000,$T10,日記帳!$A$4:$A$10000,$T$3,日記帳!$B$4:$B$10000,\">=10:00:00\",日記帳!$B$4:$B$10000,\"<=10:59:59\"))","v":""},{"$f":"IF($T10=\"\",\"\",SUMIFS(日記帳!$F$4:$F$10000,日記帳!$G$4:$G$10000,$T10,日記帳!$A$4:$A$10000,$T$3,日記帳!$B$4:$B$10000,\">=11:00:00\",日記帳!$B$4:$B$10000,\"<=11:59:59\"))","v":""},{"$f":"IF($T10=\"\",\"\",SUMIFS(日記帳!$F$4:$F$10000,日記帳!$G$4:$G$10000,$T10,日記帳!$A$4:$A$10000,$T$3,日記帳!$B$4:$B$10000,\">=12:00:00\",日記帳!$B$4:$B$10000,\"<=12:59:59\"))","v":""},{"$f":"IF($T10=\"\",\"\",SUMIFS(日記帳!$F$4:$F$10000,日記帳!$G$4:$G$10000,$T10,日記帳!$A$4:$A$10000,$T$3,日記帳!$B$4:$B$10000,\">=13:00:00\",日記帳!$B$4:$B$10000,\"<=13:59:59\"))","v":""},{"$f":"IF($T10=\"\",\"\",SUMIFS(日記帳!$F$4:$F$10000,日記帳!$G$4:$G$10000,$T10,日記帳!$A$4:$A$10000,$T$3,日記帳!$B$4:$B$10000,\">=14:00:00\",日記帳!$B$4:$B$10000,\"<=14:59:59\"))","v":""},{"$f":"IF($T10=\"\",\"\",SUMIFS(日記帳!$F$4:$F$10000,日記帳!$G$4:$G$10000,$T10,日記帳!$A$4:$A$10000,$T$3,日記帳!$B$4:$B$10000,\">=15:00:00\",日記帳!$B$4:$B$10000,\"<=15:59:59\"))","v":""},{"$f":"IF($T10=\"\",\"\",SUMIFS(日記帳!$F$4:$F$10000,日記帳!$G$4:$G$10000,$T10,日記帳!$A$4:$A$10000,$T$3,日記帳!$B$4:$B$10000,\">=16:00:00\",日記帳!$B$4:$B$10000,\"<=23:59:59\"))","v":""},0]
["16時以降",{"$f":"IF(A11=\"\",\"\",SUMIFS(日記帳!$F$4:$F$10000,日記帳!$B$4:$B$10000,\">=16:00:00\",日記帳!$B$4:$B$10000,\"<=23:59:59\",日記帳!$A$4:$A$10000,B$3))","v":0},{"$f":"IF(A11=\"\",\"\",SUMIFS(日記帳!$F$4:$F$10000,日記帳!$B$4:$B$10000,\">=16:00:00\",日記帳!$B$4:$B$10000,\"<=23:59:59\",日記帳!$A$4:$A$10000,C$3))","v":0},null,{"$f":"IF(日記帳!J10=\"\",\"\",日記帳!J10)","v":""},{"$f":"IF($E11=\"\",\"\",SUMIFS(日記帳!$F$4:$F$10000,日記帳!$C$4:$C$10000,$E11,日記帳!$A$4:$A$10000,F$3))","v":""},{"$f":"IF($E11=\"\",\"\",SUMIFS(日記帳!$F$4:$F$10000,日記帳!$C$4:$C$10000,$E11,日記帳!$A$4:$A$10000,G$3))","v":""},null,{"$f":"IF(日記帳!J10=\"\",\"\",日記帳!J10)","v":""},null,{"$f":"IF($I11=\"\",\"\",SUMIFS(日記帳!$F$4:$F$10000,日記帳!$C$4:$C$10000,$I11,日記帳!$A$4:$A$10000,$I$3,日記帳!#REF!,K$3 ))","v":""},{"$f":"IF($I11=\"\",\"\",SUMIFS(日記帳!$F$4:$F$10000,日記帳!$C$4:$C$10000,$I11,日記帳!$A$4:$A$10000,$I$3,日記帳!#REF!,L$3 ))","v":""},{"$f":"IF($I11=\"\",\"\",SUMIFS(日記帳!$F$4:$F$10000,日記帳!$C$4:$C$10000,$I11,日記帳!$A$4:$A$10000,$I$3,日記帳!#REF!,M$3 ))","v":""},{"$f":"IF($I11=\"\",\"\",SUMIFS(日記帳!$F$4:$F$10000,日記帳!$C$4:$C$10000,$I11,日記帳!$A$4:$A$10000,$I$3,日記帳!#REF!,N$3 ))","v":""},{"$f":"IF($I11=\"\",\"\",SUMIFS(日記帳!$F$4:$F$10000,日記帳!$C$4:$C$10000,$I11,日記帳!$A$4:$A$10000,$I$3,日記帳!#REF!,O$3 ))","v":""},{"$f":"IF($I11=\"\",\"\",SUMIFS(日記帳!$F$4:$F$10000,日記帳!$C$4:$C$10000,$I11,日記帳!$A$4:$A$10000,$I$3,日記帳!#REF!,P$3 ))","v":""},{"$f":"IF($I11=\"\",\"\",SUMIFS(日記帳!$F$4:$F$10000,日記帳!$C$4:$C$10000,$I11,日記帳!$A$4:$A$10000,$I$3,日記帳!#REF!,Q$3 ))","v":""},0,null,{"$f":"IF(日記帳!U10=\"\",\"\",日記帳!U10)","v":""},{"$f":"IF($T11=\"\",\"\",SUMIFS(日記帳!$F$4:$F$10000,日記帳!$G$4:$G$10000,$T11,日記帳!$A$4:$A$10000,$T$3,日記帳!$B$4:$B$10000,\"<=9:59:59\" ))","v":""},{"$f":"IF($T11=\"\",\"\",SUMIFS(日記帳!$F$4:$F$10000,日記帳!$G$4:$G$10000,$T11,日記帳!$A$4:$A$10000,$T$3,日記帳!$B$4:$B$10000,\">=10:00:00\",日記帳!$B$4:$B$10000,\"<=10:59:59\"))","v":""},{"$f":"IF($T11=\"\",\"\",SUMIFS(日記帳!$F$4:$F$10000,日記帳!$G$4:$G$10000,$T11,日記帳!$A$4:$A$10000,$T$3,日記帳!$B$4:$B$10000,\">=11:00:00\",日記帳!$B$4:$B$10000,\"<=11:59:59\"))","v":""},{"$f":"IF($T11=\"\",\"\",SUMIFS(日記帳!$F$4:$F$10000,日記帳!$G$4:$G$10000,$T11,日記帳!$A$4:$A$10000,$T$3,日記帳!$B$4:$B$10000,\">=12:00:00\",日記帳!$B$4:$B$10000,\"<=12:59:59\"))","v":""},{"$f":"IF($T11=\"\",\"\",SUMIFS(日記帳!$F$4:$F$10000,日記帳!$G$4:$G$10000,$T11,日記帳!$A$4:$A$10000,$T$3,日記帳!$B$4:$B$10000,\">=13:00:00\",日記帳!$B$4:$B$10000,\"<=13:59:59\"))","v":""},{"$f":"IF($T11=\"\",\"\",SUMIFS(日記帳!$F$4:$F$10000,日記帳!$G$4:$G$10000,$T11,日記帳!$A$4:$A$10000,$T$3,日記帳!$B$4:$B$10000,\">=14:00:00\",日記帳!$B$4:$B$10000,\"<=14:59:59\"))","v":""},{"$f":"IF($T11=\"\",\"\",SUMIFS(日記帳!$F$4:$F$10000,日記帳!$G$4:$G$10000,$T11,日記帳!$A$4:$A$10000,$T$3,日記帳!$B$4:$B$10000,\">=15:00:00\",日記帳!$B$4:$B$10000,\"<=15:59:59\"))","v":""},{"$f":"IF($T11=\"\",\"\",SUMIFS(日記帳!$F$4:$F$10000,日記帳!$G$4:$G$10000,$T11,日記帳!$A$4:$A$10000,$T$3,日記帳!$B$4:$B$10000,\">=16:00:00\",日記帳!$B$4:$B$10000,\"<=23:59:59\"))","v":""},0]
["合計",{"$f":"IF(B$3=\"\",\"\",SUM(B4:B11))","v":""},{"$f":"IF(C$3=\"\",\"\",SUM(C4:C11))","v":""},null,"合計",{"$f":"IF(F$3=\"\",\"\",SUM(F4:F11))","v":""},{"$f":"IF(G$3=\"\",\"\",SUM(G4:G11))","v":""},null,"合計",{"$f":"SUM(J4:J11)","v":0},{"$f":"SUM(K4:K11)","v":0},{"$f":"SUM(L4:L11)","v":0},0,0,0,0,0,{"$f":"SUM(R4:R11)","v":0},null,"合計",{"$f":"SUM(U4:U11)","v":0},{"$f":"SUM(V4:V11)","v":0},{"$f":"SUM(W4:W11)","v":0},0,0,0,0,0,{"$f":"SUM(AC4:AC11)","v":0}]
[]
["客層別売上高",null,null,null,null,null,null,null,"商品別時間帯別売上高",null,null,null,null,null,null,null,null,null,null,"客層別時間帯別売上高"]
["客層",{"$f":"IF(損益分岐点売上高・投資!B10=\"\",\"\",損益分岐点売上高・投資!B10)","v":""},{"$f":"IF(損益分岐点売上高・投資!B11=\"\",\"\",損益分岐点売上高・投資!B11)","v":""},null,null,null,null,null,{"$f":"IF(損益分岐点売上高・投資!B11=\"\",\"\",損益分岐点売上高・投資!B11)","v":""},"10時前","10時","11時","12時","13時","14時","15時","16時以降","合計",null,{"$f":"IF(損益分岐点売上高・投資!B11=\"\",\"\",損益分岐点売上高・投資!B11)","v":""},"10時前","10時","11時","12時","13時","14時","15時","16時以降","合計"]
[{"$f":"IF(日記帳!$K4=\"\",\"\",日記帳!K4)","v":""},{"$f":"IF($A16=\"\",\"\",SUMIFS(日記帳!$F$4:$F$10000,日記帳!$G$4:$G$10000,$A16,日記帳!$A$4:$A$10000,B$15))","v":""},{"$f":"IF($A16=\"\",\"\",SUMIFS(日記帳!$F$4:$F$10000,日記帳!$G$4:$G$10000,$A16,日記帳!$A$4:$A$10000,C$15))","v":""},null,null,null,null,null,{"$f":"IF(日記帳!J4=\"\",\"\",日記帳!J4)","v":"醤油ラーメン"},{"$f":"IF($I16=\"\",\"\",SUMIFS(日記帳!$F$4:$F$10000,日記帳!$C$4:$C$10000,$I16,日記帳!$A$4:$A$10000,$I$15,日記帳!$B$4:$B$10000,\"<=9:59:59\" ))","v":0},{"$f":"IF($I16=\"\",\"\",SUMIFS(日記帳!$F$4:$F$10000,日記帳!$C$4:$C$10000,$I16,日記帳!$A$4:$A$10000,$I$15,日記帳!$B$4:$B$10000,\">=10:00:00\",日記帳!$B$4:$B$10000,\"<=10:59:59\"))","v":0},{"$f":"IF($I16=\"\",\"\",SUMIFS(日記帳!$F$4:$F$10000,日記帳!$C$4:$C$10000,$I16,日記帳!$A$4:$A$10000,$I$15,日記帳!$B$4:$B$10000,\">=11:00:00\",日記帳!$B$4:$B$10000,\"<=11:59:59\"))","v":0},{"$f":"IF($I16=\"\",\"\",SUMIFS(日記帳!$F$4:$F$10000,日記帳!$C$4:$C$10000,$I16,日記帳!$A$4:$A$10000,$I$15,日記帳!$B$4:$B$10000,\">=12:00:00\",日記帳!$B$4:$B$10000,\"<=12:59:59\"))","v":0},{"$f":"IF($I16=\"\",\"\",SUMIFS(日記帳!$F$4:$F$10000,日記帳!$C$4:$C$10000,$I16,日記帳!$A$4:$A$10000,$I$15,日記帳!$B$4:$B$10000,\">=13:00:00\",日記帳!$B$4:$B$10000,\"<=13:59:59\"))","v":0},{"$f":"IF($I16=\"\",\"\",SUMIFS(日記帳!$F$4:$F$10000,日記帳!$C$4:$C$10000,$I16,日記帳!$A$4:$A$10000,$I$15,日記帳!$B$4:$B$10000,\">=14:00:00\",日記帳!$B$4:$B$10000,\"<=14:59:59\"))","v":0},{"$f":"IF($I16=\"\",\"\",SUMIFS(日記帳!$F$4:$F$10000,日記帳!$C$4:$C$10000,$I16,日記帳!$A$4:$A$10000,$I$15,日記帳!$B$4:$B$10000,\">=15:00:00\",日記帳!$B$4:$B$10000,\"<=15:59:59\"))","v":0},{"$f":"IF($I16=\"\",\"\",SUMIFS(日記帳!$F$4:$F$10000,日記帳!$C$4:$C$10000,$I16,日記帳!$A$4:$A$10000,$I$15,日記帳!$B$4:$B$10000,\">=16:00:00\",日記帳!$B$4:$B$10000,\"<=23:59:59\"))","v":0},{"$f":"SUM(J16:Q16)","v":0},null,{"$f":"IF(日記帳!K4=\"\",\"\",日記帳!K4)","v":""},{"$f":"IF($T16=\"\",\"\",SUMIFS(日記帳!$F$4:$F$10000,日記帳!$G$4:$G$10000,$T16,日記帳!$A$4:$A$10000,$T$15,日記帳!$B$4:$B$10000,\"<=9:59:59\" ))","v":""},{"$f":"IF($T16=\"\",\"\",SUMIFS(日記帳!$F$4:$F$10000,日記帳!$G$4:$G$10000,$T16,日記帳!$A$4:$A$10000,$T$15,日記帳!$B$4:$B$10000,\">=10:00:00\",日記帳!$B$4:$B$10000,\"<=10:59:59\"))","v":""},{"$f":"IF($T16=\"\",\"\",SUMIFS(日記帳!$F$4:$F$10000,日記帳!$G$4:$G$10000,$T16,日記帳!$A$4:$A$10000,$T$15,日記帳!$B$4:$B$10000,\">=11:00:00\",日記帳!$B$4:$B$10000,\"<=11:59:59\"))","v":""},{"$f":"IF($T16=\"\",\"\",SUMIFS(日記帳!$F$4:$F$10000,日記帳!$G$4:$G$10000,$T16,日記帳!$A$4:$A$10000,$T$15,日記帳!$B$4:$B$10000,\">=12:00:00\",日記帳!$B$4:$B$10000,\"<=12:59:59\"))","v":""},{"$f":"IF($T16=\"\",\"\",SUMIFS(日記帳!$F$4:$F$10000,日記帳!$G$4:$G$10000,$T16,日記帳!$A$4:$A$10000,$T$15,日記帳!$B$4:$B$10000,\">=13:00:00\",日記帳!$B$4:$B$10000,\"<=13:59:59\"))","v":""},{"$f":"IF($T16=\"\",\"\",SUMIFS(日記帳!$F$4:$F$10000,日記帳!$G$4:$G$10000,$T16,日記帳!$A$4:$A$10000,$T$15,日記帳!$B$4:$B$10000,\">=14:00:00\",日記帳!$B$4:$B$10000,\"<=14:59:59\"))","v":""},{"$f":"IF($T16=\"\",\"\",SUMIFS(日記帳!$F$4:$F$10000,日記帳!$G$4:$G$10000,$T16,日記帳!$A$4:$A$10000,$T$15,日記帳!$B$4:$B$10000,\">=15:00:00\",日記帳!$B$4:$B$10000,\"<=15:59:59\"))","v":""},{"$f":"IF($T16=\"\",\"\",SUMIFS(日記帳!$F$4:$F$10000,日記帳!$G$4:$G$10000,$T16,日記帳!$A$4:$A$10000,$T$15,日記帳!$B$4:$B$10000,\">=16:00:00\",日記帳!$B$4:$B$10000,\"<=23:59:59\"))","v":""},{"$f":"SUM(U16:AB16)","v":0}]
[{"$f":"IF(日記帳!$K5=\"\",\"\",日記帳!K5)","v":""},{"$f":"IF($A17=\"\",\"\",SUMIFS(日記帳!$F$4:$F$10000,日記帳!$G$4:$G$10000,$A17,日記帳!$A$4:$A$10000,B$15))","v":""},{"$f":"IF($A17=\"\",\"\",SUMIFS(日記帳!$F$4:$F$10000,日記帳!$G$4:$G$10000,$A17,日記帳!$A$4:$A$10000,C$15))","v":""},null,null,null,null,null,{"$f":"IF(日記帳!J5=\"\",\"\",日記帳!J5)","v":"みそラーメン"},{"$f":"IF($I17=\"\",\"\",SUMIFS(日記帳!$F$4:$F$10000,日記帳!$C$4:$C$10000,$I17,日記帳!$A$4:$A$10000,$I$15,日記帳!$B$4:$B$10000,\"<=9:59:59\" ))","v":0},{"$f":"IF($I17=\"\",\"\",SUMIFS(日記帳!$F$4:$F$10000,日記帳!$C$4:$C$10000,$I17,日記帳!$A$4:$A$10000,$I$15,日記帳!$B$4:$B$10000,\">=10:00:00\",日記帳!$B$4:$B$10000,\"<=10:59:59\"))","v":0},{"$f":"IF($I17=\"\",\"\",SUMIFS(日記帳!$F$4:$F$10000,日記帳!$C$4:$C$10000,$I17,日記帳!$A$4:$A$10000,$I$15,日記帳!$B$4:$B$10000,\">=11:00:00\",日記帳!$B$4:$B$10000,\"<=11:59:59\"))","v":0},{"$f":"IF($I17=\"\",\"\",SUMIFS(日記帳!$F$4:$F$10000,日記帳!$C$4:$C$10000,$I17,日記帳!$A$4:$A$10000,$I$15,日記帳!$B$4:$B$10000,\">=12:00:00\",日記帳!$B$4:$B$10000,\"<=12:59:59\"))","v":0},{"$f":"IF($I17=\"\",\"\",SUMIFS(日記帳!$F$4:$F$10000,日記帳!$C$4:$C$10000,$I17,日記帳!$A$4:$A$10000,$I$15,日記帳!$B$4:$B$10000,\">=13:00:00\",日記帳!$B$4:$B$10000,\"<=13:59:59\"))","v":0},{"$f":"IF($I17=\"\",\"\",SUMIFS(日記帳!$F$4:$F$10000,日記帳!$C$4:$C$10000,$I17,日記帳!$A$4:$A$10000,$I$15,日記帳!$B$4:$B$10000,\">=14:00:00\",日記帳!$B$4:$B$10000,\"<=14:59:59\"))","v":0},{"$f":"IF($I17=\"\",\"\",SUMIFS(日記帳!$F$4:$F$10000,日記帳!$C$4:$C$10000,$I17,日記帳!$A$4:$A$10000,$I$15,日記帳!$B$4:$B$10000,\">=15:00:00\",日記帳!$B$4:$B$10000,\"<=15:59:59\"))","v":0},{"$f":"IF($I17=\"\",\"\",SUMIFS(日記帳!$F$4:$F$10000,日記帳!$C$4:$C$10000,$I17,日記帳!$A$4:$A$10000,$I$15,日記帳!$B$4:$B$10000,\">=16:00:00\",日記帳!$B$4:$B$10000,\"<=23:59:59\"))","v":0},{"$f":"SUM(J17:Q17)","v":0},null,{"$f":"IF(日記帳!K5=\"\",\"\",日記帳!K5)","v":""},{"$f":"IF($T17=\"\",\"\",SUMIFS(日記帳!$F$4:$F$10000,日記帳!$G$4:$G$10000,$T17,日記帳!$A$4:$A$10000,$T$15,日記帳!$B$4:$B$10000,\"<=9:59:59\" ))","v":""},{"$f":"IF($T17=\"\",\"\",SUMIFS(日記帳!$F$4:$F$10000,日記帳!$G$4:$G$10000,$T17,日記帳!$A$4:$A$10000,$T$15,日記帳!$B$4:$B$10000,\">=10:00:00\",日記帳!$B$4:$B$10000,\"<=10:59:59\"))","v":""},{"$f":"IF($T17=\"\",\"\",SUMIFS(日記帳!$F$4:$F$10000,日記帳!$G$4:$G$10000,$T17,日記帳!$A$4:$A$10000,$T$15,日記帳!$B$4:$B$10000,\">=11:00:00\",日記帳!$B$4:$B$10000,\"<=11:59:59\"))","v":""},{"$f":"IF($T17=\"\",\"\",SUMIFS(日記帳!$F$4:$F$10000,日記帳!$G$4:$G$10000,$T17,日記帳!$A$4:$A$10000,$T$15,日記帳!$B$4:$B$10000,\">=12:00:00\",日記帳!$B$4:$B$10000,\"<=12:59:59\"))","v":""},{"$f":"IF($T17=\"\",\"\",SUMIFS(日記帳!$F$4:$F$10000,日記帳!$G$4:$G$10000,$T17,日記帳!$A$4:$A$10000,$T$15,日記帳!$B$4:$B$10000,\">=13:00:00\",日記帳!$B$4:$B$10000,\"<=13:59:59\"))","v":""},{"$f":"IF($T17=\"\",\"\",SUMIFS(日記帳!$F$4:$F$10000,日記帳!$G$4:$G$10000,$T17,日記帳!$A$4:$A$10000,$T$15,日記帳!$B$4:$B$10000,\">=14:00:00\",日記帳!$B$4:$B$10000,\"<=14:59:59\"))","v":""},{"$f":"IF($T17=\"\",\"\",SUMIFS(日記帳!$F$4:$F$10000,日記帳!$G$4:$G$10000,$T17,日記帳!$A$4:$A$10000,$T$15,日記帳!$B$4:$B$10000,\">=15:00:00\",日記帳!$B$4:$B$10000,\"<=15:59:59\"))","v":""},{"$f":"IF($T17=\"\",\"\",SUMIFS(日記帳!$F$4:$F$10000,日記帳!$G$4:$G$10000,$T17,日記帳!$A$4:$A$10000,$T$15,日記帳!$B$4:$B$10000,\">=16:00:00\",日記帳!$B$4:$B$10000,\"<=23:59:59\"))","v":""},{"$f":"SUM(U17:AB17)","v":0}]
[{"$f":"IF(日記帳!$K6=\"\",\"\",日記帳!K6)","v":""},{"$f":"IF($A18=\"\",\"\",SUMIFS(日記帳!$F$4:$F$10000,日記帳!$G$4:$G$10000,$A18,日記帳!$A$4:$A$10000,B$15))","v":""},{"$f":"IF($A18=\"\",\"\",SUMIFS(日記帳!$F$4:$F$10000,日記帳!$G$4:$G$10000,$A18,日記帳!$A$4:$A$10000,C$15))","v":""},null,null,null,null,null,{"$f":"IF(日記帳!J6=\"\",\"\",日記帳!J6)","v":""},null,{"$f":"IF($I18=\"\",\"\",SUMIFS(日記帳!$F$4:$F$10000,日記帳!$C$4:$C$10000,$I18,日記帳!$A$4:$A$10000,$I$15,日記帳!#REF!,K$15 ))","v":""},{"$f":"IF($I18=\"\",\"\",SUMIFS(日記帳!$F$4:$F$10000,日記帳!$C$4:$C$10000,$I18,日記帳!$A$4:$A$10000,$I$15,日記帳!#REF!,L$15 ))","v":""},{"$f":"IF($I18=\"\",\"\",SUMIFS(日記帳!$F$4:$F$10000,日記帳!$C$4:$C$10000,$I18,日記帳!$A$4:$A$10000,$I$15,日記帳!#REF!,M$15 ))","v":""},{"$f":"IF($I18=\"\",\"\",SUMIFS(日記帳!$F$4:$F$10000,日記帳!$C$4:$C$10000,$I18,日記帳!$A$4:$A$10000,$I$15,日記帳!#REF!,N$15 ))","v":""},{"$f":"IF($I18=\"\",\"\",SUMIFS(日記帳!$F$4:$F$10000,日記帳!$C$4:$C$10000,$I18,日記帳!$A$4:$A$10000,$I$15,日記帳!#REF!,O$15 ))","v":""},{"$f":"IF($I18=\"\",\"\",SUMIFS(日記帳!$F$4:$F$10000,日記帳!$C$4:$C$10000,$I18,日記帳!$A$4:$A$10000,$I$15,日記帳!#REF!,P$15 ))","v":""},{"$f":"IF($I18=\"\",\"\",SUMIFS(日記帳!$F$4:$F$10000,日記帳!$C$4:$C$10000,$I18,日記帳!$A$4:$A$10000,$I$15,日記帳!#REF!,Q$15 ))","v":""},0,null,{"$f":"IF(日記帳!K6=\"\",\"\",日記帳!K6)","v":""},{"$f":"IF($T18=\"\",\"\",SUMIFS(日記帳!$F$4:$F$10000,日記帳!$G$4:$G$10000,$T18,日記帳!$A$4:$A$10000,$T$15,日記帳!$B$4:$B$10000,\"<=9:59:59\" ))","v":""},{"$f":"IF($T18=\"\",\"\",SUMIFS(日記帳!$F$4:$F$10000,日記帳!$G$4:$G$10000,$T18,日記帳!$A$4:$A$10000,$T$15,日記帳!$B$4:$B$10000,\">=10:00:00\",日記帳!$B$4:$B$10000,\"<=10:59:59\"))","v":""},{"$f":"IF($T18=\"\",\"\",SUMIFS(日記帳!$F$4:$F$10000,日記帳!$G$4:$G$10000,$T18,日記帳!$A$4:$A$10000,$T$15,日記帳!$B$4:$B$10000,\">=11:00:00\",日記帳!$B$4:$B$10000,\"<=11:59:59\"))","v":""},{"$f":"IF($T18=\"\",\"\",SUMIFS(日記帳!$F$4:$F$10000,日記帳!$G$4:$G$10000,$T18,日記帳!$A$4:$A$10000,$T$15,日記帳!$B$4:$B$10000,\">=12:00:00\",日記帳!$B$4:$B$10000,\"<=12:59:59\"))","v":""},{"$f":"IF($T18=\"\",\"\",SUMIFS(日記帳!$F$4:$F$10000,日記帳!$G$4:$G$10000,$T18,日記帳!$A$4:$A$10000,$T$15,日記帳!$B$4:$B$10000,\">=13:00:00\",日記帳!$B$4:$B$10000,\"<=13:59:59\"))","v":""},{"$f":"IF($T18=\"\",\"\",SUMIFS(日記帳!$F$4:$F$10000,日記帳!$G$4:$G$10000,$T18,日記帳!$A$4:$A$10000,$T$15,日記帳!$B$4:$B$10000,\">=14:00:00\",日記帳!$B$4:$B$10000,\"<=14:59:59\"))","v":""},{"$f":"IF($T18=\"\",\"\",SUMIFS(日記帳!$F$4:$F$10000,日記帳!$G$4:$G$10000,$T18,日記帳!$A$4:$A$10000,$T$15,日記帳!$B$4:$B$10000,\">=15:00:00\",日記帳!$B$4:$B$10000,\"<=15:59:59\"))","v":""},{"$f":"IF($T18=\"\",\"\",SUMIFS(日記帳!$F$4:$F$10000,日記帳!$G$4:$G$10000,$T18,日記帳!$A$4:$A$10000,$T$15,日記帳!$B$4:$B$10000,\">=16:00:00\",日記帳!$B$4:$B$10000,\"<=23:59:59\"))","v":""},0]
[{"$f":"IF(日記帳!$K7=\"\",\"\",日記帳!K7)","v":""},{"$f":"IF($A19=\"\",\"\",SUMIFS(日記帳!$F$4:$F$10000,日記帳!$G$4:$G$10000,$A19,日記帳!$A$4:$A$10000,B$15))","v":""},{"$f":"IF($A19=\"\",\"\",SUMIFS(日記帳!$F$4:$F$10000,日記帳!$G$4:$G$10000,$A19,日記帳!$A$4:$A$10000,C$15))","v":""},null,null,null,null,null,{"$f":"IF(日記帳!J7=\"\",\"\",日記帳!J7)","v":""},null,{"$f":"IF($I19=\"\",\"\",SUMIFS(日記帳!$F$4:$F$10000,日記帳!$C$4:$C$10000,$I19,日記帳!$A$4:$A$10000,$I$15,日記帳!#REF!,K$15 ))","v":""},{"$f":"IF($I19=\"\",\"\",SUMIFS(日記帳!$F$4:$F$10000,日記帳!$C$4:$C$10000,$I19,日記帳!$A$4:$A$10000,$I$15,日記帳!#REF!,L$15 ))","v":""},{"$f":"IF($I19=\"\",\"\",SUMIFS(日記帳!$F$4:$F$10000,日記帳!$C$4:$C$10000,$I19,日記帳!$A$4:$A$10000,$I$15,日記帳!#REF!,M$15 ))","v":""},{"$f":"IF($I19=\"\",\"\",SUMIFS(日記帳!$F$4:$F$10000,日記帳!$C$4:$C$10000,$I19,日記帳!$A$4:$A$10000,$I$15,日記帳!#REF!,N$15 ))","v":""},{"$f":"IF($I19=\"\",\"\",SUMIFS(日記帳!$F$4:$F$10000,日記帳!$C$4:$C$10000,$I19,日記帳!$A$4:$A$10000,$I$15,日記帳!#REF!,O$15 ))","v":""},{"$f":"IF($I19=\"\",\"\",SUMIFS(日記帳!$F$4:$F$10000,日記帳!$C$4:$C$10000,$I19,日記帳!$A$4:$A$10000,$I$15,日記帳!#REF!,P$15 ))","v":""},{"$f":"IF($I19=\"\",\"\",SUMIFS(日記帳!$F$4:$F$10000,日記帳!$C$4:$C$10000,$I19,日記帳!$A$4:$A$10000,$I$15,日記帳!#REF!,Q$15 ))","v":""},0,null,{"$f":"IF(日記帳!K7=\"\",\"\",日記帳!K7)","v":""},{"$f":"IF($T19=\"\",\"\",SUMIFS(日記帳!$F$4:$F$10000,日記帳!$G$4:$G$10000,$T19,日記帳!$A$4:$A$10000,$T$15,日記帳!$B$4:$B$10000,\"<=9:59:59\" ))","v":""},{"$f":"IF($T19=\"\",\"\",SUMIFS(日記帳!$F$4:$F$10000,日記帳!$G$4:$G$10000,$T19,日記帳!$A$4:$A$10000,$T$15,日記帳!$B$4:$B$10000,\">=10:00:00\",日記帳!$B$4:$B$10000,\"<=10:59:59\"))","v":""},{"$f":"IF($T19=\"\",\"\",SUMIFS(日記帳!$F$4:$F$10000,日記帳!$G$4:$G$10000,$T19,日記帳!$A$4:$A$10000,$T$15,日記帳!$B$4:$B$10000,\">=11:00:00\",日記帳!$B$4:$B$10000,\"<=11:59:59\"))","v":""},{"$f":"IF($T19=\"\",\"\",SUMIFS(日記帳!$F$4:$F$10000,日記帳!$G$4:$G$10000,$T19,日記帳!$A$4:$A$10000,$T$15,日記帳!$B$4:$B$10000,\">=12:00:00\",日記帳!$B$4:$B$10000,\"<=12:59:59\"))","v":""},{"$f":"IF($T19=\"\",\"\",SUMIFS(日記帳!$F$4:$F$10000,日記帳!$G$4:$G$10000,$T19,日記帳!$A$4:$A$10000,$T$15,日記帳!$B$4:$B$10000,\">=13:00:00\",日記帳!$B$4:$B$10000,\"<=13:59:59\"))","v":""},{"$f":"IF($T19=\"\",\"\",SUMIFS(日記帳!$F$4:$F$10000,日記帳!$G$4:$G$10000,$T19,日記帳!$A$4:$A$10000,$T$15,日記帳!$B$4:$B$10000,\">=14:00:00\",日記帳!$B$4:$B$10000,\"<=14:59:59\"))","v":""},{"$f":"IF($T19=\"\",\"\",SUMIFS(日記帳!$F$4:$F$10000,日記帳!$G$4:$G$10000,$T19,日記帳!$A$4:$A$10000,$T$15,日記帳!$B$4:$B$10000,\">=15:00:00\",日記帳!$B$4:$B$10000,\"<=15:59:59\"))","v":""},{"$f":"IF($T19=\"\",\"\",SUMIFS(日記帳!$F$4:$F$10000,日記帳!$G$4:$G$10000,$T19,日記帳!$A$4:$A$10000,$T$15,日記帳!$B$4:$B$10000,\">=16:00:00\",日記帳!$B$4:$B$10000,\"<=23:59:59\"))","v":""},0]
[{"$f":"IF(日記帳!$K8=\"\",\"\",日記帳!K8)","v":""},{"$f":"IF($A20=\"\",\"\",SUMIFS(日記帳!$F$4:$F$10000,日記帳!$G$4:$G$10000,$A20,日記帳!$A$4:$A$10000,B$15))","v":""},{"$f":"IF($A20=\"\",\"\",SUMIFS(日記帳!$F$4:$F$10000,日記帳!$G$4:$G$10000,$A20,日記帳!$A$4:$A$10000,C$15))","v":""},null,null,null,null,null,{"$f":"IF(日記帳!J8=\"\",\"\",日記帳!J8)","v":""},null,{"$f":"IF($I20=\"\",\"\",SUMIFS(日記帳!$F$4:$F$10000,日記帳!$C$4:$C$10000,$I20,日記帳!$A$4:$A$10000,$I$15,日記帳!#REF!,K$15 ))","v":""},{"$f":"IF($I20=\"\",\"\",SUMIFS(日記帳!$F$4:$F$10000,日記帳!$C$4:$C$10000,$I20,日記帳!$A$4:$A$10000,$I$15,日記帳!#REF!,L$15 ))","v":""},{"$f":"IF($I20=\"\",\"\",SUMIFS(日記帳!$F$4:$F$10000,日記帳!$C$4:$C$10000,$I20,日記帳!$A$4:$A$10000,$I$15,日記帳!#REF!,M$15 ))","v":""},{"$f":"IF($I20=\"\",\"\",SUMIFS(日記帳!$F$4:$F$10000,日記帳!$C$4:$C$10000,$I20,日記帳!$A$4:$A$10000,$I$15,日記帳!#REF!,N$15 ))","v":""},{"$f":"IF($I20=\"\",\"\",SUMIFS(日記帳!$F$4:$F$10000,日記帳!$C$4:$C$10000,$I20,日記帳!$A$4:$A$10000,$I$15,日記帳!#REF!,O$15 ))","v":""},{"$f":"IF($I20=\"\",\"\",SUMIFS(日記帳!$F$4:$F$10000,日記帳!$C$4:$C$10000,$I20,日記帳!$A$4:$A$10000,$I$15,日記帳!#REF!,P$15 ))","v":""},{"$f":"IF($I20=\"\",\"\",SUMIFS(日記帳!$F$4:$F$10000,日記帳!$C$4:$C$10000,$I20,日記帳!$A$4:$A$10000,$I$15,日記帳!#REF!,Q$15 ))","v":""},0,null,{"$f":"IF(日記帳!U8=\"\",\"\",日記帳!U8)","v":""},{"$f":"IF($T20=\"\",\"\",SUMIFS(日記帳!$F$4:$F$10000,日記帳!$G$4:$G$10000,$T20,日記帳!$A$4:$A$10000,$T$15,日記帳!$B$4:$B$10000,\"<=9:59:59\" ))","v":""},{"$f":"IF($T20=\"\",\"\",SUMIFS(日記帳!$F$4:$F$10000,日記帳!$G$4:$G$10000,$T20,日記帳!$A$4:$A$10000,$T$15,日記帳!$B$4:$B$10000,\">=10:00:00\",日記帳!$B$4:$B$10000,\"<=10:59:59\"))","v":""},{"$f":"IF($T20=\"\",\"\",SUMIFS(日記帳!$F$4:$F$10000,日記帳!$G$4:$G$10000,$T20,日記帳!$A$4:$A$10000,$T$15,日記帳!$B$4:$B$10000,\">=11:00:00\",日記帳!$B$4:$B$10000,\"<=11:59:59\"))","v":""},{"$f":"IF($T20=\"\",\"\",SUMIFS(日記帳!$F$4:$F$10000,日記帳!$G$4:$G$10000,$T20,日記帳!$A$4:$A$10000,$T$15,日記帳!$B$4:$B$10000,\">=12:00:00\",日記帳!$B$4:$B$10000,\"<=12:59:59\"))","v":""},{"$f":"IF($T20=\"\",\"\",SUMIFS(日記帳!$F$4:$F$10000,日記帳!$G$4:$G$10000,$T20,日記帳!$A$4:$A$10000,$T$15,日記帳!$B$4:$B$10000,\">=13:00:00\",日記帳!$B$4:$B$10000,\"<=13:59:59\"))","v":""},{"$f":"IF($T20=\"\",\"\",SUMIFS(日記帳!$F$4:$F$10000,日記帳!$G$4:$G$10000,$T20,日記帳!$A$4:$A$10000,$T$15,日記帳!$B$4:$B$10000,\">=14:00:00\",日記帳!$B$4:$B$10000,\"<=14:59:59\"))","v":""},{"$f":"IF($T20=\"\",\"\",SUMIFS(日記帳!$F$4:$F$10000,日記帳!$G$4:$G$10000,$T20,日記帳!$A$4:$A$10000,$T$15,日記帳!$B$4:$B$10000,\">=15:00:00\",日記帳!$B$4:$B$10000,\"<=15:59:59\"))","v":""},{"$f":"IF($T20=\"\",\"\",SUMIFS(日記帳!$F$4:$F$10000,日記帳!$G$4:$G$10000,$T20,日記帳!$A$4:$A$10000,$T$15,日記帳!$B$4:$B$10000,\">=16:00:00\",日記帳!$B$4:$B$10000,\"<=23:59:59\"))","v":""},0]
[{"$f":"IF(日記帳!$K9=\"\",\"\",日記帳!K9)","v":""},{"$f":"IF($A21=\"\",\"\",SUMIFS(日記帳!$F$4:$F$10000,日記帳!$G$4:$G$10000,$A21,日記帳!$A$4:$A$10000,B$15))","v":""},{"$f":"IF($A21=\"\",\"\",SUMIFS(日記帳!$F$4:$F$10000,日記帳!$G$4:$G$10000,$A21,日記帳!$A$4:$A$10000,C$15))","v":""},null,null,null,null,null,{"$f":"IF(日記帳!J9=\"\",\"\",日記帳!J9)","v":""},null,{"$f":"IF($I21=\"\",\"\",SUMIFS(日記帳!$F$4:$F$10000,日記帳!$C$4:$C$10000,$I21,日記帳!$A$4:$A$10000,$I$15,日記帳!#REF!,K$15 ))","v":""},{"$f":"IF($I21=\"\",\"\",SUMIFS(日記帳!$F$4:$F$10000,日記帳!$C$4:$C$10000,$I21,日記帳!$A$4:$A$10000,$I$15,日記帳!#REF!,L$15 ))","v":""},{"$f":"IF($I21=\"\",\"\",SUMIFS(日記帳!$F$4:$F$10000,日記帳!$C$4:$C$10000,$I21,日記帳!$A$4:$A$10000,$I$15,日記帳!#REF!,M$15 ))","v":""},{"$f":"IF($I21=\"\",\"\",SUMIFS(日記帳!$F$4:$F$10000,日記帳!$C$4:$C$10000,$I21,日記帳!$A$4:$A$10000,$I$15,日記帳!#REF!,N$15 ))","v":""},{"$f":"IF($I21=\"\",\"\",SUMIFS(日記帳!$F$4:$F$10000,日記帳!$C$4:$C$10000,$I21,日記帳!$A$4:$A$10000,$I$15,日記帳!#REF!,O$15 ))","v":""},{"$f":"IF($I21=\"\",\"\",SUMIFS(日記帳!$F$4:$F$10000,日記帳!$C$4:$C$10000,$I21,日記帳!$A$4:$A$10000,$I$15,日記帳!#REF!,P$15 ))","v":""},{"$f":"IF($I21=\"\",\"\",SUMIFS(日記帳!$F$4:$F$10000,日記帳!$C$4:$C$10000,$I21,日記帳!$A$4:$A$10000,$I$15,日記帳!#REF!,Q$15 ))","v":""},0,null,{"$f":"IF(日記帳!U9=\"\",\"\",日記帳!U9)","v":""},{"$f":"IF($T21=\"\",\"\",SUMIFS(日記帳!$F$4:$F$10000,日記帳!$G$4:$G$10000,$T21,日記帳!$A$4:$A$10000,$T$15,日記帳!$B$4:$B$10000,\"<=9:59:59\" ))","v":""},{"$f":"IF($T21=\"\",\"\",SUMIFS(日記帳!$F$4:$F$10000,日記帳!$G$4:$G$10000,$T21,日記帳!$A$4:$A$10000,$T$15,日記帳!$B$4:$B$10000,\">=10:00:00\",日記帳!$B$4:$B$10000,\"<=10:59:59\"))","v":""},{"$f":"IF($T21=\"\",\"\",SUMIFS(日記帳!$F$4:$F$10000,日記帳!$G$4:$G$10000,$T21,日記帳!$A$4:$A$10000,$T$15,日記帳!$B$4:$B$10000,\">=11:00:00\",日記帳!$B$4:$B$10000,\"<=11:59:59\"))","v":""},{"$f":"IF($T21=\"\",\"\",SUMIFS(日記帳!$F$4:$F$10000,日記帳!$G$4:$G$10000,$T21,日記帳!$A$4:$A$10000,$T$15,日記帳!$B$4:$B$10000,\">=12:00:00\",日記帳!$B$4:$B$10000,\"<=12:59:59\"))","v":""},{"$f":"IF($T21=\"\",\"\",SUMIFS(日記帳!$F$4:$F$10000,日記帳!$G$4:$G$10000,$T21,日記帳!$A$4:$A$10000,$T$15,日記帳!$B$4:$B$10000,\">=13:00:00\",日記帳!$B$4:$B$10000,\"<=13:59:59\"))","v":""},{"$f":"IF($T21=\"\",\"\",SUMIFS(日記帳!$F$4:$F$10000,日記帳!$G$4:$G$10000,$T21,日記帳!$A$4:$A$10000,$T$15,日記帳!$B$4:$B$10000,\">=14:00:00\",日記帳!$B$4:$B$10000,\"<=14:59:59\"))","v":""},{"$f":"IF($T21=\"\",\"\",SUMIFS(日記帳!$F$4:$F$10000,日記帳!$G$4:$G$10000,$T21,日記帳!$A$4:$A$10000,$T$15,日記帳!$B$4:$B$10000,\">=15:00:00\",日記帳!$B$4:$B$10000,\"<=15:59:59\"))","v":""},{"$f":"IF($T21=\"\",\"\",SUMIFS(日記帳!$F$4:$F$10000,日記帳!$G$4:$G$10000,$T21,日記帳!$A$4:$A$10000,$T$15,日記帳!$B$4:$B$10000,\">=16:00:00\",日記帳!$B$4:$B$10000,\"<=23:59:59\"))","v":""},0]
[{"$f":"IF(日記帳!$K10=\"\",\"\",日記帳!K10)","v":""},{"$f":"IF($A22=\"\",\"\",SUMIFS(日記帳!$F$4:$F$10000,日記帳!$G$4:$G$10000,$A22,日記帳!$A$4:$A$10000,B$15))","v":""},{"$f":"IF($A22=\"\",\"\",SUMIFS(日記帳!$F$4:$F$10000,日記帳!$G$4:$G$10000,$A22,日記帳!$A$4:$A$10000,C$15))","v":""},null,null,null,null,null,{"$f":"IF(日記帳!J10=\"\",\"\",日記帳!J10)","v":""},null,{"$f":"IF($I22=\"\",\"\",SUMIFS(日記帳!$F$4:$F$10000,日記帳!$C$4:$C$10000,$I22,日記帳!$A$4:$A$10000,$I$15,日記帳!#REF!,K$15 ))","v":""},{"$f":"IF($I22=\"\",\"\",SUMIFS(日記帳!$F$4:$F$10000,日記帳!$C$4:$C$10000,$I22,日記帳!$A$4:$A$10000,$I$15,日記帳!#REF!,L$15 ))","v":""},{"$f":"IF($I22=\"\",\"\",SUMIFS(日記帳!$F$4:$F$10000,日記帳!$C$4:$C$10000,$I22,日記帳!$A$4:$A$10000,$I$15,日記帳!#REF!,M$15 ))","v":""},{"$f":"IF($I22=\"\",\"\",SUMIFS(日記帳!$F$4:$F$10000,日記帳!$C$4:$C$10000,$I22,日記帳!$A$4:$A$10000,$I$15,日記帳!#REF!,N$15 ))","v":""},{"$f":"IF($I22=\"\",\"\",SUMIFS(日記帳!$F$4:$F$10000,日記帳!$C$4:$C$10000,$I22,日記帳!$A$4:$A$10000,$I$15,日記帳!#REF!,O$15 ))","v":""},{"$f":"IF($I22=\"\",\"\",SUMIFS(日記帳!$F$4:$F$10000,日記帳!$C$4:$C$10000,$I22,日記帳!$A$4:$A$10000,$I$15,日記帳!#REF!,P$15 ))","v":""},{"$f":"IF($I22=\"\",\"\",SUMIFS(日記帳!$F$4:$F$10000,日記帳!$C$4:$C$10000,$I22,日記帳!$A$4:$A$10000,$I$15,日記帳!#REF!,Q$15 ))","v":""},0,null,{"$f":"IF(日記帳!U10=\"\",\"\",日記帳!U10)","v":""},{"$f":"IF($T22=\"\",\"\",SUMIFS(日記帳!$F$4:$F$10000,日記帳!$G$4:$G$10000,$T22,日記帳!$A$4:$A$10000,$T$15,日記帳!$B$4:$B$10000,\"<=9:59:59\" ))","v":""},{"$f":"IF($T22=\"\",\"\",SUMIFS(日記帳!$F$4:$F$10000,日記帳!$G$4:$G$10000,$T22,日記帳!$A$4:$A$10000,$T$15,日記帳!$B$4:$B$10000,\">=10:00:00\",日記帳!$B$4:$B$10000,\"<=10:59:59\"))","v":""},{"$f":"IF($T22=\"\",\"\",SUMIFS(日記帳!$F$4:$F$10000,日記帳!$G$4:$G$10000,$T22,日記帳!$A$4:$A$10000,$T$15,日記帳!$B$4:$B$10000,\">=11:00:00\",日記帳!$B$4:$B$10000,\"<=11:59:59\"))","v":""},{"$f":"IF($T22=\"\",\"\",SUMIFS(日記帳!$F$4:$F$10000,日記帳!$G$4:$G$10000,$T22,日記帳!$A$4:$A$10000,$T$15,日記帳!$B$4:$B$10000,\">=12:00:00\",日記帳!$B$4:$B$10000,\"<=12:59:59\"))","v":""},{"$f":"IF($T22=\"\",\"\",SUMIFS(日記帳!$F$4:$F$10000,日記帳!$G$4:$G$10000,$T22,日記帳!$A$4:$A$10000,$T$15,日記帳!$B$4:$B$10000,\">=13:00:00\",日記帳!$B$4:$B$10000,\"<=13:59:59\"))","v":""},{"$f":"IF($T22=\"\",\"\",SUMIFS(日記帳!$F$4:$F$10000,日記帳!$G$4:$G$10000,$T22,日記帳!$A$4:$A$10000,$T$15,日記帳!$B$4:$B$10000,\">=14:00:00\",日記帳!$B$4:$B$10000,\"<=14:59:59\"))","v":""},{"$f":"IF($T22=\"\",\"\",SUMIFS(日記帳!$F$4:$F$10000,日記帳!$G$4:$G$10000,$T22,日記帳!$A$4:$A$10000,$T$15,日記帳!$B$4:$B$10000,\">=15:00:00\",日記帳!$B$4:$B$10000,\"<=15:59:59\"))","v":""},{"$f":"IF($T22=\"\",\"\",SUMIFS(日記帳!$F$4:$F$10000,日記帳!$G$4:$G$10000,$T22,日記帳!$A$4:$A$10000,$T$15,日記帳!$B$4:$B$10000,\">=16:00:00\",日記帳!$B$4:$B$10000,\"<=23:59:59\"))","v":""},0]
["合計",{"$f":"IF(B$15=\"\",\"\",SUM(B16:B22))","v":""},{"$f":"IF(C$15=\"\",\"\",SUM(C16:C22))","v":""},null,null,null,null,null,"合計",{"$f":"SUM(J15:J22)","v":0},{"$f":"SUM(K16:K22)","v":0},0,0,0,0,0,{"$f":"SUM(Q16:Q22)","v":0},0,null,"合計",{"$f":"SUM(U16:U22)","v":0},{"$f":"SUM(V16:V22)","v":0},0,0,0,0,0,0,{"$f":"SUM(AC16:AC22)","v":0}]
[]
[]
[null,null,null,null,null,null,null,null,null,null,null,null,null,null,null,null,null,null,null,"客層別商品別売上高　1日目"]
[null,null,null,null,null,null,null,null,null,null,null,null,null,null,null,null,null,null,null,{"$f":"IF(損益分岐点売上高・投資!B10=\"\",\"\",損益分岐点売上高・投資!B10)","v":""},{"$f":"IF(パネル!Q17=\"\",\"\",パネル!Q17)","v":"醤油ラーメン"},{"$f":"IF(パネル!Q18=\"\",\"\",パネル!Q18)","v":"みそラーメン"},"計"]
[null,null,null,null,null,null,null,null,null,null,null,null,null,null,null,null,null,null,null,{"$f":"IF(日記帳!$K4=\"\",\"\",日記帳!K4)","v":""},{"$f":"IF($T28=\"\",\"\",SUMIFS(日記帳!$F$4:$F$10000,日記帳!$G$4:$G$10000,$T28,日記帳!$C$4:$C$10000,U$27,日記帳!$A$4:$A$10000,$T$27))","v":""},{"$f":"IF($T28=\"\",\"\",SUMIFS(日記帳!$F$4:$F$10000,日記帳!$G$4:$G$10000,$T28,日記帳!$C$4:$C$10000,V$27,日記帳!$A$4:$A$10000,$T$27))","v":""},{"$f":"IF(T28=\"\",\"\",U28+V28)","v":""}]
[null,null,null,null,null,null,null,null,null,null,null,null,null,null,null,null,null,null,null,{"$f":"IF(日記帳!$K5=\"\",\"\",日記帳!K5)","v":""},{"$f":"IF($T29=\"\",\"\",SUMIFS(日記帳!$F$4:$F$10000,日記帳!$G$4:$G$10000,$T29,日記帳!$C$4:$C$10000,U$27,日記帳!$A$4:$A$10000,$T$27))","v":""},{"$f":"IF($T29=\"\",\"\",SUMIFS(日記帳!$F$4:$F$10000,日記帳!$G$4:$G$10000,$T29,日記帳!$C$4:$C$10000,V$27,日記帳!$A$4:$A$10000,$T$27))","v":""},{"$f":"IF(T29=\"\",\"\",U29+V29)","v":""}]
[null,null,null,null,null,null,null,null,null,null,null,null,null,null,null,null,null,null,null,{"$f":"IF(日記帳!$K6=\"\",\"\",日記帳!K6)","v":""},{"$f":"IF($T30=\"\",\"\",SUMIFS(日記帳!$F$4:$F$10000,日記帳!$G$4:$G$10000,$T30,日記帳!$C$4:$C$10000,U$27,日記帳!$A$4:$A$10000,$T$27))","v":""},{"$f":"IF($T30=\"\",\"\",SUMIFS(日記帳!$F$4:$F$10000,日記帳!$G$4:$G$10000,$T30,日記帳!$C$4:$C$10000,V$27,日記帳!$A$4:$A$10000,$T$27))","v":""},""]
[null,null,null,null,null,null,null,null,null,null,null,null,null,null,null,null,null,null,null,{"$f":"IF(日記帳!$K7=\"\",\"\",日記帳!K7)","v":""},{"$f":"IF($T31=\"\",\"\",SUMIFS(日記帳!$F$4:$F$10000,日記帳!$G$4:$G$10000,$T31,日記帳!$C$4:$C$10000,U$27,日記帳!$A$4:$A$10000,$T$27))","v":""},{"$f":"IF($T31=\"\",\"\",SUMIFS(日記帳!$F$4:$F$10000,日記帳!$G$4:$G$10000,$T31,日記帳!$C$4:$C$10000,V$27,日記帳!$A$4:$A$10000,$T$27))","v":""},""]
[null,null,null,null,null,null,null,null,null,null,null,null,null,null,null,null,null,null,null,{"$f":"IF(日記帳!$K8=\"\",\"\",日記帳!K8)","v":""},{"$f":"IF($T32=\"\",\"\",SUMIFS(日記帳!$F$4:$F$10000,日記帳!$G$4:$G$10000,$T32,日記帳!$C$4:$C$10000,U$27,日記帳!$A$4:$A$10000,$T$27))","v":""},{"$f":"IF($T32=\"\",\"\",SUMIFS(日記帳!$F$4:$F$10000,日記帳!$G$4:$G$10000,$T32,日記帳!$C$4:$C$10000,V$27,日記帳!$A$4:$A$10000,$T$27))","v":""},""]
[null,null,null,null,null,null,null,null,null,null,null,null,null,null,null,null,null,null,null,{"$f":"IF(日記帳!$K9=\"\",\"\",日記帳!K9)","v":""},{"$f":"IF($T33=\"\",\"\",SUMIFS(日記帳!$F$4:$F$10000,日記帳!$G$4:$G$10000,$T33,日記帳!$C$4:$C$10000,U$27,日記帳!$A$4:$A$10000,$T$27))","v":""},{"$f":"IF($T33=\"\",\"\",SUMIFS(日記帳!$F$4:$F$10000,日記帳!$G$4:$G$10000,$T33,日記帳!$C$4:$C$10000,V$27,日記帳!$A$4:$A$10000,$T$27))","v":""},""]
[null,null,null,null,null,null,null,null,null,null,null,null,null,null,null,null,null,null,null,{"$f":"IF(日記帳!$K10=\"\",\"\",日記帳!K10)","v":""},{"$f":"IF($T34=\"\",\"\",SUMIFS(日記帳!$F$4:$F$10000,日記帳!$G$4:$G$10000,$T34,日記帳!$C$4:$C$10000,U$27,日記帳!$A$4:$A$10000,$T$27))","v":""},{"$f":"IF($T34=\"\",\"\",SUMIFS(日記帳!$F$4:$F$10000,日記帳!$G$4:$G$10000,$T34,日記帳!$C$4:$C$10000,V$27,日記帳!$A$4:$A$10000,$T$27))","v":""},""]
[null,null,null,null,null,null,null,null,null,null,null,null,null,null,null,null,null,null,null,"合計",{"$f":"IF(U$15=\"\",\"\",SUM(U28:U34))","v":0},{"$f":"IF(V$15=\"\",\"\",SUM(V28:V34))","v":0},{"$f":"SUM(W28:W34)","v":0}]
[]
[null,null,null,null,null,null,null,null,null,null,null,null,null,null,null,null,null,null,null,"客層別商品別売上高　２日目"]
[null,null,null,null,null,null,null,null,null,null,null,null,null,null,null,null,null,null,null,{"$f":"IF(損益分岐点売上高・投資!B11=\"\",\"\",損益分岐点売上高・投資!B11)","v":""},{"$f":"IF(パネル!Q17=\"\",\"\",パネル!Q17)","v":"醤油ラーメン"},{"$f":"IF(パネル!Q18=\"\",\"\",パネル!Q18)","v":"みそラーメン"},"計"]
[null,null,null,null,null,null,null,null,null,null,null,null,null,null,null,null,null,null,null,{"$f":"IF(日記帳!$K4=\"\",\"\",日記帳!K4)","v":""},{"$f":"IF($T39=\"\",\"\",SUMIFS(日記帳!$F$4:$F$10000,日記帳!$G$4:$G$10000,$T39,日記帳!$C$4:$C$10000,U$38,日記帳!$A$4:$A$10000,$T$38))","v":""},{"$f":"IF($T39=\"\",\"\",SUMIFS(日記帳!$F$4:$F$10000,日記帳!$G$4:$G$10000,$T39,日記帳!$C$4:$C$10000,V$38,日記帳!$A$4:$A$10000,$T$38))","v":""},{"$f":"IF(T39=\"\",\"\",U39+V39)","v":""}]
[null,null,null,null,null,null,null,null,null,null,null,null,null,null,null,null,null,null,null,{"$f":"IF(日記帳!$K5=\"\",\"\",日記帳!K5)","v":""},{"$f":"IF($T40=\"\",\"\",SUMIFS(日記帳!$F$4:$F$10000,日記帳!$G$4:$G$10000,$T40,日記帳!$C$4:$C$10000,U$38,日記帳!$A$4:$A$10000,$T$38))","v":""},{"$f":"IF($T40=\"\",\"\",SUMIFS(日記帳!$F$4:$F$10000,日記帳!$G$4:$G$10000,$T40,日記帳!$C$4:$C$10000,V$38,日記帳!$A$4:$A$10000,$T$38))","v":""},{"$f":"IF(T40=\"\",\"\",U40+V40)","v":""}]
[null,null,null,null,null,null,null,null,null,null,null,null,null,null,null,null,null,null,null,{"$f":"IF(日記帳!$K6=\"\",\"\",日記帳!K6)","v":""},{"$f":"IF($T41=\"\",\"\",SUMIFS(日記帳!$F$4:$F$10000,日記帳!$G$4:$G$10000,$T41,日記帳!$C$4:$C$10000,U$38,日記帳!$A$4:$A$10000,$T$38))","v":""},{"$f":"IF($T41=\"\",\"\",SUMIFS(日記帳!$F$4:$F$10000,日記帳!$G$4:$G$10000,$T41,日記帳!$C$4:$C$10000,V$38,日記帳!$A$4:$A$10000,$T$38))","v":""},""]
[null,null,null,null,null,null,null,null,null,null,null,null,null,null,null,null,null,null,null,{"$f":"IF(日記帳!$K7=\"\",\"\",日記帳!K7)","v":""},{"$f":"IF($T42=\"\",\"\",SUMIFS(日記帳!$F$4:$F$10000,日記帳!$G$4:$G$10000,$T42,日記帳!$C$4:$C$10000,U$38,日記帳!$A$4:$A$10000,$T$38))","v":""},{"$f":"IF($T42=\"\",\"\",SUMIFS(日記帳!$F$4:$F$10000,日記帳!$G$4:$G$10000,$T42,日記帳!$C$4:$C$10000,V$38,日記帳!$A$4:$A$10000,$T$38))","v":""},""]
[null,null,null,null,null,null,null,null,null,null,null,null,null,null,null,null,null,null,null,{"$f":"IF(日記帳!$K8=\"\",\"\",日記帳!K8)","v":""},{"$f":"IF($T43=\"\",\"\",SUMIFS(日記帳!$F$4:$F$10000,日記帳!$G$4:$G$10000,$T43,日記帳!$C$4:$C$10000,U$38,日記帳!$A$4:$A$10000,$T$38))","v":""},{"$f":"IF($T43=\"\",\"\",SUMIFS(日記帳!$F$4:$F$10000,日記帳!$G$4:$G$10000,$T43,日記帳!$C$4:$C$10000,V$38,日記帳!$A$4:$A$10000,$T$38))","v":""},""]
[null,null,null,null,null,null,null,null,null,null,null,null,null,null,null,null,null,null,null,{"$f":"IF(日記帳!$K9=\"\",\"\",日記帳!K9)","v":""},{"$f":"IF($T44=\"\",\"\",SUMIFS(日記帳!$F$4:$F$10000,日記帳!$G$4:$G$10000,$T44,日記帳!$C$4:$C$10000,U$38,日記帳!$A$4:$A$10000,$T$38))","v":""},{"$f":"IF($T44=\"\",\"\",SUMIFS(日記帳!$F$4:$F$10000,日記帳!$G$4:$G$10000,$T44,日記帳!$C$4:$C$10000,V$38,日記帳!$A$4:$A$10000,$T$38))","v":""},""]
[null,null,null,null,null,null,null,null,null,null,null,null,null,null,null,null,null,null,null,{"$f":"IF(日記帳!$K10=\"\",\"\",日記帳!K10)","v":""},{"$f":"IF($T45=\"\",\"\",SUMIFS(日記帳!$F$4:$F$10000,日記帳!$G$4:$G$10000,$T45,日記帳!$C$4:$C$10000,U$38,日記帳!$A$4:$A$10000,$T$38))","v":""},{"$f":"IF($T45=\"\",\"\",SUMIFS(日記帳!$F$4:$F$10000,日記帳!$G$4:$G$10000,$T45,日記帳!$C$4:$C$10000,V$38,日記帳!$A$4:$A$10000,$T$38))","v":""},""]
[null,null,null,null,null,null,null,null,null,null,null,null,null,null,null,null,null,null,null,"合計",{"$f":"IF(U$15=\"\",\"\",SUM(U39:U45))","v":0},{"$f":"IF(V$15=\"\",\"\",SUM(V39:V45))","v":0},{"$f":"SUM(W39:W45)","v":0}]

{"sheet":"現金出納帳","index":6,"n_rows":16,"n_cols":21,"rows_kept":16,"cut":false,"hidden":false,"merged":[[1,0,1,5],[1,7,1,18]]}
[]
["現　　金　　出　　納　　帳",null,null,null,null,null,null,"残高照会（実際額）",null,null,null,null,null,null,null,null,null,null,null,"現金出納帳","現金過不足"]
["月","日","摘　　　　　　　　　　　　要","収　　入","支　　出","残　　高",null,"円",1,5,10,50,100,500,1000,2000,5000,10000,"合　計","帳簿残高","過不足"]
[null,null,"出資金",{"$f":"IF(損益分岐点売上高・投資!Y2=\"\",\"\",損益分岐点売上高・投資!Y3)","v":""},null,{"$f":"IF(D4=\"\",\"\",D4-E4)","v":""},null,{"$f":"IF(損益分岐点売上高・投資!B10=\"\",\"\",損益分岐点売上高・投資!B10)","v":""},null,null,null,null,null,null,null,null,null,null,{"$f":"$I$3*I4+$J$3*J4+$K$3*K4+$L$3*L4+$M$3*M4+$N$3*N4+$O$3*O4+$P$3*P4+$Q$3*Q4+$R$3*R4","v":0},{"$f":"F10","v":""},{"$f":"S4-T4","v":{"$error":"#VALUE!"}}]
[null,"〃","追加出資",{"$f":"IF(損益分岐点売上高・投資!Y4=\"\",\"\",損益分岐点売上高・投資!Y4)","v":0},null,{"$f":"IF(F4=\"\",\"\",F4+D5-E5)","v":""},null,{"$f":"IF(損益分岐点売上高・投資!B11=\"\",\"\",損益分岐点売上高・投資!B11)","v":""},null,null,null,null,null,null,null,null,null,null,{"$f":"$I$3*I5+$J$3*J5+$K$3*K5+$L$3*L5+$M$3*M5+$N$3*N5+$O$3*O5+$P$3*P5+$Q$3*Q5+$R$3*R5","v":0},{"$f":"F14","v":""},{"$f":"S5-T5","v":{"$error":"#VALUE!"}}]
[null,"〃","諸経費等支出",null,{"$f":"IF(D4=\"\",\"\",支出項目!C53)","v":""},{"$f":"IF(F5=\"\",\"\",F5+D6-E6)","v":""},null,"⇒文化祭の終わりに毎日つり銭のコインとお札の枚数を上の表に入力して、現金出納帳の残高金額を合わせてください。"]
[11,null,"売上収入",{"$f":"売上高分析!B12","v":""},null,{"$f":"IF(F6=\"\",\"\",F6+D7-E7)","v":""},null,"過不足があれば原因を調査して金額をゼロにしてください。"]
[null,"〃","追加出資",{"$f":"損益分岐点売上高・投資!Y5","v":0},null,"",null,"現金出納帳に日付を入力してください。"]
[null,"〃","諸経費等支出",null,{"$f":"支出項目!D53","v":""},""]
[null,"〃","過不足調整",null,null,{"$f":"IF(F9=\"\",\"\",F9+D10-E10)","v":""}]
[null,null,"売上収入",{"$f":"売上高分析!C12","v":""},null,""]
[null,"〃","追加出資",{"$f":"損益分岐点売上高・投資!Y6","v":0},null,""]
[null,"〃","諸経費等支出",null,{"$f":"支出項目!E53","v":""},""]
[null,"〃","過不足調整",null,null,""]
[null,"〃","残　　　高",null,{"$f":"IF(F14=\"\",\"\",F14)","v":""}]
[null,null,null,{"$f":"IF(D4=\"\",\"\",SUM(D4:D15))","v":""},{"$f":"IF(E6=\"\",\"\",SUM(E4:E15))","v":""}]

{"sheet":"損益計算書","index":7,"n_rows":7,"n_cols":6,"rows_kept":7,"cut":false,"hidden":false,"merged":[]}
["　　　　　　　　　　　　　　損益計算書　　　　　（単位：円）"]
[{"$f":"IF(損益分岐点売上高・投資!E1=\"\",\"\",損益分岐点売上高・投資!E1)","v":""},{"$f":"IF(損益分岐点売上高・投資!B2=\"\",\"\",損益分岐点売上高・投資!B2)","v":"2019年11月３日～2019年11月４日"},null,"利益処分（単位：円）"]
["売 上 高",{"$f":"SUM(売上高分析!B12:C12)","v":0},null,"営業利益",{"$f":"B7","v":0},"円"]
["変 動 費",{"$f":"支出項目!F30","v":0},null,{"$f":"支出項目!A47","v":"払い戻し"},{"$f":"支出項目!F47","v":0},"円"]
["貢献利益",{"$f":"B3-B4","v":0},null,{"$f":"支出項目!A48","v":"お花"},{"$f":"支出項目!F48","v":0},"円"]
["固 定 費",{"$f":"支出項目!F44","v":0},null,{"$f":"支出項目!A49","v":"お菓子"},{"$f":"支出項目!F49","v":0},"円"]
["営業利益",{"$f":"B5-B6","v":0},null,"処分後営業利益",{"$f":"E3-E4-E5-E6","v":0},"円"]

{"sheet":"予算実績比較","index":8,"n_rows":43,"n_cols":14,"rows_kept":43,"cut":false,"hidden":false,"merged":[[29,1,29,5],[30,1,30,5],[5,1,5,5],[28,1,28,5],[42,1,42,5]]}
[null,"実績",null,null,null,null,null,null,null,"予算実績比較損益計算書"]
[null,null,null,null,null,null,null,null,null,null,"予算","実績","差異","実績＋協賛品原価"]
[null,"売上に関する項目：販売実績",null,null,null,null,null,null,null,"売上高",{"$f":"予算!J3","v":0},{"$f":"損益計算書!B3","v":0},{"$f":"L3-K3","v":0},{"$f":"損益計算書!B3","v":0}]
[null,"1日目売上高",{"$f":"日記帳!K21","v":""},"杯",{"$f":"G4/C4","v":{"$error":"#VALUE!"}},"円／杯",{"$f":"売上高分析!B12","v":""},"円",null,"変動費",{"$f":"予算!J4","v":0},{"$f":"損益計算書!B4","v":0},{"$f":"K4-L4","v":0},{"$f":"損益計算書!B4+予算!I30","v":0}]
[null,"２日目売上高",{"$f":"日記帳!L21","v":""},"杯",{"$f":"G5/C5","v":{"$error":"#VALUE!"}},"円／杯",{"$f":"売上高分析!C12","v":""},"円",null,"貢献利益",{"$f":"予算!J5","v":0},{"$f":"損益計算書!B5","v":0},{"$f":"L5-K5","v":0},{"$f":"N3-N4","v":0}]
[null,"合　　　　　計",null,null,null,null,{"$f":"G4+G5","v":{"$error":"#VALUE!"}},"円",null,"固定費",{"$f":"予算!J6","v":0},{"$f":"損益計算書!B6","v":0},0,{"$f":"損益計算書!B6","v":0}]
[null,"材料費等に関する項目：原価実績（変動費）",null,null,null,null,null,null,null,"営業利益",{"$f":"予算!J7","v":0},{"$f":"損益計算書!B7","v":0},{"$f":"L7-K7","v":0},{"$f":"N5-N6","v":0}]
["No.","費　目","数　量","協賛","単　価",null,"金　　　　額",null,null,"差異分析","消費税は変動費の一部としています。"]
[1,{"$f":"IF(支出項目!A3=\"\",\"\",支出項目!A3)","v":""},null,{"$f":"IF(AND(予算!D8=\"〇\",予算実績比較!G9=0),\"〇\",\"\")","v":""},{"$f":"IF(C9=\"\",\"\",G9/C9)","v":""},"円",{"$f":"支出項目!F3","v":""},"円",null,"項     目","予算","数量差異","価格差異","実績"]
[2,{"$f":"IF(支出項目!A4=\"\",\"\",支出項目!A4)","v":""},null,{"$f":"IF(AND(予算!D9=\"〇\",予算実績比較!G10=0),\"〇\",\"\")","v":""},{"$f":"IF(C10=\"\",\"\",G10/C10)","v":""},"円",{"$f":"支出項目!F4","v":""},"円",null,{"$f":"B4","v":"1日目売上高"},{"$f":"予算!F3","v":0},{"$f":"IF(OR(J10=\"\",K10=0),\"\",(予算実績比較!C4-予算!C3)*予算!E3)","v":""},{"$f":"IF(J10=\"\",\"\",N10-(K10+L10))","v":{"$error":"#VALUE!"}},{"$f":"G4","v":""}]
[3,{"$f":"IF(支出項目!A5=\"\",\"\",支出項目!A5)","v":""},null,{"$f":"IF(AND(予算!D10=\"〇\",予算実績比較!G11=0),\"〇\",\"\")","v":""},"","円",{"$f":"支出項目!F5","v":""},"円",null,{"$f":"B5","v":"２日目売上高"},{"$f":"予算!F4","v":0},{"$f":"IF(OR(J11=\"\",K11=0),\"\",(予算実績比較!C5-予算!C4)*予算!E4)","v":""},{"$f":"IF(J11=\"\",\"\",N11-(K11+L11))","v":{"$error":"#VALUE!"}},{"$f":"G5","v":""}]
[4,{"$f":"IF(支出項目!A6=\"\",\"\",支出項目!A6)","v":""},null,{"$f":"IF(AND(予算!D11=\"〇\",予算実績比較!G12=0),\"〇\",\"\")","v":""},"","円",{"$f":"支出項目!F6","v":""},"円",null,{"$f":"B9","v":""},{"$f":"予算!F8","v":""},{"$f":"IF(OR(C9=\"\",J12=\"\",K12=0),\"\",(予算!C8-予算実績比較!C9)*予算!E8)","v":""},{"$f":"IF(OR(C9=\"\",J12=\"\",K12=0),\"\",(K12+L12)-N12)","v":""},{"$f":"G9","v":""}]
[5,{"$f":"IF(支出項目!A7=\"\",\"\",支出項目!A7)","v":""},null,{"$f":"IF(AND(予算!D12=\"〇\",予算実績比較!G13=0),\"〇\",\"\")","v":""},"","円",{"$f":"支出項目!F7","v":""},"円",null,{"$f":"B10","v":""},{"$f":"予算!F9","v":""},{"$f":"IF(OR(C10=\"\",J13=\"\",K13=0),\"\",(予算!C9-予算実績比較!C10)*予算!E9)","v":""},{"$f":"IF(OR(C10=\"\",J13=\"\",K13=0),\"\",(K13+L13)-N13)","v":""},{"$f":"G10","v":""}]
[6,{"$f":"IF(支出項目!A8=\"\",\"\",支出項目!A8)","v":""},null,{"$f":"IF(AND(予算!D13=\"〇\",予算実績比較!G14=0),\"〇\",\"\")","v":""},"","円",{"$f":"支出項目!F8","v":""},"円",null,"",{"$f":"予算!F10","v":""},{"$f":"IF(OR(C11=\"\",J14=\"\",K14=0),\"\",(予算!C10-予算実績比較!C11)*予算!E10)","v":""},"",""]
[7,{"$f":"IF(支出項目!A9=\"\",\"\",支出項目!A9)","v":""},null,{"$f":"IF(AND(予算!D14=\"〇\",予算実績比較!G15=0),\"〇\",\"\")","v":""},"","円",{"$f":"支出項目!F9","v":""},"円",null,"",{"$f":"予算!F11","v":""},{"$f":"IF(OR(C12=\"\",J15=\"\",K15=0),\"\",(予算!C11-予算実績比較!C12)*予算!E11)","v":""},"",""]
[8,{"$f":"IF(支出項目!A10=\"\",\"\",支出項目!A10)","v":""},null,{"$f":"IF(AND(予算!D15=\"〇\",予算実績比較!G16=0),\"〇\",\"\")","v":""},"","円",{"$f":"支出項目!F10","v":""},"円",null,"",{"$f":"予算!F12","v":""},{"$f":"IF(OR(C13=\"\",J16=\"\",K16=0),\"\",(予算!C12-予算実績比較!C13)*予算!E12)","v":""},"",""]
[9,{"$f":"IF(支出項目!A11=\"\",\"\",支出項目!A11)","v":""},null,{"$f":"IF(AND(予算!D16=\"〇\",予算実績比較!G17=0),\"〇\",\"\")","v":""},"","円",{"$f":"支出項目!F11","v":""},"円",null,"",{"$f":"予算!F13","v":""},{"$f":"IF(OR(C14=\"\",J17=\"\",K17=0),\"\",(予算!C13-予算実績比較!C14)*予算!E13)","v":""},"",""]
[10,{"$f":"IF(支出項目!A12=\"\",\"\",支出項目!A12)","v":""},null,{"$f":"IF(AND(予算!D17=\"〇\",予算実績比較!G18=0),\"〇\",\"\")","v":""},"","円",{"$f":"支出項目!F12","v":""},"円",null,"",{"$f":"予算!F14","v":""},{"$f":"IF(OR(C15=\"\",J18=\"\",K18=0),\"\",(予算!C14-予算実績比較!C15)*予算!E14)","v":""},"",""]
[11,{"$f":"IF(支出項目!A13=\"\",\"\",支出項目!A13)","v":""},null,{"$f":"IF(AND(予算!D18=\"〇\",予算実績比較!G19=0),\"〇\",\"\")","v":""},"","円",{"$f":"支出項目!F13","v":""},"円",null,"",{"$f":"予算!F15","v":""},{"$f":"IF(OR(C16=\"\",J19=\"\",K19=0),\"\",(予算!C15-予算実績比較!C16)*予算!E15)","v":""},"",""]
[12,{"$f":"IF(支出項目!A14=\"\",\"\",支出項目!A14)","v":""},null,{"$f":"IF(AND(予算!D19=\"〇\",予算実績比較!G20=0),\"〇\",\"\")","v":""},"","円",{"$f":"支出項目!F14","v":""},"円",null,"",{"$f":"予算!F16","v":""},{"$f":"IF(OR(C17=\"\",J20=\"\",K20=0),\"\",(予算!C16-予算実績比較!C17)*予算!E16)","v":""},"",""]
[13,{"$f":"IF(支出項目!A15=\"\",\"\",支出項目!A15)","v":""},null,{"$f":"IF(AND(予算!D20=\"〇\",予算実績比較!G21=0),\"〇\",\"\")","v":""},"","円",{"$f":"支出項目!F15","v":""},"円",null,"",{"$f":"予算!F17","v":""},{"$f":"IF(OR(C18=\"\",J21=\"\",K21=0),\"\",(予算!C17-予算実績比較!C18)*予算!E17)","v":""},"",""]
[14,{"$f":"IF(支出項目!A16=\"\",\"\",支出項目!A16)","v":""},null,{"$f":"IF(AND(予算!D21=\"〇\",予算実績比較!G22=0),\"〇\",\"\")","v":""},"","円",{"$f":"支出項目!F16","v":""},"円",null,"",{"$f":"予算!F18","v":""},{"$f":"IF(OR(C19=\"\",J22=\"\",K22=0),\"\",(予算!C18-予算実績比較!C19)*予算!E18)","v":""},"",""]
[15,{"$f":"IF(支出項目!A17=\"\",\"\",支出項目!A17)","v":""},null,{"$f":"IF(AND(予算!D22=\"〇\",予算実績比較!G23=0),\"〇\",\"\")","v":""},"","円",{"$f":"支出項目!F17","v":""},"円",null,"",{"$f":"予算!F19","v":""},{"$f":"IF(OR(C20=\"\",J23=\"\",K23=0),\"\",(予算!C19-予算実績比較!C20)*予算!E19)","v":""},"",""]
[16,{"$f":"IF(支出項目!A18=\"\",\"\",支出項目!A18)","v":""},null,{"$f":"IF(AND(予算!D23=\"〇\",予算実績比較!G24=0),\"〇\",\"\")","v":""},"","円",{"$f":"支出項目!F18","v":""},"円",null,"",{"$f":"予算!F20","v":""},{"$f":"IF(OR(C21=\"\",J24=\"\",K24=0),\"\",(予算!C20-予算実績比較!C21)*予算!E20)","v":""},"",""]
[17,{"$f":"IF(支出項目!A19=\"\",\"\",支出項目!A19)","v":""},null,{"$f":"IF(AND(予算!D24=\"〇\",予算実績比較!G25=0),\"〇\",\"\")","v":""},"","円",{"$f":"支出項目!F19","v":""},"円",null,"",{"$f":"予算!F21","v":""},{"$f":"IF(OR(C22=\"\",J25=\"\",K25=0),\"\",(予算!C21-予算実績比較!C22)*予算!E21)","v":""},"",""]
[18,{"$f":"IF(支出項目!A20=\"\",\"\",支出項目!A20)","v":""},null,{"$f":"IF(AND(予算!D25=\"〇\",予算実績比較!G26=0),\"〇\",\"\")","v":""},"","円",{"$f":"支出項目!F20","v":""},"円",null,{"$f":"B23","v":""},{"$f":"予算!F22","v":""},{"$f":"IF(OR(C23=\"\",J26=\"\",K26=0),\"\",(予算!C22-予算実績比較!C23)*予算!E22)","v":""},"",""]
[19,{"$f":"IF(支出項目!A21=\"\",\"\",支出項目!A21)","v":""},null,{"$f":"IF(AND(予算!D26=\"〇\",予算実績比較!G27=0),\"〇\",\"\")","v":""},"","円",{"$f":"支出項目!F21","v":""},"円",null,"",{"$f":"予算!F23","v":""},{"$f":"IF(OR(C24=\"\",J27=\"\",K27=0),\"\",(予算!C23-予算実績比較!C24)*予算!E23)","v":""},"",""]
[20,{"$f":"IF(支出項目!A22=\"\",\"\",支出項目!A22)","v":""},null,{"$f":"IF(AND(予算!D27=\"〇\",予算実績比較!G28=0),\"〇\",\"\")","v":""},"","円",{"$f":"支出項目!F22","v":""},"円",null,"",{"$f":"予算!F24","v":""},{"$f":"IF(OR(C25=\"\",J28=\"\",K28=0),\"\",(予算!C24-予算実績比較!C25)*予算!E24)","v":""},"",""]
[null,"小    計",null,null,null,null,{"$f":"SUM(G9:G28)","v":0},"円",null,{"$f":"B26","v":""},{"$f":"予算!F25","v":""},{"$f":"IF(OR(C26=\"\",J29=\"\",K29=0),\"\",(予算!C25-予算実績比較!C26)*予算!E25)","v":""},"",""]
[null,"消   費  税",null,null,null,null,{"$f":"支出項目!F29","v":0},"円",null,"",{"$f":"予算!F26","v":""},{"$f":"IF(OR(C27=\"\",J30=\"\",K30=0),\"\",(予算!C26-予算実績比較!C27)*予算!E26)","v":""},"",""]
[null,"合    計",null,null,null,null,{"$f":"G29+G30","v":0},"円",null,"",{"$f":"予算!F27","v":""},{"$f":"IF(OR(C28=\"\",J31=\"\",K31=0),\"\",(予算!C27-予算実績比較!C28)*予算!E27)","v":""},"",""]
[null,null,null,null,null,null,null,null,null,{"$f":"B35","v":""},{"$f":"予算!F34","v":""},{"$f":"IF(OR(C35=\"\",J32=\"\",K32=0),\"\",(予算!C34-予算実績比較!C35)*予算!E34)","v":""},{"$f":"IF(OR(C35=\"\",J32=\"\",K32=0),\"\",(K32+L32)-N32)","v":""},{"$f":"G35","v":""}]
[null,"レンタル品等に関する項目：原価実績（固定費）",null,null,null,null,null,null,null,{"$f":"B36","v":""},{"$f":"予算!F35","v":""},{"$f":"IF(OR(C36=\"\",J33=\"\",K33=0),\"\",(予算!C35-予算実績比較!C36)*予算!E35)","v":""},{"$f":"IF(OR(C36=\"\",J33=\"\",K33=0),\"\",(K33+L33)-N33)","v":""},{"$f":"G36","v":""}]
["No.","費　目","数　量","協賛","単　価",null,"金　　　　額",null,null,"",{"$f":"予算!F36","v":""},{"$f":"IF(OR(C37=\"\",J34=\"\",K34=0),\"\",(予算!C36-予算実績比較!C37)*予算!E36)","v":""},"",""]
[1,{"$f":"IF(支出項目!A33=\"\",\"\",支出項目!A33)","v":""},1,{"$f":"IF(AND(予算!D34=\"〇\",予算実績比較!G35=0),\"〇\",\"\")","v":""},{"$f":"IF(C35=\"\",\"\",G35/C35)","v":{"$error":"#VALUE!"}},"円",{"$f":"支出項目!F33","v":""},"円",null,"",{"$f":"予算!F37","v":""},{"$f":"IF(OR(C38=\"\",J35=\"\",K35=0),\"\",(予算!C37-予算実績比較!C38)*予算!E37)","v":""},"",""]
[2,{"$f":"IF(支出項目!A34=\"\",\"\",支出項目!A34)","v":""},2,{"$f":"IF(AND(予算!D35=\"〇\",予算実績比較!G36=0),\"〇\",\"\")","v":""},{"$error":"#VALUE!"},"円",{"$f":"支出項目!F34","v":""},"円",null,"",{"$f":"予算!F38","v":""},{"$f":"IF(OR(C39=\"\",J36=\"\",K36=0),\"\",(予算!C38-予算実績比較!C39)*予算!E38)","v":""},"",""]
[3,{"$f":"IF(支出項目!A35=\"\",\"\",支出項目!A35)","v":""},2,{"$f":"IF(AND(予算!D36=\"〇\",予算実績比較!G37=0),\"〇\",\"\")","v":""},{"$error":"#VALUE!"},"円",{"$f":"支出項目!F35","v":""},"円",null,{"$f":"B40","v":""},{"$f":"予算!F39","v":""},{"$f":"IF(OR(C40=\"\",J37=\"\",K37=0),\"\",(予算!C39-予算実績比較!C40)*予算!E39)","v":""},"",{"$f":"G40","v":""}]
[4,{"$f":"IF(支出項目!A36=\"\",\"\",支出項目!A36)","v":""},0,{"$f":"IF(AND(予算!D37=\"〇\",予算実績比較!G38=0),\"〇\",\"\")","v":""},{"$error":"#VALUE!"},"円",{"$f":"支出項目!F36","v":""},"円",null,"",{"$f":"予算!F40","v":""},{"$f":"IF(OR(C41=\"\",J38=\"\",K38=0),\"\",(予算!C40-予算実績比較!C41)*予算!E40)","v":""},"",""]
[5,{"$f":"IF(支出項目!A37=\"\",\"\",支出項目!A37)","v":""},0,{"$f":"IF(AND(予算!D38=\"〇\",予算実績比較!G39=0),\"〇\",\"\")","v":""},{"$error":"#VALUE!"},"円",{"$f":"支出項目!F37","v":""},"円",null,"",{"$f":"予算!F41","v":""},{"$f":"IF(OR(C42=\"\",J39=\"\",K39=0),\"\",(予算!C41-予算実績比較!C42)*予算!E41)","v":""},"",""]
[6,{"$f":"IF(支出項目!A38=\"\",\"\",支出項目!A38)","v":""},null,{"$f":"IF(AND(予算!D39=\"〇\",予算実績比較!G40=0),\"〇\",\"\")","v":""},"","円",{"$f":"支出項目!F38","v":""},"円",null,{"$f":"B43","v":"合　　　計"},{"$f":"SUM(K10:K11)-SUM(K12:K39)","v":0},{"$f":"SUM(L10:L39)","v":0},{"$f":"SUM(M10:M39)","v":{"$error":"#VALUE!"}},{"$f":"SUM(N10:N11)-SUM(N12:N39)","v":0}]
[7,{"$f":"IF(支出項目!A39=\"\",\"\",支出項目!A39)","v":""},null,{"$f":"IF(AND(予算!D40=\"〇\",予算実績比較!G41=0),\"〇\",\"\")","v":""},"","円",{"$f":"支出項目!F39","v":""},"円",null,"消費税・協賛品は差異分析の対象から外しています。"]
[8,{"$f":"IF(支出項目!A40=\"\",\"\",支出項目!A40)","v":""},null,{"$f":"IF(AND(予算!D41=\"〇\",予算実績比較!G42=0),\"〇\",\"\")","v":""},"","円",{"$f":"支出項目!F40","v":""},"円"]
[null,"合　　　計",null,null,null,null,{"$f":"SUM(G35:G42)","v":0},"円"]